Workbook

Sheet COVER
C3: =UPPER(Lists!K3) -> STATISTICAL OFFICE OF THE EUROPEAN UNION
C5: =Lists!K4 -> Directorate E: Sectoral and regional statistics
C6: =Lists!K5 -> Unit E-2: Environmental statistics and accounts; sustainable development
C7: =UPPER(Lists!K7) -> BIENNIAL WASTE STATISTICS REGULATION - WASTE TREATMENT
C8: =CONCATENATE(Lists!K8," DATA COLLECTION") -> 2024 DATA COLLECTION
C9: =CONCATENATE("Launching date: ",Lists!K9) -> Launching date: 20 May 2024

Sheet INDEX
E3: =UPPER(Lists!K3) -> STATISTICAL OFFICE OF THE EUROPEAN UNION
C4: =UPPER(Lists!K7) -> BIENNIAL WASTE STATISTICS REGULATION - WASTE TREATMENT
C5: =CONCATENATE(Lists!K8," DATA COLLECTION") -> 2024 DATA COLLECTION
C7: INDEX - STRUCTURE OF THE QUESTIONNAIRE
C9: I. Basic information
C10: TITLE | D10: DESCRIPTION | E10: TYPE
C11: Index | D11: Structure of the questionnaire | E11: for information
C12: Basic instructions | D12: Basic instructions | E12: for reading before filling in the questionnaire
C13: Methodology | D13: Explanatory notes and methodology | E13: for reading before filling in the questionnaire
C14: Validation rules | D14: Validation performed by the 'Validate questionnaire' button | E14: for reading before filling in the questionnaire
C15: II. Reporting data (To be filled in by the country)
C16: TITLE | D16: DESCRIPTION | E16: TYPE
C17: GETTING STARTED | D17: Country and data collection definition. Administrative data. | E17: for filling in
C18: Footnotes list | D18: List of country-specific explanatory footnotes | E18: for filling in
C19: Table 1 | D19: WASTE TREATMENT by waste category (EWC-STAT) and treatment category | E19: for filling in.

Sheet Basic Instructions
F3: =UPPER(Lists!K3) -> STATISTICAL OFFICE OF THE EUROPEAN UNION
C4: =UPPER(Lists!K7) -> BIENNIAL WASTE STATISTICS REGULATION - WASTE TREATMENT
C5: =CONCATENATE(Lists!K8," DATA COLLECTION") -> 2024 DATA COLLECTION
C7: BASIC INSTRUCTIONS
C8: Before filling in the questionnaire please read carefully the instructions below. This EXCEL workbook is the questionnaire. Please do not delete or add rows in the questionnaire.
C9: This EXCEL workbook contains macros. In order to make them work you need to save the file in your computer and then reopen it and enable macros resp. make it a trusted document.
C10: Once you filled in all the required fields, you have to validate the data before submitting the questionnaire (clicking on the button 'Validate questionnaire' on the top left-hand corner of the worksheets). It is of the utmost importance to confirm that there are no pending errors (see 'Errorlog' worksheet), since a questionnaire with errors (red shadowed cells) will be rejected. You can restore the color of the table clicking on 'Restore table color'.
C11: Table of contents
C12: 1. Data transmission
C13: 2. Reporting conventions
C14: 3. Metadata
C15: 4. Footnotes
C16: 5. Methodology and questions
C17: Annex: How to fill in the data sheets of the questionnaire
C19: 1. Data transmission:
C21: The standard tool for the transmission of statistical data is the eDAMIS system. The system creates a secure environment for the transmission of data, it records all data submissions and acknowledges the data delivery. The eDAMIS system has been installed in the National Statistical Institutes.
C23: Please submit this questionnaire to Eurostat using the eDAMIS reporting system. Use the following details:
C24: Domain name: | D24: =Lists!K12 -> WASTE
C25: Dataset name: | D25: =Lists!K13 -> WASTE_TRT
C27: Should you have any questions regarding data transmission do not hesitate to contact your local eDAMIS coordinator or the Eurostat eDAMIS helpdesk at:
C28: web page: | D28: =Lists!K14 -> https://webgate.ec.europa.eu/edamis/helpcenter/website/index.htm
C29: e-mail address: | D29: =Lists!K15 -> estat-support-edamis@ec.europa.eu
C30: telephone: | D30: =Lists!K17 -> (+352) 4301 33213
C31: For methodological questions please contact:
C32: e-mail address: | D32: =Lists!K18 -> ESTAT-WASTE-STATISTICS@EC.EUROPA.EU
C34: 2. Reporting conventions:
C36: Reporting of zeroes and not availble data must follow this convention:
C37: Description | D37: Symbol
C38: Real zero | D38: 0
C39: Not available | E39: (empty cell)
C41: 1. White shaded (uncoloured) boxes: Provision of data is mandatory
C42: 2. Black shaded boxes: reporting is not applicable
C43: 3. Grey shaded boxes: calculation is automatic; do not input any data into these cells. IF exceptionally you need to input data in a grey cell, first press the "unlock formulas" button situated in the top left-hand corner of each sheet.
C45: 3. Metadata:
C47: Please provide data by means of the Metadatahandler, available in the following link:
C48: https://webgate.ec.europa.eu/estat/spe/metaconv/home.htm
C50: 4. Footnotes:
C52: You are asked to report data that follow as closely as possible the Waste Statistics Regulation waste definitions and reporting rules (see paragraphs below). Please report problems with the coverage or data quality in the Metadatahandler.
C54: Flags (footnote symbols) should be entered in the reporting tables in the footnote columns, next to the value cell. There are two types of footnotes:
C55: - Letters for standard footnotes (as defined by Eurostat) and…
C56: - Numbers for country-specific footnotes (to be defined by the data compilers).
C58: 4.1 Standard footnotes
C59: The following footnotes will be used for the automatic data processing and data dissemination. Hence, they cannot be changed:
C60: B) break in series | D60: Please use this flag when the reported figure cannot be compared to the data reported for the previous year, e.g. because of new methods or sources being used or when you move from the old calculation rules to the new calculation rules. Please use this flag only when the change in methods, sources or calculation rules has a substantial impact.
C61: E) estimated data
C62: P) provisional
C63: The drop-down menu includes as well combinations of footnotes. If you need to put more than one footnote in a field, please, use these combinations in the drop-down menu.
C65: 4.2 Country-specific explanatory footnotes
C66: The explanatory footnotes can be used for any meaning beyond the pre-defined footnotes.
C67: To include an explanatory footnote, please first insert the text in the “Footnote list” sheet starting from number 1. Then in the data table please select the corresponding footnote reference number from the drop-down menu in the footnote column next to the value cell. The text you entered in the “Footnote list” sheet will then appear automatically next to the footnote reference number. The same explanatory footnote can be chosen for all the values for which the same explanation applies. If by mistake a number is chosen from the drop-down menu, it is sufficient to press the key delete to clean the cell.
C68: Please do not report footnotes that elaborate on e.g. source data and compilation methods; these are to be described in the quality report and the metadata sheets.
C70: 5. Methodology and questions:
C72: Guidance and the Manual on waste statistics are available on Eurostat website:
C73: =Lists!K19 -> https://ec.europa.eu/eurostat/web/waste/methodology
C75: The guidelines contain definitions, examples and recommendations to ensure that data are compiled and maintained on a consistent basis. They explain the scope and the reasoning behind the terms of the tables, and provide extra information necessary to allow a consistent collection and interpretation of the data to be reported by countries.
C76: A summary methodology is presented in this questionnaire, in the sheet named 'Methodology'. It is essential to read this sheet before filling in the questionnaire as it contains, beside the summary methodology, important information on priorities for filling in the tables, data sources and hints for establishing a methodology at national level.
C77: If you have questions, please send them to the following email addresses:
C78: =Lists!K18 -> ESTAT-WASTE-STATISTICS@EC.EUROPA.EU
C80: Annex: How to fill in the data sheets of the questionnaire
C82: You are kindly requested to:
C83: 1) All mandatory data cells (whilte cells) must be filled in with a positive value or a zero.
C84: 2) Cells, which contain sums, are filled in automatically, unless there are empty fields in one of the summands. In this case, the field containing the sum has to be filled as well. In case, you assume that a formula should be added in a cell, please, send us an email with this formula. Please, do not add the formula yourself. The formula may be helpful all countries.
C85: 3) Flags (footnote symbols) can be entered in the reporting tables in the footnote columns.
C86: 4) To include standard footnotes use the drop-down menu.
C87: 5) The text of specific footnotes can be entered in the worksheet 'Footnotes list'.
C88: 6) Empty fields are a breach of the Regulation 2150/2002. An explanation, why the value is not available, has to be entered.

Sheet Methodology
F3: =UPPER(Lists!K3) -> STATISTICAL OFFICE OF THE EUROPEAN UNION
C4: =UPPER(Lists!K7) -> BIENNIAL WASTE STATISTICS REGULATION - WASTE TREATMENT
C5: =CONCATENATE(Lists!K8," DATA COLLECTION") -> 2024 DATA COLLECTION
C7: METHODOLOGY AND LEGAL ACTS
C8: Table of contents
C9: 1. Background
C10: 2. Legal acts
C11: 3. Data reporting - questionnaire
C13: 1. Background
C15: Regular Community statistics on the production and management of waste from businesses and private households are required by the Community for monitoring the implementation of waste policy. Regulation (EC) No 2150/2002 of the European Parliament and of the Council of 25 November 2002 on waste statistics creates the basis for monitoring compliance with the principles of maximisation of recovery and safe disposal.
C17: This reporting template allows Member States to report waste generation pursuant to the requirements of this Regulation and the amending Commission Regulation (EU) No 849/2010.
C19: The guidelines are available here:
C20: =Lists!K19 -> https://ec.europa.eu/eurostat/web/waste/methodology
C22: 2. Legal acts
C24: European Parliament and Council Regulation 2150/2002 was last amended by amending Commission Regulation (EU) No 849/2010.
C25: Definitions and classifications in these Regulations are based on the Waste Framework Directive - Directive 2008/98/EC of the European Parliament and the Council (https://eur-lex.europa.eu/legal-content/EN/TXT/?uri=CELEX:02008L0098-20180705)
C26: The legislation is available here:
C27: =Lists!K20 -> https://ec.europa.eu/eurostat/web/waste/legislation
E28: https://eur-lex.europa.eu/legal-content/EN/TXT/?uri=CELEX:02008L0098-20180705
C30: 3. Data reporting - questionnaire
C32: This document assists Member States to report high quality, harmonised and efficient statistics. Detailed instructions can be found in the guidance document referred to above.
C33: The reporting shall cover a full calendar year.
C34: The basic instructions sheet consists of some information necessary for filling in this questionnaire correctly, like unit of measure, allowed symbols, metadata, footnotes, and transmission to Eurostat.

Sheet Validation rules
F3: =UPPER(Lists!K3) -> STATISTICAL OFFICE OF THE EUROPEAN UNION
C4: =UPPER(Lists!K7) -> BIENNIAL WASTE STATISTICS REGULATION - WASTE TREATMENT
C5: =CONCATENATE(Lists!K8," DATA COLLECTION") -> 2024 DATA COLLECTION
C7: VALIDATION RULES
C8: Table of contents
C9: 1. Mandatory data
C10: 2. Arithmetic rules
C11: 3. Explanatory footnotes
C13: 1. Mandatory Data:
C15: All the information requested in the sheet "GETTING STARTED" must be filled in.
C16: All the mandatory cells (white cells) in table 1 must be filled-in.
C17: If mandatory cells are left empty, an explanation why the data is missing has to be provided by means of the "Explanatory footnote" next to the missing value.
C19: 2. Arithmetic rules
C21: All reported values must be equal or bigger than 0 (positive values).
C22: Hazardous plus non-hazardous waste must be equal to the total for each waste category.
C23: Total waste (coded as TOTAL) must equal to the sum of all EWCstat. categories
C24: Total Waste (excluding mineral waste) coded as TOT_X_MIN must be equal to the sum of all EWCstat. minus the following categories: - 12.1 Mineral waste from construction and demolition (coded W121) - 12.2,12.3 and 12.5 Other mineral wastes (Coded W12B) - 12.6 Soils (coded W126) - 12.7 Dredging spoils (coded W127)
C25: Primary waste, coded as PRIM, must be equal to the sum of all EWCstat. categories minus - 03.3 Sludges and liquid waste from waste treatment (Coded W033) - 10.3 Sorting residues (Coded W103) - 128_13 Mineral waste from waste treatment and stabilised waste (Coded W128_13)
C26: Secondary waste, coded as SEC, must be equal to the sum of the following EWCstat. categories - 03.3 Sludges and liquid waste from waste treatment (Coded W033) - 10.3 Sorting residues (Coded W103) - 128_13 Mineral waste from waste treatment and stabilised waste (Coded W128_13)
C27: "Recovery - recycling and backfilling" (coded RCV_R_B) must be equal to "Recovery - recycling" (coded RCV_R) plus "Recovery - backfilling" (coded RCV_B)
C28: "Disposal - landfill and other (D1-D7, D12)" (coded DSP_L_OTH) must be equal to "Disposal - landfill (D1, D5, D12)" (coded DSP_L) plus "Disposal - other (D2-D4, D6-D7)" (coded DSP_OTH)
C30: 3. Explanatory footnotes
C32: When an explanatory footnote is referenced (by means of a number selected from the drop-down list), the referenced footnote in the sheet "Footnotes list" must not be empty.

Sheet GETTING STARTED
G3: =UPPER(Lists!K3) -> STATISTICAL OFFICE OF THE EUROPEAN UNION
C4: =UPPER(Lists!K7) -> BIENNIAL WASTE STATISTICS REGULATION - WASTE TREATMENT
C5: =CONCATENATE(Lists!K8," DATA COLLECTION") -> 2024 DATA COLLECTION
C7: GETTING STARTED
C9: Please select your country (click on the white cell): | E9: Croatia | G9: =IF(E9="","",VLOOKUP(E9,Lists!A2:B44,2,FALSE)) -> HR
C10: Reference year: | E10: 2022
C11: =CONCATENATE("The due date for reporting is ",Lists!K10) -> The due date for reporting is 30 June 2024
C12: ="Who is the primary contact point for the data collection '" & Lists!K7&"' in your country?" -> Who is the primary contact point for the data collection 'Biennial Waste Statistics Regulation - Waste Treatment' in your country?
C14: Name: | D14: Jasna Kufrin
C16: Institution: | D16: Ministry of Environmental Protection and Green Transition
C18: Unit: | D18: Institute for Environment and Nature
C20: Telephone: | D20: +38514886851
C22: Email adress: | D22: jasna.kufrin@mzozt.hr
C23: Eurostat would be grateful if you could send us the completed questionnaire ahead of the deadline.

Sheet Footnotes list
E3: =UPPER(Lists!K3) -> STATISTICAL OFFICE OF THE EUROPEAN UNION
D4: =UPPER(Lists!K7) -> BIENNIAL WASTE STATISTICS REGULATION - WASTE TREATMENT
D5: =CONCATENATE(Lists!K8," DATA COLLECTION") -> 2024 DATA COLLECTION
D7: EXPLANATORY FOOTNOTES
D8: =IF('GETTING STARTED'!E9="","",'GETTING STARTED'!E9) -> Croatia
D9: 1 | E9: Type your text here.
D10: 2
D11: 3
D12: 4
D13: 5
D14: 6
D15: 7
D16: 8
D17: 9
D18: 10
D19: 11
D20: 12
D21: 13
D22: 14
D23: 15
D24: 16
D25: 17
D26: 18
D27: 19
D28: 20
D29: 21
D30: 22
D31: 23
D32: 24
D33: 25
D34: 26
D35: 27
D36: 28
D37: 29
D38: 30
D39: 31
D40: 32
D41: 33
D42: 34
D43: 35
D44: 36
D45: 37
D46: 38
D47: 39
D48: 40
D49: 41
D50: 42
D51: 43
D52: 44
D53: 45
D54: 46
D55: 47
D56: 48
D57: 49
D58: 50

Sheet Table_1
B3: Country: | D3: =IF('GETTING STARTED'!E9="","",'GETTING STARTED'!E9) -> Croatia | F3: =IF('GETTING STARTED'!G9="","",'GETTING STARTED'!G9) -> HR
B4: Reference year: | D4: =IF('GETTING STARTED'!E10="","",'GETTING STARTED'!E10) -> 2022
B5: Unit: Tonnes | D5: T | G5: RCV_E | L5: DSP_I | Q5: RCV_R | V5: RCV_B | AA5: RCV_R_B | AF5: DSP_L | AK5: DSP_OTH | AP5: DSP_L_OTH | AU5: TRT
G6: RCV_E | L6: DSP_I | Q6: RCV_R | V6: RCV_B | AA6: RCV_R_B | AF6: DSP_L | AK6: DSP_OTH | AP6: DSP_L_OTH | AU6: TRT
B7: WASTE TREATMENT by waste category (EWC-STAT) and treatment category | G7: Recovery - energy recovery (R1) | H7: Standard footnote | I7: Confidentiality footnote | J7: Explanatory footnote | L7: Disposal - incineration (D10) | M7: Standard footnote | N7: Confidentiality footnote | O7: Explanatory footnote | Q7: Recovery - recycling | R7: Standard footnote | S7: Confidentiality footnote | T7: Explanatory footnote | V7: Recovery - backfilling | W7: Standard footnote | X7: Confidentiality footnote | Y7: Explanatory footnote | AA7: Recovery - recycling and backfilling | AB7: Standard footnote | AC7: Confidentiality footnote | AD7: Explanatory footnote | AF7: Disposal - landfill (D1, D5, D12) | AG7: Standard footnote | AH7: Confidentiality footnote | AI7: Explanatory footnote | AK7: Disposal - other (D2-D4, D6-D7) | AL7: Standard footnote | AM7: Confidentiality footnote | AN7: Explanatory footnote | AP7: Disposal - landfill and other (D1-D7, D12) | AQ7: Standard footnote | AR7: Confidentiality footnote | AS7: Explanatory footnote | AU7: Waste treatment | AV7: Standard footnote | AW7: Confidentiality footnote | AX7: Explanatory footnote
B8: W011 | C8: W011 | D8: Spent solvents | E8: HAZ | F8: Hazardous | G8: 3.515 | K8: =IF(TRIM(J8)="", "", IF(VLOOKUP(J8,'Footnotes list'!$D$9:$E$58,2,FALSE)=0,"",VLOOKUP(J8,'Footnotes list'!$D$9:$E$58,2,FALSE) ) ) ->  | L8: 0 | P8: =IF(TRIM(O8)="", "", IF(VLOOKUP(O8,'Footnotes list'!$D$9:$E$58,2,FALSE)=0,"",VLOOKUP(O8,'Footnotes list'!$D$9:$E$58,2,FALSE) ) ) ->  | Q8: 671.769 | U8: =IF(TRIM(T8)="", "", IF(VLOOKUP(T8,'Footnotes list'!$D$9:$E$58,2,FALSE)=0,"",VLOOKUP(T8,'Footnotes list'!$D$9:$E$58,2,FALSE) ) ) ->  | V8: 0 | Z8: =IF(TRIM(Y8)="", "", IF(VLOOKUP(Y8,'Footnotes list'!$D$9:$E$58,2,FALSE)=0,"",VLOOKUP(Y8,'Footnotes list'!$D$9:$E$58,2,FALSE) ) ) ->  | AA8: =IF(AND(TRIM(Q8)="",TRIM(V8)=""),"",Q8+V8) -> 671.769 | AE8: =IF(TRIM(AD8)="", "", IF(VLOOKUP(AD8,'Footnotes list'!$D$9:$E$58,2,FALSE)=0,"",VLOOKUP(AD8,'Footnotes list'!$D$9:$E$58,2,FALSE) ) ) ->  | AF8: 0 | AJ8: =IF(TRIM(AI8)="", "", IF(VLOOKUP(AI8,'Footnotes list'!$D$9:$E$58,2,FALSE)=0,"",VLOOKUP(AI8,'Footnotes list'!$D$9:$E$58,2,FALSE) ) ) ->  | AK8: 0 | AO8: =IF(TRIM(AN8)="", "", IF(VLOOKUP(AN8,'Footnotes list'!$D$9:$E$58,2,FALSE)=0,"",VLOOKUP(AN8,'Footnotes list'!$D$9:$E$58,2,FALSE) ) ) ->  | AP8: =IF(AND(TRIM(AF8)="",TRIM(AK8)=""),"",AF8+AK8) -> 0 | AT8: =IF(TRIM(AS8)="", "", IF(VLOOKUP(AS8,'Footnotes list'!$D$9:$E$58,2,FALSE)=0,"",VLOOKUP(AS8,'Footnotes list'!$D$9:$E$58,2,FALSE) ) ) ->  | AU8: =IF(AND(TRIM(G8)="",TRIM(L8)="",TRIM(AA8)="",TRIM(AP8)=""),"",SUM(G8,L8,AA8,AP8)) -> 675.284 | AY8: =IF(TRIM(AX8)="", "", IF(VLOOKUP(AX8,'Footnotes list'!$D$9:$E$58,2,FALSE)=0,"",VLOOKUP(AX8,'Footnotes list'!$D$9:$E$58,2,FALSE) ) ) -> 
F9: Not applicable
C10: W011 | E10: HAZ_NHAZ | F10: Total | G10: =IF(AND(TRIM(G8)="",TRIM(G9)=""),"",G8+G9) -> 3.515 | K10: =IF(TRIM(J10)="", "", IF(VLOOKUP(J10,'Footnotes list'!$D$9:$E$58,2,FALSE)=0,"",VLOOKUP(J10,'Footnotes list'!$D$9:$E$58,2,FALSE) ) ) ->  | L10: =IF(AND(TRIM(L8)="",TRIM(L9)=""),"",L8+L9) -> 0 | P10: =IF(TRIM(O10)="", "", IF(VLOOKUP(O10,'Footnotes list'!$D$9:$E$58,2,FALSE)=0,"",VLOOKUP(O10,'Footnotes list'!$D$9:$E$58,2,FALSE) ) ) ->  | Q10: =IF(AND(TRIM(Q8)="",TRIM(Q9)=""),"",Q8+Q9) -> 671.769 | U10: =IF(TRIM(T10)="", "", IF(VLOOKUP(T10,'Footnotes list'!$D$9:$E$58,2,FALSE)=0,"",VLOOKUP(T10,'Footnotes list'!$D$9:$E$58,2,FALSE) ) ) ->  | V10: =IF(AND(TRIM(V8)="",TRIM(V9)=""),"",V8+V9) -> 0 | Z10: =IF(TRIM(Y10)="", "", IF(VLOOKUP(Y10,'Footnotes list'!$D$9:$E$58,2,FALSE)=0,"",VLOOKUP(Y10,'Footnotes list'!$D$9:$E$58,2,FALSE) ) ) ->  | AA10: =IF(AND(TRIM(AA8)="", TRIM(AA9)=""), "", SUM(AA8,AA9)) -> 671.769 | AE10: =IF(TRIM(AD10)="", "", IF(VLOOKUP(AD10,'Footnotes list'!$D$9:$E$58,2,FALSE)=0,"",VLOOKUP(AD10,'Footnotes list'!$D$9:$E$58,2,FALSE) ) ) ->  | AF10: =IF(AND(TRIM(AF8)="",TRIM(AF9)=""),"",AF8+AF9) -> 0 | AJ10: =IF(TRIM(AI10)="", "", IF(VLOOKUP(AI10,'Footnotes list'!$D$9:$E$58,2,FALSE)=0,"",VLOOKUP(AI10,'Footnotes list'!$D$9:$E$58,2,FALSE) ) ) ->  | AK10: =IF(AND(TRIM(AK8)="",TRIM(AK9)=""),"",AK8+AK9) -> 0 | AO10: =IF(TRIM(AN10)="", "", IF(VLOOKUP(AN10,'Footnotes list'!$D$9:$E$58,2,FALSE)=0,"",VLOOKUP(AN10,'Footnotes list'!$D$9:$E$58,2,FALSE) ) ) ->  | AP10: =IF(AND(TRIM(AP8)="", TRIM(AP9)=""), "", SUM(AP8,AP9)) -> 0 | AT10: =IF(TRIM(AS10)="", "", IF(VLOOKUP(AS10,'Footnotes list'!$D$9:$E$58,2,FALSE)=0,"",VLOOKUP(AS10,'Footnotes list'!$D$9:$E$58,2,FALSE) ) ) ->  | AU10: =IF(AND(TRIM(AU8)="", TRIM(AU9)=""), "", SUM(AU8,AU9) ) -> 675.284 | AY10: =IF(TRIM(AX10)="", "", IF(VLOOKUP(AX10,'Footnotes list'!$D$9:$E$58,2,FALSE)=0,"",VLOOKUP(AX10,'Footnotes list'!$D$9:$E$58,2,FALSE) ) ) -> 
B11: W012 | C11: W012 | D11: Acid, alkaline or saline wastes | E11: HAZ | F11: Hazardous | G11: 0 | K11: =IF(TRIM(J11)="", "", IF(VLOOKUP(J11,'Footnotes list'!$D$9:$E$58,2,FALSE)=0,"",VLOOKUP(J11,'Footnotes list'!$D$9:$E$58,2,FALSE) ) ) ->  | L11: 0 | P11: =IF(TRIM(O11)="", "", IF(VLOOKUP(O11,'Footnotes list'!$D$9:$E$58,2,FALSE)=0,"",VLOOKUP(O11,'Footnotes list'!$D$9:$E$58,2,FALSE) ) ) ->  | Q11: 22.38 | U11: =IF(TRIM(T11)="", "", IF(VLOOKUP(T11,'Footnotes list'!$D$9:$E$58,2,FALSE)=0,"",VLOOKUP(T11,'Footnotes list'!$D$9:$E$58,2,FALSE) ) ) ->  | V11: 0 | Z11: =IF(TRIM(Y11)="", "", IF(VLOOKUP(Y11,'Footnotes list'!$D$9:$E$58,2,FALSE)=0,"",VLOOKUP(Y11,'Footnotes list'!$D$9:$E$58,2,FALSE) ) ) ->  | AA11: =IF(AND(TRIM(Q11)="",TRIM(V11)=""),"",Q11+V11) -> 22.38 | AE11: =IF(TRIM(AD11)="", "", IF(VLOOKUP(AD11,'Footnotes list'!$D$9:$E$58,2,FALSE)=0,"",VLOOKUP(AD11,'Footnotes list'!$D$9:$E$58,2,FALSE) ) ) ->  | AF11: 0 | AJ11: =IF(TRIM(AI11)="", "", IF(VLOOKUP(AI11,'Footnotes list'!$D$9:$E$58,2,FALSE)=0,"",VLOOKUP(AI11,'Footnotes list'!$D$9:$E$58,2,FALSE) ) ) ->  | AK11: 0 | AO11: =IF(TRIM(AN11)="", "", IF(VLOOKUP(AN11,'Footnotes list'!$D$9:$E$58,2,FALSE)=0,"",VLOOKUP(AN11,'Footnotes list'!$D$9:$E$58,2,FALSE) ) ) ->  | AP11: =IF(AND(TRIM(AF11)="",TRIM(AK11)=""),"",AF11+AK11) -> 0 | AT11: =IF(TRIM(AS11)="", "", IF(VLOOKUP(AS11,'Footnotes list'!$D$9:$E$58,2,FALSE)=0,"",VLOOKUP(AS11,'Footnotes list'!$D$9:$E$58,2,FALSE) ) ) ->  | AU11: =IF(AND(TRIM(G11)="",TRIM(L11)="",TRIM(AA11)="",TRIM(AP11)=""),"",SUM(G11,L11,AA11,AP11)) -> 22.38 | AY11: =IF(TRIM(AX11)="", "", IF(VLOOKUP(AX11,'Footnotes list'!$D$9:$E$58,2,FALSE)=0,"",VLOOKUP(AX11,'Footnotes list'!$D$9:$E$58,2,FALSE) ) ) -> 
C12: W012 | E12: NHAZ | F12: Non-hazardous | G12: 0 | K12: =IF(TRIM(J12)="", "", IF(VLOOKUP(J12,'Footnotes list'!$D$9:$E$58,2,FALSE)=0,"",VLOOKUP(J12,'Footnotes list'!$D$9:$E$58,2,FALSE) ) ) ->  | L12: 0 | P12: =IF(TRIM(O12)="", "", IF(VLOOKUP(O12,'Footnotes list'!$D$9:$E$58,2,FALSE)=0,"",VLOOKUP(O12,'Footnotes list'!$D$9:$E$58,2,FALSE) ) ) ->  | Q12: 0 | U12: =IF(TRIM(T12)="", "", IF(VLOOKUP(T12,'Footnotes list'!$D$9:$E$58,2,FALSE)=0,"",VLOOKUP(T12,'Footnotes list'!$D$9:$E$58,2,FALSE) ) ) ->  | V12: 0 | Z12: =IF(TRIM(Y12)="", "", IF(VLOOKUP(Y12,'Footnotes list'!$D$9:$E$58,2,FALSE)=0,"",VLOOKUP(Y12,'Footnotes list'!$D$9:$E$58,2,FALSE) ) ) ->  | AA12: =IF(AND(TRIM(Q12)="",TRIM(V12)=""),"",Q12+V12) -> 0 | AE12: =IF(TRIM(AD12)="", "", IF(VLOOKUP(AD12,'Footnotes list'!$D$9:$E$58,2,FALSE)=0,"",VLOOKUP(AD12,'Footnotes list'!$D$9:$E$58,2,FALSE) ) ) ->  | AF12: 4.64 | AJ12: =IF(TRIM(AI12)="", "", IF(VLOOKUP(AI12,'Footnotes list'!$D$9:$E$58,2,FALSE)=0,"",VLOOKUP(AI12,'Footnotes list'!$D$9:$E$58,2,FALSE) ) ) ->  | AK12: 0 | AO12: =IF(TRIM(AN12)="", "", IF(VLOOKUP(AN12,'Footnotes list'!$D$9:$E$58,2,FALSE)=0,"",VLOOKUP(AN12,'Footnotes list'!$D$9:$E$58,2,FALSE) ) ) ->  | AP12: =IF(AND(TRIM(AF12)="",TRIM(AK12)=""),"",AF12+AK12) -> 4.64 | AT12: =IF(TRIM(AS12)="", "", IF(VLOOKUP(AS12,'Footnotes list'!$D$9:$E$58,2,FALSE)=0,"",VLOOKUP(AS12,'Footnotes list'!$D$9:$E$58,2,FALSE) ) ) ->  | AU12: =IF(AND(TRIM(G12)="",TRIM(L12)="",TRIM(AA12)="",TRIM(AP12)=""),"",SUM(G12,L12,AA12,AP12)) -> 4.64 | AY12: =IF(TRIM(AX12)="", "", IF(VLOOKUP(AX12,'Footnotes list'!$D$9:$E$58,2,FALSE)=0,"",VLOOKUP(AX12,'Footnotes list'!$D$9:$E$58,2,FALSE) ) ) -> 
C13: W012 | E13: HAZ_NHAZ | F13: Total | G13: =IF(AND(TRIM(G11)="",TRIM(G12)=""),"",G11+G12) -> 0 | K13: =IF(TRIM(J13)="", "", IF(VLOOKUP(J13,'Footnotes list'!$D$9:$E$58,2,FALSE)=0,"",VLOOKUP(J13,'Footnotes list'!$D$9:$E$58,2,FALSE) ) ) ->  | L13: =IF(AND(TRIM(L11)="",TRIM(L12)=""),"",L11+L12) -> 0 | P13: =IF(TRIM(O13)="", "", IF(VLOOKUP(O13,'Footnotes list'!$D$9:$E$58,2,FALSE)=0,"",VLOOKUP(O13,'Footnotes list'!$D$9:$E$58,2,FALSE) ) ) ->  | Q13: =IF(AND(TRIM(Q11)="",TRIM(Q12)=""),"",Q11+Q12) -> 22.38 | U13: =IF(TRIM(T13)="", "", IF(VLOOKUP(T13,'Footnotes list'!$D$9:$E$58,2,FALSE)=0,"",VLOOKUP(T13,'Footnotes list'!$D$9:$E$58,2,FALSE) ) ) ->  | V13: =IF(AND(TRIM(V11)="",TRIM(V12)=""),"",V11+V12) -> 0 | Z13: =IF(TRIM(Y13)="", "", IF(VLOOKUP(Y13,'Footnotes list'!$D$9:$E$58,2,FALSE)=0,"",VLOOKUP(Y13,'Footnotes list'!$D$9:$E$58,2,FALSE) ) ) ->  | AA13: =IF(AND(TRIM(AA11)="", TRIM(AA12)=""), "", SUM(AA11,AA12)) -> 22.38 | AE13: =IF(TRIM(AD13)="", "", IF(VLOOKUP(AD13,'Footnotes list'!$D$9:$E$58,2,FALSE)=0,"",VLOOKUP(AD13,'Footnotes list'!$D$9:$E$58,2,FALSE) ) ) ->  | AF13: =IF(AND(TRIM(AF11)="",TRIM(AF12)=""),"",AF11+AF12) -> 4.64 | AJ13: =IF(TRIM(AI13)="", "", IF(VLOOKUP(AI13,'Footnotes list'!$D$9:$E$58,2,FALSE)=0,"",VLOOKUP(AI13,'Footnotes list'!$D$9:$E$58,2,FALSE) ) ) ->  | AK13: =IF(AND(TRIM(AK11)="",TRIM(AK12)=""),"",AK11+AK12) -> 0 | AO13: =IF(TRIM(AN13)="", "", IF(VLOOKUP(AN13,'Footnotes list'!$D$9:$E$58,2,FALSE)=0,"",VLOOKUP(AN13,'Footnotes list'!$D$9:$E$58,2,FALSE) ) ) ->  | AP13: =IF(AND(TRIM(AP11)="", TRIM(AP12)=""), "", SUM(AP11,AP12)) -> 4.64 | AT13: =IF(TRIM(AS13)="", "", IF(VLOOKUP(AS13,'Footnotes list'!$D$9:$E$58,2,FALSE)=0,"",VLOOKUP(AS13,'Footnotes list'!$D$9:$E$58,2,FALSE) ) ) ->  | AU13: =IF(AND(TRIM(AU11)="", TRIM(AU12)=""), "", SUM(AU11,AU12) ) -> 27.02 | AY13: =IF(TRIM(AX13)="", "", IF(VLOOKUP(AX13,'Footnotes list'!$D$9:$E$58,2,FALSE)=0,"",VLOOKUP(AX13,'Footnotes list'!$D$9:$E$58,2,FALSE) ) ) -> 
B14: W013 | C14: W013 | D14: Used oils | E14: HAZ | F14: Hazardous | G14: 9159.373 | K14: =IF(TRIM(J14)="", "", IF(VLOOKUP(J14,'Footnotes list'!$D$9:$E$58,2,FALSE)=0,"",VLOOKUP(J14,'Footnotes list'!$D$9:$E$58,2,FALSE) ) ) ->  | L14: 0 | P14: =IF(TRIM(O14)="", "", IF(VLOOKUP(O14,'Footnotes list'!$D$9:$E$58,2,FALSE)=0,"",VLOOKUP(O14,'Footnotes list'!$D$9:$E$58,2,FALSE) ) ) ->  | Q14: 178.32 | U14: =IF(TRIM(T14)="", "", IF(VLOOKUP(T14,'Footnotes list'!$D$9:$E$58,2,FALSE)=0,"",VLOOKUP(T14,'Footnotes list'!$D$9:$E$58,2,FALSE) ) ) ->  | V14: 0 | Z14: =IF(TRIM(Y14)="", "", IF(VLOOKUP(Y14,'Footnotes list'!$D$9:$E$58,2,FALSE)=0,"",VLOOKUP(Y14,'Footnotes list'!$D$9:$E$58,2,FALSE) ) ) ->  | AA14: =IF(AND(TRIM(Q14)="",TRIM(V14)=""),"",Q14+V14) -> 178.32 | AE14: =IF(TRIM(AD14)="", "", IF(VLOOKUP(AD14,'Footnotes list'!$D$9:$E$58,2,FALSE)=0,"",VLOOKUP(AD14,'Footnotes list'!$D$9:$E$58,2,FALSE) ) ) ->  | AF14: 0 | AJ14: =IF(TRIM(AI14)="", "", IF(VLOOKUP(AI14,'Footnotes list'!$D$9:$E$58,2,FALSE)=0,"",VLOOKUP(AI14,'Footnotes list'!$D$9:$E$58,2,FALSE) ) ) ->  | AK14: 0 | AO14: =IF(TRIM(AN14)="", "", IF(VLOOKUP(AN14,'Footnotes list'!$D$9:$E$58,2,FALSE)=0,"",VLOOKUP(AN14,'Footnotes list'!$D$9:$E$58,2,FALSE) ) ) ->  | AP14: =IF(AND(TRIM(AF14)="",TRIM(AK14)=""),"",AF14+AK14) -> 0 | AT14: =IF(TRIM(AS14)="", "", IF(VLOOKUP(AS14,'Footnotes list'!$D$9:$E$58,2,FALSE)=0,"",VLOOKUP(AS14,'Footnotes list'!$D$9:$E$58,2,FALSE) ) ) ->  | AU14: =IF(AND(TRIM(G14)="",TRIM(L14)="",TRIM(AA14)="",TRIM(AP14)=""),"",SUM(G14,L14,AA14,AP14)) -> 9337.693 | AY14: =IF(TRIM(AX14)="", "", IF(VLOOKUP(AX14,'Footnotes list'!$D$9:$E$58,2,FALSE)=0,"",VLOOKUP(AX14,'Footnotes list'!$D$9:$E$58,2,FALSE) ) ) -> 
F15: Not applicable
C16: W013 | E16: HAZ_NHAZ | F16: Total | G16: =IF(AND(TRIM(G14)="",TRIM(G15)=""),"",G14+G15) -> 9159.373 | K16: =IF(TRIM(J16)="", "", IF(VLOOKUP(J16,'Footnotes list'!$D$9:$E$58,2,FALSE)=0,"",VLOOKUP(J16,'Footnotes list'!$D$9:$E$58,2,FALSE) ) ) ->  | L16: =IF(AND(TRIM(L14)="",TRIM(L15)=""),"",L14+L15) -> 0 | P16: =IF(TRIM(O16)="", "", IF(VLOOKUP(O16,'Footnotes list'!$D$9:$E$58,2,FALSE)=0,"",VLOOKUP(O16,'Footnotes list'!$D$9:$E$58,2,FALSE) ) ) ->  | Q16: =IF(AND(TRIM(Q14)="",TRIM(Q15)=""),"",Q14+Q15) -> 178.32 | U16: =IF(TRIM(T16)="", "", IF(VLOOKUP(T16,'Footnotes list'!$D$9:$E$58,2,FALSE)=0,"",VLOOKUP(T16,'Footnotes list'!$D$9:$E$58,2,FALSE) ) ) ->  | V16: =IF(AND(TRIM(V14)="",TRIM(V15)=""),"",V14+V15) -> 0 | Z16: =IF(TRIM(Y16)="", "", IF(VLOOKUP(Y16,'Footnotes list'!$D$9:$E$58,2,FALSE)=0,"",VLOOKUP(Y16,'Footnotes list'!$D$9:$E$58,2,FALSE) ) ) ->  | AA16: =IF(AND(TRIM(AA14)="", TRIM(AA15)=""), "", SUM(AA14,AA15)) -> 178.32 | AE16: =IF(TRIM(AD16)="", "", IF(VLOOKUP(AD16,'Footnotes list'!$D$9:$E$58,2,FALSE)=0,"",VLOOKUP(AD16,'Footnotes list'!$D$9:$E$58,2,FALSE) ) ) ->  | AF16: =IF(AND(TRIM(AF14)="",TRIM(AF15)=""),"",AF14+AF15) -> 0 | AJ16: =IF(TRIM(AI16)="", "", IF(VLOOKUP(AI16,'Footnotes list'!$D$9:$E$58,2,FALSE)=0,"",VLOOKUP(AI16,'Footnotes list'!$D$9:$E$58,2,FALSE) ) ) ->  | AK16: =IF(AND(TRIM(AK14)="",TRIM(AK15)=""),"",AK14+AK15) -> 0 | AO16: =IF(TRIM(AN16)="", "", IF(VLOOKUP(AN16,'Footnotes list'!$D$9:$E$58,2,FALSE)=0,"",VLOOKUP(AN16,'Footnotes list'!$D$9:$E$58,2,FALSE) ) ) ->  | AP16: =IF(AND(TRIM(AP14)="", TRIM(AP15)=""), "", SUM(AP14,AP15)) -> 0 | AT16: =IF(TRIM(AS16)="", "", IF(VLOOKUP(AS16,'Footnotes list'!$D$9:$E$58,2,FALSE)=0,"",VLOOKUP(AS16,'Footnotes list'!$D$9:$E$58,2,FALSE) ) ) ->  | AU16: =IF(AND(TRIM(AU14)="", TRIM(AU15)=""), "", SUM(AU14,AU15) ) -> 9337.693 | AY16: =IF(TRIM(AX16)="", "", IF(VLOOKUP(AX16,'Footnotes list'!$D$9:$E$58,2,FALSE)=0,"",VLOOKUP(AX16,'Footnotes list'!$D$9:$E$58,2,FALSE) ) ) -> 
B17: W02A | C17: W02A | D17: Chemical wastes | E17: HAZ | F17: Hazardous | G17: 2885.036 | K17: =IF(TRIM(J17)="", "", IF(VLOOKUP(J17,'Footnotes list'!$D$9:$E$58,2,FALSE)=0,"",VLOOKUP(J17,'Footnotes list'!$D$9:$E$58,2,FALSE) ) ) ->  | L17: 0 | P17: =IF(TRIM(O17)="", "", IF(VLOOKUP(O17,'Footnotes list'!$D$9:$E$58,2,FALSE)=0,"",VLOOKUP(O17,'Footnotes list'!$D$9:$E$58,2,FALSE) ) ) ->  | Q17: 1714.556 | U17: =IF(TRIM(T17)="", "", IF(VLOOKUP(T17,'Footnotes list'!$D$9:$E$58,2,FALSE)=0,"",VLOOKUP(T17,'Footnotes list'!$D$9:$E$58,2,FALSE) ) ) ->  | V17: 0 | Z17: =IF(TRIM(Y17)="", "", IF(VLOOKUP(Y17,'Footnotes list'!$D$9:$E$58,2,FALSE)=0,"",VLOOKUP(Y17,'Footnotes list'!$D$9:$E$58,2,FALSE) ) ) ->  | AA17: =IF(AND(TRIM(Q17)="",TRIM(V17)=""),"",Q17+V17) -> 1714.556 | AE17: =IF(TRIM(AD17)="", "", IF(VLOOKUP(AD17,'Footnotes list'!$D$9:$E$58,2,FALSE)=0,"",VLOOKUP(AD17,'Footnotes list'!$D$9:$E$58,2,FALSE) ) ) ->  | AF17: 0 | AJ17: =IF(TRIM(AI17)="", "", IF(VLOOKUP(AI17,'Footnotes list'!$D$9:$E$58,2,FALSE)=0,"",VLOOKUP(AI17,'Footnotes list'!$D$9:$E$58,2,FALSE) ) ) ->  | AK17: 0 | AO17: =IF(TRIM(AN17)="", "", IF(VLOOKUP(AN17,'Footnotes list'!$D$9:$E$58,2,FALSE)=0,"",VLOOKUP(AN17,'Footnotes list'!$D$9:$E$58,2,FALSE) ) ) ->  | AP17: =IF(AND(TRIM(AF17)="",TRIM(AK17)=""),"",AF17+AK17) -> 0 | AT17: =IF(TRIM(AS17)="", "", IF(VLOOKUP(AS17,'Footnotes list'!$D$9:$E$58,2,FALSE)=0,"",VLOOKUP(AS17,'Footnotes list'!$D$9:$E$58,2,FALSE) ) ) ->  | AU17: =IF(AND(TRIM(G17)="",TRIM(L17)="",TRIM(AA17)="",TRIM(AP17)=""),"",SUM(G17,L17,AA17,AP17)) -> 4599.592 | AY17: =IF(TRIM(AX17)="", "", IF(VLOOKUP(AX17,'Footnotes list'!$D$9:$E$58,2,FALSE)=0,"",VLOOKUP(AX17,'Footnotes list'!$D$9:$E$58,2,FALSE) ) ) -> 
C18: W02A | E18: NHAZ | F18: Non-hazardous | G18: 27.04 | K18: =IF(TRIM(J18)="", "", IF(VLOOKUP(J18,'Footnotes list'!$D$9:$E$58,2,FALSE)=0,"",VLOOKUP(J18,'Footnotes list'!$D$9:$E$58,2,FALSE) ) ) ->  | L18: 0 | P18: =IF(TRIM(O18)="", "", IF(VLOOKUP(O18,'Footnotes list'!$D$9:$E$58,2,FALSE)=0,"",VLOOKUP(O18,'Footnotes list'!$D$9:$E$58,2,FALSE) ) ) ->  | Q18: 4.805 | U18: =IF(TRIM(T18)="", "", IF(VLOOKUP(T18,'Footnotes list'!$D$9:$E$58,2,FALSE)=0,"",VLOOKUP(T18,'Footnotes list'!$D$9:$E$58,2,FALSE) ) ) ->  | V18: 0 | Z18: =IF(TRIM(Y18)="", "", IF(VLOOKUP(Y18,'Footnotes list'!$D$9:$E$58,2,FALSE)=0,"",VLOOKUP(Y18,'Footnotes list'!$D$9:$E$58,2,FALSE) ) ) ->  | AA18: =IF(AND(TRIM(Q18)="",TRIM(V18)=""),"",Q18+V18) -> 4.805 | AE18: =IF(TRIM(AD18)="", "", IF(VLOOKUP(AD18,'Footnotes list'!$D$9:$E$58,2,FALSE)=0,"",VLOOKUP(AD18,'Footnotes list'!$D$9:$E$58,2,FALSE) ) ) ->  | AF18: 655.845 | AJ18: =IF(TRIM(AI18)="", "", IF(VLOOKUP(AI18,'Footnotes list'!$D$9:$E$58,2,FALSE)=0,"",VLOOKUP(AI18,'Footnotes list'!$D$9:$E$58,2,FALSE) ) ) ->  | AK18: 0 | AO18: =IF(TRIM(AN18)="", "", IF(VLOOKUP(AN18,'Footnotes list'!$D$9:$E$58,2,FALSE)=0,"",VLOOKUP(AN18,'Footnotes list'!$D$9:$E$58,2,FALSE) ) ) ->  | AP18: =IF(AND(TRIM(AF18)="",TRIM(AK18)=""),"",AF18+AK18) -> 655.845 | AT18: =IF(TRIM(AS18)="", "", IF(VLOOKUP(AS18,'Footnotes list'!$D$9:$E$58,2,FALSE)=0,"",VLOOKUP(AS18,'Footnotes list'!$D$9:$E$58,2,FALSE) ) ) ->  | AU18: =IF(AND(TRIM(G18)="",TRIM(L18)="",TRIM(AA18)="",TRIM(AP18)=""),"",SUM(G18,L18,AA18,AP18)) -> 687.69 | AY18: =IF(TRIM(AX18)="", "", IF(VLOOKUP(AX18,'Footnotes list'!$D$9:$E$58,2,FALSE)=0,"",VLOOKUP(AX18,'Footnotes list'!$D$9:$E$58,2,FALSE) ) ) -> 
C19: W02A | E19: HAZ_NHAZ | F19: Total | G19: =IF(AND(TRIM(G17)="",TRIM(G18)=""),"",G17+G18) -> 2912.076 | K19: =IF(TRIM(J19)="", "", IF(VLOOKUP(J19,'Footnotes list'!$D$9:$E$58,2,FALSE)=0,"",VLOOKUP(J19,'Footnotes list'!$D$9:$E$58,2,FALSE) ) ) ->  | L19: =IF(AND(TRIM(L17)="",TRIM(L18)=""),"",L17+L18) -> 0 | P19: =IF(TRIM(O19)="", "", IF(VLOOKUP(O19,'Footnotes list'!$D$9:$E$58,2,FALSE)=0,"",VLOOKUP(O19,'Footnotes list'!$D$9:$E$58,2,FALSE) ) ) ->  | Q19: =IF(AND(TRIM(Q17)="",TRIM(Q18)=""),"",Q17+Q18) -> 1719.361 | U19: =IF(TRIM(T19)="", "", IF(VLOOKUP(T19,'Footnotes list'!$D$9:$E$58,2,FALSE)=0,"",VLOOKUP(T19,'Footnotes list'!$D$9:$E$58,2,FALSE) ) ) ->  | V19: =IF(AND(TRIM(V17)="",TRIM(V18)=""),"",V17+V18) -> 0 | Z19: =IF(TRIM(Y19)="", "", IF(VLOOKUP(Y19,'Footnotes list'!$D$9:$E$58,2,FALSE)=0,"",VLOOKUP(Y19,'Footnotes list'!$D$9:$E$58,2,FALSE) ) ) ->  | AA19: =IF(AND(TRIM(AA17)="", TRIM(AA18)=""), "", SUM(AA17,AA18)) -> 1719.361 | AE19: =IF(TRIM(AD19)="", "", IF(VLOOKUP(AD19,'Footnotes list'!$D$9:$E$58,2,FALSE)=0,"",VLOOKUP(AD19,'Footnotes list'!$D$9:$E$58,2,FALSE) ) ) ->  | AF19: =IF(AND(TRIM(AF17)="",TRIM(AF18)=""),"",AF17+AF18) -> 655.845 | AJ19: =IF(TRIM(AI19)="", "", IF(VLOOKUP(AI19,'Footnotes list'!$D$9:$E$58,2,FALSE)=0,"",VLOOKUP(AI19,'Footnotes list'!$D$9:$E$58,2,FALSE) ) ) ->  | AK19: =IF(AND(TRIM(AK17)="",TRIM(AK18)=""),"",AK17+AK18) -> 0 | AO19: =IF(TRIM(AN19)="", "", IF(VLOOKUP(AN19,'Footnotes list'!$D$9:$E$58,2,FALSE)=0,"",VLOOKUP(AN19,'Footnotes list'!$D$9:$E$58,2,FALSE) ) ) ->  | AP19: =IF(AND(TRIM(AP17)="", TRIM(AP18)=""), "", SUM(AP17,AP18)) -> 655.845 | AT19: =IF(TRIM(AS19)="", "", IF(VLOOKUP(AS19,'Footnotes list'!$D$9:$E$58,2,FALSE)=0,"",VLOOKUP(AS19,'Footnotes list'!$D$9:$E$58,2,FALSE) ) ) ->  | AU19: =IF(AND(TRIM(AU17)="", TRIM(AU18)=""), "", SUM(AU17,AU18) ) -> 5287.282 | AY19: =IF(TRIM(AX19)="", "", IF(VLOOKUP(AX19,'Footnotes list'!$D$9:$E$58,2,FALSE)=0,"",VLOOKUP(AX19,'Footnotes list'!$D$9:$E$58,2,FALSE) ) ) -> 
B20: W032 | C20: W032 | D20: Industrial effluent sludges | E20: HAZ | F20: Hazardous | G20: 281.071 | K20: =IF(TRIM(J20)="", "", IF(VLOOKUP(J20,'Footnotes list'!$D$9:$E$58,2,FALSE)=0,"",VLOOKUP(J20,'Footnotes list'!$D$9:$E$58,2,FALSE) ) ) ->  | L20: 0 | P20: =IF(TRIM(O20)="", "", IF(VLOOKUP(O20,'Footnotes list'!$D$9:$E$58,2,FALSE)=0,"",VLOOKUP(O20,'Footnotes list'!$D$9:$E$58,2,FALSE) ) ) ->  | Q20: 296.833 | U20: =IF(TRIM(T20)="", "", IF(VLOOKUP(T20,'Footnotes list'!$D$9:$E$58,2,FALSE)=0,"",VLOOKUP(T20,'Footnotes list'!$D$9:$E$58,2,FALSE) ) ) ->  | V20: 0 | Z20: =IF(TRIM(Y20)="", "", IF(VLOOKUP(Y20,'Footnotes list'!$D$9:$E$58,2,FALSE)=0,"",VLOOKUP(Y20,'Footnotes list'!$D$9:$E$58,2,FALSE) ) ) ->  | AA20: =IF(AND(TRIM(Q20)="",TRIM(V20)=""),"",Q20+V20) -> 296.833 | AE20: =IF(TRIM(AD20)="", "", IF(VLOOKUP(AD20,'Footnotes list'!$D$9:$E$58,2,FALSE)=0,"",VLOOKUP(AD20,'Footnotes list'!$D$9:$E$58,2,FALSE) ) ) ->  | AF20: 0 | AJ20: =IF(TRIM(AI20)="", "", IF(VLOOKUP(AI20,'Footnotes list'!$D$9:$E$58,2,FALSE)=0,"",VLOOKUP(AI20,'Footnotes list'!$D$9:$E$58,2,FALSE) ) ) ->  | AK20: 0 | AO20: =IF(TRIM(AN20)="", "", IF(VLOOKUP(AN20,'Footnotes list'!$D$9:$E$58,2,FALSE)=0,"",VLOOKUP(AN20,'Footnotes list'!$D$9:$E$58,2,FALSE) ) ) ->  | AP20: =IF(AND(TRIM(AF20)="",TRIM(AK20)=""),"",AF20+AK20) -> 0 | AT20: =IF(TRIM(AS20)="", "", IF(VLOOKUP(AS20,'Footnotes list'!$D$9:$E$58,2,FALSE)=0,"",VLOOKUP(AS20,'Footnotes list'!$D$9:$E$58,2,FALSE) ) ) ->  | AU20: =IF(AND(TRIM(G20)="",TRIM(L20)="",TRIM(AA20)="",TRIM(AP20)=""),"",SUM(G20,L20,AA20,AP20)) -> 577.904 | AY20: =IF(TRIM(AX20)="", "", IF(VLOOKUP(AX20,'Footnotes list'!$D$9:$E$58,2,FALSE)=0,"",VLOOKUP(AX20,'Footnotes list'!$D$9:$E$58,2,FALSE) ) ) -> 
C21: W032 | E21: NHAZ | F21: Non-hazardous | G21: 27.778 | K21: =IF(TRIM(J21)="", "", IF(VLOOKUP(J21,'Footnotes list'!$D$9:$E$58,2,FALSE)=0,"",VLOOKUP(J21,'Footnotes list'!$D$9:$E$58,2,FALSE) ) ) ->  | L21: 0 | P21: =IF(TRIM(O21)="", "", IF(VLOOKUP(O21,'Footnotes list'!$D$9:$E$58,2,FALSE)=0,"",VLOOKUP(O21,'Footnotes list'!$D$9:$E$58,2,FALSE) ) ) ->  | Q21: 3603.998 | U21: =IF(TRIM(T21)="", "", IF(VLOOKUP(T21,'Footnotes list'!$D$9:$E$58,2,FALSE)=0,"",VLOOKUP(T21,'Footnotes list'!$D$9:$E$58,2,FALSE) ) ) ->  | V21: 0 | Z21: =IF(TRIM(Y21)="", "", IF(VLOOKUP(Y21,'Footnotes list'!$D$9:$E$58,2,FALSE)=0,"",VLOOKUP(Y21,'Footnotes list'!$D$9:$E$58,2,FALSE) ) ) ->  | AA21: =IF(AND(TRIM(Q21)="",TRIM(V21)=""),"",Q21+V21) -> 3603.998 | AE21: =IF(TRIM(AD21)="", "", IF(VLOOKUP(AD21,'Footnotes list'!$D$9:$E$58,2,FALSE)=0,"",VLOOKUP(AD21,'Footnotes list'!$D$9:$E$58,2,FALSE) ) ) ->  | AF21: 740.983 | AJ21: =IF(TRIM(AI21)="", "", IF(VLOOKUP(AI21,'Footnotes list'!$D$9:$E$58,2,FALSE)=0,"",VLOOKUP(AI21,'Footnotes list'!$D$9:$E$58,2,FALSE) ) ) ->  | AK21: 22.634 | AO21: =IF(TRIM(AN21)="", "", IF(VLOOKUP(AN21,'Footnotes list'!$D$9:$E$58,2,FALSE)=0,"",VLOOKUP(AN21,'Footnotes list'!$D$9:$E$58,2,FALSE) ) ) ->  | AP21: =IF(AND(TRIM(AF21)="",TRIM(AK21)=""),"",AF21+AK21) -> 763.617 | AT21: =IF(TRIM(AS21)="", "", IF(VLOOKUP(AS21,'Footnotes list'!$D$9:$E$58,2,FALSE)=0,"",VLOOKUP(AS21,'Footnotes list'!$D$9:$E$58,2,FALSE) ) ) ->  | AU21: =IF(AND(TRIM(G21)="",TRIM(L21)="",TRIM(AA21)="",TRIM(AP21)=""),"",SUM(G21,L21,AA21,AP21)) -> 4395.393 | AY21: =IF(TRIM(AX21)="", "", IF(VLOOKUP(AX21,'Footnotes list'!$D$9:$E$58,2,FALSE)=0,"",VLOOKUP(AX21,'Footnotes list'!$D$9:$E$58,2,FALSE) ) ) -> 
C22: W032 | E22: HAZ_NHAZ | F22: Total | G22: =IF(AND(TRIM(G20)="",TRIM(G21)=""),"",G20+G21) -> 308.849 | K22: =IF(TRIM(J22)="", "", IF(VLOOKUP(J22,'Footnotes list'!$D$9:$E$58,2,FALSE)=0,"",VLOOKUP(J22,'Footnotes list'!$D$9:$E$58,2,FALSE) ) ) ->  | L22: =IF(AND(TRIM(L20)="",TRIM(L21)=""),"",L20+L21) -> 0 | P22: =IF(TRIM(O22)="", "", IF(VLOOKUP(O22,'Footnotes list'!$D$9:$E$58,2,FALSE)=0,"",VLOOKUP(O22,'Footnotes list'!$D$9:$E$58,2,FALSE) ) ) ->  | Q22: =IF(AND(TRIM(Q20)="",TRIM(Q21)=""),"",Q20+Q21) -> 3900.831 | U22: =IF(TRIM(T22)="", "", IF(VLOOKUP(T22,'Footnotes list'!$D$9:$E$58,2,FALSE)=0,"",VLOOKUP(T22,'Footnotes list'!$D$9:$E$58,2,FALSE) ) ) ->  | V22: =IF(AND(TRIM(V20)="",TRIM(V21)=""),"",V20+V21) -> 0 | Z22: =IF(TRIM(Y22)="", "", IF(VLOOKUP(Y22,'Footnotes list'!$D$9:$E$58,2,FALSE)=0,"",VLOOKUP(Y22,'Footnotes list'!$D$9:$E$58,2,FALSE) ) ) ->  | AA22: =IF(AND(TRIM(AA20)="", TRIM(AA21)=""), "", SUM(AA20,AA21)) -> 3900.831 | AE22: =IF(TRIM(AD22)="", "", IF(VLOOKUP(AD22,'Footnotes list'!$D$9:$E$58,2,FALSE)=0,"",VLOOKUP(AD22,'Footnotes list'!$D$9:$E$58,2,FALSE) ) ) ->  | AF22: =IF(AND(TRIM(AF20)="",TRIM(AF21)=""),"",AF20+AF21) -> 740.983 | AJ22: =IF(TRIM(AI22)="", "", IF(VLOOKUP(AI22,'Footnotes list'!$D$9:$E$58,2,FALSE)=0,"",VLOOKUP(AI22,'Footnotes list'!$D$9:$E$58,2,FALSE) ) ) ->  | AK22: =IF(AND(TRIM(AK20)="",TRIM(AK21)=""),"",AK20+AK21) -> 22.634 | AO22: =IF(TRIM(AN22)="", "", IF(VLOOKUP(AN22,'Footnotes list'!$D$9:$E$58,2,FALSE)=0,"",VLOOKUP(AN22,'Footnotes list'!$D$9:$E$58,2,FALSE) ) ) ->  | AP22: =IF(AND(TRIM(AP20)="", TRIM(AP21)=""), "", SUM(AP20,AP21)) -> 763.617 | AT22: =IF(TRIM(AS22)="", "", IF(VLOOKUP(AS22,'Footnotes list'!$D$9:$E$58,2,FALSE)=0,"",VLOOKUP(AS22,'Footnotes list'!$D$9:$E$58,2,FALSE) ) ) ->  | AU22: =IF(AND(TRIM(AU20)="", TRIM(AU21)=""), "", SUM(AU20,AU21) ) -> 4973.297 | AY22: =IF(TRIM(AX22)="", "", IF(VLOOKUP(AX22,'Footnotes list'!$D$9:$E$58,2,FALSE)=0,"",VLOOKUP(AX22,'Footnotes list'!$D$9:$E$58,2,FALSE) ) ) -> 
B23: W033 | C23: W033 | D23: Sludges and liquid wastes from waste treatment | E23: HAZ | F23: Hazardous | G23: 95.77 | K23: =IF(TRIM(J23)="", "", IF(VLOOKUP(J23,'Footnotes list'!$D$9:$E$58,2,FALSE)=0,"",VLOOKUP(J23,'Footnotes list'!$D$9:$E$58,2,FALSE) ) ) ->  | L23: 0 | P23: =IF(TRIM(O23)="", "", IF(VLOOKUP(O23,'Footnotes list'!$D$9:$E$58,2,FALSE)=0,"",VLOOKUP(O23,'Footnotes list'!$D$9:$E$58,2,FALSE) ) ) ->  | Q23: 0 | U23: =IF(TRIM(T23)="", "", IF(VLOOKUP(T23,'Footnotes list'!$D$9:$E$58,2,FALSE)=0,"",VLOOKUP(T23,'Footnotes list'!$D$9:$E$58,2,FALSE) ) ) ->  | V23: 0 | Z23: =IF(TRIM(Y23)="", "", IF(VLOOKUP(Y23,'Footnotes list'!$D$9:$E$58,2,FALSE)=0,"",VLOOKUP(Y23,'Footnotes list'!$D$9:$E$58,2,FALSE) ) ) ->  | AA23: =IF(AND(TRIM(Q23)="",TRIM(V23)=""),"",Q23+V23) -> 0 | AE23: =IF(TRIM(AD23)="", "", IF(VLOOKUP(AD23,'Footnotes list'!$D$9:$E$58,2,FALSE)=0,"",VLOOKUP(AD23,'Footnotes list'!$D$9:$E$58,2,FALSE) ) ) ->  | AF23: 0 | AJ23: =IF(TRIM(AI23)="", "", IF(VLOOKUP(AI23,'Footnotes list'!$D$9:$E$58,2,FALSE)=0,"",VLOOKUP(AI23,'Footnotes list'!$D$9:$E$58,2,FALSE) ) ) ->  | AK23: 0 | AO23: =IF(TRIM(AN23)="", "", IF(VLOOKUP(AN23,'Footnotes list'!$D$9:$E$58,2,FALSE)=0,"",VLOOKUP(AN23,'Footnotes list'!$D$9:$E$58,2,FALSE) ) ) ->  | AP23: =IF(AND(TRIM(AF23)="",TRIM(AK23)=""),"",AF23+AK23) -> 0 | AT23: =IF(TRIM(AS23)="", "", IF(VLOOKUP(AS23,'Footnotes list'!$D$9:$E$58,2,FALSE)=0,"",VLOOKUP(AS23,'Footnotes list'!$D$9:$E$58,2,FALSE) ) ) ->  | AU23: =IF(AND(TRIM(G23)="",TRIM(L23)="",TRIM(AA23)="",TRIM(AP23)=""),"",SUM(G23,L23,AA23,AP23)) -> 95.77 | AY23: =IF(TRIM(AX23)="", "", IF(VLOOKUP(AX23,'Footnotes list'!$D$9:$E$58,2,FALSE)=0,"",VLOOKUP(AX23,'Footnotes list'!$D$9:$E$58,2,FALSE) ) ) -> 
C24: W033 | E24: NHAZ | F24: Non-hazardous | G24: 0 | K24: =IF(TRIM(J24)="", "", IF(VLOOKUP(J24,'Footnotes list'!$D$9:$E$58,2,FALSE)=0,"",VLOOKUP(J24,'Footnotes list'!$D$9:$E$58,2,FALSE) ) ) ->  | L24: 0 | P24: =IF(TRIM(O24)="", "", IF(VLOOKUP(O24,'Footnotes list'!$D$9:$E$58,2,FALSE)=0,"",VLOOKUP(O24,'Footnotes list'!$D$9:$E$58,2,FALSE) ) ) ->  | Q24: 4228.6 | U24: =IF(TRIM(T24)="", "", IF(VLOOKUP(T24,'Footnotes list'!$D$9:$E$58,2,FALSE)=0,"",VLOOKUP(T24,'Footnotes list'!$D$9:$E$58,2,FALSE) ) ) ->  | V24: 0 | Z24: =IF(TRIM(Y24)="", "", IF(VLOOKUP(Y24,'Footnotes list'!$D$9:$E$58,2,FALSE)=0,"",VLOOKUP(Y24,'Footnotes list'!$D$9:$E$58,2,FALSE) ) ) ->  | AA24: =IF(AND(TRIM(Q24)="",TRIM(V24)=""),"",Q24+V24) -> 4228.6 | AE24: =IF(TRIM(AD24)="", "", IF(VLOOKUP(AD24,'Footnotes list'!$D$9:$E$58,2,FALSE)=0,"",VLOOKUP(AD24,'Footnotes list'!$D$9:$E$58,2,FALSE) ) ) ->  | AF24: 0 | AJ24: =IF(TRIM(AI24)="", "", IF(VLOOKUP(AI24,'Footnotes list'!$D$9:$E$58,2,FALSE)=0,"",VLOOKUP(AI24,'Footnotes list'!$D$9:$E$58,2,FALSE) ) ) ->  | AK24: 0 | AO24: =IF(TRIM(AN24)="", "", IF(VLOOKUP(AN24,'Footnotes list'!$D$9:$E$58,2,FALSE)=0,"",VLOOKUP(AN24,'Footnotes list'!$D$9:$E$58,2,FALSE) ) ) ->  | AP24: =IF(AND(TRIM(AF24)="",TRIM(AK24)=""),"",AF24+AK24) -> 0 | AT24: =IF(TRIM(AS24)="", "", IF(VLOOKUP(AS24,'Footnotes list'!$D$9:$E$58,2,FALSE)=0,"",VLOOKUP(AS24,'Footnotes list'!$D$9:$E$58,2,FALSE) ) ) ->  | AU24: =IF(AND(TRIM(G24)="",TRIM(L24)="",TRIM(AA24)="",TRIM(AP24)=""),"",SUM(G24,L24,AA24,AP24)) -> 4228.6 | AY24: =IF(TRIM(AX24)="", "", IF(VLOOKUP(AX24,'Footnotes list'!$D$9:$E$58,2,FALSE)=0,"",VLOOKUP(AX24,'Footnotes list'!$D$9:$E$58,2,FALSE) ) ) -> 
C25: W033 | E25: HAZ_NHAZ | F25: Total | G25: =IF(AND(TRIM(G23)="",TRIM(G24)=""),"",G23+G24) -> 95.77 | K25: =IF(TRIM(J25)="", "", IF(VLOOKUP(J25,'Footnotes list'!$D$9:$E$58,2,FALSE)=0,"",VLOOKUP(J25,'Footnotes list'!$D$9:$E$58,2,FALSE) ) ) ->  | L25: =IF(AND(TRIM(L23)="",TRIM(L24)=""),"",L23+L24) -> 0 | P25: =IF(TRIM(O25)="", "", IF(VLOOKUP(O25,'Footnotes list'!$D$9:$E$58,2,FALSE)=0,"",VLOOKUP(O25,'Footnotes list'!$D$9:$E$58,2,FALSE) ) ) ->  | Q25: =IF(AND(TRIM(Q23)="",TRIM(Q24)=""),"",Q23+Q24) -> 4228.6 | U25: =IF(TRIM(T25)="", "", IF(VLOOKUP(T25,'Footnotes list'!$D$9:$E$58,2,FALSE)=0,"",VLOOKUP(T25,'Footnotes list'!$D$9:$E$58,2,FALSE) ) ) ->  | V25: =IF(AND(TRIM(V23)="",TRIM(V24)=""),"",V23+V24) -> 0 | Z25: =IF(TRIM(Y25)="", "", IF(VLOOKUP(Y25,'Footnotes list'!$D$9:$E$58,2,FALSE)=0,"",VLOOKUP(Y25,'Footnotes list'!$D$9:$E$58,2,FALSE) ) ) ->  | AA25: =IF(AND(TRIM(AA23)="", TRIM(AA24)=""), "", SUM(AA23,AA24)) -> 4228.6 | AE25: =IF(TRIM(AD25)="", "", IF(VLOOKUP(AD25,'Footnotes list'!$D$9:$E$58,2,FALSE)=0,"",VLOOKUP(AD25,'Footnotes list'!$D$9:$E$58,2,FALSE) ) ) ->  | AF25: =IF(AND(TRIM(AF23)="",TRIM(AF24)=""),"",AF23+AF24) -> 0 | AJ25: =IF(TRIM(AI25)="", "", IF(VLOOKUP(AI25,'Footnotes list'!$D$9:$E$58,2,FALSE)=0,"",VLOOKUP(AI25,'Footnotes list'!$D$9:$E$58,2,FALSE) ) ) ->  | AK25: =IF(AND(TRIM(AK23)="",TRIM(AK24)=""),"",AK23+AK24) -> 0 | AO25: =IF(TRIM(AN25)="", "", IF(VLOOKUP(AN25,'Footnotes list'!$D$9:$E$58,2,FALSE)=0,"",VLOOKUP(AN25,'Footnotes list'!$D$9:$E$58,2,FALSE) ) ) ->  | AP25: =IF(AND(TRIM(AP23)="", TRIM(AP24)=""), "", SUM(AP23,AP24)) -> 0 | AT25: =IF(TRIM(AS25)="", "", IF(VLOOKUP(AS25,'Footnotes list'!$D$9:$E$58,2,FALSE)=0,"",VLOOKUP(AS25,'Footnotes list'!$D$9:$E$58,2,FALSE) ) ) ->  | AU25: =IF(AND(TRIM(AU23)="", TRIM(AU24)=""), "", SUM(AU23,AU24) ) -> 4324.37 | AY25: =IF(TRIM(AX25)="", "", IF(VLOOKUP(AX25,'Footnotes list'!$D$9:$E$58,2,FALSE)=0,"",VLOOKUP(AX25,'Footnotes list'!$D$9:$E$58,2,FALSE) ) ) -> 
B26: W05 | C26: W05 | D26: Health care and biological wastes | E26: HAZ | F26: Hazardous | G26: 0 | K26: =IF(TRIM(J26)="", "", IF(VLOOKUP(J26,'Footnotes list'!$D$9:$E$58,2,FALSE)=0,"",VLOOKUP(J26,'Footnotes list'!$D$9:$E$58,2,FALSE) ) ) ->  | L26: 0 | P26: =IF(TRIM(O26)="", "", IF(VLOOKUP(O26,'Footnotes list'!$D$9:$E$58,2,FALSE)=0,"",VLOOKUP(O26,'Footnotes list'!$D$9:$E$58,2,FALSE) ) ) ->  | Q26: 0 | U26: =IF(TRIM(T26)="", "", IF(VLOOKUP(T26,'Footnotes list'!$D$9:$E$58,2,FALSE)=0,"",VLOOKUP(T26,'Footnotes list'!$D$9:$E$58,2,FALSE) ) ) ->  | V26: 0 | Z26: =IF(TRIM(Y26)="", "", IF(VLOOKUP(Y26,'Footnotes list'!$D$9:$E$58,2,FALSE)=0,"",VLOOKUP(Y26,'Footnotes list'!$D$9:$E$58,2,FALSE) ) ) ->  | AA26: =IF(AND(TRIM(Q26)="",TRIM(V26)=""),"",Q26+V26) -> 0 | AE26: =IF(TRIM(AD26)="", "", IF(VLOOKUP(AD26,'Footnotes list'!$D$9:$E$58,2,FALSE)=0,"",VLOOKUP(AD26,'Footnotes list'!$D$9:$E$58,2,FALSE) ) ) ->  | AF26: 0 | AJ26: =IF(TRIM(AI26)="", "", IF(VLOOKUP(AI26,'Footnotes list'!$D$9:$E$58,2,FALSE)=0,"",VLOOKUP(AI26,'Footnotes list'!$D$9:$E$58,2,FALSE) ) ) ->  | AK26: 0 | AO26: =IF(TRIM(AN26)="", "", IF(VLOOKUP(AN26,'Footnotes list'!$D$9:$E$58,2,FALSE)=0,"",VLOOKUP(AN26,'Footnotes list'!$D$9:$E$58,2,FALSE) ) ) ->  | AP26: =IF(AND(TRIM(AF26)="",TRIM(AK26)=""),"",AF26+AK26) -> 0 | AT26: =IF(TRIM(AS26)="", "", IF(VLOOKUP(AS26,'Footnotes list'!$D$9:$E$58,2,FALSE)=0,"",VLOOKUP(AS26,'Footnotes list'!$D$9:$E$58,2,FALSE) ) ) ->  | AU26: =IF(AND(TRIM(G26)="",TRIM(L26)="",TRIM(AA26)="",TRIM(AP26)=""),"",SUM(G26,L26,AA26,AP26)) -> 0 | AY26: =IF(TRIM(AX26)="", "", IF(VLOOKUP(AX26,'Footnotes list'!$D$9:$E$58,2,FALSE)=0,"",VLOOKUP(AX26,'Footnotes list'!$D$9:$E$58,2,FALSE) ) ) -> 
C27: W05 | E27: NHAZ | F27: Non-hazardous | G27: 0 | K27: =IF(TRIM(J27)="", "", IF(VLOOKUP(J27,'Footnotes list'!$D$9:$E$58,2,FALSE)=0,"",VLOOKUP(J27,'Footnotes list'!$D$9:$E$58,2,FALSE) ) ) ->  | L27: 0 | P27: =IF(TRIM(O27)="", "", IF(VLOOKUP(O27,'Footnotes list'!$D$9:$E$58,2,FALSE)=0,"",VLOOKUP(O27,'Footnotes list'!$D$9:$E$58,2,FALSE) ) ) ->  | Q27: 1.331 | U27: =IF(TRIM(T27)="", "", IF(VLOOKUP(T27,'Footnotes list'!$D$9:$E$58,2,FALSE)=0,"",VLOOKUP(T27,'Footnotes list'!$D$9:$E$58,2,FALSE) ) ) ->  | V27: 0 | Z27: =IF(TRIM(Y27)="", "", IF(VLOOKUP(Y27,'Footnotes list'!$D$9:$E$58,2,FALSE)=0,"",VLOOKUP(Y27,'Footnotes list'!$D$9:$E$58,2,FALSE) ) ) ->  | AA27: =IF(AND(TRIM(Q27)="",TRIM(V27)=""),"",Q27+V27) -> 1.331 | AE27: =IF(TRIM(AD27)="", "", IF(VLOOKUP(AD27,'Footnotes list'!$D$9:$E$58,2,FALSE)=0,"",VLOOKUP(AD27,'Footnotes list'!$D$9:$E$58,2,FALSE) ) ) ->  | AF27: 87.982 | AJ27: =IF(TRIM(AI27)="", "", IF(VLOOKUP(AI27,'Footnotes list'!$D$9:$E$58,2,FALSE)=0,"",VLOOKUP(AI27,'Footnotes list'!$D$9:$E$58,2,FALSE) ) ) ->  | AK27: 0 | AO27: =IF(TRIM(AN27)="", "", IF(VLOOKUP(AN27,'Footnotes list'!$D$9:$E$58,2,FALSE)=0,"",VLOOKUP(AN27,'Footnotes list'!$D$9:$E$58,2,FALSE) ) ) ->  | AP27: =IF(AND(TRIM(AF27)="",TRIM(AK27)=""),"",AF27+AK27) -> 87.982 | AT27: =IF(TRIM(AS27)="", "", IF(VLOOKUP(AS27,'Footnotes list'!$D$9:$E$58,2,FALSE)=0,"",VLOOKUP(AS27,'Footnotes list'!$D$9:$E$58,2,FALSE) ) ) ->  | AU27: =IF(AND(TRIM(G27)="",TRIM(L27)="",TRIM(AA27)="",TRIM(AP27)=""),"",SUM(G27,L27,AA27,AP27)) -> 89.313 | AY27: =IF(TRIM(AX27)="", "", IF(VLOOKUP(AX27,'Footnotes list'!$D$9:$E$58,2,FALSE)=0,"",VLOOKUP(AX27,'Footnotes list'!$D$9:$E$58,2,FALSE) ) ) -> 
C28: W05 | E28: HAZ_NHAZ | F28: Total | G28: =IF(AND(TRIM(G26)="",TRIM(G27)=""),"",G26+G27) -> 0 | K28: =IF(TRIM(J28)="", "", IF(VLOOKUP(J28,'Footnotes list'!$D$9:$E$58,2,FALSE)=0,"",VLOOKUP(J28,'Footnotes list'!$D$9:$E$58,2,FALSE) ) ) ->  | L28: =IF(AND(TRIM(L26)="",TRIM(L27)=""),"",L26+L27) -> 0 | P28: =IF(TRIM(O28)="", "", IF(VLOOKUP(O28,'Footnotes list'!$D$9:$E$58,2,FALSE)=0,"",VLOOKUP(O28,'Footnotes list'!$D$9:$E$58,2,FALSE) ) ) ->  | Q28: =IF(AND(TRIM(Q26)="",TRIM(Q27)=""),"",Q26+Q27) -> 1.331 | U28: =IF(TRIM(T28)="", "", IF(VLOOKUP(T28,'Footnotes list'!$D$9:$E$58,2,FALSE)=0,"",VLOOKUP(T28,'Footnotes list'!$D$9:$E$58,2,FALSE) ) ) ->  | V28: =IF(AND(TRIM(V26)="",TRIM(V27)=""),"",V26+V27) -> 0 | Z28: =IF(TRIM(Y28)="", "", IF(VLOOKUP(Y28,'Footnotes list'!$D$9:$E$58,2,FALSE)=0,"",VLOOKUP(Y28,'Footnotes list'!$D$9:$E$58,2,FALSE) ) ) ->  | AA28: =IF(AND(TRIM(AA26)="", TRIM(AA27)=""), "", SUM(AA26,AA27)) -> 1.331 | AE28: =IF(TRIM(AD28)="", "", IF(VLOOKUP(AD28,'Footnotes list'!$D$9:$E$58,2,FALSE)=0,"",VLOOKUP(AD28,'Footnotes list'!$D$9:$E$58,2,FALSE) ) ) ->  | AF28: =IF(AND(TRIM(AF26)="",TRIM(AF27)=""),"",AF26+AF27) -> 87.982 | AJ28: =IF(TRIM(AI28)="", "", IF(VLOOKUP(AI28,'Footnotes list'!$D$9:$E$58,2,FALSE)=0,"",VLOOKUP(AI28,'Footnotes list'!$D$9:$E$58,2,FALSE) ) ) ->  | AK28: =IF(AND(TRIM(AK26)="",TRIM(AK27)=""),"",AK26+AK27) -> 0 | AO28: =IF(TRIM(AN28)="", "", IF(VLOOKUP(AN28,'Footnotes list'!$D$9:$E$58,2,FALSE)=0,"",VLOOKUP(AN28,'Footnotes list'!$D$9:$E$58,2,FALSE) ) ) ->  | AP28: =IF(AND(TRIM(AP26)="", TRIM(AP27)=""), "", SUM(AP26,AP27)) -> 87.982 | AT28: =IF(TRIM(AS28)="", "", IF(VLOOKUP(AS28,'Footnotes list'!$D$9:$E$58,2,FALSE)=0,"",VLOOKUP(AS28,'Footnotes list'!$D$9:$E$58,2,FALSE) ) ) ->  | AU28: =IF(AND(TRIM(AU26)="", TRIM(AU27)=""), "", SUM(AU26,AU27) ) -> 89.313 | AY28: =IF(TRIM(AX28)="", "", IF(VLOOKUP(AX28,'Footnotes list'!$D$9:$E$58,2,FALSE)=0,"",VLOOKUP(AX28,'Footnotes list'!$D$9:$E$58,2,FALSE) ) ) -> 
B29: W061 | D29: Metallic wastes, ferrous | F29: Not applicable
C30: W061 | E30: NHAZ | F30: Non-hazardous | G30: 0 | K30: =IF(TRIM(J30)="", "", IF(VLOOKUP(J30,'Footnotes list'!$D$9:$E$58,2,FALSE)=0,"",VLOOKUP(J30,'Footnotes list'!$D$9:$E$58,2,FALSE) ) ) ->  | L30: 0 | P30: =IF(TRIM(O30)="", "", IF(VLOOKUP(O30,'Footnotes list'!$D$9:$E$58,2,FALSE)=0,"",VLOOKUP(O30,'Footnotes list'!$D$9:$E$58,2,FALSE) ) ) ->  | Q30: 650237.018 | U30: =IF(TRIM(T30)="", "", IF(VLOOKUP(T30,'Footnotes list'!$D$9:$E$58,2,FALSE)=0,"",VLOOKUP(T30,'Footnotes list'!$D$9:$E$58,2,FALSE) ) ) ->  | V30: 0 | Z30: =IF(TRIM(Y30)="", "", IF(VLOOKUP(Y30,'Footnotes list'!$D$9:$E$58,2,FALSE)=0,"",VLOOKUP(Y30,'Footnotes list'!$D$9:$E$58,2,FALSE) ) ) ->  | AA30: =IF(AND(TRIM(Q30)="",TRIM(V30)=""),"",Q30+V30) -> 650237.018 | AE30: =IF(TRIM(AD30)="", "", IF(VLOOKUP(AD30,'Footnotes list'!$D$9:$E$58,2,FALSE)=0,"",VLOOKUP(AD30,'Footnotes list'!$D$9:$E$58,2,FALSE) ) ) ->  | AF30: 12.04 | AJ30: =IF(TRIM(AI30)="", "", IF(VLOOKUP(AI30,'Footnotes list'!$D$9:$E$58,2,FALSE)=0,"",VLOOKUP(AI30,'Footnotes list'!$D$9:$E$58,2,FALSE) ) ) ->  | AK30: 0 | AO30: =IF(TRIM(AN30)="", "", IF(VLOOKUP(AN30,'Footnotes list'!$D$9:$E$58,2,FALSE)=0,"",VLOOKUP(AN30,'Footnotes list'!$D$9:$E$58,2,FALSE) ) ) ->  | AP30: =IF(AND(TRIM(AF30)="",TRIM(AK30)=""),"",AF30+AK30) -> 12.04 | AT30: =IF(TRIM(AS30)="", "", IF(VLOOKUP(AS30,'Footnotes list'!$D$9:$E$58,2,FALSE)=0,"",VLOOKUP(AS30,'Footnotes list'!$D$9:$E$58,2,FALSE) ) ) ->  | AU30: =IF(AND(TRIM(G30)="",TRIM(L30)="",TRIM(AA30)="",TRIM(AP30)=""),"",SUM(G30,L30,AA30,AP30)) -> 650249.058 | AY30: =IF(TRIM(AX30)="", "", IF(VLOOKUP(AX30,'Footnotes list'!$D$9:$E$58,2,FALSE)=0,"",VLOOKUP(AX30,'Footnotes list'!$D$9:$E$58,2,FALSE) ) ) -> 
C31: W061 | E31: HAZ_NHAZ | F31: Total | G31: =IF(AND(TRIM(G29)="",TRIM(G30)=""),"",G29+G30) -> 0 | K31: =IF(TRIM(J31)="", "", IF(VLOOKUP(J31,'Footnotes list'!$D$9:$E$58,2,FALSE)=0,"",VLOOKUP(J31,'Footnotes list'!$D$9:$E$58,2,FALSE) ) ) ->  | L31: =IF(AND(TRIM(L29)="",TRIM(L30)=""),"",L29+L30) -> 0 | P31: =IF(TRIM(O31)="", "", IF(VLOOKUP(O31,'Footnotes list'!$D$9:$E$58,2,FALSE)=0,"",VLOOKUP(O31,'Footnotes list'!$D$9:$E$58,2,FALSE) ) ) ->  | Q31: =IF(AND(TRIM(Q29)="",TRIM(Q30)=""),"",Q29+Q30) -> 650237.018 | U31: =IF(TRIM(T31)="", "", IF(VLOOKUP(T31,'Footnotes list'!$D$9:$E$58,2,FALSE)=0,"",VLOOKUP(T31,'Footnotes list'!$D$9:$E$58,2,FALSE) ) ) ->  | V31: =IF(AND(TRIM(V29)="",TRIM(V30)=""),"",V29+V30) -> 0 | Z31: =IF(TRIM(Y31)="", "", IF(VLOOKUP(Y31,'Footnotes list'!$D$9:$E$58,2,FALSE)=0,"",VLOOKUP(Y31,'Footnotes list'!$D$9:$E$58,2,FALSE) ) ) ->  | AA31: =IF(AND(TRIM(AA29)="", TRIM(AA30)=""), "", SUM(AA29,AA30)) -> 650237.018 | AE31: =IF(TRIM(AD31)="", "", IF(VLOOKUP(AD31,'Footnotes list'!$D$9:$E$58,2,FALSE)=0,"",VLOOKUP(AD31,'Footnotes list'!$D$9:$E$58,2,FALSE) ) ) ->  | AF31: =IF(AND(TRIM(AF29)="",TRIM(AF30)=""),"",AF29+AF30) -> 12.04 | AJ31: =IF(TRIM(AI31)="", "", IF(VLOOKUP(AI31,'Footnotes list'!$D$9:$E$58,2,FALSE)=0,"",VLOOKUP(AI31,'Footnotes list'!$D$9:$E$58,2,FALSE) ) ) ->  | AK31: =IF(AND(TRIM(AK29)="",TRIM(AK30)=""),"",AK29+AK30) -> 0 | AO31: =IF(TRIM(AN31)="", "", IF(VLOOKUP(AN31,'Footnotes list'!$D$9:$E$58,2,FALSE)=0,"",VLOOKUP(AN31,'Footnotes list'!$D$9:$E$58,2,FALSE) ) ) ->  | AP31: =IF(AND(TRIM(AP29)="", TRIM(AP30)=""), "", SUM(AP29,AP30)) -> 12.04 | AT31: =IF(TRIM(AS31)="", "", IF(VLOOKUP(AS31,'Footnotes list'!$D$9:$E$58,2,FALSE)=0,"",VLOOKUP(AS31,'Footnotes list'!$D$9:$E$58,2,FALSE) ) ) ->  | AU31: =IF(AND(TRIM(AU29)="", TRIM(AU30)=""), "", SUM(AU29,AU30) ) -> 650249.058 | AY31: =IF(TRIM(AX31)="", "", IF(VLOOKUP(AX31,'Footnotes list'!$D$9:$E$58,2,FALSE)=0,"",VLOOKUP(AX31,'Footnotes list'!$D$9:$E$58,2,FALSE) ) ) -> 
B32: W062 | D32: Metallic wastes, non-ferrous | F32: Not applicable
C33: W062 | E33: NHAZ | F33: Non-hazardous | G33: 0 | K33: =IF(TRIM(J33)="", "", IF(VLOOKUP(J33,'Footnotes list'!$D$9:$E$58,2,FALSE)=0,"",VLOOKUP(J33,'Footnotes list'!$D$9:$E$58,2,FALSE) ) ) ->  | L33: 0 | P33: =IF(TRIM(O33)="", "", IF(VLOOKUP(O33,'Footnotes list'!$D$9:$E$58,2,FALSE)=0,"",VLOOKUP(O33,'Footnotes list'!$D$9:$E$58,2,FALSE) ) ) ->  | Q33: 4526.442 | U33: =IF(TRIM(T33)="", "", IF(VLOOKUP(T33,'Footnotes list'!$D$9:$E$58,2,FALSE)=0,"",VLOOKUP(T33,'Footnotes list'!$D$9:$E$58,2,FALSE) ) ) ->  | V33: 0 | Z33: =IF(TRIM(Y33)="", "", IF(VLOOKUP(Y33,'Footnotes list'!$D$9:$E$58,2,FALSE)=0,"",VLOOKUP(Y33,'Footnotes list'!$D$9:$E$58,2,FALSE) ) ) ->  | AA33: =IF(AND(TRIM(Q33)="",TRIM(V33)=""),"",Q33+V33) -> 4526.442 | AE33: =IF(TRIM(AD33)="", "", IF(VLOOKUP(AD33,'Footnotes list'!$D$9:$E$58,2,FALSE)=0,"",VLOOKUP(AD33,'Footnotes list'!$D$9:$E$58,2,FALSE) ) ) ->  | AF33: 0 | AJ33: =IF(TRIM(AI33)="", "", IF(VLOOKUP(AI33,'Footnotes list'!$D$9:$E$58,2,FALSE)=0,"",VLOOKUP(AI33,'Footnotes list'!$D$9:$E$58,2,FALSE) ) ) ->  | AK33: 0 | AO33: =IF(TRIM(AN33)="", "", IF(VLOOKUP(AN33,'Footnotes list'!$D$9:$E$58,2,FALSE)=0,"",VLOOKUP(AN33,'Footnotes list'!$D$9:$E$58,2,FALSE) ) ) ->  | AP33: =IF(AND(TRIM(AF33)="",TRIM(AK33)=""),"",AF33+AK33) -> 0 | AT33: =IF(TRIM(AS33)="", "", IF(VLOOKUP(AS33,'Footnotes list'!$D$9:$E$58,2,FALSE)=0,"",VLOOKUP(AS33,'Footnotes list'!$D$9:$E$58,2,FALSE) ) ) ->  | AU33: =IF(AND(TRIM(G33)="",TRIM(L33)="",TRIM(AA33)="",TRIM(AP33)=""),"",SUM(G33,L33,AA33,AP33)) -> 4526.442 | AY33: =IF(TRIM(AX33)="", "", IF(VLOOKUP(AX33,'Footnotes list'!$D$9:$E$58,2,FALSE)=0,"",VLOOKUP(AX33,'Footnotes list'!$D$9:$E$58,2,FALSE) ) ) -> 
C34: W062 | E34: HAZ_NHAZ | F34: Total | G34: =IF(AND(TRIM(G32)="",TRIM(G33)=""),"",G32+G33) -> 0 | K34: =IF(TRIM(J34)="", "", IF(VLOOKUP(J34,'Footnotes list'!$D$9:$E$58,2,FALSE)=0,"",VLOOKUP(J34,'Footnotes list'!$D$9:$E$58,2,FALSE) ) ) ->  | L34: =IF(AND(TRIM(L32)="",TRIM(L33)=""),"",L32+L33) -> 0 | P34: =IF(TRIM(O34)="", "", IF(VLOOKUP(O34,'Footnotes list'!$D$9:$E$58,2,FALSE)=0,"",VLOOKUP(O34,'Footnotes list'!$D$9:$E$58,2,FALSE) ) ) ->  | Q34: =IF(AND(TRIM(Q32)="",TRIM(Q33)=""),"",Q32+Q33) -> 4526.442 | U34: =IF(TRIM(T34)="", "", IF(VLOOKUP(T34,'Footnotes list'!$D$9:$E$58,2,FALSE)=0,"",VLOOKUP(T34,'Footnotes list'!$D$9:$E$58,2,FALSE) ) ) ->  | V34: =IF(AND(TRIM(V32)="",TRIM(V33)=""),"",V32+V33) -> 0 | Z34: =IF(TRIM(Y34)="", "", IF(VLOOKUP(Y34,'Footnotes list'!$D$9:$E$58,2,FALSE)=0,"",VLOOKUP(Y34,'Footnotes list'!$D$9:$E$58,2,FALSE) ) ) ->  | AA34: =IF(AND(TRIM(AA32)="", TRIM(AA33)=""), "", SUM(AA32,AA33)) -> 4526.442 | AE34: =IF(TRIM(AD34)="", "", IF(VLOOKUP(AD34,'Footnotes list'!$D$9:$E$58,2,FALSE)=0,"",VLOOKUP(AD34,'Footnotes list'!$D$9:$E$58,2,FALSE) ) ) ->  | AF34: =IF(AND(TRIM(AF32)="",TRIM(AF33)=""),"",AF32+AF33) -> 0 | AJ34: =IF(TRIM(AI34)="", "", IF(VLOOKUP(AI34,'Footnotes list'!$D$9:$E$58,2,FALSE)=0,"",VLOOKUP(AI34,'Footnotes list'!$D$9:$E$58,2,FALSE) ) ) ->  | AK34: =IF(AND(TRIM(AK32)="",TRIM(AK33)=""),"",AK32+AK33) -> 0 | AO34: =IF(TRIM(AN34)="", "", IF(VLOOKUP(AN34,'Footnotes list'!$D$9:$E$58,2,FALSE)=0,"",VLOOKUP(AN34,'Footnotes list'!$D$9:$E$58,2,FALSE) ) ) ->  | AP34: =IF(AND(TRIM(AP32)="", TRIM(AP33)=""), "", SUM(AP32,AP33)) -> 0 | AT34: =IF(TRIM(AS34)="", "", IF(VLOOKUP(AS34,'Footnotes list'!$D$9:$E$58,2,FALSE)=0,"",VLOOKUP(AS34,'Footnotes list'!$D$9:$E$58,2,FALSE) ) ) ->  | AU34: =IF(AND(TRIM(AU32)="", TRIM(AU33)=""), "", SUM(AU32,AU33) ) -> 4526.442 | AY34: =IF(TRIM(AX34)="", "", IF(VLOOKUP(AX34,'Footnotes list'!$D$9:$E$58,2,FALSE)=0,"",VLOOKUP(AX34,'Footnotes list'!$D$9:$E$58,2,FALSE) ) ) -> 
B35: W063 | D35: Metal wastes, mixed ferrous and non-ferrous | F35: Not applicable
C36: W063 | E36: NHAZ | F36: Non-hazardous | G36: 0 | K36: =IF(TRIM(J36)="", "", IF(VLOOKUP(J36,'Footnotes list'!$D$9:$E$58,2,FALSE)=0,"",VLOOKUP(J36,'Footnotes list'!$D$9:$E$58,2,FALSE) ) ) ->  | L36: 0 | P36: =IF(TRIM(O36)="", "", IF(VLOOKUP(O36,'Footnotes list'!$D$9:$E$58,2,FALSE)=0,"",VLOOKUP(O36,'Footnotes list'!$D$9:$E$58,2,FALSE) ) ) ->  | Q36: 19332.326 | U36: =IF(TRIM(T36)="", "", IF(VLOOKUP(T36,'Footnotes list'!$D$9:$E$58,2,FALSE)=0,"",VLOOKUP(T36,'Footnotes list'!$D$9:$E$58,2,FALSE) ) ) ->  | V36: 0 | Z36: =IF(TRIM(Y36)="", "", IF(VLOOKUP(Y36,'Footnotes list'!$D$9:$E$58,2,FALSE)=0,"",VLOOKUP(Y36,'Footnotes list'!$D$9:$E$58,2,FALSE) ) ) ->  | AA36: =IF(AND(TRIM(Q36)="",TRIM(V36)=""),"",Q36+V36) -> 19332.326 | AE36: =IF(TRIM(AD36)="", "", IF(VLOOKUP(AD36,'Footnotes list'!$D$9:$E$58,2,FALSE)=0,"",VLOOKUP(AD36,'Footnotes list'!$D$9:$E$58,2,FALSE) ) ) ->  | AF36: 5.1 | AJ36: =IF(TRIM(AI36)="", "", IF(VLOOKUP(AI36,'Footnotes list'!$D$9:$E$58,2,FALSE)=0,"",VLOOKUP(AI36,'Footnotes list'!$D$9:$E$58,2,FALSE) ) ) ->  | AK36: 0 | AO36: =IF(TRIM(AN36)="", "", IF(VLOOKUP(AN36,'Footnotes list'!$D$9:$E$58,2,FALSE)=0,"",VLOOKUP(AN36,'Footnotes list'!$D$9:$E$58,2,FALSE) ) ) ->  | AP36: =IF(AND(TRIM(AF36)="",TRIM(AK36)=""),"",AF36+AK36) -> 5.1 | AT36: =IF(TRIM(AS36)="", "", IF(VLOOKUP(AS36,'Footnotes list'!$D$9:$E$58,2,FALSE)=0,"",VLOOKUP(AS36,'Footnotes list'!$D$9:$E$58,2,FALSE) ) ) ->  | AU36: =IF(AND(TRIM(G36)="",TRIM(L36)="",TRIM(AA36)="",TRIM(AP36)=""),"",SUM(G36,L36,AA36,AP36)) -> 19337.426 | AY36: =IF(TRIM(AX36)="", "", IF(VLOOKUP(AX36,'Footnotes list'!$D$9:$E$58,2,FALSE)=0,"",VLOOKUP(AX36,'Footnotes list'!$D$9:$E$58,2,FALSE) ) ) -> 
C37: W063 | E37: HAZ_NHAZ | F37: Total | G37: =IF(AND(TRIM(G35)="",TRIM(G36)=""),"",G35+G36) -> 0 | K37: =IF(TRIM(J37)="", "", IF(VLOOKUP(J37,'Footnotes list'!$D$9:$E$58,2,FALSE)=0,"",VLOOKUP(J37,'Footnotes list'!$D$9:$E$58,2,FALSE) ) ) ->  | L37: =IF(AND(TRIM(L35)="",TRIM(L36)=""),"",L35+L36) -> 0 | P37: =IF(TRIM(O37)="", "", IF(VLOOKUP(O37,'Footnotes list'!$D$9:$E$58,2,FALSE)=0,"",VLOOKUP(O37,'Footnotes list'!$D$9:$E$58,2,FALSE) ) ) ->  | Q37: =IF(AND(TRIM(Q35)="",TRIM(Q36)=""),"",Q35+Q36) -> 19332.326 | U37: =IF(TRIM(T37)="", "", IF(VLOOKUP(T37,'Footnotes list'!$D$9:$E$58,2,FALSE)=0,"",VLOOKUP(T37,'Footnotes list'!$D$9:$E$58,2,FALSE) ) ) ->  | V37: =IF(AND(TRIM(V35)="",TRIM(V36)=""),"",V35+V36) -> 0 | Z37: =IF(TRIM(Y37)="", "", IF(VLOOKUP(Y37,'Footnotes list'!$D$9:$E$58,2,FALSE)=0,"",VLOOKUP(Y37,'Footnotes list'!$D$9:$E$58,2,FALSE) ) ) ->  | AA37: =IF(AND(TRIM(AA35)="", TRIM(AA36)=""), "", SUM(AA35,AA36)) -> 19332.326 | AE37: =IF(TRIM(AD37)="", "", IF(VLOOKUP(AD37,'Footnotes list'!$D$9:$E$58,2,FALSE)=0,"",VLOOKUP(AD37,'Footnotes list'!$D$9:$E$58,2,FALSE) ) ) ->  | AF37: =IF(AND(TRIM(AF35)="",TRIM(AF36)=""),"",AF35+AF36) -> 5.1 | AJ37: =IF(TRIM(AI37)="", "", IF(VLOOKUP(AI37,'Footnotes list'!$D$9:$E$58,2,FALSE)=0,"",VLOOKUP(AI37,'Footnotes list'!$D$9:$E$58,2,FALSE) ) ) ->  | AK37: =IF(AND(TRIM(AK35)="",TRIM(AK36)=""),"",AK35+AK36) -> 0 | AO37: =IF(TRIM(AN37)="", "", IF(VLOOKUP(AN37,'Footnotes list'!$D$9:$E$58,2,FALSE)=0,"",VLOOKUP(AN37,'Footnotes list'!$D$9:$E$58,2,FALSE) ) ) ->  | AP37: =IF(AND(TRIM(AP35)="", TRIM(AP36)=""), "", SUM(AP35,AP36)) -> 5.1 | AT37: =IF(TRIM(AS37)="", "", IF(VLOOKUP(AS37,'Footnotes list'!$D$9:$E$58,2,FALSE)=0,"",VLOOKUP(AS37,'Footnotes list'!$D$9:$E$58,2,FALSE) ) ) ->  | AU37: =IF(AND(TRIM(AU35)="", TRIM(AU36)=""), "", SUM(AU35,AU36) ) -> 19337.426 | AY37: =IF(TRIM(AX37)="", "", IF(VLOOKUP(AX37,'Footnotes list'!$D$9:$E$58,2,FALSE)=0,"",VLOOKUP(AX37,'Footnotes list'!$D$9:$E$58,2,FALSE) ) ) -> 
B38: W071 | C38: W071 | D38: Glass wastes | E38: HAZ | F38: Hazardous | G38: 0 | K38: =IF(TRIM(J38)="", "", IF(VLOOKUP(J38,'Footnotes list'!$D$9:$E$58,2,FALSE)=0,"",VLOOKUP(J38,'Footnotes list'!$D$9:$E$58,2,FALSE) ) ) ->  | L38: 0 | P38: =IF(TRIM(O38)="", "", IF(VLOOKUP(O38,'Footnotes list'!$D$9:$E$58,2,FALSE)=0,"",VLOOKUP(O38,'Footnotes list'!$D$9:$E$58,2,FALSE) ) ) ->  | Q38: 0 | U38: =IF(TRIM(T38)="", "", IF(VLOOKUP(T38,'Footnotes list'!$D$9:$E$58,2,FALSE)=0,"",VLOOKUP(T38,'Footnotes list'!$D$9:$E$58,2,FALSE) ) ) ->  | V38: 0 | Z38: =IF(TRIM(Y38)="", "", IF(VLOOKUP(Y38,'Footnotes list'!$D$9:$E$58,2,FALSE)=0,"",VLOOKUP(Y38,'Footnotes list'!$D$9:$E$58,2,FALSE) ) ) ->  | AA38: =IF(AND(TRIM(Q38)="",TRIM(V38)=""),"",Q38+V38) -> 0 | AE38: =IF(TRIM(AD38)="", "", IF(VLOOKUP(AD38,'Footnotes list'!$D$9:$E$58,2,FALSE)=0,"",VLOOKUP(AD38,'Footnotes list'!$D$9:$E$58,2,FALSE) ) ) ->  | AF38: 0 | AJ38: =IF(TRIM(AI38)="", "", IF(VLOOKUP(AI38,'Footnotes list'!$D$9:$E$58,2,FALSE)=0,"",VLOOKUP(AI38,'Footnotes list'!$D$9:$E$58,2,FALSE) ) ) ->  | AK38: 0 | AO38: =IF(TRIM(AN38)="", "", IF(VLOOKUP(AN38,'Footnotes list'!$D$9:$E$58,2,FALSE)=0,"",VLOOKUP(AN38,'Footnotes list'!$D$9:$E$58,2,FALSE) ) ) ->  | AP38: =IF(AND(TRIM(AF38)="",TRIM(AK38)=""),"",AF38+AK38) -> 0 | AT38: =IF(TRIM(AS38)="", "", IF(VLOOKUP(AS38,'Footnotes list'!$D$9:$E$58,2,FALSE)=0,"",VLOOKUP(AS38,'Footnotes list'!$D$9:$E$58,2,FALSE) ) ) ->  | AU38: =IF(AND(TRIM(G38)="",TRIM(L38)="",TRIM(AA38)="",TRIM(AP38)=""),"",SUM(G38,L38,AA38,AP38)) -> 0 | AY38: =IF(TRIM(AX38)="", "", IF(VLOOKUP(AX38,'Footnotes list'!$D$9:$E$58,2,FALSE)=0,"",VLOOKUP(AX38,'Footnotes list'!$D$9:$E$58,2,FALSE) ) ) -> 
C39: W071 | E39: NHAZ | F39: Non-hazardous | G39: 0 | K39: =IF(TRIM(J39)="", "", IF(VLOOKUP(J39,'Footnotes list'!$D$9:$E$58,2,FALSE)=0,"",VLOOKUP(J39,'Footnotes list'!$D$9:$E$58,2,FALSE) ) ) ->  | L39: 0 | P39: =IF(TRIM(O39)="", "", IF(VLOOKUP(O39,'Footnotes list'!$D$9:$E$58,2,FALSE)=0,"",VLOOKUP(O39,'Footnotes list'!$D$9:$E$58,2,FALSE) ) ) ->  | Q39: 128596.173 | U39: =IF(TRIM(T39)="", "", IF(VLOOKUP(T39,'Footnotes list'!$D$9:$E$58,2,FALSE)=0,"",VLOOKUP(T39,'Footnotes list'!$D$9:$E$58,2,FALSE) ) ) ->  | V39: 0 | Z39: =IF(TRIM(Y39)="", "", IF(VLOOKUP(Y39,'Footnotes list'!$D$9:$E$58,2,FALSE)=0,"",VLOOKUP(Y39,'Footnotes list'!$D$9:$E$58,2,FALSE) ) ) ->  | AA39: =IF(AND(TRIM(Q39)="",TRIM(V39)=""),"",Q39+V39) -> 128596.173 | AE39: =IF(TRIM(AD39)="", "", IF(VLOOKUP(AD39,'Footnotes list'!$D$9:$E$58,2,FALSE)=0,"",VLOOKUP(AD39,'Footnotes list'!$D$9:$E$58,2,FALSE) ) ) ->  | AF39: 393.171 | AJ39: =IF(TRIM(AI39)="", "", IF(VLOOKUP(AI39,'Footnotes list'!$D$9:$E$58,2,FALSE)=0,"",VLOOKUP(AI39,'Footnotes list'!$D$9:$E$58,2,FALSE) ) ) ->  | AK39: 0 | AO39: =IF(TRIM(AN39)="", "", IF(VLOOKUP(AN39,'Footnotes list'!$D$9:$E$58,2,FALSE)=0,"",VLOOKUP(AN39,'Footnotes list'!$D$9:$E$58,2,FALSE) ) ) ->  | AP39: =IF(AND(TRIM(AF39)="",TRIM(AK39)=""),"",AF39+AK39) -> 393.171 | AT39: =IF(TRIM(AS39)="", "", IF(VLOOKUP(AS39,'Footnotes list'!$D$9:$E$58,2,FALSE)=0,"",VLOOKUP(AS39,'Footnotes list'!$D$9:$E$58,2,FALSE) ) ) ->  | AU39: =IF(AND(TRIM(G39)="",TRIM(L39)="",TRIM(AA39)="",TRIM(AP39)=""),"",SUM(G39,L39,AA39,AP39)) -> 128989.344 | AY39: =IF(TRIM(AX39)="", "", IF(VLOOKUP(AX39,'Footnotes list'!$D$9:$E$58,2,FALSE)=0,"",VLOOKUP(AX39,'Footnotes list'!$D$9:$E$58,2,FALSE) ) ) -> 
C40: W071 | E40: HAZ_NHAZ | F40: Total | G40: =IF(AND(TRIM(G38)="",TRIM(G39)=""),"",G38+G39) -> 0 | K40: =IF(TRIM(J40)="", "", IF(VLOOKUP(J40,'Footnotes list'!$D$9:$E$58,2,FALSE)=0,"",VLOOKUP(J40,'Footnotes list'!$D$9:$E$58,2,FALSE) ) ) ->  | L40: =IF(AND(TRIM(L38)="",TRIM(L39)=""),"",L38+L39) -> 0 | P40: =IF(TRIM(O40)="", "", IF(VLOOKUP(O40,'Footnotes list'!$D$9:$E$58,2,FALSE)=0,"",VLOOKUP(O40,'Footnotes list'!$D$9:$E$58,2,FALSE) ) ) ->  | Q40: =IF(AND(TRIM(Q38)="",TRIM(Q39)=""),"",Q38+Q39) -> 128596.173 | U40: =IF(TRIM(T40)="", "", IF(VLOOKUP(T40,'Footnotes list'!$D$9:$E$58,2,FALSE)=0,"",VLOOKUP(T40,'Footnotes list'!$D$9:$E$58,2,FALSE) ) ) ->  | V40: =IF(AND(TRIM(V38)="",TRIM(V39)=""),"",V38+V39) -> 0 | Z40: =IF(TRIM(Y40)="", "", IF(VLOOKUP(Y40,'Footnotes list'!$D$9:$E$58,2,FALSE)=0,"",VLOOKUP(Y40,'Footnotes list'!$D$9:$E$58,2,FALSE) ) ) ->  | AA40: =IF(AND(TRIM(AA38)="", TRIM(AA39)=""), "", SUM(AA38,AA39)) -> 128596.173 | AE40: =IF(TRIM(AD40)="", "", IF(VLOOKUP(AD40,'Footnotes list'!$D$9:$E$58,2,FALSE)=0,"",VLOOKUP(AD40,'Footnotes list'!$D$9:$E$58,2,FALSE) ) ) ->  | AF40: =IF(AND(TRIM(AF38)="",TRIM(AF39)=""),"",AF38+AF39) -> 393.171 | AJ40: =IF(TRIM(AI40)="", "", IF(VLOOKUP(AI40,'Footnotes list'!$D$9:$E$58,2,FALSE)=0,"",VLOOKUP(AI40,'Footnotes list'!$D$9:$E$58,2,FALSE) ) ) ->  | AK40: =IF(AND(TRIM(AK38)="",TRIM(AK39)=""),"",AK38+AK39) -> 0 | AO40: =IF(TRIM(AN40)="", "", IF(VLOOKUP(AN40,'Footnotes list'!$D$9:$E$58,2,FALSE)=0,"",VLOOKUP(AN40,'Footnotes list'!$D$9:$E$58,2,FALSE) ) ) ->  | AP40: =IF(AND(TRIM(AP38)="", TRIM(AP39)=""), "", SUM(AP38,AP39)) -> 393.171 | AT40: =IF(TRIM(AS40)="", "", IF(VLOOKUP(AS40,'Footnotes list'!$D$9:$E$58,2,FALSE)=0,"",VLOOKUP(AS40,'Footnotes list'!$D$9:$E$58,2,FALSE) ) ) ->  | AU40: =IF(AND(TRIM(AU38)="", TRIM(AU39)=""), "", SUM(AU38,AU39) ) -> 128989.344 | AY40: =IF(TRIM(AX40)="", "", IF(VLOOKUP(AX40,'Footnotes list'!$D$9:$E$58,2,FALSE)=0,"",VLOOKUP(AX40,'Footnotes list'!$D$9:$E$58,2,FALSE) ) ) -> 
B41: W072 | D41: Paper and cardboard wastes | F41: Not applicable
C42: W072 | E42: NHAZ | F42: Non-hazardous | G42: 32.532 | K42: =IF(TRIM(J42)="", "", IF(VLOOKUP(J42,'Footnotes list'!$D$9:$E$58,2,FALSE)=0,"",VLOOKUP(J42,'Footnotes list'!$D$9:$E$58,2,FALSE) ) ) ->  | L42: 0 | P42: =IF(TRIM(O42)="", "", IF(VLOOKUP(O42,'Footnotes list'!$D$9:$E$58,2,FALSE)=0,"",VLOOKUP(O42,'Footnotes list'!$D$9:$E$58,2,FALSE) ) ) ->  | Q42: 261752.501 | U42: =IF(TRIM(T42)="", "", IF(VLOOKUP(T42,'Footnotes list'!$D$9:$E$58,2,FALSE)=0,"",VLOOKUP(T42,'Footnotes list'!$D$9:$E$58,2,FALSE) ) ) ->  | V42: 0 | Z42: =IF(TRIM(Y42)="", "", IF(VLOOKUP(Y42,'Footnotes list'!$D$9:$E$58,2,FALSE)=0,"",VLOOKUP(Y42,'Footnotes list'!$D$9:$E$58,2,FALSE) ) ) ->  | AA42: =IF(AND(TRIM(Q42)="",TRIM(V42)=""),"",Q42+V42) -> 261752.501 | AE42: =IF(TRIM(AD42)="", "", IF(VLOOKUP(AD42,'Footnotes list'!$D$9:$E$58,2,FALSE)=0,"",VLOOKUP(AD42,'Footnotes list'!$D$9:$E$58,2,FALSE) ) ) ->  | AF42: 62.21 | AJ42: =IF(TRIM(AI42)="", "", IF(VLOOKUP(AI42,'Footnotes list'!$D$9:$E$58,2,FALSE)=0,"",VLOOKUP(AI42,'Footnotes list'!$D$9:$E$58,2,FALSE) ) ) ->  | AK42: 0 | AO42: =IF(TRIM(AN42)="", "", IF(VLOOKUP(AN42,'Footnotes list'!$D$9:$E$58,2,FALSE)=0,"",VLOOKUP(AN42,'Footnotes list'!$D$9:$E$58,2,FALSE) ) ) ->  | AP42: =IF(AND(TRIM(AF42)="",TRIM(AK42)=""),"",AF42+AK42) -> 62.21 | AT42: =IF(TRIM(AS42)="", "", IF(VLOOKUP(AS42,'Footnotes list'!$D$9:$E$58,2,FALSE)=0,"",VLOOKUP(AS42,'Footnotes list'!$D$9:$E$58,2,FALSE) ) ) ->  | AU42: =IF(AND(TRIM(G42)="",TRIM(L42)="",TRIM(AA42)="",TRIM(AP42)=""),"",SUM(G42,L42,AA42,AP42)) -> 261847.243 | AY42: =IF(TRIM(AX42)="", "", IF(VLOOKUP(AX42,'Footnotes list'!$D$9:$E$58,2,FALSE)=0,"",VLOOKUP(AX42,'Footnotes list'!$D$9:$E$58,2,FALSE) ) ) -> 
C43: W072 | E43: HAZ_NHAZ | F43: Total | G43: =IF(AND(TRIM(G41)="",TRIM(G42)=""),"",G41+G42) -> 32.532 | K43: =IF(TRIM(J43)="", "", IF(VLOOKUP(J43,'Footnotes list'!$D$9:$E$58,2,FALSE)=0,"",VLOOKUP(J43,'Footnotes list'!$D$9:$E$58,2,FALSE) ) ) ->  | L43: =IF(AND(TRIM(L41)="",TRIM(L42)=""),"",L41+L42) -> 0 | P43: =IF(TRIM(O43)="", "", IF(VLOOKUP(O43,'Footnotes list'!$D$9:$E$58,2,FALSE)=0,"",VLOOKUP(O43,'Footnotes list'!$D$9:$E$58,2,FALSE) ) ) ->  | Q43: =IF(AND(TRIM(Q41)="",TRIM(Q42)=""),"",Q41+Q42) -> 261752.501 | U43: =IF(TRIM(T43)="", "", IF(VLOOKUP(T43,'Footnotes list'!$D$9:$E$58,2,FALSE)=0,"",VLOOKUP(T43,'Footnotes list'!$D$9:$E$58,2,FALSE) ) ) ->  | V43: =IF(AND(TRIM(V41)="",TRIM(V42)=""),"",V41+V42) -> 0 | Z43: =IF(TRIM(Y43)="", "", IF(VLOOKUP(Y43,'Footnotes list'!$D$9:$E$58,2,FALSE)=0,"",VLOOKUP(Y43,'Footnotes list'!$D$9:$E$58,2,FALSE) ) ) ->  | AA43: =IF(AND(TRIM(AA41)="", TRIM(AA42)=""), "", SUM(AA41,AA42)) -> 261752.501 | AE43: =IF(TRIM(AD43)="", "", IF(VLOOKUP(AD43,'Footnotes list'!$D$9:$E$58,2,FALSE)=0,"",VLOOKUP(AD43,'Footnotes list'!$D$9:$E$58,2,FALSE) ) ) ->  | AF43: =IF(AND(TRIM(AF41)="",TRIM(AF42)=""),"",AF41+AF42) -> 62.21 | AJ43: =IF(TRIM(AI43)="", "", IF(VLOOKUP(AI43,'Footnotes list'!$D$9:$E$58,2,FALSE)=0,"",VLOOKUP(AI43,'Footnotes list'!$D$9:$E$58,2,FALSE) ) ) ->  | AK43: =IF(AND(TRIM(AK41)="",TRIM(AK42)=""),"",AK41+AK42) -> 0 | AO43: =IF(TRIM(AN43)="", "", IF(VLOOKUP(AN43,'Footnotes list'!$D$9:$E$58,2,FALSE)=0,"",VLOOKUP(AN43,'Footnotes list'!$D$9:$E$58,2,FALSE) ) ) ->  | AP43: =IF(AND(TRIM(AP41)="", TRIM(AP42)=""), "", SUM(AP41,AP42)) -> 62.21 | AT43: =IF(TRIM(AS43)="", "", IF(VLOOKUP(AS43,'Footnotes list'!$D$9:$E$58,2,FALSE)=0,"",VLOOKUP(AS43,'Footnotes list'!$D$9:$E$58,2,FALSE) ) ) ->  | AU43: =IF(AND(TRIM(AU41)="", TRIM(AU42)=""), "", SUM(AU41,AU42) ) -> 261847.243 | AY43: =IF(TRIM(AX43)="", "", IF(VLOOKUP(AX43,'Footnotes list'!$D$9:$E$58,2,FALSE)=0,"",VLOOKUP(AX43,'Footnotes list'!$D$9:$E$58,2,FALSE) ) ) -> 
B44: W073 | D44: Rubber wastes | F44: Not applicable
C45: W073 | E45: NHAZ | F45: Non-hazardous | G45: 4805.04 | K45: =IF(TRIM(J45)="", "", IF(VLOOKUP(J45,'Footnotes list'!$D$9:$E$58,2,FALSE)=0,"",VLOOKUP(J45,'Footnotes list'!$D$9:$E$58,2,FALSE) ) ) ->  | L45: 0 | P45: =IF(TRIM(O45)="", "", IF(VLOOKUP(O45,'Footnotes list'!$D$9:$E$58,2,FALSE)=0,"",VLOOKUP(O45,'Footnotes list'!$D$9:$E$58,2,FALSE) ) ) ->  | Q45: 25128.015 | U45: =IF(TRIM(T45)="", "", IF(VLOOKUP(T45,'Footnotes list'!$D$9:$E$58,2,FALSE)=0,"",VLOOKUP(T45,'Footnotes list'!$D$9:$E$58,2,FALSE) ) ) ->  | V45: 0 | Z45: =IF(TRIM(Y45)="", "", IF(VLOOKUP(Y45,'Footnotes list'!$D$9:$E$58,2,FALSE)=0,"",VLOOKUP(Y45,'Footnotes list'!$D$9:$E$58,2,FALSE) ) ) ->  | AA45: =IF(AND(TRIM(Q45)="",TRIM(V45)=""),"",Q45+V45) -> 25128.015 | AE45: =IF(TRIM(AD45)="", "", IF(VLOOKUP(AD45,'Footnotes list'!$D$9:$E$58,2,FALSE)=0,"",VLOOKUP(AD45,'Footnotes list'!$D$9:$E$58,2,FALSE) ) ) ->  | AF45: 0 | AJ45: =IF(TRIM(AI45)="", "", IF(VLOOKUP(AI45,'Footnotes list'!$D$9:$E$58,2,FALSE)=0,"",VLOOKUP(AI45,'Footnotes list'!$D$9:$E$58,2,FALSE) ) ) ->  | AK45: 0 | AO45: =IF(TRIM(AN45)="", "", IF(VLOOKUP(AN45,'Footnotes list'!$D$9:$E$58,2,FALSE)=0,"",VLOOKUP(AN45,'Footnotes list'!$D$9:$E$58,2,FALSE) ) ) ->  | AP45: =IF(AND(TRIM(AF45)="",TRIM(AK45)=""),"",AF45+AK45) -> 0 | AT45: =IF(TRIM(AS45)="", "", IF(VLOOKUP(AS45,'Footnotes list'!$D$9:$E$58,2,FALSE)=0,"",VLOOKUP(AS45,'Footnotes list'!$D$9:$E$58,2,FALSE) ) ) ->  | AU45: =IF(AND(TRIM(G45)="",TRIM(L45)="",TRIM(AA45)="",TRIM(AP45)=""),"",SUM(G45,L45,AA45,AP45)) -> 29933.055 | AY45: =IF(TRIM(AX45)="", "", IF(VLOOKUP(AX45,'Footnotes list'!$D$9:$E$58,2,FALSE)=0,"",VLOOKUP(AX45,'Footnotes list'!$D$9:$E$58,2,FALSE) ) ) -> 
C46: W073 | E46: HAZ_NHAZ | F46: Total | G46: =IF(AND(TRIM(G44)="",TRIM(G45)=""),"",G44+G45) -> 4805.04 | K46: =IF(TRIM(J46)="", "", IF(VLOOKUP(J46,'Footnotes list'!$D$9:$E$58,2,FALSE)=0,"",VLOOKUP(J46,'Footnotes list'!$D$9:$E$58,2,FALSE) ) ) ->  | L46: =IF(AND(TRIM(L44)="",TRIM(L45)=""),"",L44+L45) -> 0 | P46: =IF(TRIM(O46)="", "", IF(VLOOKUP(O46,'Footnotes list'!$D$9:$E$58,2,FALSE)=0,"",VLOOKUP(O46,'Footnotes list'!$D$9:$E$58,2,FALSE) ) ) ->  | Q46: =IF(AND(TRIM(Q44)="",TRIM(Q45)=""),"",Q44+Q45) -> 25128.015 | U46: =IF(TRIM(T46)="", "", IF(VLOOKUP(T46,'Footnotes list'!$D$9:$E$58,2,FALSE)=0,"",VLOOKUP(T46,'Footnotes list'!$D$9:$E$58,2,FALSE) ) ) ->  | V46: =IF(AND(TRIM(V44)="",TRIM(V45)=""),"",V44+V45) -> 0 | Z46: =IF(TRIM(Y46)="", "", IF(VLOOKUP(Y46,'Footnotes list'!$D$9:$E$58,2,FALSE)=0,"",VLOOKUP(Y46,'Footnotes list'!$D$9:$E$58,2,FALSE) ) ) ->  | AA46: =IF(AND(TRIM(AA44)="", TRIM(AA45)=""), "", SUM(AA44,AA45)) -> 25128.015 | AE46: =IF(TRIM(AD46)="", "", IF(VLOOKUP(AD46,'Footnotes list'!$D$9:$E$58,2,FALSE)=0,"",VLOOKUP(AD46,'Footnotes list'!$D$9:$E$58,2,FALSE) ) ) ->  | AF46: =IF(AND(TRIM(AF44)="",TRIM(AF45)=""),"",AF44+AF45) -> 0 | AJ46: =IF(TRIM(AI46)="", "", IF(VLOOKUP(AI46,'Footnotes list'!$D$9:$E$58,2,FALSE)=0,"",VLOOKUP(AI46,'Footnotes list'!$D$9:$E$58,2,FALSE) ) ) ->  | AK46: =IF(AND(TRIM(AK44)="",TRIM(AK45)=""),"",AK44+AK45) -> 0 | AO46: =IF(TRIM(AN46)="", "", IF(VLOOKUP(AN46,'Footnotes list'!$D$9:$E$58,2,FALSE)=0,"",VLOOKUP(AN46,'Footnotes list'!$D$9:$E$58,2,FALSE) ) ) ->  | AP46: =IF(AND(TRIM(AP44)="", TRIM(AP45)=""), "", SUM(AP44,AP45)) -> 0 | AT46: =IF(TRIM(AS46)="", "", IF(VLOOKUP(AS46,'Footnotes list'!$D$9:$E$58,2,FALSE)=0,"",VLOOKUP(AS46,'Footnotes list'!$D$9:$E$58,2,FALSE) ) ) ->  | AU46: =IF(AND(TRIM(AU44)="", TRIM(AU45)=""), "", SUM(AU44,AU45) ) -> 29933.055 | AY46: =IF(TRIM(AX46)="", "", IF(VLOOKUP(AX46,'Footnotes list'!$D$9:$E$58,2,FALSE)=0,"",VLOOKUP(AX46,'Footnotes list'!$D$9:$E$58,2,FALSE) ) ) -> 
B47: W074 | D47: Plastic wastes | F47: Not applicable
C48: W074 | E48: NHAZ | F48: Non-hazardous | G48: 11545.55 | K48: =IF(TRIM(J48)="", "", IF(VLOOKUP(J48,'Footnotes list'!$D$9:$E$58,2,FALSE)=0,"",VLOOKUP(J48,'Footnotes list'!$D$9:$E$58,2,FALSE) ) ) ->  | L48: 0 | P48: =IF(TRIM(O48)="", "", IF(VLOOKUP(O48,'Footnotes list'!$D$9:$E$58,2,FALSE)=0,"",VLOOKUP(O48,'Footnotes list'!$D$9:$E$58,2,FALSE) ) ) ->  | Q48: 54200.195 | U48: =IF(TRIM(T48)="", "", IF(VLOOKUP(T48,'Footnotes list'!$D$9:$E$58,2,FALSE)=0,"",VLOOKUP(T48,'Footnotes list'!$D$9:$E$58,2,FALSE) ) ) ->  | V48: 0 | Z48: =IF(TRIM(Y48)="", "", IF(VLOOKUP(Y48,'Footnotes list'!$D$9:$E$58,2,FALSE)=0,"",VLOOKUP(Y48,'Footnotes list'!$D$9:$E$58,2,FALSE) ) ) ->  | AA48: =IF(AND(TRIM(Q48)="",TRIM(V48)=""),"",Q48+V48) -> 54200.195 | AE48: =IF(TRIM(AD48)="", "", IF(VLOOKUP(AD48,'Footnotes list'!$D$9:$E$58,2,FALSE)=0,"",VLOOKUP(AD48,'Footnotes list'!$D$9:$E$58,2,FALSE) ) ) ->  | AF48: 4844.493 | AJ48: =IF(TRIM(AI48)="", "", IF(VLOOKUP(AI48,'Footnotes list'!$D$9:$E$58,2,FALSE)=0,"",VLOOKUP(AI48,'Footnotes list'!$D$9:$E$58,2,FALSE) ) ) ->  | AK48: 0 | AO48: =IF(TRIM(AN48)="", "", IF(VLOOKUP(AN48,'Footnotes list'!$D$9:$E$58,2,FALSE)=0,"",VLOOKUP(AN48,'Footnotes list'!$D$9:$E$58,2,FALSE) ) ) ->  | AP48: =IF(AND(TRIM(AF48)="",TRIM(AK48)=""),"",AF48+AK48) -> 4844.493 | AT48: =IF(TRIM(AS48)="", "", IF(VLOOKUP(AS48,'Footnotes list'!$D$9:$E$58,2,FALSE)=0,"",VLOOKUP(AS48,'Footnotes list'!$D$9:$E$58,2,FALSE) ) ) ->  | AU48: =IF(AND(TRIM(G48)="",TRIM(L48)="",TRIM(AA48)="",TRIM(AP48)=""),"",SUM(G48,L48,AA48,AP48)) -> 70590.238 | AY48: =IF(TRIM(AX48)="", "", IF(VLOOKUP(AX48,'Footnotes list'!$D$9:$E$58,2,FALSE)=0,"",VLOOKUP(AX48,'Footnotes list'!$D$9:$E$58,2,FALSE) ) ) -> 
C49: W074 | E49: HAZ_NHAZ | F49: Total | G49: =IF(AND(TRIM(G47)="",TRIM(G48)=""),"",G47+G48) -> 11545.55 | K49: =IF(TRIM(J49)="", "", IF(VLOOKUP(J49,'Footnotes list'!$D$9:$E$58,2,FALSE)=0,"",VLOOKUP(J49,'Footnotes list'!$D$9:$E$58,2,FALSE) ) ) ->  | L49: =IF(AND(TRIM(L47)="",TRIM(L48)=""),"",L47+L48) -> 0 | P49: =IF(TRIM(O49)="", "", IF(VLOOKUP(O49,'Footnotes list'!$D$9:$E$58,2,FALSE)=0,"",VLOOKUP(O49,'Footnotes list'!$D$9:$E$58,2,FALSE) ) ) ->  | Q49: =IF(AND(TRIM(Q47)="",TRIM(Q48)=""),"",Q47+Q48) -> 54200.195 | U49: =IF(TRIM(T49)="", "", IF(VLOOKUP(T49,'Footnotes list'!$D$9:$E$58,2,FALSE)=0,"",VLOOKUP(T49,'Footnotes list'!$D$9:$E$58,2,FALSE) ) ) ->  | V49: =IF(AND(TRIM(V47)="",TRIM(V48)=""),"",V47+V48) -> 0 | Z49: =IF(TRIM(Y49)="", "", IF(VLOOKUP(Y49,'Footnotes list'!$D$9:$E$58,2,FALSE)=0,"",VLOOKUP(Y49,'Footnotes list'!$D$9:$E$58,2,FALSE) ) ) ->  | AA49: =IF(AND(TRIM(AA47)="", TRIM(AA48)=""), "", SUM(AA47,AA48)) -> 54200.195 | AE49: =IF(TRIM(AD49)="", "", IF(VLOOKUP(AD49,'Footnotes list'!$D$9:$E$58,2,FALSE)=0,"",VLOOKUP(AD49,'Footnotes list'!$D$9:$E$58,2,FALSE) ) ) ->  | AF49: =IF(AND(TRIM(AF47)="",TRIM(AF48)=""),"",AF47+AF48) -> 4844.493 | AJ49: =IF(TRIM(AI49)="", "", IF(VLOOKUP(AI49,'Footnotes list'!$D$9:$E$58,2,FALSE)=0,"",VLOOKUP(AI49,'Footnotes list'!$D$9:$E$58,2,FALSE) ) ) ->  | AK49: =IF(AND(TRIM(AK47)="",TRIM(AK48)=""),"",AK47+AK48) -> 0 | AO49: =IF(TRIM(AN49)="", "", IF(VLOOKUP(AN49,'Footnotes list'!$D$9:$E$58,2,FALSE)=0,"",VLOOKUP(AN49,'Footnotes list'!$D$9:$E$58,2,FALSE) ) ) ->  | AP49: =IF(AND(TRIM(AP47)="", TRIM(AP48)=""), "", SUM(AP47,AP48)) -> 4844.493 | AT49: =IF(TRIM(AS49)="", "", IF(VLOOKUP(AS49,'Footnotes list'!$D$9:$E$58,2,FALSE)=0,"",VLOOKUP(AS49,'Footnotes list'!$D$9:$E$58,2,FALSE) ) ) ->  | AU49: =IF(AND(TRIM(AU47)="", TRIM(AU48)=""), "", SUM(AU47,AU48) ) -> 70590.238 | AY49: =IF(TRIM(AX49)="", "", IF(VLOOKUP(AX49,'Footnotes list'!$D$9:$E$58,2,FALSE)=0,"",VLOOKUP(AX49,'Footnotes list'!$D$9:$E$58,2,FALSE) ) ) -> 
B50: W075 | C50: W075 | D50: Wood wastes | E50: HAZ | F50: Hazardous | G50: 0 | K50: =IF(TRIM(J50)="", "", IF(VLOOKUP(J50,'Footnotes list'!$D$9:$E$58,2,FALSE)=0,"",VLOOKUP(J50,'Footnotes list'!$D$9:$E$58,2,FALSE) ) ) ->  | L50: 0 | P50: =IF(TRIM(O50)="", "", IF(VLOOKUP(O50,'Footnotes list'!$D$9:$E$58,2,FALSE)=0,"",VLOOKUP(O50,'Footnotes list'!$D$9:$E$58,2,FALSE) ) ) ->  | Q50: 0 | U50: =IF(TRIM(T50)="", "", IF(VLOOKUP(T50,'Footnotes list'!$D$9:$E$58,2,FALSE)=0,"",VLOOKUP(T50,'Footnotes list'!$D$9:$E$58,2,FALSE) ) ) ->  | V50: 0 | Z50: =IF(TRIM(Y50)="", "", IF(VLOOKUP(Y50,'Footnotes list'!$D$9:$E$58,2,FALSE)=0,"",VLOOKUP(Y50,'Footnotes list'!$D$9:$E$58,2,FALSE) ) ) ->  | AA50: =IF(AND(TRIM(Q50)="",TRIM(V50)=""),"",Q50+V50) -> 0 | AE50: =IF(TRIM(AD50)="", "", IF(VLOOKUP(AD50,'Footnotes list'!$D$9:$E$58,2,FALSE)=0,"",VLOOKUP(AD50,'Footnotes list'!$D$9:$E$58,2,FALSE) ) ) ->  | AF50: 0 | AJ50: =IF(TRIM(AI50)="", "", IF(VLOOKUP(AI50,'Footnotes list'!$D$9:$E$58,2,FALSE)=0,"",VLOOKUP(AI50,'Footnotes list'!$D$9:$E$58,2,FALSE) ) ) ->  | AK50: 0 | AO50: =IF(TRIM(AN50)="", "", IF(VLOOKUP(AN50,'Footnotes list'!$D$9:$E$58,2,FALSE)=0,"",VLOOKUP(AN50,'Footnotes list'!$D$9:$E$58,2,FALSE) ) ) ->  | AP50: =IF(AND(TRIM(AF50)="",TRIM(AK50)=""),"",AF50+AK50) -> 0 | AT50: =IF(TRIM(AS50)="", "", IF(VLOOKUP(AS50,'Footnotes list'!$D$9:$E$58,2,FALSE)=0,"",VLOOKUP(AS50,'Footnotes list'!$D$9:$E$58,2,FALSE) ) ) ->  | AU50: =IF(AND(TRIM(G50)="",TRIM(L50)="",TRIM(AA50)="",TRIM(AP50)=""),"",SUM(G50,L50,AA50,AP50)) -> 0 | AY50: =IF(TRIM(AX50)="", "", IF(VLOOKUP(AX50,'Footnotes list'!$D$9:$E$58,2,FALSE)=0,"",VLOOKUP(AX50,'Footnotes list'!$D$9:$E$58,2,FALSE) ) ) -> 
C51: W075 | E51: NHAZ | F51: Non-hazardous | G51: 38215.109 | K51: =IF(TRIM(J51)="", "", IF(VLOOKUP(J51,'Footnotes list'!$D$9:$E$58,2,FALSE)=0,"",VLOOKUP(J51,'Footnotes list'!$D$9:$E$58,2,FALSE) ) ) ->  | L51: 0 | P51: =IF(TRIM(O51)="", "", IF(VLOOKUP(O51,'Footnotes list'!$D$9:$E$58,2,FALSE)=0,"",VLOOKUP(O51,'Footnotes list'!$D$9:$E$58,2,FALSE) ) ) ->  | Q51: 120373.961 | U51: =IF(TRIM(T51)="", "", IF(VLOOKUP(T51,'Footnotes list'!$D$9:$E$58,2,FALSE)=0,"",VLOOKUP(T51,'Footnotes list'!$D$9:$E$58,2,FALSE) ) ) ->  | V51: 0 | Z51: =IF(TRIM(Y51)="", "", IF(VLOOKUP(Y51,'Footnotes list'!$D$9:$E$58,2,FALSE)=0,"",VLOOKUP(Y51,'Footnotes list'!$D$9:$E$58,2,FALSE) ) ) ->  | AA51: =IF(AND(TRIM(Q51)="",TRIM(V51)=""),"",Q51+V51) -> 120373.961 | AE51: =IF(TRIM(AD51)="", "", IF(VLOOKUP(AD51,'Footnotes list'!$D$9:$E$58,2,FALSE)=0,"",VLOOKUP(AD51,'Footnotes list'!$D$9:$E$58,2,FALSE) ) ) ->  | AF51: 423 | AJ51: =IF(TRIM(AI51)="", "", IF(VLOOKUP(AI51,'Footnotes list'!$D$9:$E$58,2,FALSE)=0,"",VLOOKUP(AI51,'Footnotes list'!$D$9:$E$58,2,FALSE) ) ) ->  | AK51: 0 | AO51: =IF(TRIM(AN51)="", "", IF(VLOOKUP(AN51,'Footnotes list'!$D$9:$E$58,2,FALSE)=0,"",VLOOKUP(AN51,'Footnotes list'!$D$9:$E$58,2,FALSE) ) ) ->  | AP51: =IF(AND(TRIM(AF51)="",TRIM(AK51)=""),"",AF51+AK51) -> 423 | AT51: =IF(TRIM(AS51)="", "", IF(VLOOKUP(AS51,'Footnotes list'!$D$9:$E$58,2,FALSE)=0,"",VLOOKUP(AS51,'Footnotes list'!$D$9:$E$58,2,FALSE) ) ) ->  | AU51: =IF(AND(TRIM(G51)="",TRIM(L51)="",TRIM(AA51)="",TRIM(AP51)=""),"",SUM(G51,L51,AA51,AP51)) -> 159012.07 | AY51: =IF(TRIM(AX51)="", "", IF(VLOOKUP(AX51,'Footnotes list'!$D$9:$E$58,2,FALSE)=0,"",VLOOKUP(AX51,'Footnotes list'!$D$9:$E$58,2,FALSE) ) ) -> 
C52: W075 | E52: HAZ_NHAZ | F52: Total | G52: =IF(AND(TRIM(G50)="",TRIM(G51)=""),"",G50+G51) -> 38215.109 | K52: =IF(TRIM(J52)="", "", IF(VLOOKUP(J52,'Footnotes list'!$D$9:$E$58,2,FALSE)=0,"",VLOOKUP(J52,'Footnotes list'!$D$9:$E$58,2,FALSE) ) ) ->  | L52: =IF(AND(TRIM(L50)="",TRIM(L51)=""),"",L50+L51) -> 0 | P52: =IF(TRIM(O52)="", "", IF(VLOOKUP(O52,'Footnotes list'!$D$9:$E$58,2,FALSE)=0,"",VLOOKUP(O52,'Footnotes list'!$D$9:$E$58,2,FALSE) ) ) ->  | Q52: =IF(AND(TRIM(Q50)="",TRIM(Q51)=""),"",Q50+Q51) -> 120373.961 | U52: =IF(TRIM(T52)="", "", IF(VLOOKUP(T52,'Footnotes list'!$D$9:$E$58,2,FALSE)=0,"",VLOOKUP(T52,'Footnotes list'!$D$9:$E$58,2,FALSE) ) ) ->  | V52: =IF(AND(TRIM(V50)="",TRIM(V51)=""),"",V50+V51) -> 0 | Z52: =IF(TRIM(Y52)="", "", IF(VLOOKUP(Y52,'Footnotes list'!$D$9:$E$58,2,FALSE)=0,"",VLOOKUP(Y52,'Footnotes list'!$D$9:$E$58,2,FALSE) ) ) ->  | AA52: =IF(AND(TRIM(AA50)="", TRIM(AA51)=""), "", SUM(AA50,AA51)) -> 120373.961 | AE52: =IF(TRIM(AD52)="", "", IF(VLOOKUP(AD52,'Footnotes list'!$D$9:$E$58,2,FALSE)=0,"",VLOOKUP(AD52,'Footnotes list'!$D$9:$E$58,2,FALSE) ) ) ->  | AF52: =IF(AND(TRIM(AF50)="",TRIM(AF51)=""),"",AF50+AF51) -> 423 | AJ52: =IF(TRIM(AI52)="", "", IF(VLOOKUP(AI52,'Footnotes list'!$D$9:$E$58,2,FALSE)=0,"",VLOOKUP(AI52,'Footnotes list'!$D$9:$E$58,2,FALSE) ) ) ->  | AK52: =IF(AND(TRIM(AK50)="",TRIM(AK51)=""),"",AK50+AK51) -> 0 | AO52: =IF(TRIM(AN52)="", "", IF(VLOOKUP(AN52,'Footnotes list'!$D$9:$E$58,2,FALSE)=0,"",VLOOKUP(AN52,'Footnotes list'!$D$9:$E$58,2,FALSE) ) ) ->  | AP52: =IF(AND(TRIM(AP50)="", TRIM(AP51)=""), "", SUM(AP50,AP51)) -> 423 | AT52: =IF(TRIM(AS52)="", "", IF(VLOOKUP(AS52,'Footnotes list'!$D$9:$E$58,2,FALSE)=0,"",VLOOKUP(AS52,'Footnotes list'!$D$9:$E$58,2,FALSE) ) ) ->  | AU52: =IF(AND(TRIM(AU50)="", TRIM(AU51)=""), "", SUM(AU50,AU51) ) -> 159012.07 | AY52: =IF(TRIM(AX52)="", "", IF(VLOOKUP(AX52,'Footnotes list'!$D$9:$E$58,2,FALSE)=0,"",VLOOKUP(AX52,'Footnotes list'!$D$9:$E$58,2,FALSE) ) ) -> 
B53: W076 | D53: Textile wastes | F53: Not applicable
C54: W076 | E54: NHAZ | F54: Non-hazardous | G54: 769.04 | K54: =IF(TRIM(J54)="", "", IF(VLOOKUP(J54,'Footnotes list'!$D$9:$E$58,2,FALSE)=0,"",VLOOKUP(J54,'Footnotes list'!$D$9:$E$58,2,FALSE) ) ) ->  | L54: 0 | P54: =IF(TRIM(O54)="", "", IF(VLOOKUP(O54,'Footnotes list'!$D$9:$E$58,2,FALSE)=0,"",VLOOKUP(O54,'Footnotes list'!$D$9:$E$58,2,FALSE) ) ) ->  | Q54: 4872.641 | U54: =IF(TRIM(T54)="", "", IF(VLOOKUP(T54,'Footnotes list'!$D$9:$E$58,2,FALSE)=0,"",VLOOKUP(T54,'Footnotes list'!$D$9:$E$58,2,FALSE) ) ) ->  | V54: 0 | Z54: =IF(TRIM(Y54)="", "", IF(VLOOKUP(Y54,'Footnotes list'!$D$9:$E$58,2,FALSE)=0,"",VLOOKUP(Y54,'Footnotes list'!$D$9:$E$58,2,FALSE) ) ) ->  | AA54: =IF(AND(TRIM(Q54)="",TRIM(V54)=""),"",Q54+V54) -> 4872.641 | AE54: =IF(TRIM(AD54)="", "", IF(VLOOKUP(AD54,'Footnotes list'!$D$9:$E$58,2,FALSE)=0,"",VLOOKUP(AD54,'Footnotes list'!$D$9:$E$58,2,FALSE) ) ) ->  | AF54: 831.949 | AJ54: =IF(TRIM(AI54)="", "", IF(VLOOKUP(AI54,'Footnotes list'!$D$9:$E$58,2,FALSE)=0,"",VLOOKUP(AI54,'Footnotes list'!$D$9:$E$58,2,FALSE) ) ) ->  | AK54: 0 | AO54: =IF(TRIM(AN54)="", "", IF(VLOOKUP(AN54,'Footnotes list'!$D$9:$E$58,2,FALSE)=0,"",VLOOKUP(AN54,'Footnotes list'!$D$9:$E$58,2,FALSE) ) ) ->  | AP54: =IF(AND(TRIM(AF54)="",TRIM(AK54)=""),"",AF54+AK54) -> 831.949 | AT54: =IF(TRIM(AS54)="", "", IF(VLOOKUP(AS54,'Footnotes list'!$D$9:$E$58,2,FALSE)=0,"",VLOOKUP(AS54,'Footnotes list'!$D$9:$E$58,2,FALSE) ) ) ->  | AU54: =IF(AND(TRIM(G54)="",TRIM(L54)="",TRIM(AA54)="",TRIM(AP54)=""),"",SUM(G54,L54,AA54,AP54)) -> 6473.63 | AY54: =IF(TRIM(AX54)="", "", IF(VLOOKUP(AX54,'Footnotes list'!$D$9:$E$58,2,FALSE)=0,"",VLOOKUP(AX54,'Footnotes list'!$D$9:$E$58,2,FALSE) ) ) -> 
C55: W076 | E55: HAZ_NHAZ | F55: Total | G55: =IF(AND(TRIM(G53)="",TRIM(G54)=""),"",G53+G54) -> 769.04 | K55: =IF(TRIM(J55)="", "", IF(VLOOKUP(J55,'Footnotes list'!$D$9:$E$58,2,FALSE)=0,"",VLOOKUP(J55,'Footnotes list'!$D$9:$E$58,2,FALSE) ) ) ->  | L55: =IF(AND(TRIM(L53)="",TRIM(L54)=""),"",L53+L54) -> 0 | P55: =IF(TRIM(O55)="", "", IF(VLOOKUP(O55,'Footnotes list'!$D$9:$E$58,2,FALSE)=0,"",VLOOKUP(O55,'Footnotes list'!$D$9:$E$58,2,FALSE) ) ) ->  | Q55: =IF(AND(TRIM(Q53)="",TRIM(Q54)=""),"",Q53+Q54) -> 4872.641 | U55: =IF(TRIM(T55)="", "", IF(VLOOKUP(T55,'Footnotes list'!$D$9:$E$58,2,FALSE)=0,"",VLOOKUP(T55,'Footnotes list'!$D$9:$E$58,2,FALSE) ) ) ->  | V55: =IF(AND(TRIM(V53)="",TRIM(V54)=""),"",V53+V54) -> 0 | Z55: =IF(TRIM(Y55)="", "", IF(VLOOKUP(Y55,'Footnotes list'!$D$9:$E$58,2,FALSE)=0,"",VLOOKUP(Y55,'Footnotes list'!$D$9:$E$58,2,FALSE) ) ) ->  | AA55: =IF(AND(TRIM(AA53)="", TRIM(AA54)=""), "", SUM(AA53,AA54)) -> 4872.641 | AE55: =IF(TRIM(AD55)="", "", IF(VLOOKUP(AD55,'Footnotes list'!$D$9:$E$58,2,FALSE)=0,"",VLOOKUP(AD55,'Footnotes list'!$D$9:$E$58,2,FALSE) ) ) ->  | AF55: =IF(AND(TRIM(AF53)="",TRIM(AF54)=""),"",AF53+AF54) -> 831.949 | AJ55: =IF(TRIM(AI55)="", "", IF(VLOOKUP(AI55,'Footnotes list'!$D$9:$E$58,2,FALSE)=0,"",VLOOKUP(AI55,'Footnotes list'!$D$9:$E$58,2,FALSE) ) ) ->  | AK55: =IF(AND(TRIM(AK53)="",TRIM(AK54)=""),"",AK53+AK54) -> 0 | AO55: =IF(TRIM(AN55)="", "", IF(VLOOKUP(AN55,'Footnotes list'!$D$9:$E$58,2,FALSE)=0,"",VLOOKUP(AN55,'Footnotes list'!$D$9:$E$58,2,FALSE) ) ) ->  | AP55: =IF(AND(TRIM(AP53)="", TRIM(AP54)=""), "", SUM(AP53,AP54)) -> 831.949 | AT55: =IF(TRIM(AS55)="", "", IF(VLOOKUP(AS55,'Footnotes list'!$D$9:$E$58,2,FALSE)=0,"",VLOOKUP(AS55,'Footnotes list'!$D$9:$E$58,2,FALSE) ) ) ->  | AU55: =IF(AND(TRIM(AU53)="", TRIM(AU54)=""), "", SUM(AU53,AU54) ) -> 6473.63 | AY55: =IF(TRIM(AX55)="", "", IF(VLOOKUP(AX55,'Footnotes list'!$D$9:$E$58,2,FALSE)=0,"",VLOOKUP(AX55,'Footnotes list'!$D$9:$E$58,2,FALSE) ) ) -> 
B56: W077 | C56: W077 | D56: Waste containing PCB | E56: HAZ | F56: Hazardous | G56: 0 | K56: =IF(TRIM(J56)="", "", IF(VLOOKUP(J56,'Footnotes list'!$D$9:$E$58,2,FALSE)=0,"",VLOOKUP(J56,'Footnotes list'!$D$9:$E$58,2,FALSE) ) ) ->  | L56: 0 | P56: =IF(TRIM(O56)="", "", IF(VLOOKUP(O56,'Footnotes list'!$D$9:$E$58,2,FALSE)=0,"",VLOOKUP(O56,'Footnotes list'!$D$9:$E$58,2,FALSE) ) ) ->  | Q56: 0 | U56: =IF(TRIM(T56)="", "", IF(VLOOKUP(T56,'Footnotes list'!$D$9:$E$58,2,FALSE)=0,"",VLOOKUP(T56,'Footnotes list'!$D$9:$E$58,2,FALSE) ) ) ->  | V56: 0 | Z56: =IF(TRIM(Y56)="", "", IF(VLOOKUP(Y56,'Footnotes list'!$D$9:$E$58,2,FALSE)=0,"",VLOOKUP(Y56,'Footnotes list'!$D$9:$E$58,2,FALSE) ) ) ->  | AA56: =IF(AND(TRIM(Q56)="",TRIM(V56)=""),"",Q56+V56) -> 0 | AE56: =IF(TRIM(AD56)="", "", IF(VLOOKUP(AD56,'Footnotes list'!$D$9:$E$58,2,FALSE)=0,"",VLOOKUP(AD56,'Footnotes list'!$D$9:$E$58,2,FALSE) ) ) ->  | AF56: 0 | AJ56: =IF(TRIM(AI56)="", "", IF(VLOOKUP(AI56,'Footnotes list'!$D$9:$E$58,2,FALSE)=0,"",VLOOKUP(AI56,'Footnotes list'!$D$9:$E$58,2,FALSE) ) ) ->  | AK56: 0 | AO56: =IF(TRIM(AN56)="", "", IF(VLOOKUP(AN56,'Footnotes list'!$D$9:$E$58,2,FALSE)=0,"",VLOOKUP(AN56,'Footnotes list'!$D$9:$E$58,2,FALSE) ) ) ->  | AP56: =IF(AND(TRIM(AF56)="",TRIM(AK56)=""),"",AF56+AK56) -> 0 | AT56: =IF(TRIM(AS56)="", "", IF(VLOOKUP(AS56,'Footnotes list'!$D$9:$E$58,2,FALSE)=0,"",VLOOKUP(AS56,'Footnotes list'!$D$9:$E$58,2,FALSE) ) ) ->  | AU56: =IF(AND(TRIM(G56)="",TRIM(L56)="",TRIM(AA56)="",TRIM(AP56)=""),"",SUM(G56,L56,AA56,AP56)) -> 0 | AY56: =IF(TRIM(AX56)="", "", IF(VLOOKUP(AX56,'Footnotes list'!$D$9:$E$58,2,FALSE)=0,"",VLOOKUP(AX56,'Footnotes list'!$D$9:$E$58,2,FALSE) ) ) -> 
F57: Not applicable
C58: W077 | E58: HAZ_NHAZ | F58: Total | G58: =IF(AND(TRIM(G56)="",TRIM(G57)=""),"",G56+G57) -> 0 | K58: =IF(TRIM(J58)="", "", IF(VLOOKUP(J58,'Footnotes list'!$D$9:$E$58,2,FALSE)=0,"",VLOOKUP(J58,'Footnotes list'!$D$9:$E$58,2,FALSE) ) ) ->  | L58: =IF(AND(TRIM(L56)="",TRIM(L57)=""),"",L56+L57) -> 0 | P58: =IF(TRIM(O58)="", "", IF(VLOOKUP(O58,'Footnotes list'!$D$9:$E$58,2,FALSE)=0,"",VLOOKUP(O58,'Footnotes list'!$D$9:$E$58,2,FALSE) ) ) ->  | Q58: =IF(AND(TRIM(Q56)="",TRIM(Q57)=""),"",Q56+Q57) -> 0 | U58: =IF(TRIM(T58)="", "", IF(VLOOKUP(T58,'Footnotes list'!$D$9:$E$58,2,FALSE)=0,"",VLOOKUP(T58,'Footnotes list'!$D$9:$E$58,2,FALSE) ) ) ->  | V58: =IF(AND(TRIM(V56)="",TRIM(V57)=""),"",V56+V57) -> 0 | Z58: =IF(TRIM(Y58)="", "", IF(VLOOKUP(Y58,'Footnotes list'!$D$9:$E$58,2,FALSE)=0,"",VLOOKUP(Y58,'Footnotes list'!$D$9:$E$58,2,FALSE) ) ) ->  | AA58: =IF(AND(TRIM(AA56)="", TRIM(AA57)=""), "", SUM(AA56,AA57)) -> 0 | AE58: =IF(TRIM(AD58)="", "", IF(VLOOKUP(AD58,'Footnotes list'!$D$9:$E$58,2,FALSE)=0,"",VLOOKUP(AD58,'Footnotes list'!$D$9:$E$58,2,FALSE) ) ) ->  | AF58: =IF(AND(TRIM(AF56)="",TRIM(AF57)=""),"",AF56+AF57) -> 0 | AJ58: =IF(TRIM(AI58)="", "", IF(VLOOKUP(AI58,'Footnotes list'!$D$9:$E$58,2,FALSE)=0,"",VLOOKUP(AI58,'Footnotes list'!$D$9:$E$58,2,FALSE) ) ) ->  | AK58: =IF(AND(TRIM(AK56)="",TRIM(AK57)=""),"",AK56+AK57) -> 0 | AO58: =IF(TRIM(AN58)="", "", IF(VLOOKUP(AN58,'Footnotes list'!$D$9:$E$58,2,FALSE)=0,"",VLOOKUP(AN58,'Footnotes list'!$D$9:$E$58,2,FALSE) ) ) ->  | AP58: =IF(AND(TRIM(AP56)="", TRIM(AP57)=""), "", SUM(AP56,AP57)) -> 0 | AT58: =IF(TRIM(AS58)="", "", IF(VLOOKUP(AS58,'Footnotes list'!$D$9:$E$58,2,FALSE)=0,"",VLOOKUP(AS58,'Footnotes list'!$D$9:$E$58,2,FALSE) ) ) ->  | AU58: =IF(AND(TRIM(AU56)="", TRIM(AU57)=""), "", SUM(AU56,AU57) ) -> 0 | AY58: =IF(TRIM(AX58)="", "", IF(VLOOKUP(AX58,'Footnotes list'!$D$9:$E$58,2,FALSE)=0,"",VLOOKUP(AX58,'Footnotes list'!$D$9:$E$58,2,FALSE) ) ) -> 
B59: W08A | C59: W08A | D59: Discarded equipment (except discarded vehicles and batteries and accumulators waste) (W08 except W081, W0841) | E59: HAZ | F59: Hazardous | G59: 7.772 | K59: =IF(TRIM(J59)="", "", IF(VLOOKUP(J59,'Footnotes list'!$D$9:$E$58,2,FALSE)=0,"",VLOOKUP(J59,'Footnotes list'!$D$9:$E$58,2,FALSE) ) ) ->  | L59: 0 | P59: =IF(TRIM(O59)="", "", IF(VLOOKUP(O59,'Footnotes list'!$D$9:$E$58,2,FALSE)=0,"",VLOOKUP(O59,'Footnotes list'!$D$9:$E$58,2,FALSE) ) ) ->  | Q59: 23268.447 | U59: =IF(TRIM(T59)="", "", IF(VLOOKUP(T59,'Footnotes list'!$D$9:$E$58,2,FALSE)=0,"",VLOOKUP(T59,'Footnotes list'!$D$9:$E$58,2,FALSE) ) ) ->  | V59: 0 | Z59: =IF(TRIM(Y59)="", "", IF(VLOOKUP(Y59,'Footnotes list'!$D$9:$E$58,2,FALSE)=0,"",VLOOKUP(Y59,'Footnotes list'!$D$9:$E$58,2,FALSE) ) ) ->  | AA59: =IF(AND(TRIM(Q59)="",TRIM(V59)=""),"",Q59+V59) -> 23268.447 | AE59: =IF(TRIM(AD59)="", "", IF(VLOOKUP(AD59,'Footnotes list'!$D$9:$E$58,2,FALSE)=0,"",VLOOKUP(AD59,'Footnotes list'!$D$9:$E$58,2,FALSE) ) ) ->  | AF59: 0 | AJ59: =IF(TRIM(AI59)="", "", IF(VLOOKUP(AI59,'Footnotes list'!$D$9:$E$58,2,FALSE)=0,"",VLOOKUP(AI59,'Footnotes list'!$D$9:$E$58,2,FALSE) ) ) ->  | AK59: 0 | AO59: =IF(TRIM(AN59)="", "", IF(VLOOKUP(AN59,'Footnotes list'!$D$9:$E$58,2,FALSE)=0,"",VLOOKUP(AN59,'Footnotes list'!$D$9:$E$58,2,FALSE) ) ) ->  | AP59: =IF(AND(TRIM(AF59)="",TRIM(AK59)=""),"",AF59+AK59) -> 0 | AT59: =IF(TRIM(AS59)="", "", IF(VLOOKUP(AS59,'Footnotes list'!$D$9:$E$58,2,FALSE)=0,"",VLOOKUP(AS59,'Footnotes list'!$D$9:$E$58,2,FALSE) ) ) ->  | AU59: =IF(AND(TRIM(G59)="",TRIM(L59)="",TRIM(AA59)="",TRIM(AP59)=""),"",SUM(G59,L59,AA59,AP59)) -> 23276.219 | AY59: =IF(TRIM(AX59)="", "", IF(VLOOKUP(AX59,'Footnotes list'!$D$9:$E$58,2,FALSE)=0,"",VLOOKUP(AX59,'Footnotes list'!$D$9:$E$58,2,FALSE) ) ) -> 
C60: W08A | E60: NHAZ | F60: Non-hazardous | G60: 0 | K60: =IF(TRIM(J60)="", "", IF(VLOOKUP(J60,'Footnotes list'!$D$9:$E$58,2,FALSE)=0,"",VLOOKUP(J60,'Footnotes list'!$D$9:$E$58,2,FALSE) ) ) ->  | L60: 0 | P60: =IF(TRIM(O60)="", "", IF(VLOOKUP(O60,'Footnotes list'!$D$9:$E$58,2,FALSE)=0,"",VLOOKUP(O60,'Footnotes list'!$D$9:$E$58,2,FALSE) ) ) ->  | Q60: 13315.489 | U60: =IF(TRIM(T60)="", "", IF(VLOOKUP(T60,'Footnotes list'!$D$9:$E$58,2,FALSE)=0,"",VLOOKUP(T60,'Footnotes list'!$D$9:$E$58,2,FALSE) ) ) ->  | V60: 0 | Z60: =IF(TRIM(Y60)="", "", IF(VLOOKUP(Y60,'Footnotes list'!$D$9:$E$58,2,FALSE)=0,"",VLOOKUP(Y60,'Footnotes list'!$D$9:$E$58,2,FALSE) ) ) ->  | AA60: =IF(AND(TRIM(Q60)="",TRIM(V60)=""),"",Q60+V60) -> 13315.489 | AE60: =IF(TRIM(AD60)="", "", IF(VLOOKUP(AD60,'Footnotes list'!$D$9:$E$58,2,FALSE)=0,"",VLOOKUP(AD60,'Footnotes list'!$D$9:$E$58,2,FALSE) ) ) ->  | AF60: 0 | AJ60: =IF(TRIM(AI60)="", "", IF(VLOOKUP(AI60,'Footnotes list'!$D$9:$E$58,2,FALSE)=0,"",VLOOKUP(AI60,'Footnotes list'!$D$9:$E$58,2,FALSE) ) ) ->  | AK60: 0 | AO60: =IF(TRIM(AN60)="", "", IF(VLOOKUP(AN60,'Footnotes list'!$D$9:$E$58,2,FALSE)=0,"",VLOOKUP(AN60,'Footnotes list'!$D$9:$E$58,2,FALSE) ) ) ->  | AP60: =IF(AND(TRIM(AF60)="",TRIM(AK60)=""),"",AF60+AK60) -> 0 | AT60: =IF(TRIM(AS60)="", "", IF(VLOOKUP(AS60,'Footnotes list'!$D$9:$E$58,2,FALSE)=0,"",VLOOKUP(AS60,'Footnotes list'!$D$9:$E$58,2,FALSE) ) ) ->  | AU60: =IF(AND(TRIM(G60)="",TRIM(L60)="",TRIM(AA60)="",TRIM(AP60)=""),"",SUM(G60,L60,AA60,AP60)) -> 13315.489 | AY60: =IF(TRIM(AX60)="", "", IF(VLOOKUP(AX60,'Footnotes list'!$D$9:$E$58,2,FALSE)=0,"",VLOOKUP(AX60,'Footnotes list'!$D$9:$E$58,2,FALSE) ) ) -> 
C61: W08A | E61: HAZ_NHAZ | F61: Total | G61: =IF(AND(TRIM(G59)="",TRIM(G60)=""),"",G59+G60) -> 7.772 | K61: =IF(TRIM(J61)="", "", IF(VLOOKUP(J61,'Footnotes list'!$D$9:$E$58,2,FALSE)=0,"",VLOOKUP(J61,'Footnotes list'!$D$9:$E$58,2,FALSE) ) ) ->  | L61: =IF(AND(TRIM(L59)="",TRIM(L60)=""),"",L59+L60) -> 0 | P61: =IF(TRIM(O61)="", "", IF(VLOOKUP(O61,'Footnotes list'!$D$9:$E$58,2,FALSE)=0,"",VLOOKUP(O61,'Footnotes list'!$D$9:$E$58,2,FALSE) ) ) ->  | Q61: =IF(AND(TRIM(Q59)="",TRIM(Q60)=""),"",Q59+Q60) -> 36583.936 | U61: =IF(TRIM(T61)="", "", IF(VLOOKUP(T61,'Footnotes list'!$D$9:$E$58,2,FALSE)=0,"",VLOOKUP(T61,'Footnotes list'!$D$9:$E$58,2,FALSE) ) ) ->  | V61: =IF(AND(TRIM(V59)="",TRIM(V60)=""),"",V59+V60) -> 0 | Z61: =IF(TRIM(Y61)="", "", IF(VLOOKUP(Y61,'Footnotes list'!$D$9:$E$58,2,FALSE)=0,"",VLOOKUP(Y61,'Footnotes list'!$D$9:$E$58,2,FALSE) ) ) ->  | AA61: =IF(AND(TRIM(AA59)="", TRIM(AA60)=""), "", SUM(AA59,AA60)) -> 36583.936 | AE61: =IF(TRIM(AD61)="", "", IF(VLOOKUP(AD61,'Footnotes list'!$D$9:$E$58,2,FALSE)=0,"",VLOOKUP(AD61,'Footnotes list'!$D$9:$E$58,2,FALSE) ) ) ->  | AF61: =IF(AND(TRIM(AF59)="",TRIM(AF60)=""),"",AF59+AF60) -> 0 | AJ61: =IF(TRIM(AI61)="", "", IF(VLOOKUP(AI61,'Footnotes list'!$D$9:$E$58,2,FALSE)=0,"",VLOOKUP(AI61,'Footnotes list'!$D$9:$E$58,2,FALSE) ) ) ->  | AK61: =IF(AND(TRIM(AK59)="",TRIM(AK60)=""),"",AK59+AK60) -> 0 | AO61: =IF(TRIM(AN61)="", "", IF(VLOOKUP(AN61,'Footnotes list'!$D$9:$E$58,2,FALSE)=0,"",VLOOKUP(AN61,'Footnotes list'!$D$9:$E$58,2,FALSE) ) ) ->  | AP61: =IF(AND(TRIM(AP59)="", TRIM(AP60)=""), "", SUM(AP59,AP60)) -> 0 | AT61: =IF(TRIM(AS61)="", "", IF(VLOOKUP(AS61,'Footnotes list'!$D$9:$E$58,2,FALSE)=0,"",VLOOKUP(AS61,'Footnotes list'!$D$9:$E$58,2,FALSE) ) ) ->  | AU61: =IF(AND(TRIM(AU59)="", TRIM(AU60)=""), "", SUM(AU59,AU60) ) -> 36591.708 | AY61: =IF(TRIM(AX61)="", "", IF(VLOOKUP(AX61,'Footnotes list'!$D$9:$E$58,2,FALSE)=0,"",VLOOKUP(AX61,'Footnotes list'!$D$9:$E$58,2,FALSE) ) ) -> 
B62: W081 | C62: W081 | D62: Discarded vehicles | E62: HAZ | F62: Hazardous | G62: 0 | K62: =IF(TRIM(J62)="", "", IF(VLOOKUP(J62,'Footnotes list'!$D$9:$E$58,2,FALSE)=0,"",VLOOKUP(J62,'Footnotes list'!$D$9:$E$58,2,FALSE) ) ) ->  | L62: 0 | P62: =IF(TRIM(O62)="", "", IF(VLOOKUP(O62,'Footnotes list'!$D$9:$E$58,2,FALSE)=0,"",VLOOKUP(O62,'Footnotes list'!$D$9:$E$58,2,FALSE) ) ) ->  | Q62: 40966.846 | U62: =IF(TRIM(T62)="", "", IF(VLOOKUP(T62,'Footnotes list'!$D$9:$E$58,2,FALSE)=0,"",VLOOKUP(T62,'Footnotes list'!$D$9:$E$58,2,FALSE) ) ) ->  | V62: 0 | Z62: =IF(TRIM(Y62)="", "", IF(VLOOKUP(Y62,'Footnotes list'!$D$9:$E$58,2,FALSE)=0,"",VLOOKUP(Y62,'Footnotes list'!$D$9:$E$58,2,FALSE) ) ) ->  | AA62: =IF(AND(TRIM(Q62)="",TRIM(V62)=""),"",Q62+V62) -> 40966.846 | AE62: =IF(TRIM(AD62)="", "", IF(VLOOKUP(AD62,'Footnotes list'!$D$9:$E$58,2,FALSE)=0,"",VLOOKUP(AD62,'Footnotes list'!$D$9:$E$58,2,FALSE) ) ) ->  | AF62: 0 | AJ62: =IF(TRIM(AI62)="", "", IF(VLOOKUP(AI62,'Footnotes list'!$D$9:$E$58,2,FALSE)=0,"",VLOOKUP(AI62,'Footnotes list'!$D$9:$E$58,2,FALSE) ) ) ->  | AK62: 0 | AO62: =IF(TRIM(AN62)="", "", IF(VLOOKUP(AN62,'Footnotes list'!$D$9:$E$58,2,FALSE)=0,"",VLOOKUP(AN62,'Footnotes list'!$D$9:$E$58,2,FALSE) ) ) ->  | AP62: =IF(AND(TRIM(AF62)="",TRIM(AK62)=""),"",AF62+AK62) -> 0 | AT62: =IF(TRIM(AS62)="", "", IF(VLOOKUP(AS62,'Footnotes list'!$D$9:$E$58,2,FALSE)=0,"",VLOOKUP(AS62,'Footnotes list'!$D$9:$E$58,2,FALSE) ) ) ->  | AU62: =IF(AND(TRIM(G62)="",TRIM(L62)="",TRIM(AA62)="",TRIM(AP62)=""),"",SUM(G62,L62,AA62,AP62)) -> 40966.846 | AY62: =IF(TRIM(AX62)="", "", IF(VLOOKUP(AX62,'Footnotes list'!$D$9:$E$58,2,FALSE)=0,"",VLOOKUP(AX62,'Footnotes list'!$D$9:$E$58,2,FALSE) ) ) -> 
C63: W081 | E63: NHAZ | F63: Non-hazardous | G63: 0 | K63: =IF(TRIM(J63)="", "", IF(VLOOKUP(J63,'Footnotes list'!$D$9:$E$58,2,FALSE)=0,"",VLOOKUP(J63,'Footnotes list'!$D$9:$E$58,2,FALSE) ) ) ->  | L63: 0 | P63: =IF(TRIM(O63)="", "", IF(VLOOKUP(O63,'Footnotes list'!$D$9:$E$58,2,FALSE)=0,"",VLOOKUP(O63,'Footnotes list'!$D$9:$E$58,2,FALSE) ) ) ->  | Q63: 3494.726 | U63: =IF(TRIM(T63)="", "", IF(VLOOKUP(T63,'Footnotes list'!$D$9:$E$58,2,FALSE)=0,"",VLOOKUP(T63,'Footnotes list'!$D$9:$E$58,2,FALSE) ) ) ->  | V63: 0 | Z63: =IF(TRIM(Y63)="", "", IF(VLOOKUP(Y63,'Footnotes list'!$D$9:$E$58,2,FALSE)=0,"",VLOOKUP(Y63,'Footnotes list'!$D$9:$E$58,2,FALSE) ) ) ->  | AA63: =IF(AND(TRIM(Q63)="",TRIM(V63)=""),"",Q63+V63) -> 3494.726 | AE63: =IF(TRIM(AD63)="", "", IF(VLOOKUP(AD63,'Footnotes list'!$D$9:$E$58,2,FALSE)=0,"",VLOOKUP(AD63,'Footnotes list'!$D$9:$E$58,2,FALSE) ) ) ->  | AF63: 0 | AJ63: =IF(TRIM(AI63)="", "", IF(VLOOKUP(AI63,'Footnotes list'!$D$9:$E$58,2,FALSE)=0,"",VLOOKUP(AI63,'Footnotes list'!$D$9:$E$58,2,FALSE) ) ) ->  | AK63: 0 | AO63: =IF(TRIM(AN63)="", "", IF(VLOOKUP(AN63,'Footnotes list'!$D$9:$E$58,2,FALSE)=0,"",VLOOKUP(AN63,'Footnotes list'!$D$9:$E$58,2,FALSE) ) ) ->  | AP63: =IF(AND(TRIM(AF63)="",TRIM(AK63)=""),"",AF63+AK63) -> 0 | AT63: =IF(TRIM(AS63)="", "", IF(VLOOKUP(AS63,'Footnotes list'!$D$9:$E$58,2,FALSE)=0,"",VLOOKUP(AS63,'Footnotes list'!$D$9:$E$58,2,FALSE) ) ) ->  | AU63: =IF(AND(TRIM(G63)="",TRIM(L63)="",TRIM(AA63)="",TRIM(AP63)=""),"",SUM(G63,L63,AA63,AP63)) -> 3494.726 | AY63: =IF(TRIM(AX63)="", "", IF(VLOOKUP(AX63,'Footnotes list'!$D$9:$E$58,2,FALSE)=0,"",VLOOKUP(AX63,'Footnotes list'!$D$9:$E$58,2,FALSE) ) ) -> 
C64: W081 | E64: HAZ_NHAZ | F64: Total | G64: =IF(AND(TRIM(G62)="",TRIM(G63)=""),"",G62+G63) -> 0 | K64: =IF(TRIM(J64)="", "", IF(VLOOKUP(J64,'Footnotes list'!$D$9:$E$58,2,FALSE)=0,"",VLOOKUP(J64,'Footnotes list'!$D$9:$E$58,2,FALSE) ) ) ->  | L64: =IF(AND(TRIM(L62)="",TRIM(L63)=""),"",L62+L63) -> 0 | P64: =IF(TRIM(O64)="", "", IF(VLOOKUP(O64,'Footnotes list'!$D$9:$E$58,2,FALSE)=0,"",VLOOKUP(O64,'Footnotes list'!$D$9:$E$58,2,FALSE) ) ) ->  | Q64: =IF(AND(TRIM(Q62)="",TRIM(Q63)=""),"",Q62+Q63) -> 44461.572 | U64: =IF(TRIM(T64)="", "", IF(VLOOKUP(T64,'Footnotes list'!$D$9:$E$58,2,FALSE)=0,"",VLOOKUP(T64,'Footnotes list'!$D$9:$E$58,2,FALSE) ) ) ->  | V64: =IF(AND(TRIM(V62)="",TRIM(V63)=""),"",V62+V63) -> 0 | Z64: =IF(TRIM(Y64)="", "", IF(VLOOKUP(Y64,'Footnotes list'!$D$9:$E$58,2,FALSE)=0,"",VLOOKUP(Y64,'Footnotes list'!$D$9:$E$58,2,FALSE) ) ) ->  | AA64: =IF(AND(TRIM(AA62)="", TRIM(AA63)=""), "", SUM(AA62,AA63)) -> 44461.572 | AE64: =IF(TRIM(AD64)="", "", IF(VLOOKUP(AD64,'Footnotes list'!$D$9:$E$58,2,FALSE)=0,"",VLOOKUP(AD64,'Footnotes list'!$D$9:$E$58,2,FALSE) ) ) ->  | AF64: =IF(AND(TRIM(AF62)="",TRIM(AF63)=""),"",AF62+AF63) -> 0 | AJ64: =IF(TRIM(AI64)="", "", IF(VLOOKUP(AI64,'Footnotes list'!$D$9:$E$58,2,FALSE)=0,"",VLOOKUP(AI64,'Footnotes list'!$D$9:$E$58,2,FALSE) ) ) ->  | AK64: =IF(AND(TRIM(AK62)="",TRIM(AK63)=""),"",AK62+AK63) -> 0 | AO64: =IF(TRIM(AN64)="", "", IF(VLOOKUP(AN64,'Footnotes list'!$D$9:$E$58,2,FALSE)=0,"",VLOOKUP(AN64,'Footnotes list'!$D$9:$E$58,2,FALSE) ) ) ->  | AP64: =IF(AND(TRIM(AP62)="", TRIM(AP63)=""), "", SUM(AP62,AP63)) -> 0 | AT64: =IF(TRIM(AS64)="", "", IF(VLOOKUP(AS64,'Footnotes list'!$D$9:$E$58,2,FALSE)=0,"",VLOOKUP(AS64,'Footnotes list'!$D$9:$E$58,2,FALSE) ) ) ->  | AU64: =IF(AND(TRIM(AU62)="", TRIM(AU63)=""), "", SUM(AU62,AU63) ) -> 44461.572 | AY64: =IF(TRIM(AX64)="", "", IF(VLOOKUP(AX64,'Footnotes list'!$D$9:$E$58,2,FALSE)=0,"",VLOOKUP(AX64,'Footnotes list'!$D$9:$E$58,2,FALSE) ) ) -> 
B65: W0841 | C65: W0841 | D65: Batteries and accumulators wastes | E65: HAZ | F65: Hazardous | G65: 0 | K65: =IF(TRIM(J65)="", "", IF(VLOOKUP(J65,'Footnotes list'!$D$9:$E$58,2,FALSE)=0,"",VLOOKUP(J65,'Footnotes list'!$D$9:$E$58,2,FALSE) ) ) ->  | L65: 0 | P65: =IF(TRIM(O65)="", "", IF(VLOOKUP(O65,'Footnotes list'!$D$9:$E$58,2,FALSE)=0,"",VLOOKUP(O65,'Footnotes list'!$D$9:$E$58,2,FALSE) ) ) ->  | Q65: 0 | U65: =IF(TRIM(T65)="", "", IF(VLOOKUP(T65,'Footnotes list'!$D$9:$E$58,2,FALSE)=0,"",VLOOKUP(T65,'Footnotes list'!$D$9:$E$58,2,FALSE) ) ) ->  | V65: 0 | Z65: =IF(TRIM(Y65)="", "", IF(VLOOKUP(Y65,'Footnotes list'!$D$9:$E$58,2,FALSE)=0,"",VLOOKUP(Y65,'Footnotes list'!$D$9:$E$58,2,FALSE) ) ) ->  | AA65: =IF(AND(TRIM(Q65)="",TRIM(V65)=""),"",Q65+V65) -> 0 | AE65: =IF(TRIM(AD65)="", "", IF(VLOOKUP(AD65,'Footnotes list'!$D$9:$E$58,2,FALSE)=0,"",VLOOKUP(AD65,'Footnotes list'!$D$9:$E$58,2,FALSE) ) ) ->  | AF65: 0 | AJ65: =IF(TRIM(AI65)="", "", IF(VLOOKUP(AI65,'Footnotes list'!$D$9:$E$58,2,FALSE)=0,"",VLOOKUP(AI65,'Footnotes list'!$D$9:$E$58,2,FALSE) ) ) ->  | AK65: 0 | AO65: =IF(TRIM(AN65)="", "", IF(VLOOKUP(AN65,'Footnotes list'!$D$9:$E$58,2,FALSE)=0,"",VLOOKUP(AN65,'Footnotes list'!$D$9:$E$58,2,FALSE) ) ) ->  | AP65: =IF(AND(TRIM(AF65)="",TRIM(AK65)=""),"",AF65+AK65) -> 0 | AT65: =IF(TRIM(AS65)="", "", IF(VLOOKUP(AS65,'Footnotes list'!$D$9:$E$58,2,FALSE)=0,"",VLOOKUP(AS65,'Footnotes list'!$D$9:$E$58,2,FALSE) ) ) ->  | AU65: =IF(AND(TRIM(G65)="",TRIM(L65)="",TRIM(AA65)="",TRIM(AP65)=""),"",SUM(G65,L65,AA65,AP65)) -> 0 | AY65: =IF(TRIM(AX65)="", "", IF(VLOOKUP(AX65,'Footnotes list'!$D$9:$E$58,2,FALSE)=0,"",VLOOKUP(AX65,'Footnotes list'!$D$9:$E$58,2,FALSE) ) ) -> 
C66: W0841 | E66: NHAZ | F66: Non-hazardous | G66: 0 | K66: =IF(TRIM(J66)="", "", IF(VLOOKUP(J66,'Footnotes list'!$D$9:$E$58,2,FALSE)=0,"",VLOOKUP(J66,'Footnotes list'!$D$9:$E$58,2,FALSE) ) ) ->  | L66: 0 | P66: =IF(TRIM(O66)="", "", IF(VLOOKUP(O66,'Footnotes list'!$D$9:$E$58,2,FALSE)=0,"",VLOOKUP(O66,'Footnotes list'!$D$9:$E$58,2,FALSE) ) ) ->  | Q66: 0 | U66: =IF(TRIM(T66)="", "", IF(VLOOKUP(T66,'Footnotes list'!$D$9:$E$58,2,FALSE)=0,"",VLOOKUP(T66,'Footnotes list'!$D$9:$E$58,2,FALSE) ) ) ->  | V66: 0 | Z66: =IF(TRIM(Y66)="", "", IF(VLOOKUP(Y66,'Footnotes list'!$D$9:$E$58,2,FALSE)=0,"",VLOOKUP(Y66,'Footnotes list'!$D$9:$E$58,2,FALSE) ) ) ->  | AA66: =IF(AND(TRIM(Q66)="",TRIM(V66)=""),"",Q66+V66) -> 0 | AE66: =IF(TRIM(AD66)="", "", IF(VLOOKUP(AD66,'Footnotes list'!$D$9:$E$58,2,FALSE)=0,"",VLOOKUP(AD66,'Footnotes list'!$D$9:$E$58,2,FALSE) ) ) ->  | AF66: 0 | AJ66: =IF(TRIM(AI66)="", "", IF(VLOOKUP(AI66,'Footnotes list'!$D$9:$E$58,2,FALSE)=0,"",VLOOKUP(AI66,'Footnotes list'!$D$9:$E$58,2,FALSE) ) ) ->  | AK66: 0 | AO66: =IF(TRIM(AN66)="", "", IF(VLOOKUP(AN66,'Footnotes list'!$D$9:$E$58,2,FALSE)=0,"",VLOOKUP(AN66,'Footnotes list'!$D$9:$E$58,2,FALSE) ) ) ->  | AP66: =IF(AND(TRIM(AF66)="",TRIM(AK66)=""),"",AF66+AK66) -> 0 | AT66: =IF(TRIM(AS66)="", "", IF(VLOOKUP(AS66,'Footnotes list'!$D$9:$E$58,2,FALSE)=0,"",VLOOKUP(AS66,'Footnotes list'!$D$9:$E$58,2,FALSE) ) ) ->  | AU66: =IF(AND(TRIM(G66)="",TRIM(L66)="",TRIM(AA66)="",TRIM(AP66)=""),"",SUM(G66,L66,AA66,AP66)) -> 0 | AY66: =IF(TRIM(AX66)="", "", IF(VLOOKUP(AX66,'Footnotes list'!$D$9:$E$58,2,FALSE)=0,"",VLOOKUP(AX66,'Footnotes list'!$D$9:$E$58,2,FALSE) ) ) -> 
C67: W0841 | E67: HAZ_NHAZ | F67: Total | G67: =IF(AND(TRIM(G65)="",TRIM(G66)=""),"",G65+G66) -> 0 | K67: =IF(TRIM(J67)="", "", IF(VLOOKUP(J67,'Footnotes list'!$D$9:$E$58,2,FALSE)=0,"",VLOOKUP(J67,'Footnotes list'!$D$9:$E$58,2,FALSE) ) ) ->  | L67: =IF(AND(TRIM(L65)="",TRIM(L66)=""),"",L65+L66) -> 0 | P67: =IF(TRIM(O67)="", "", IF(VLOOKUP(O67,'Footnotes list'!$D$9:$E$58,2,FALSE)=0,"",VLOOKUP(O67,'Footnotes list'!$D$9:$E$58,2,FALSE) ) ) ->  | Q67: =IF(AND(TRIM(Q65)="",TRIM(Q66)=""),"",Q65+Q66) -> 0 | U67: =IF(TRIM(T67)="", "", IF(VLOOKUP(T67,'Footnotes list'!$D$9:$E$58,2,FALSE)=0,"",VLOOKUP(T67,'Footnotes list'!$D$9:$E$58,2,FALSE) ) ) ->  | V67: =IF(AND(TRIM(V65)="",TRIM(V66)=""),"",V65+V66) -> 0 | Z67: =IF(TRIM(Y67)="", "", IF(VLOOKUP(Y67,'Footnotes list'!$D$9:$E$58,2,FALSE)=0,"",VLOOKUP(Y67,'Footnotes list'!$D$9:$E$58,2,FALSE) ) ) ->  | AA67: =IF(AND(TRIM(AA65)="", TRIM(AA66)=""), "", SUM(AA65,AA66)) -> 0 | AE67: =IF(TRIM(AD67)="", "", IF(VLOOKUP(AD67,'Footnotes list'!$D$9:$E$58,2,FALSE)=0,"",VLOOKUP(AD67,'Footnotes list'!$D$9:$E$58,2,FALSE) ) ) ->  | AF67: =IF(AND(TRIM(AF65)="",TRIM(AF66)=""),"",AF65+AF66) -> 0 | AJ67: =IF(TRIM(AI67)="", "", IF(VLOOKUP(AI67,'Footnotes list'!$D$9:$E$58,2,FALSE)=0,"",VLOOKUP(AI67,'Footnotes list'!$D$9:$E$58,2,FALSE) ) ) ->  | AK67: =IF(AND(TRIM(AK65)="",TRIM(AK66)=""),"",AK65+AK66) -> 0 | AO67: =IF(TRIM(AN67)="", "", IF(VLOOKUP(AN67,'Footnotes list'!$D$9:$E$58,2,FALSE)=0,"",VLOOKUP(AN67,'Footnotes list'!$D$9:$E$58,2,FALSE) ) ) ->  | AP67: =IF(AND(TRIM(AP65)="", TRIM(AP66)=""), "", SUM(AP65,AP66)) -> 0 | AT67: =IF(TRIM(AS67)="", "", IF(VLOOKUP(AS67,'Footnotes list'!$D$9:$E$58,2,FALSE)=0,"",VLOOKUP(AS67,'Footnotes list'!$D$9:$E$58,2,FALSE) ) ) ->  | AU67: =IF(AND(TRIM(AU65)="", TRIM(AU66)=""), "", SUM(AU65,AU66) ) -> 0 | AY67: =IF(TRIM(AX67)="", "", IF(VLOOKUP(AX67,'Footnotes list'!$D$9:$E$58,2,FALSE)=0,"",VLOOKUP(AX67,'Footnotes list'!$D$9:$E$58,2,FALSE) ) ) -> 
B68: W091 | D68: Animal and mixed food waste | F68: Not applicable
C69: W091 | E69: NHAZ | F69: Non-hazardous | G69: 1754.72 | K69: =IF(TRIM(J69)="", "", IF(VLOOKUP(J69,'Footnotes list'!$D$9:$E$58,2,FALSE)=0,"",VLOOKUP(J69,'Footnotes list'!$D$9:$E$58,2,FALSE) ) ) ->  | L69: 0 | P69: =IF(TRIM(O69)="", "", IF(VLOOKUP(O69,'Footnotes list'!$D$9:$E$58,2,FALSE)=0,"",VLOOKUP(O69,'Footnotes list'!$D$9:$E$58,2,FALSE) ) ) ->  | Q69: 86413.067 | U69: =IF(TRIM(T69)="", "", IF(VLOOKUP(T69,'Footnotes list'!$D$9:$E$58,2,FALSE)=0,"",VLOOKUP(T69,'Footnotes list'!$D$9:$E$58,2,FALSE) ) ) ->  | V69: 0 | Z69: =IF(TRIM(Y69)="", "", IF(VLOOKUP(Y69,'Footnotes list'!$D$9:$E$58,2,FALSE)=0,"",VLOOKUP(Y69,'Footnotes list'!$D$9:$E$58,2,FALSE) ) ) ->  | AA69: =IF(AND(TRIM(Q69)="",TRIM(V69)=""),"",Q69+V69) -> 86413.067 | AE69: =IF(TRIM(AD69)="", "", IF(VLOOKUP(AD69,'Footnotes list'!$D$9:$E$58,2,FALSE)=0,"",VLOOKUP(AD69,'Footnotes list'!$D$9:$E$58,2,FALSE) ) ) ->  | AF69: 2104.855 | AJ69: =IF(TRIM(AI69)="", "", IF(VLOOKUP(AI69,'Footnotes list'!$D$9:$E$58,2,FALSE)=0,"",VLOOKUP(AI69,'Footnotes list'!$D$9:$E$58,2,FALSE) ) ) ->  | AK69: 0 | AO69: =IF(TRIM(AN69)="", "", IF(VLOOKUP(AN69,'Footnotes list'!$D$9:$E$58,2,FALSE)=0,"",VLOOKUP(AN69,'Footnotes list'!$D$9:$E$58,2,FALSE) ) ) ->  | AP69: =IF(AND(TRIM(AF69)="",TRIM(AK69)=""),"",AF69+AK69) -> 2104.855 | AT69: =IF(TRIM(AS69)="", "", IF(VLOOKUP(AS69,'Footnotes list'!$D$9:$E$58,2,FALSE)=0,"",VLOOKUP(AS69,'Footnotes list'!$D$9:$E$58,2,FALSE) ) ) ->  | AU69: =IF(AND(TRIM(G69)="",TRIM(L69)="",TRIM(AA69)="",TRIM(AP69)=""),"",SUM(G69,L69,AA69,AP69)) -> 90272.642 | AY69: =IF(TRIM(AX69)="", "", IF(VLOOKUP(AX69,'Footnotes list'!$D$9:$E$58,2,FALSE)=0,"",VLOOKUP(AX69,'Footnotes list'!$D$9:$E$58,2,FALSE) ) ) -> 
C70: W091 | E70: HAZ_NHAZ | F70: Total | G70: =IF(AND(TRIM(G68)="",TRIM(G69)=""),"",G68+G69) -> 1754.72 | K70: =IF(TRIM(J70)="", "", IF(VLOOKUP(J70,'Footnotes list'!$D$9:$E$58,2,FALSE)=0,"",VLOOKUP(J70,'Footnotes list'!$D$9:$E$58,2,FALSE) ) ) ->  | L70: =IF(AND(TRIM(L68)="",TRIM(L69)=""),"",L68+L69) -> 0 | P70: =IF(TRIM(O70)="", "", IF(VLOOKUP(O70,'Footnotes list'!$D$9:$E$58,2,FALSE)=0,"",VLOOKUP(O70,'Footnotes list'!$D$9:$E$58,2,FALSE) ) ) ->  | Q70: =IF(AND(TRIM(Q68)="",TRIM(Q69)=""),"",Q68+Q69) -> 86413.067 | U70: =IF(TRIM(T70)="", "", IF(VLOOKUP(T70,'Footnotes list'!$D$9:$E$58,2,FALSE)=0,"",VLOOKUP(T70,'Footnotes list'!$D$9:$E$58,2,FALSE) ) ) ->  | V70: =IF(AND(TRIM(V68)="",TRIM(V69)=""),"",V68+V69) -> 0 | Z70: =IF(TRIM(Y70)="", "", IF(VLOOKUP(Y70,'Footnotes list'!$D$9:$E$58,2,FALSE)=0,"",VLOOKUP(Y70,'Footnotes list'!$D$9:$E$58,2,FALSE) ) ) ->  | AA70: =IF(AND(TRIM(AA68)="", TRIM(AA69)=""), "", SUM(AA68,AA69)) -> 86413.067 | AE70: =IF(TRIM(AD70)="", "", IF(VLOOKUP(AD70,'Footnotes list'!$D$9:$E$58,2,FALSE)=0,"",VLOOKUP(AD70,'Footnotes list'!$D$9:$E$58,2,FALSE) ) ) ->  | AF70: =IF(AND(TRIM(AF68)="",TRIM(AF69)=""),"",AF68+AF69) -> 2104.855 | AJ70: =IF(TRIM(AI70)="", "", IF(VLOOKUP(AI70,'Footnotes list'!$D$9:$E$58,2,FALSE)=0,"",VLOOKUP(AI70,'Footnotes list'!$D$9:$E$58,2,FALSE) ) ) ->  | AK70: =IF(AND(TRIM(AK68)="",TRIM(AK69)=""),"",AK68+AK69) -> 0 | AO70: =IF(TRIM(AN70)="", "", IF(VLOOKUP(AN70,'Footnotes list'!$D$9:$E$58,2,FALSE)=0,"",VLOOKUP(AN70,'Footnotes list'!$D$9:$E$58,2,FALSE) ) ) ->  | AP70: =IF(AND(TRIM(AP68)="", TRIM(AP69)=""), "", SUM(AP68,AP69)) -> 2104.855 | AT70: =IF(TRIM(AS70)="", "", IF(VLOOKUP(AS70,'Footnotes list'!$D$9:$E$58,2,FALSE)=0,"",VLOOKUP(AS70,'Footnotes list'!$D$9:$E$58,2,FALSE) ) ) ->  | AU70: =IF(AND(TRIM(AU68)="", TRIM(AU69)=""), "", SUM(AU68,AU69) ) -> 90272.642 | AY70: =IF(TRIM(AX70)="", "", IF(VLOOKUP(AX70,'Footnotes list'!$D$9:$E$58,2,FALSE)=0,"",VLOOKUP(AX70,'Footnotes list'!$D$9:$E$58,2,FALSE) ) ) -> 
B71: W092 | D71: Vegetal wastes | F71: Not applicable
C72: W092 | E72: NHAZ | F72: Non-hazardous | G72: 5777.26 | K72: =IF(TRIM(J72)="", "", IF(VLOOKUP(J72,'Footnotes list'!$D$9:$E$58,2,FALSE)=0,"",VLOOKUP(J72,'Footnotes list'!$D$9:$E$58,2,FALSE) ) ) ->  | L72: 0 | P72: =IF(TRIM(O72)="", "", IF(VLOOKUP(O72,'Footnotes list'!$D$9:$E$58,2,FALSE)=0,"",VLOOKUP(O72,'Footnotes list'!$D$9:$E$58,2,FALSE) ) ) ->  | Q72: 86080.346 | U72: =IF(TRIM(T72)="", "", IF(VLOOKUP(T72,'Footnotes list'!$D$9:$E$58,2,FALSE)=0,"",VLOOKUP(T72,'Footnotes list'!$D$9:$E$58,2,FALSE) ) ) ->  | V72: 0 | Z72: =IF(TRIM(Y72)="", "", IF(VLOOKUP(Y72,'Footnotes list'!$D$9:$E$58,2,FALSE)=0,"",VLOOKUP(Y72,'Footnotes list'!$D$9:$E$58,2,FALSE) ) ) ->  | AA72: =IF(AND(TRIM(Q72)="",TRIM(V72)=""),"",Q72+V72) -> 86080.346 | AE72: =IF(TRIM(AD72)="", "", IF(VLOOKUP(AD72,'Footnotes list'!$D$9:$E$58,2,FALSE)=0,"",VLOOKUP(AD72,'Footnotes list'!$D$9:$E$58,2,FALSE) ) ) ->  | AF72: 11923.584 | AJ72: =IF(TRIM(AI72)="", "", IF(VLOOKUP(AI72,'Footnotes list'!$D$9:$E$58,2,FALSE)=0,"",VLOOKUP(AI72,'Footnotes list'!$D$9:$E$58,2,FALSE) ) ) ->  | AK72: 0 | AO72: =IF(TRIM(AN72)="", "", IF(VLOOKUP(AN72,'Footnotes list'!$D$9:$E$58,2,FALSE)=0,"",VLOOKUP(AN72,'Footnotes list'!$D$9:$E$58,2,FALSE) ) ) ->  | AP72: =IF(AND(TRIM(AF72)="",TRIM(AK72)=""),"",AF72+AK72) -> 11923.584 | AT72: =IF(TRIM(AS72)="", "", IF(VLOOKUP(AS72,'Footnotes list'!$D$9:$E$58,2,FALSE)=0,"",VLOOKUP(AS72,'Footnotes list'!$D$9:$E$58,2,FALSE) ) ) ->  | AU72: =IF(AND(TRIM(G72)="",TRIM(L72)="",TRIM(AA72)="",TRIM(AP72)=""),"",SUM(G72,L72,AA72,AP72)) -> 103781.19 | AY72: =IF(TRIM(AX72)="", "", IF(VLOOKUP(AX72,'Footnotes list'!$D$9:$E$58,2,FALSE)=0,"",VLOOKUP(AX72,'Footnotes list'!$D$9:$E$58,2,FALSE) ) ) -> 
C73: W092 | E73: HAZ_NHAZ | F73: Total | G73: =IF(AND(TRIM(G71)="",TRIM(G72)=""),"",G71+G72) -> 5777.26 | K73: =IF(TRIM(J73)="", "", IF(VLOOKUP(J73,'Footnotes list'!$D$9:$E$58,2,FALSE)=0,"",VLOOKUP(J73,'Footnotes list'!$D$9:$E$58,2,FALSE) ) ) ->  | L73: =IF(AND(TRIM(L71)="",TRIM(L72)=""),"",L71+L72) -> 0 | P73: =IF(TRIM(O73)="", "", IF(VLOOKUP(O73,'Footnotes list'!$D$9:$E$58,2,FALSE)=0,"",VLOOKUP(O73,'Footnotes list'!$D$9:$E$58,2,FALSE) ) ) ->  | Q73: =IF(AND(TRIM(Q71)="",TRIM(Q72)=""),"",Q71+Q72) -> 86080.346 | U73: =IF(TRIM(T73)="", "", IF(VLOOKUP(T73,'Footnotes list'!$D$9:$E$58,2,FALSE)=0,"",VLOOKUP(T73,'Footnotes list'!$D$9:$E$58,2,FALSE) ) ) ->  | V73: =IF(AND(TRIM(V71)="",TRIM(V72)=""),"",V71+V72) -> 0 | Z73: =IF(TRIM(Y73)="", "", IF(VLOOKUP(Y73,'Footnotes list'!$D$9:$E$58,2,FALSE)=0,"",VLOOKUP(Y73,'Footnotes list'!$D$9:$E$58,2,FALSE) ) ) ->  | AA73: =IF(AND(TRIM(AA71)="", TRIM(AA72)=""), "", SUM(AA71,AA72)) -> 86080.346 | AE73: =IF(TRIM(AD73)="", "", IF(VLOOKUP(AD73,'Footnotes list'!$D$9:$E$58,2,FALSE)=0,"",VLOOKUP(AD73,'Footnotes list'!$D$9:$E$58,2,FALSE) ) ) ->  | AF73: =IF(AND(TRIM(AF71)="",TRIM(AF72)=""),"",AF71+AF72) -> 11923.584 | AJ73: =IF(TRIM(AI73)="", "", IF(VLOOKUP(AI73,'Footnotes list'!$D$9:$E$58,2,FALSE)=0,"",VLOOKUP(AI73,'Footnotes list'!$D$9:$E$58,2,FALSE) ) ) ->  | AK73: =IF(AND(TRIM(AK71)="",TRIM(AK72)=""),"",AK71+AK72) -> 0 | AO73: =IF(TRIM(AN73)="", "", IF(VLOOKUP(AN73,'Footnotes list'!$D$9:$E$58,2,FALSE)=0,"",VLOOKUP(AN73,'Footnotes list'!$D$9:$E$58,2,FALSE) ) ) ->  | AP73: =IF(AND(TRIM(AP71)="", TRIM(AP72)=""), "", SUM(AP71,AP72)) -> 11923.584 | AT73: =IF(TRIM(AS73)="", "", IF(VLOOKUP(AS73,'Footnotes list'!$D$9:$E$58,2,FALSE)=0,"",VLOOKUP(AS73,'Footnotes list'!$D$9:$E$58,2,FALSE) ) ) ->  | AU73: =IF(AND(TRIM(AU71)="", TRIM(AU72)=""), "", SUM(AU71,AU72) ) -> 103781.19 | AY73: =IF(TRIM(AX73)="", "", IF(VLOOKUP(AX73,'Footnotes list'!$D$9:$E$58,2,FALSE)=0,"",VLOOKUP(AX73,'Footnotes list'!$D$9:$E$58,2,FALSE) ) ) -> 
B74: W093 | D74: Animal faeces, urine and manure | F74: Not applicable
C75: W093 | E75: NHAZ | F75: Non-hazardous | G75: 0 | K75: =IF(TRIM(J75)="", "", IF(VLOOKUP(J75,'Footnotes list'!$D$9:$E$58,2,FALSE)=0,"",VLOOKUP(J75,'Footnotes list'!$D$9:$E$58,2,FALSE) ) ) ->  | L75: 0 | P75: =IF(TRIM(O75)="", "", IF(VLOOKUP(O75,'Footnotes list'!$D$9:$E$58,2,FALSE)=0,"",VLOOKUP(O75,'Footnotes list'!$D$9:$E$58,2,FALSE) ) ) ->  | Q75: 611583.9 | U75: =IF(TRIM(T75)="", "", IF(VLOOKUP(T75,'Footnotes list'!$D$9:$E$58,2,FALSE)=0,"",VLOOKUP(T75,'Footnotes list'!$D$9:$E$58,2,FALSE) ) ) ->  | V75: 0 | Z75: =IF(TRIM(Y75)="", "", IF(VLOOKUP(Y75,'Footnotes list'!$D$9:$E$58,2,FALSE)=0,"",VLOOKUP(Y75,'Footnotes list'!$D$9:$E$58,2,FALSE) ) ) ->  | AA75: =IF(AND(TRIM(Q75)="",TRIM(V75)=""),"",Q75+V75) -> 611583.9 | AE75: =IF(TRIM(AD75)="", "", IF(VLOOKUP(AD75,'Footnotes list'!$D$9:$E$58,2,FALSE)=0,"",VLOOKUP(AD75,'Footnotes list'!$D$9:$E$58,2,FALSE) ) ) ->  | AF75: 0 | AJ75: =IF(TRIM(AI75)="", "", IF(VLOOKUP(AI75,'Footnotes list'!$D$9:$E$58,2,FALSE)=0,"",VLOOKUP(AI75,'Footnotes list'!$D$9:$E$58,2,FALSE) ) ) ->  | AK75: 0 | AO75: =IF(TRIM(AN75)="", "", IF(VLOOKUP(AN75,'Footnotes list'!$D$9:$E$58,2,FALSE)=0,"",VLOOKUP(AN75,'Footnotes list'!$D$9:$E$58,2,FALSE) ) ) ->  | AP75: =IF(AND(TRIM(AF75)="",TRIM(AK75)=""),"",AF75+AK75) -> 0 | AT75: =IF(TRIM(AS75)="", "", IF(VLOOKUP(AS75,'Footnotes list'!$D$9:$E$58,2,FALSE)=0,"",VLOOKUP(AS75,'Footnotes list'!$D$9:$E$58,2,FALSE) ) ) ->  | AU75: =IF(AND(TRIM(G75)="",TRIM(L75)="",TRIM(AA75)="",TRIM(AP75)=""),"",SUM(G75,L75,AA75,AP75)) -> 611583.9 | AY75: =IF(TRIM(AX75)="", "", IF(VLOOKUP(AX75,'Footnotes list'!$D$9:$E$58,2,FALSE)=0,"",VLOOKUP(AX75,'Footnotes list'!$D$9:$E$58,2,FALSE) ) ) -> 
C76: W093 | E76: HAZ_NHAZ | F76: Total | G76: =IF(AND(TRIM(G74)="",TRIM(G75)=""),"",G74+G75) -> 0 | K76: =IF(TRIM(J76)="", "", IF(VLOOKUP(J76,'Footnotes list'!$D$9:$E$58,2,FALSE)=0,"",VLOOKUP(J76,'Footnotes list'!$D$9:$E$58,2,FALSE) ) ) ->  | L76: =IF(AND(TRIM(L74)="",TRIM(L75)=""),"",L74+L75) -> 0 | P76: =IF(TRIM(O76)="", "", IF(VLOOKUP(O76,'Footnotes list'!$D$9:$E$58,2,FALSE)=0,"",VLOOKUP(O76,'Footnotes list'!$D$9:$E$58,2,FALSE) ) ) ->  | Q76: =IF(AND(TRIM(Q74)="",TRIM(Q75)=""),"",Q74+Q75) -> 611583.9 | U76: =IF(TRIM(T76)="", "", IF(VLOOKUP(T76,'Footnotes list'!$D$9:$E$58,2,FALSE)=0,"",VLOOKUP(T76,'Footnotes list'!$D$9:$E$58,2,FALSE) ) ) ->  | V76: =IF(AND(TRIM(V74)="",TRIM(V75)=""),"",V74+V75) -> 0 | Z76: =IF(TRIM(Y76)="", "", IF(VLOOKUP(Y76,'Footnotes list'!$D$9:$E$58,2,FALSE)=0,"",VLOOKUP(Y76,'Footnotes list'!$D$9:$E$58,2,FALSE) ) ) ->  | AA76: =IF(AND(TRIM(AA74)="", TRIM(AA75)=""), "", SUM(AA74,AA75)) -> 611583.9 | AE76: =IF(TRIM(AD76)="", "", IF(VLOOKUP(AD76,'Footnotes list'!$D$9:$E$58,2,FALSE)=0,"",VLOOKUP(AD76,'Footnotes list'!$D$9:$E$58,2,FALSE) ) ) ->  | AF76: =IF(AND(TRIM(AF74)="",TRIM(AF75)=""),"",AF74+AF75) -> 0 | AJ76: =IF(TRIM(AI76)="", "", IF(VLOOKUP(AI76,'Footnotes list'!$D$9:$E$58,2,FALSE)=0,"",VLOOKUP(AI76,'Footnotes list'!$D$9:$E$58,2,FALSE) ) ) ->  | AK76: =IF(AND(TRIM(AK74)="",TRIM(AK75)=""),"",AK74+AK75) -> 0 | AO76: =IF(TRIM(AN76)="", "", IF(VLOOKUP(AN76,'Footnotes list'!$D$9:$E$58,2,FALSE)=0,"",VLOOKUP(AN76,'Footnotes list'!$D$9:$E$58,2,FALSE) ) ) ->  | AP76: =IF(AND(TRIM(AP74)="", TRIM(AP75)=""), "", SUM(AP74,AP75)) -> 0 | AT76: =IF(TRIM(AS76)="", "", IF(VLOOKUP(AS76,'Footnotes list'!$D$9:$E$58,2,FALSE)=0,"",VLOOKUP(AS76,'Footnotes list'!$D$9:$E$58,2,FALSE) ) ) ->  | AU76: =IF(AND(TRIM(AU74)="", TRIM(AU75)=""), "", SUM(AU74,AU75) ) -> 611583.9 | AY76: =IF(TRIM(AX76)="", "", IF(VLOOKUP(AX76,'Footnotes list'!$D$9:$E$58,2,FALSE)=0,"",VLOOKUP(AX76,'Footnotes list'!$D$9:$E$58,2,FALSE) ) ) -> 
B77: W101 | D77: Household and similar wastes | F77: Not applicable
C78: W101 | E78: NHAZ | F78: Non-hazardous | G78: 0 | K78: =IF(TRIM(J78)="", "", IF(VLOOKUP(J78,'Footnotes list'!$D$9:$E$58,2,FALSE)=0,"",VLOOKUP(J78,'Footnotes list'!$D$9:$E$58,2,FALSE) ) ) ->  | L78: 0 | P78: =IF(TRIM(O78)="", "", IF(VLOOKUP(O78,'Footnotes list'!$D$9:$E$58,2,FALSE)=0,"",VLOOKUP(O78,'Footnotes list'!$D$9:$E$58,2,FALSE) ) ) ->  | Q78: 3578.44 | U78: =IF(TRIM(T78)="", "", IF(VLOOKUP(T78,'Footnotes list'!$D$9:$E$58,2,FALSE)=0,"",VLOOKUP(T78,'Footnotes list'!$D$9:$E$58,2,FALSE) ) ) ->  | V78: 0 | Z78: =IF(TRIM(Y78)="", "", IF(VLOOKUP(Y78,'Footnotes list'!$D$9:$E$58,2,FALSE)=0,"",VLOOKUP(Y78,'Footnotes list'!$D$9:$E$58,2,FALSE) ) ) ->  | AA78: =IF(AND(TRIM(Q78)="",TRIM(V78)=""),"",Q78+V78) -> 3578.44 | AE78: =IF(TRIM(AD78)="", "", IF(VLOOKUP(AD78,'Footnotes list'!$D$9:$E$58,2,FALSE)=0,"",VLOOKUP(AD78,'Footnotes list'!$D$9:$E$58,2,FALSE) ) ) ->  | AF78: 895007.964 | AJ78: =IF(TRIM(AI78)="", "", IF(VLOOKUP(AI78,'Footnotes list'!$D$9:$E$58,2,FALSE)=0,"",VLOOKUP(AI78,'Footnotes list'!$D$9:$E$58,2,FALSE) ) ) ->  | AK78: 0 | AO78: =IF(TRIM(AN78)="", "", IF(VLOOKUP(AN78,'Footnotes list'!$D$9:$E$58,2,FALSE)=0,"",VLOOKUP(AN78,'Footnotes list'!$D$9:$E$58,2,FALSE) ) ) ->  | AP78: =IF(AND(TRIM(AF78)="",TRIM(AK78)=""),"",AF78+AK78) -> 895007.964 | AT78: =IF(TRIM(AS78)="", "", IF(VLOOKUP(AS78,'Footnotes list'!$D$9:$E$58,2,FALSE)=0,"",VLOOKUP(AS78,'Footnotes list'!$D$9:$E$58,2,FALSE) ) ) ->  | AU78: =IF(AND(TRIM(G78)="",TRIM(L78)="",TRIM(AA78)="",TRIM(AP78)=""),"",SUM(G78,L78,AA78,AP78)) -> 898586.404 | AY78: =IF(TRIM(AX78)="", "", IF(VLOOKUP(AX78,'Footnotes list'!$D$9:$E$58,2,FALSE)=0,"",VLOOKUP(AX78,'Footnotes list'!$D$9:$E$58,2,FALSE) ) ) -> 
C79: W101 | E79: HAZ_NHAZ | F79: Total | G79: =IF(AND(TRIM(G77)="",TRIM(G78)=""),"",G77+G78) -> 0 | K79: =IF(TRIM(J79)="", "", IF(VLOOKUP(J79,'Footnotes list'!$D$9:$E$58,2,FALSE)=0,"",VLOOKUP(J79,'Footnotes list'!$D$9:$E$58,2,FALSE) ) ) ->  | L79: =IF(AND(TRIM(L77)="",TRIM(L78)=""),"",L77+L78) -> 0 | P79: =IF(TRIM(O79)="", "", IF(VLOOKUP(O79,'Footnotes list'!$D$9:$E$58,2,FALSE)=0,"",VLOOKUP(O79,'Footnotes list'!$D$9:$E$58,2,FALSE) ) ) ->  | Q79: =IF(AND(TRIM(Q77)="",TRIM(Q78)=""),"",Q77+Q78) -> 3578.44 | U79: =IF(TRIM(T79)="", "", IF(VLOOKUP(T79,'Footnotes list'!$D$9:$E$58,2,FALSE)=0,"",VLOOKUP(T79,'Footnotes list'!$D$9:$E$58,2,FALSE) ) ) ->  | V79: =IF(AND(TRIM(V77)="",TRIM(V78)=""),"",V77+V78) -> 0 | Z79: =IF(TRIM(Y79)="", "", IF(VLOOKUP(Y79,'Footnotes list'!$D$9:$E$58,2,FALSE)=0,"",VLOOKUP(Y79,'Footnotes list'!$D$9:$E$58,2,FALSE) ) ) ->  | AA79: =IF(AND(TRIM(AA77)="", TRIM(AA78)=""), "", SUM(AA77,AA78)) -> 3578.44 | AE79: =IF(TRIM(AD79)="", "", IF(VLOOKUP(AD79,'Footnotes list'!$D$9:$E$58,2,FALSE)=0,"",VLOOKUP(AD79,'Footnotes list'!$D$9:$E$58,2,FALSE) ) ) ->  | AF79: =IF(AND(TRIM(AF77)="",TRIM(AF78)=""),"",AF77+AF78) -> 895007.964 | AJ79: =IF(TRIM(AI79)="", "", IF(VLOOKUP(AI79,'Footnotes list'!$D$9:$E$58,2,FALSE)=0,"",VLOOKUP(AI79,'Footnotes list'!$D$9:$E$58,2,FALSE) ) ) ->  | AK79: =IF(AND(TRIM(AK77)="",TRIM(AK78)=""),"",AK77+AK78) -> 0 | AO79: =IF(TRIM(AN79)="", "", IF(VLOOKUP(AN79,'Footnotes list'!$D$9:$E$58,2,FALSE)=0,"",VLOOKUP(AN79,'Footnotes list'!$D$9:$E$58,2,FALSE) ) ) ->  | AP79: =IF(AND(TRIM(AP77)="", TRIM(AP78)=""), "", SUM(AP77,AP78)) -> 895007.964 | AT79: =IF(TRIM(AS79)="", "", IF(VLOOKUP(AS79,'Footnotes list'!$D$9:$E$58,2,FALSE)=0,"",VLOOKUP(AS79,'Footnotes list'!$D$9:$E$58,2,FALSE) ) ) ->  | AU79: =IF(AND(TRIM(AU77)="", TRIM(AU78)=""), "", SUM(AU77,AU78) ) -> 898586.404 | AY79: =IF(TRIM(AX79)="", "", IF(VLOOKUP(AX79,'Footnotes list'!$D$9:$E$58,2,FALSE)=0,"",VLOOKUP(AX79,'Footnotes list'!$D$9:$E$58,2,FALSE) ) ) -> 
B80: W102 | C80: W102 | D80: Mixed and undifferentiated materials | E80: HAZ | F80: Hazardous | G80: 2.609 | K80: =IF(TRIM(J80)="", "", IF(VLOOKUP(J80,'Footnotes list'!$D$9:$E$58,2,FALSE)=0,"",VLOOKUP(J80,'Footnotes list'!$D$9:$E$58,2,FALSE) ) ) ->  | L80: 0 | P80: =IF(TRIM(O80)="", "", IF(VLOOKUP(O80,'Footnotes list'!$D$9:$E$58,2,FALSE)=0,"",VLOOKUP(O80,'Footnotes list'!$D$9:$E$58,2,FALSE) ) ) ->  | Q80: 340.93 | U80: =IF(TRIM(T80)="", "", IF(VLOOKUP(T80,'Footnotes list'!$D$9:$E$58,2,FALSE)=0,"",VLOOKUP(T80,'Footnotes list'!$D$9:$E$58,2,FALSE) ) ) ->  | V80: 0 | Z80: =IF(TRIM(Y80)="", "", IF(VLOOKUP(Y80,'Footnotes list'!$D$9:$E$58,2,FALSE)=0,"",VLOOKUP(Y80,'Footnotes list'!$D$9:$E$58,2,FALSE) ) ) ->  | AA80: =IF(AND(TRIM(Q80)="",TRIM(V80)=""),"",Q80+V80) -> 340.93 | AE80: =IF(TRIM(AD80)="", "", IF(VLOOKUP(AD80,'Footnotes list'!$D$9:$E$58,2,FALSE)=0,"",VLOOKUP(AD80,'Footnotes list'!$D$9:$E$58,2,FALSE) ) ) ->  | AF80: 0 | AJ80: =IF(TRIM(AI80)="", "", IF(VLOOKUP(AI80,'Footnotes list'!$D$9:$E$58,2,FALSE)=0,"",VLOOKUP(AI80,'Footnotes list'!$D$9:$E$58,2,FALSE) ) ) ->  | AK80: 0 | AO80: =IF(TRIM(AN80)="", "", IF(VLOOKUP(AN80,'Footnotes list'!$D$9:$E$58,2,FALSE)=0,"",VLOOKUP(AN80,'Footnotes list'!$D$9:$E$58,2,FALSE) ) ) ->  | AP80: =IF(AND(TRIM(AF80)="",TRIM(AK80)=""),"",AF80+AK80) -> 0 | AT80: =IF(TRIM(AS80)="", "", IF(VLOOKUP(AS80,'Footnotes list'!$D$9:$E$58,2,FALSE)=0,"",VLOOKUP(AS80,'Footnotes list'!$D$9:$E$58,2,FALSE) ) ) ->  | AU80: =IF(AND(TRIM(G80)="",TRIM(L80)="",TRIM(AA80)="",TRIM(AP80)=""),"",SUM(G80,L80,AA80,AP80)) -> 343.539 | AY80: =IF(TRIM(AX80)="", "", IF(VLOOKUP(AX80,'Footnotes list'!$D$9:$E$58,2,FALSE)=0,"",VLOOKUP(AX80,'Footnotes list'!$D$9:$E$58,2,FALSE) ) ) -> 
C81: W102 | E81: NHAZ | F81: Non-hazardous | G81: 3.44 | K81: =IF(TRIM(J81)="", "", IF(VLOOKUP(J81,'Footnotes list'!$D$9:$E$58,2,FALSE)=0,"",VLOOKUP(J81,'Footnotes list'!$D$9:$E$58,2,FALSE) ) ) ->  | L81: 0 | P81: =IF(TRIM(O81)="", "", IF(VLOOKUP(O81,'Footnotes list'!$D$9:$E$58,2,FALSE)=0,"",VLOOKUP(O81,'Footnotes list'!$D$9:$E$58,2,FALSE) ) ) ->  | Q81: 16529.171 | U81: =IF(TRIM(T81)="", "", IF(VLOOKUP(T81,'Footnotes list'!$D$9:$E$58,2,FALSE)=0,"",VLOOKUP(T81,'Footnotes list'!$D$9:$E$58,2,FALSE) ) ) ->  | V81: 1416 | Z81: =IF(TRIM(Y81)="", "", IF(VLOOKUP(Y81,'Footnotes list'!$D$9:$E$58,2,FALSE)=0,"",VLOOKUP(Y81,'Footnotes list'!$D$9:$E$58,2,FALSE) ) ) ->  | AA81: =IF(AND(TRIM(Q81)="",TRIM(V81)=""),"",Q81+V81) -> 17945.171 | AE81: =IF(TRIM(AD81)="", "", IF(VLOOKUP(AD81,'Footnotes list'!$D$9:$E$58,2,FALSE)=0,"",VLOOKUP(AD81,'Footnotes list'!$D$9:$E$58,2,FALSE) ) ) ->  | AF81: 41330.681 | AJ81: =IF(TRIM(AI81)="", "", IF(VLOOKUP(AI81,'Footnotes list'!$D$9:$E$58,2,FALSE)=0,"",VLOOKUP(AI81,'Footnotes list'!$D$9:$E$58,2,FALSE) ) ) ->  | AK81: 3074.322 | AO81: =IF(TRIM(AN81)="", "", IF(VLOOKUP(AN81,'Footnotes list'!$D$9:$E$58,2,FALSE)=0,"",VLOOKUP(AN81,'Footnotes list'!$D$9:$E$58,2,FALSE) ) ) ->  | AP81: =IF(AND(TRIM(AF81)="",TRIM(AK81)=""),"",AF81+AK81) -> 44405.003 | AT81: =IF(TRIM(AS81)="", "", IF(VLOOKUP(AS81,'Footnotes list'!$D$9:$E$58,2,FALSE)=0,"",VLOOKUP(AS81,'Footnotes list'!$D$9:$E$58,2,FALSE) ) ) ->  | AU81: =IF(AND(TRIM(G81)="",TRIM(L81)="",TRIM(AA81)="",TRIM(AP81)=""),"",SUM(G81,L81,AA81,AP81)) -> 62353.614 | AY81: =IF(TRIM(AX81)="", "", IF(VLOOKUP(AX81,'Footnotes list'!$D$9:$E$58,2,FALSE)=0,"",VLOOKUP(AX81,'Footnotes list'!$D$9:$E$58,2,FALSE) ) ) -> 
C82: W102 | E82: HAZ_NHAZ | F82: Total | G82: =IF(AND(TRIM(G80)="",TRIM(G81)=""),"",G80+G81) -> 6.049 | K82: =IF(TRIM(J82)="", "", IF(VLOOKUP(J82,'Footnotes list'!$D$9:$E$58,2,FALSE)=0,"",VLOOKUP(J82,'Footnotes list'!$D$9:$E$58,2,FALSE) ) ) ->  | L82: =IF(AND(TRIM(L80)="",TRIM(L81)=""),"",L80+L81) -> 0 | P82: =IF(TRIM(O82)="", "", IF(VLOOKUP(O82,'Footnotes list'!$D$9:$E$58,2,FALSE)=0,"",VLOOKUP(O82,'Footnotes list'!$D$9:$E$58,2,FALSE) ) ) ->  | Q82: =IF(AND(TRIM(Q80)="",TRIM(Q81)=""),"",Q80+Q81) -> 16870.101 | U82: =IF(TRIM(T82)="", "", IF(VLOOKUP(T82,'Footnotes list'!$D$9:$E$58,2,FALSE)=0,"",VLOOKUP(T82,'Footnotes list'!$D$9:$E$58,2,FALSE) ) ) ->  | V82: =IF(AND(TRIM(V80)="",TRIM(V81)=""),"",V80+V81) -> 1416 | Z82: =IF(TRIM(Y82)="", "", IF(VLOOKUP(Y82,'Footnotes list'!$D$9:$E$58,2,FALSE)=0,"",VLOOKUP(Y82,'Footnotes list'!$D$9:$E$58,2,FALSE) ) ) ->  | AA82: =IF(AND(TRIM(AA80)="", TRIM(AA81)=""), "", SUM(AA80,AA81)) -> 18286.101 | AE82: =IF(TRIM(AD82)="", "", IF(VLOOKUP(AD82,'Footnotes list'!$D$9:$E$58,2,FALSE)=0,"",VLOOKUP(AD82,'Footnotes list'!$D$9:$E$58,2,FALSE) ) ) ->  | AF82: =IF(AND(TRIM(AF80)="",TRIM(AF81)=""),"",AF80+AF81) -> 41330.681 | AJ82: =IF(TRIM(AI82)="", "", IF(VLOOKUP(AI82,'Footnotes list'!$D$9:$E$58,2,FALSE)=0,"",VLOOKUP(AI82,'Footnotes list'!$D$9:$E$58,2,FALSE) ) ) ->  | AK82: =IF(AND(TRIM(AK80)="",TRIM(AK81)=""),"",AK80+AK81) -> 3074.322 | AO82: =IF(TRIM(AN82)="", "", IF(VLOOKUP(AN82,'Footnotes list'!$D$9:$E$58,2,FALSE)=0,"",VLOOKUP(AN82,'Footnotes list'!$D$9:$E$58,2,FALSE) ) ) ->  | AP82: =IF(AND(TRIM(AP80)="", TRIM(AP81)=""), "", SUM(AP80,AP81)) -> 44405.003 | AT82: =IF(TRIM(AS82)="", "", IF(VLOOKUP(AS82,'Footnotes list'!$D$9:$E$58,2,FALSE)=0,"",VLOOKUP(AS82,'Footnotes list'!$D$9:$E$58,2,FALSE) ) ) ->  | AU82: =IF(AND(TRIM(AU80)="", TRIM(AU81)=""), "", SUM(AU80,AU81) ) -> 62697.153 | AY82: =IF(TRIM(AX82)="", "", IF(VLOOKUP(AX82,'Footnotes list'!$D$9:$E$58,2,FALSE)=0,"",VLOOKUP(AX82,'Footnotes list'!$D$9:$E$58,2,FALSE) ) ) -> 
B83: W103 | C83: W103 | D83: Sorting residues | E83: HAZ | F83: Hazardous | G83: 2363.46 | K83: =IF(TRIM(J83)="", "", IF(VLOOKUP(J83,'Footnotes list'!$D$9:$E$58,2,FALSE)=0,"",VLOOKUP(J83,'Footnotes list'!$D$9:$E$58,2,FALSE) ) ) ->  | L83: 0 | P83: =IF(TRIM(O83)="", "", IF(VLOOKUP(O83,'Footnotes list'!$D$9:$E$58,2,FALSE)=0,"",VLOOKUP(O83,'Footnotes list'!$D$9:$E$58,2,FALSE) ) ) ->  | Q83: 7138.355 | U83: =IF(TRIM(T83)="", "", IF(VLOOKUP(T83,'Footnotes list'!$D$9:$E$58,2,FALSE)=0,"",VLOOKUP(T83,'Footnotes list'!$D$9:$E$58,2,FALSE) ) ) ->  | V83: 0 | Z83: =IF(TRIM(Y83)="", "", IF(VLOOKUP(Y83,'Footnotes list'!$D$9:$E$58,2,FALSE)=0,"",VLOOKUP(Y83,'Footnotes list'!$D$9:$E$58,2,FALSE) ) ) ->  | AA83: =IF(AND(TRIM(Q83)="",TRIM(V83)=""),"",Q83+V83) -> 7138.355 | AE83: =IF(TRIM(AD83)="", "", IF(VLOOKUP(AD83,'Footnotes list'!$D$9:$E$58,2,FALSE)=0,"",VLOOKUP(AD83,'Footnotes list'!$D$9:$E$58,2,FALSE) ) ) ->  | AF83: 0 | AJ83: =IF(TRIM(AI83)="", "", IF(VLOOKUP(AI83,'Footnotes list'!$D$9:$E$58,2,FALSE)=0,"",VLOOKUP(AI83,'Footnotes list'!$D$9:$E$58,2,FALSE) ) ) ->  | AK83: 0 | AO83: =IF(TRIM(AN83)="", "", IF(VLOOKUP(AN83,'Footnotes list'!$D$9:$E$58,2,FALSE)=0,"",VLOOKUP(AN83,'Footnotes list'!$D$9:$E$58,2,FALSE) ) ) ->  | AP83: =IF(AND(TRIM(AF83)="",TRIM(AK83)=""),"",AF83+AK83) -> 0 | AT83: =IF(TRIM(AS83)="", "", IF(VLOOKUP(AS83,'Footnotes list'!$D$9:$E$58,2,FALSE)=0,"",VLOOKUP(AS83,'Footnotes list'!$D$9:$E$58,2,FALSE) ) ) ->  | AU83: =IF(AND(TRIM(G83)="",TRIM(L83)="",TRIM(AA83)="",TRIM(AP83)=""),"",SUM(G83,L83,AA83,AP83)) -> 9501.815 | AY83: =IF(TRIM(AX83)="", "", IF(VLOOKUP(AX83,'Footnotes list'!$D$9:$E$58,2,FALSE)=0,"",VLOOKUP(AX83,'Footnotes list'!$D$9:$E$58,2,FALSE) ) ) -> 
C84: W103 | E84: NHAZ | F84: Non-hazardous | G84: 45268.15 | K84: =IF(TRIM(J84)="", "", IF(VLOOKUP(J84,'Footnotes list'!$D$9:$E$58,2,FALSE)=0,"",VLOOKUP(J84,'Footnotes list'!$D$9:$E$58,2,FALSE) ) ) ->  | L84: 0 | P84: =IF(TRIM(O84)="", "", IF(VLOOKUP(O84,'Footnotes list'!$D$9:$E$58,2,FALSE)=0,"",VLOOKUP(O84,'Footnotes list'!$D$9:$E$58,2,FALSE) ) ) ->  | Q84: 8470.324 | U84: =IF(TRIM(T84)="", "", IF(VLOOKUP(T84,'Footnotes list'!$D$9:$E$58,2,FALSE)=0,"",VLOOKUP(T84,'Footnotes list'!$D$9:$E$58,2,FALSE) ) ) ->  | V84: 0 | Z84: =IF(TRIM(Y84)="", "", IF(VLOOKUP(Y84,'Footnotes list'!$D$9:$E$58,2,FALSE)=0,"",VLOOKUP(Y84,'Footnotes list'!$D$9:$E$58,2,FALSE) ) ) ->  | AA84: =IF(AND(TRIM(Q84)="",TRIM(V84)=""),"",Q84+V84) -> 8470.324 | AE84: =IF(TRIM(AD84)="", "", IF(VLOOKUP(AD84,'Footnotes list'!$D$9:$E$58,2,FALSE)=0,"",VLOOKUP(AD84,'Footnotes list'!$D$9:$E$58,2,FALSE) ) ) ->  | AF84: 146786.492 | AJ84: =IF(TRIM(AI84)="", "", IF(VLOOKUP(AI84,'Footnotes list'!$D$9:$E$58,2,FALSE)=0,"",VLOOKUP(AI84,'Footnotes list'!$D$9:$E$58,2,FALSE) ) ) ->  | AK84: 0 | AO84: =IF(TRIM(AN84)="", "", IF(VLOOKUP(AN84,'Footnotes list'!$D$9:$E$58,2,FALSE)=0,"",VLOOKUP(AN84,'Footnotes list'!$D$9:$E$58,2,FALSE) ) ) ->  | AP84: =IF(AND(TRIM(AF84)="",TRIM(AK84)=""),"",AF84+AK84) -> 146786.492 | AT84: =IF(TRIM(AS84)="", "", IF(VLOOKUP(AS84,'Footnotes list'!$D$9:$E$58,2,FALSE)=0,"",VLOOKUP(AS84,'Footnotes list'!$D$9:$E$58,2,FALSE) ) ) ->  | AU84: =IF(AND(TRIM(G84)="",TRIM(L84)="",TRIM(AA84)="",TRIM(AP84)=""),"",SUM(G84,L84,AA84,AP84)) -> 200524.966 | AY84: =IF(TRIM(AX84)="", "", IF(VLOOKUP(AX84,'Footnotes list'!$D$9:$E$58,2,FALSE)=0,"",VLOOKUP(AX84,'Footnotes list'!$D$9:$E$58,2,FALSE) ) ) -> 
C85: W103 | E85: HAZ_NHAZ | F85: Total | G85: =IF(AND(TRIM(G83)="",TRIM(G84)=""),"",G83+G84) -> 47631.61 | K85: =IF(TRIM(J85)="", "", IF(VLOOKUP(J85,'Footnotes list'!$D$9:$E$58,2,FALSE)=0,"",VLOOKUP(J85,'Footnotes list'!$D$9:$E$58,2,FALSE) ) ) ->  | L85: =IF(AND(TRIM(L83)="",TRIM(L84)=""),"",L83+L84) -> 0 | P85: =IF(TRIM(O85)="", "", IF(VLOOKUP(O85,'Footnotes list'!$D$9:$E$58,2,FALSE)=0,"",VLOOKUP(O85,'Footnotes list'!$D$9:$E$58,2,FALSE) ) ) ->  | Q85: =IF(AND(TRIM(Q83)="",TRIM(Q84)=""),"",Q83+Q84) -> 15608.679 | U85: =IF(TRIM(T85)="", "", IF(VLOOKUP(T85,'Footnotes list'!$D$9:$E$58,2,FALSE)=0,"",VLOOKUP(T85,'Footnotes list'!$D$9:$E$58,2,FALSE) ) ) ->  | V85: =IF(AND(TRIM(V83)="",TRIM(V84)=""),"",V83+V84) -> 0 | Z85: =IF(TRIM(Y85)="", "", IF(VLOOKUP(Y85,'Footnotes list'!$D$9:$E$58,2,FALSE)=0,"",VLOOKUP(Y85,'Footnotes list'!$D$9:$E$58,2,FALSE) ) ) ->  | AA85: =IF(AND(TRIM(AA83)="", TRIM(AA84)=""), "", SUM(AA83,AA84)) -> 15608.679 | AE85: =IF(TRIM(AD85)="", "", IF(VLOOKUP(AD85,'Footnotes list'!$D$9:$E$58,2,FALSE)=0,"",VLOOKUP(AD85,'Footnotes list'!$D$9:$E$58,2,FALSE) ) ) ->  | AF85: =IF(AND(TRIM(AF83)="",TRIM(AF84)=""),"",AF83+AF84) -> 146786.492 | AJ85: =IF(TRIM(AI85)="", "", IF(VLOOKUP(AI85,'Footnotes list'!$D$9:$E$58,2,FALSE)=0,"",VLOOKUP(AI85,'Footnotes list'!$D$9:$E$58,2,FALSE) ) ) ->  | AK85: =IF(AND(TRIM(AK83)="",TRIM(AK84)=""),"",AK83+AK84) -> 0 | AO85: =IF(TRIM(AN85)="", "", IF(VLOOKUP(AN85,'Footnotes list'!$D$9:$E$58,2,FALSE)=0,"",VLOOKUP(AN85,'Footnotes list'!$D$9:$E$58,2,FALSE) ) ) ->  | AP85: =IF(AND(TRIM(AP83)="", TRIM(AP84)=""), "", SUM(AP83,AP84)) -> 146786.492 | AT85: =IF(TRIM(AS85)="", "", IF(VLOOKUP(AS85,'Footnotes list'!$D$9:$E$58,2,FALSE)=0,"",VLOOKUP(AS85,'Footnotes list'!$D$9:$E$58,2,FALSE) ) ) ->  | AU85: =IF(AND(TRIM(AU83)="", TRIM(AU84)=""), "", SUM(AU83,AU84) ) -> 210026.781 | AY85: =IF(TRIM(AX85)="", "", IF(VLOOKUP(AX85,'Footnotes list'!$D$9:$E$58,2,FALSE)=0,"",VLOOKUP(AX85,'Footnotes list'!$D$9:$E$58,2,FALSE) ) ) -> 
B86: W11 | D86: Common sludges | F86: Not applicable
C87: W11 | E87: NHAZ | F87: Non-hazardous | G87: 2890.955 | K87: =IF(TRIM(J87)="", "", IF(VLOOKUP(J87,'Footnotes list'!$D$9:$E$58,2,FALSE)=0,"",VLOOKUP(J87,'Footnotes list'!$D$9:$E$58,2,FALSE) ) ) ->  | L87: 0 | P87: =IF(TRIM(O87)="", "", IF(VLOOKUP(O87,'Footnotes list'!$D$9:$E$58,2,FALSE)=0,"",VLOOKUP(O87,'Footnotes list'!$D$9:$E$58,2,FALSE) ) ) ->  | Q87: 47472.136 | U87: =IF(TRIM(T87)="", "", IF(VLOOKUP(T87,'Footnotes list'!$D$9:$E$58,2,FALSE)=0,"",VLOOKUP(T87,'Footnotes list'!$D$9:$E$58,2,FALSE) ) ) ->  | V87: 0 | Z87: =IF(TRIM(Y87)="", "", IF(VLOOKUP(Y87,'Footnotes list'!$D$9:$E$58,2,FALSE)=0,"",VLOOKUP(Y87,'Footnotes list'!$D$9:$E$58,2,FALSE) ) ) ->  | AA87: =IF(AND(TRIM(Q87)="",TRIM(V87)=""),"",Q87+V87) -> 47472.136 | AE87: =IF(TRIM(AD87)="", "", IF(VLOOKUP(AD87,'Footnotes list'!$D$9:$E$58,2,FALSE)=0,"",VLOOKUP(AD87,'Footnotes list'!$D$9:$E$58,2,FALSE) ) ) ->  | AF87: 849.426 | AJ87: =IF(TRIM(AI87)="", "", IF(VLOOKUP(AI87,'Footnotes list'!$D$9:$E$58,2,FALSE)=0,"",VLOOKUP(AI87,'Footnotes list'!$D$9:$E$58,2,FALSE) ) ) ->  | AK87: 0 | AO87: =IF(TRIM(AN87)="", "", IF(VLOOKUP(AN87,'Footnotes list'!$D$9:$E$58,2,FALSE)=0,"",VLOOKUP(AN87,'Footnotes list'!$D$9:$E$58,2,FALSE) ) ) ->  | AP87: =IF(AND(TRIM(AF87)="",TRIM(AK87)=""),"",AF87+AK87) -> 849.426 | AT87: =IF(TRIM(AS87)="", "", IF(VLOOKUP(AS87,'Footnotes list'!$D$9:$E$58,2,FALSE)=0,"",VLOOKUP(AS87,'Footnotes list'!$D$9:$E$58,2,FALSE) ) ) ->  | AU87: =IF(AND(TRIM(G87)="",TRIM(L87)="",TRIM(AA87)="",TRIM(AP87)=""),"",SUM(G87,L87,AA87,AP87)) -> 51212.517 | AY87: =IF(TRIM(AX87)="", "", IF(VLOOKUP(AX87,'Footnotes list'!$D$9:$E$58,2,FALSE)=0,"",VLOOKUP(AX87,'Footnotes list'!$D$9:$E$58,2,FALSE) ) ) -> 
C88: W11 | E88: HAZ_NHAZ | F88: Total | G88: =IF(AND(TRIM(G86)="",TRIM(G87)=""),"",G86+G87) -> 2890.955 | K88: =IF(TRIM(J88)="", "", IF(VLOOKUP(J88,'Footnotes list'!$D$9:$E$58,2,FALSE)=0,"",VLOOKUP(J88,'Footnotes list'!$D$9:$E$58,2,FALSE) ) ) ->  | L88: =IF(AND(TRIM(L86)="",TRIM(L87)=""),"",L86+L87) -> 0 | P88: =IF(TRIM(O88)="", "", IF(VLOOKUP(O88,'Footnotes list'!$D$9:$E$58,2,FALSE)=0,"",VLOOKUP(O88,'Footnotes list'!$D$9:$E$58,2,FALSE) ) ) ->  | Q88: =IF(AND(TRIM(Q86)="",TRIM(Q87)=""),"",Q86+Q87) -> 47472.136 | U88: =IF(TRIM(T88)="", "", IF(VLOOKUP(T88,'Footnotes list'!$D$9:$E$58,2,FALSE)=0,"",VLOOKUP(T88,'Footnotes list'!$D$9:$E$58,2,FALSE) ) ) ->  | V88: =IF(AND(TRIM(V86)="",TRIM(V87)=""),"",V86+V87) -> 0 | Z88: =IF(TRIM(Y88)="", "", IF(VLOOKUP(Y88,'Footnotes list'!$D$9:$E$58,2,FALSE)=0,"",VLOOKUP(Y88,'Footnotes list'!$D$9:$E$58,2,FALSE) ) ) ->  | AA88: =IF(AND(TRIM(AA86)="", TRIM(AA87)=""), "", SUM(AA86,AA87)) -> 47472.136 | AE88: =IF(TRIM(AD88)="", "", IF(VLOOKUP(AD88,'Footnotes list'!$D$9:$E$58,2,FALSE)=0,"",VLOOKUP(AD88,'Footnotes list'!$D$9:$E$58,2,FALSE) ) ) ->  | AF88: =IF(AND(TRIM(AF86)="",TRIM(AF87)=""),"",AF86+AF87) -> 849.426 | AJ88: =IF(TRIM(AI88)="", "", IF(VLOOKUP(AI88,'Footnotes list'!$D$9:$E$58,2,FALSE)=0,"",VLOOKUP(AI88,'Footnotes list'!$D$9:$E$58,2,FALSE) ) ) ->  | AK88: =IF(AND(TRIM(AK86)="",TRIM(AK87)=""),"",AK86+AK87) -> 0 | AO88: =IF(TRIM(AN88)="", "", IF(VLOOKUP(AN88,'Footnotes list'!$D$9:$E$58,2,FALSE)=0,"",VLOOKUP(AN88,'Footnotes list'!$D$9:$E$58,2,FALSE) ) ) ->  | AP88: =IF(AND(TRIM(AP86)="", TRIM(AP87)=""), "", SUM(AP86,AP87)) -> 849.426 | AT88: =IF(TRIM(AS88)="", "", IF(VLOOKUP(AS88,'Footnotes list'!$D$9:$E$58,2,FALSE)=0,"",VLOOKUP(AS88,'Footnotes list'!$D$9:$E$58,2,FALSE) ) ) ->  | AU88: =IF(AND(TRIM(AU86)="", TRIM(AU87)=""), "", SUM(AU86,AU87) ) -> 51212.517 | AY88: =IF(TRIM(AX88)="", "", IF(VLOOKUP(AX88,'Footnotes list'!$D$9:$E$58,2,FALSE)=0,"",VLOOKUP(AX88,'Footnotes list'!$D$9:$E$58,2,FALSE) ) ) -> 
B89: W121 | C89: W121 | D89: Mineral waste from construction and demolition | E89: HAZ | F89: Hazardous | G89: 4146.145 | K89: =IF(TRIM(J89)="", "", IF(VLOOKUP(J89,'Footnotes list'!$D$9:$E$58,2,FALSE)=0,"",VLOOKUP(J89,'Footnotes list'!$D$9:$E$58,2,FALSE) ) ) ->  | L89: 0 | P89: =IF(TRIM(O89)="", "", IF(VLOOKUP(O89,'Footnotes list'!$D$9:$E$58,2,FALSE)=0,"",VLOOKUP(O89,'Footnotes list'!$D$9:$E$58,2,FALSE) ) ) ->  | Q89: 0 | U89: =IF(TRIM(T89)="", "", IF(VLOOKUP(T89,'Footnotes list'!$D$9:$E$58,2,FALSE)=0,"",VLOOKUP(T89,'Footnotes list'!$D$9:$E$58,2,FALSE) ) ) ->  | V89: 0 | Z89: =IF(TRIM(Y89)="", "", IF(VLOOKUP(Y89,'Footnotes list'!$D$9:$E$58,2,FALSE)=0,"",VLOOKUP(Y89,'Footnotes list'!$D$9:$E$58,2,FALSE) ) ) ->  | AA89: =IF(AND(TRIM(Q89)="",TRIM(V89)=""),"",Q89+V89) -> 0 | AE89: =IF(TRIM(AD89)="", "", IF(VLOOKUP(AD89,'Footnotes list'!$D$9:$E$58,2,FALSE)=0,"",VLOOKUP(AD89,'Footnotes list'!$D$9:$E$58,2,FALSE) ) ) ->  | AF89: 0 | AJ89: =IF(TRIM(AI89)="", "", IF(VLOOKUP(AI89,'Footnotes list'!$D$9:$E$58,2,FALSE)=0,"",VLOOKUP(AI89,'Footnotes list'!$D$9:$E$58,2,FALSE) ) ) ->  | AK89: 0 | AO89: =IF(TRIM(AN89)="", "", IF(VLOOKUP(AN89,'Footnotes list'!$D$9:$E$58,2,FALSE)=0,"",VLOOKUP(AN89,'Footnotes list'!$D$9:$E$58,2,FALSE) ) ) ->  | AP89: =IF(AND(TRIM(AF89)="",TRIM(AK89)=""),"",AF89+AK89) -> 0 | AT89: =IF(TRIM(AS89)="", "", IF(VLOOKUP(AS89,'Footnotes list'!$D$9:$E$58,2,FALSE)=0,"",VLOOKUP(AS89,'Footnotes list'!$D$9:$E$58,2,FALSE) ) ) ->  | AU89: =IF(AND(TRIM(G89)="",TRIM(L89)="",TRIM(AA89)="",TRIM(AP89)=""),"",SUM(G89,L89,AA89,AP89)) -> 4146.145 | AY89: =IF(TRIM(AX89)="", "", IF(VLOOKUP(AX89,'Footnotes list'!$D$9:$E$58,2,FALSE)=0,"",VLOOKUP(AX89,'Footnotes list'!$D$9:$E$58,2,FALSE) ) ) -> 
C90: W121 | E90: NHAZ | F90: Non-hazardous | G90: 427.6 | K90: =IF(TRIM(J90)="", "", IF(VLOOKUP(J90,'Footnotes list'!$D$9:$E$58,2,FALSE)=0,"",VLOOKUP(J90,'Footnotes list'!$D$9:$E$58,2,FALSE) ) ) ->  | L90: 0 | P90: =IF(TRIM(O90)="", "", IF(VLOOKUP(O90,'Footnotes list'!$D$9:$E$58,2,FALSE)=0,"",VLOOKUP(O90,'Footnotes list'!$D$9:$E$58,2,FALSE) ) ) ->  | Q90: 352930.189 | U90: =IF(TRIM(T90)="", "", IF(VLOOKUP(T90,'Footnotes list'!$D$9:$E$58,2,FALSE)=0,"",VLOOKUP(T90,'Footnotes list'!$D$9:$E$58,2,FALSE) ) ) ->  | V90: 16624.264 | Z90: =IF(TRIM(Y90)="", "", IF(VLOOKUP(Y90,'Footnotes list'!$D$9:$E$58,2,FALSE)=0,"",VLOOKUP(Y90,'Footnotes list'!$D$9:$E$58,2,FALSE) ) ) ->  | AA90: =IF(AND(TRIM(Q90)="",TRIM(V90)=""),"",Q90+V90) -> 369554.453 | AE90: =IF(TRIM(AD90)="", "", IF(VLOOKUP(AD90,'Footnotes list'!$D$9:$E$58,2,FALSE)=0,"",VLOOKUP(AD90,'Footnotes list'!$D$9:$E$58,2,FALSE) ) ) ->  | AF90: 57445.01 | AJ90: =IF(TRIM(AI90)="", "", IF(VLOOKUP(AI90,'Footnotes list'!$D$9:$E$58,2,FALSE)=0,"",VLOOKUP(AI90,'Footnotes list'!$D$9:$E$58,2,FALSE) ) ) ->  | AK90: 0 | AO90: =IF(TRIM(AN90)="", "", IF(VLOOKUP(AN90,'Footnotes list'!$D$9:$E$58,2,FALSE)=0,"",VLOOKUP(AN90,'Footnotes list'!$D$9:$E$58,2,FALSE) ) ) ->  | AP90: =IF(AND(TRIM(AF90)="",TRIM(AK90)=""),"",AF90+AK90) -> 57445.01 | AT90: =IF(TRIM(AS90)="", "", IF(VLOOKUP(AS90,'Footnotes list'!$D$9:$E$58,2,FALSE)=0,"",VLOOKUP(AS90,'Footnotes list'!$D$9:$E$58,2,FALSE) ) ) ->  | AU90: =IF(AND(TRIM(G90)="",TRIM(L90)="",TRIM(AA90)="",TRIM(AP90)=""),"",SUM(G90,L90,AA90,AP90)) -> 427427.063 | AY90: =IF(TRIM(AX90)="", "", IF(VLOOKUP(AX90,'Footnotes list'!$D$9:$E$58,2,FALSE)=0,"",VLOOKUP(AX90,'Footnotes list'!$D$9:$E$58,2,FALSE) ) ) -> 
C91: W121 | E91: HAZ_NHAZ | F91: Total | G91: =IF(AND(TRIM(G89)="",TRIM(G90)=""),"",G89+G90) -> 4573.745 | K91: =IF(TRIM(J91)="", "", IF(VLOOKUP(J91,'Footnotes list'!$D$9:$E$58,2,FALSE)=0,"",VLOOKUP(J91,'Footnotes list'!$D$9:$E$58,2,FALSE) ) ) ->  | L91: =IF(AND(TRIM(L89)="",TRIM(L90)=""),"",L89+L90) -> 0 | P91: =IF(TRIM(O91)="", "", IF(VLOOKUP(O91,'Footnotes list'!$D$9:$E$58,2,FALSE)=0,"",VLOOKUP(O91,'Footnotes list'!$D$9:$E$58,2,FALSE) ) ) ->  | Q91: =IF(AND(TRIM(Q89)="",TRIM(Q90)=""),"",Q89+Q90) -> 352930.189 | U91: =IF(TRIM(T91)="", "", IF(VLOOKUP(T91,'Footnotes list'!$D$9:$E$58,2,FALSE)=0,"",VLOOKUP(T91,'Footnotes list'!$D$9:$E$58,2,FALSE) ) ) ->  | V91: =IF(AND(TRIM(V89)="",TRIM(V90)=""),"",V89+V90) -> 16624.264 | Z91: =IF(TRIM(Y91)="", "", IF(VLOOKUP(Y91,'Footnotes list'!$D$9:$E$58,2,FALSE)=0,"",VLOOKUP(Y91,'Footnotes list'!$D$9:$E$58,2,FALSE) ) ) ->  | AA91: =IF(AND(TRIM(AA89)="", TRIM(AA90)=""), "", SUM(AA89,AA90)) -> 369554.453 | AE91: =IF(TRIM(AD91)="", "", IF(VLOOKUP(AD91,'Footnotes list'!$D$9:$E$58,2,FALSE)=0,"",VLOOKUP(AD91,'Footnotes list'!$D$9:$E$58,2,FALSE) ) ) ->  | AF91: =IF(AND(TRIM(AF89)="",TRIM(AF90)=""),"",AF89+AF90) -> 57445.01 | AJ91: =IF(TRIM(AI91)="", "", IF(VLOOKUP(AI91,'Footnotes list'!$D$9:$E$58,2,FALSE)=0,"",VLOOKUP(AI91,'Footnotes list'!$D$9:$E$58,2,FALSE) ) ) ->  | AK91: =IF(AND(TRIM(AK89)="",TRIM(AK90)=""),"",AK89+AK90) -> 0 | AO91: =IF(TRIM(AN91)="", "", IF(VLOOKUP(AN91,'Footnotes list'!$D$9:$E$58,2,FALSE)=0,"",VLOOKUP(AN91,'Footnotes list'!$D$9:$E$58,2,FALSE) ) ) ->  | AP91: =IF(AND(TRIM(AP89)="", TRIM(AP90)=""), "", SUM(AP89,AP90)) -> 57445.01 | AT91: =IF(TRIM(AS91)="", "", IF(VLOOKUP(AS91,'Footnotes list'!$D$9:$E$58,2,FALSE)=0,"",VLOOKUP(AS91,'Footnotes list'!$D$9:$E$58,2,FALSE) ) ) ->  | AU91: =IF(AND(TRIM(AU89)="", TRIM(AU90)=""), "", SUM(AU89,AU90) ) -> 431573.208 | AY91: =IF(TRIM(AX91)="", "", IF(VLOOKUP(AX91,'Footnotes list'!$D$9:$E$58,2,FALSE)=0,"",VLOOKUP(AX91,'Footnotes list'!$D$9:$E$58,2,FALSE) ) ) -> 
B92: W12B | C92: W12B | D92: Other mineral wastes (W122+W123+W125) | E92: HAZ | F92: Hazardous | G92: 23.29 | K92: =IF(TRIM(J92)="", "", IF(VLOOKUP(J92,'Footnotes list'!$D$9:$E$58,2,FALSE)=0,"",VLOOKUP(J92,'Footnotes list'!$D$9:$E$58,2,FALSE) ) ) ->  | L92: 0 | P92: =IF(TRIM(O92)="", "", IF(VLOOKUP(O92,'Footnotes list'!$D$9:$E$58,2,FALSE)=0,"",VLOOKUP(O92,'Footnotes list'!$D$9:$E$58,2,FALSE) ) ) ->  | Q92: 0 | U92: =IF(TRIM(T92)="", "", IF(VLOOKUP(T92,'Footnotes list'!$D$9:$E$58,2,FALSE)=0,"",VLOOKUP(T92,'Footnotes list'!$D$9:$E$58,2,FALSE) ) ) ->  | V92: 0 | Z92: =IF(TRIM(Y92)="", "", IF(VLOOKUP(Y92,'Footnotes list'!$D$9:$E$58,2,FALSE)=0,"",VLOOKUP(Y92,'Footnotes list'!$D$9:$E$58,2,FALSE) ) ) ->  | AA92: =IF(AND(TRIM(Q92)="",TRIM(V92)=""),"",Q92+V92) -> 0 | AE92: =IF(TRIM(AD92)="", "", IF(VLOOKUP(AD92,'Footnotes list'!$D$9:$E$58,2,FALSE)=0,"",VLOOKUP(AD92,'Footnotes list'!$D$9:$E$58,2,FALSE) ) ) ->  | AF92: 3288.042 | AJ92: =IF(TRIM(AI92)="", "", IF(VLOOKUP(AI92,'Footnotes list'!$D$9:$E$58,2,FALSE)=0,"",VLOOKUP(AI92,'Footnotes list'!$D$9:$E$58,2,FALSE) ) ) ->  | AK92: 0 | AO92: =IF(TRIM(AN92)="", "", IF(VLOOKUP(AN92,'Footnotes list'!$D$9:$E$58,2,FALSE)=0,"",VLOOKUP(AN92,'Footnotes list'!$D$9:$E$58,2,FALSE) ) ) ->  | AP92: =IF(AND(TRIM(AF92)="",TRIM(AK92)=""),"",AF92+AK92) -> 3288.042 | AT92: =IF(TRIM(AS92)="", "", IF(VLOOKUP(AS92,'Footnotes list'!$D$9:$E$58,2,FALSE)=0,"",VLOOKUP(AS92,'Footnotes list'!$D$9:$E$58,2,FALSE) ) ) ->  | AU92: =IF(AND(TRIM(G92)="",TRIM(L92)="",TRIM(AA92)="",TRIM(AP92)=""),"",SUM(G92,L92,AA92,AP92)) -> 3311.332 | AY92: =IF(TRIM(AX92)="", "", IF(VLOOKUP(AX92,'Footnotes list'!$D$9:$E$58,2,FALSE)=0,"",VLOOKUP(AX92,'Footnotes list'!$D$9:$E$58,2,FALSE) ) ) -> 
C93: W12B | E93: NHAZ | F93: Non-hazardous | G93: 0 | K93: =IF(TRIM(J93)="", "", IF(VLOOKUP(J93,'Footnotes list'!$D$9:$E$58,2,FALSE)=0,"",VLOOKUP(J93,'Footnotes list'!$D$9:$E$58,2,FALSE) ) ) ->  | L93: 0 | P93: =IF(TRIM(O93)="", "", IF(VLOOKUP(O93,'Footnotes list'!$D$9:$E$58,2,FALSE)=0,"",VLOOKUP(O93,'Footnotes list'!$D$9:$E$58,2,FALSE) ) ) ->  | Q93: 9285.19 | U93: =IF(TRIM(T93)="", "", IF(VLOOKUP(T93,'Footnotes list'!$D$9:$E$58,2,FALSE)=0,"",VLOOKUP(T93,'Footnotes list'!$D$9:$E$58,2,FALSE) ) ) ->  | V93: 75 | Z93: =IF(TRIM(Y93)="", "", IF(VLOOKUP(Y93,'Footnotes list'!$D$9:$E$58,2,FALSE)=0,"",VLOOKUP(Y93,'Footnotes list'!$D$9:$E$58,2,FALSE) ) ) ->  | AA93: =IF(AND(TRIM(Q93)="",TRIM(V93)=""),"",Q93+V93) -> 9360.19 | AE93: =IF(TRIM(AD93)="", "", IF(VLOOKUP(AD93,'Footnotes list'!$D$9:$E$58,2,FALSE)=0,"",VLOOKUP(AD93,'Footnotes list'!$D$9:$E$58,2,FALSE) ) ) ->  | AF93: 10038.74 | AJ93: =IF(TRIM(AI93)="", "", IF(VLOOKUP(AI93,'Footnotes list'!$D$9:$E$58,2,FALSE)=0,"",VLOOKUP(AI93,'Footnotes list'!$D$9:$E$58,2,FALSE) ) ) ->  | AK93: 0 | AO93: =IF(TRIM(AN93)="", "", IF(VLOOKUP(AN93,'Footnotes list'!$D$9:$E$58,2,FALSE)=0,"",VLOOKUP(AN93,'Footnotes list'!$D$9:$E$58,2,FALSE) ) ) ->  | AP93: =IF(AND(TRIM(AF93)="",TRIM(AK93)=""),"",AF93+AK93) -> 10038.74 | AT93: =IF(TRIM(AS93)="", "", IF(VLOOKUP(AS93,'Footnotes list'!$D$9:$E$58,2,FALSE)=0,"",VLOOKUP(AS93,'Footnotes list'!$D$9:$E$58,2,FALSE) ) ) ->  | AU93: =IF(AND(TRIM(G93)="",TRIM(L93)="",TRIM(AA93)="",TRIM(AP93)=""),"",SUM(G93,L93,AA93,AP93)) -> 19398.93 | AY93: =IF(TRIM(AX93)="", "", IF(VLOOKUP(AX93,'Footnotes list'!$D$9:$E$58,2,FALSE)=0,"",VLOOKUP(AX93,'Footnotes list'!$D$9:$E$58,2,FALSE) ) ) -> 
C94: W12B | E94: HAZ_NHAZ | F94: Total | G94: =IF(AND(TRIM(G92)="",TRIM(G93)=""),"",G92+G93) -> 23.29 | K94: =IF(TRIM(J94)="", "", IF(VLOOKUP(J94,'Footnotes list'!$D$9:$E$58,2,FALSE)=0,"",VLOOKUP(J94,'Footnotes list'!$D$9:$E$58,2,FALSE) ) ) ->  | L94: =IF(AND(TRIM(L92)="",TRIM(L93)=""),"",L92+L93) -> 0 | P94: =IF(TRIM(O94)="", "", IF(VLOOKUP(O94,'Footnotes list'!$D$9:$E$58,2,FALSE)=0,"",VLOOKUP(O94,'Footnotes list'!$D$9:$E$58,2,FALSE) ) ) ->  | Q94: =IF(AND(TRIM(Q92)="",TRIM(Q93)=""),"",Q92+Q93) -> 9285.19 | U94: =IF(TRIM(T94)="", "", IF(VLOOKUP(T94,'Footnotes list'!$D$9:$E$58,2,FALSE)=0,"",VLOOKUP(T94,'Footnotes list'!$D$9:$E$58,2,FALSE) ) ) ->  | V94: =IF(AND(TRIM(V92)="",TRIM(V93)=""),"",V92+V93) -> 75 | Z94: =IF(TRIM(Y94)="", "", IF(VLOOKUP(Y94,'Footnotes list'!$D$9:$E$58,2,FALSE)=0,"",VLOOKUP(Y94,'Footnotes list'!$D$9:$E$58,2,FALSE) ) ) ->  | AA94: =IF(AND(TRIM(AA92)="", TRIM(AA93)=""), "", SUM(AA92,AA93)) -> 9360.19 | AE94: =IF(TRIM(AD94)="", "", IF(VLOOKUP(AD94,'Footnotes list'!$D$9:$E$58,2,FALSE)=0,"",VLOOKUP(AD94,'Footnotes list'!$D$9:$E$58,2,FALSE) ) ) ->  | AF94: =IF(AND(TRIM(AF92)="",TRIM(AF93)=""),"",AF92+AF93) -> 13326.782 | AJ94: =IF(TRIM(AI94)="", "", IF(VLOOKUP(AI94,'Footnotes list'!$D$9:$E$58,2,FALSE)=0,"",VLOOKUP(AI94,'Footnotes list'!$D$9:$E$58,2,FALSE) ) ) ->  | AK94: =IF(AND(TRIM(AK92)="",TRIM(AK93)=""),"",AK92+AK93) -> 0 | AO94: =IF(TRIM(AN94)="", "", IF(VLOOKUP(AN94,'Footnotes list'!$D$9:$E$58,2,FALSE)=0,"",VLOOKUP(AN94,'Footnotes list'!$D$9:$E$58,2,FALSE) ) ) ->  | AP94: =IF(AND(TRIM(AP92)="", TRIM(AP93)=""), "", SUM(AP92,AP93)) -> 13326.782 | AT94: =IF(TRIM(AS94)="", "", IF(VLOOKUP(AS94,'Footnotes list'!$D$9:$E$58,2,FALSE)=0,"",VLOOKUP(AS94,'Footnotes list'!$D$9:$E$58,2,FALSE) ) ) ->  | AU94: =IF(AND(TRIM(AU92)="", TRIM(AU93)=""), "", SUM(AU92,AU93) ) -> 22710.262 | AY94: =IF(TRIM(AX94)="", "", IF(VLOOKUP(AX94,'Footnotes list'!$D$9:$E$58,2,FALSE)=0,"",VLOOKUP(AX94,'Footnotes list'!$D$9:$E$58,2,FALSE) ) ) -> 
B95: W124 | C95: W124 | D95: Combustion wastes | E95: HAZ | F95: Hazardous | G95: 0 | K95: =IF(TRIM(J95)="", "", IF(VLOOKUP(J95,'Footnotes list'!$D$9:$E$58,2,FALSE)=0,"",VLOOKUP(J95,'Footnotes list'!$D$9:$E$58,2,FALSE) ) ) ->  | L95: 0 | P95: =IF(TRIM(O95)="", "", IF(VLOOKUP(O95,'Footnotes list'!$D$9:$E$58,2,FALSE)=0,"",VLOOKUP(O95,'Footnotes list'!$D$9:$E$58,2,FALSE) ) ) ->  | Q95: 158.314 | U95: =IF(TRIM(T95)="", "", IF(VLOOKUP(T95,'Footnotes list'!$D$9:$E$58,2,FALSE)=0,"",VLOOKUP(T95,'Footnotes list'!$D$9:$E$58,2,FALSE) ) ) ->  | V95: 0 | Z95: =IF(TRIM(Y95)="", "", IF(VLOOKUP(Y95,'Footnotes list'!$D$9:$E$58,2,FALSE)=0,"",VLOOKUP(Y95,'Footnotes list'!$D$9:$E$58,2,FALSE) ) ) ->  | AA95: =IF(AND(TRIM(Q95)="",TRIM(V95)=""),"",Q95+V95) -> 158.314 | AE95: =IF(TRIM(AD95)="", "", IF(VLOOKUP(AD95,'Footnotes list'!$D$9:$E$58,2,FALSE)=0,"",VLOOKUP(AD95,'Footnotes list'!$D$9:$E$58,2,FALSE) ) ) ->  | AF95: 0 | AJ95: =IF(TRIM(AI95)="", "", IF(VLOOKUP(AI95,'Footnotes list'!$D$9:$E$58,2,FALSE)=0,"",VLOOKUP(AI95,'Footnotes list'!$D$9:$E$58,2,FALSE) ) ) ->  | AK95: 0 | AO95: =IF(TRIM(AN95)="", "", IF(VLOOKUP(AN95,'Footnotes list'!$D$9:$E$58,2,FALSE)=0,"",VLOOKUP(AN95,'Footnotes list'!$D$9:$E$58,2,FALSE) ) ) ->  | AP95: =IF(AND(TRIM(AF95)="",TRIM(AK95)=""),"",AF95+AK95) -> 0 | AT95: =IF(TRIM(AS95)="", "", IF(VLOOKUP(AS95,'Footnotes list'!$D$9:$E$58,2,FALSE)=0,"",VLOOKUP(AS95,'Footnotes list'!$D$9:$E$58,2,FALSE) ) ) ->  | AU95: =IF(AND(TRIM(G95)="",TRIM(L95)="",TRIM(AA95)="",TRIM(AP95)=""),"",SUM(G95,L95,AA95,AP95)) -> 158.314 | AY95: =IF(TRIM(AX95)="", "", IF(VLOOKUP(AX95,'Footnotes list'!$D$9:$E$58,2,FALSE)=0,"",VLOOKUP(AX95,'Footnotes list'!$D$9:$E$58,2,FALSE) ) ) -> 
C96: W124 | E96: NHAZ | F96: Non-hazardous | G96: 0 | K96: =IF(TRIM(J96)="", "", IF(VLOOKUP(J96,'Footnotes list'!$D$9:$E$58,2,FALSE)=0,"",VLOOKUP(J96,'Footnotes list'!$D$9:$E$58,2,FALSE) ) ) ->  | L96: 0 | P96: =IF(TRIM(O96)="", "", IF(VLOOKUP(O96,'Footnotes list'!$D$9:$E$58,2,FALSE)=0,"",VLOOKUP(O96,'Footnotes list'!$D$9:$E$58,2,FALSE) ) ) ->  | Q96: 370311.678 | U96: =IF(TRIM(T96)="", "", IF(VLOOKUP(T96,'Footnotes list'!$D$9:$E$58,2,FALSE)=0,"",VLOOKUP(T96,'Footnotes list'!$D$9:$E$58,2,FALSE) ) ) ->  | V96: 0 | Z96: =IF(TRIM(Y96)="", "", IF(VLOOKUP(Y96,'Footnotes list'!$D$9:$E$58,2,FALSE)=0,"",VLOOKUP(Y96,'Footnotes list'!$D$9:$E$58,2,FALSE) ) ) ->  | AA96: =IF(AND(TRIM(Q96)="",TRIM(V96)=""),"",Q96+V96) -> 370311.678 | AE96: =IF(TRIM(AD96)="", "", IF(VLOOKUP(AD96,'Footnotes list'!$D$9:$E$58,2,FALSE)=0,"",VLOOKUP(AD96,'Footnotes list'!$D$9:$E$58,2,FALSE) ) ) ->  | AF96: 4753.32 | AJ96: =IF(TRIM(AI96)="", "", IF(VLOOKUP(AI96,'Footnotes list'!$D$9:$E$58,2,FALSE)=0,"",VLOOKUP(AI96,'Footnotes list'!$D$9:$E$58,2,FALSE) ) ) ->  | AK96: 0 | AO96: =IF(TRIM(AN96)="", "", IF(VLOOKUP(AN96,'Footnotes list'!$D$9:$E$58,2,FALSE)=0,"",VLOOKUP(AN96,'Footnotes list'!$D$9:$E$58,2,FALSE) ) ) ->  | AP96: =IF(AND(TRIM(AF96)="",TRIM(AK96)=""),"",AF96+AK96) -> 4753.32 | AT96: =IF(TRIM(AS96)="", "", IF(VLOOKUP(AS96,'Footnotes list'!$D$9:$E$58,2,FALSE)=0,"",VLOOKUP(AS96,'Footnotes list'!$D$9:$E$58,2,FALSE) ) ) ->  | AU96: =IF(AND(TRIM(G96)="",TRIM(L96)="",TRIM(AA96)="",TRIM(AP96)=""),"",SUM(G96,L96,AA96,AP96)) -> 375064.998 | AY96: =IF(TRIM(AX96)="", "", IF(VLOOKUP(AX96,'Footnotes list'!$D$9:$E$58,2,FALSE)=0,"",VLOOKUP(AX96,'Footnotes list'!$D$9:$E$58,2,FALSE) ) ) -> 
C97: W124 | E97: HAZ_NHAZ | F97: Total | G97: =IF(AND(TRIM(G95)="",TRIM(G96)=""),"",G95+G96) -> 0 | K97: =IF(TRIM(J97)="", "", IF(VLOOKUP(J97,'Footnotes list'!$D$9:$E$58,2,FALSE)=0,"",VLOOKUP(J97,'Footnotes list'!$D$9:$E$58,2,FALSE) ) ) ->  | L97: =IF(AND(TRIM(L95)="",TRIM(L96)=""),"",L95+L96) -> 0 | P97: =IF(TRIM(O97)="", "", IF(VLOOKUP(O97,'Footnotes list'!$D$9:$E$58,2,FALSE)=0,"",VLOOKUP(O97,'Footnotes list'!$D$9:$E$58,2,FALSE) ) ) ->  | Q97: =IF(AND(TRIM(Q95)="",TRIM(Q96)=""),"",Q95+Q96) -> 370469.992 | U97: =IF(TRIM(T97)="", "", IF(VLOOKUP(T97,'Footnotes list'!$D$9:$E$58,2,FALSE)=0,"",VLOOKUP(T97,'Footnotes list'!$D$9:$E$58,2,FALSE) ) ) ->  | V97: =IF(AND(TRIM(V95)="",TRIM(V96)=""),"",V95+V96) -> 0 | Z97: =IF(TRIM(Y97)="", "", IF(VLOOKUP(Y97,'Footnotes list'!$D$9:$E$58,2,FALSE)=0,"",VLOOKUP(Y97,'Footnotes list'!$D$9:$E$58,2,FALSE) ) ) ->  | AA97: =IF(AND(TRIM(AA95)="", TRIM(AA96)=""), "", SUM(AA95,AA96)) -> 370469.992 | AE97: =IF(TRIM(AD97)="", "", IF(VLOOKUP(AD97,'Footnotes list'!$D$9:$E$58,2,FALSE)=0,"",VLOOKUP(AD97,'Footnotes list'!$D$9:$E$58,2,FALSE) ) ) ->  | AF97: =IF(AND(TRIM(AF95)="",TRIM(AF96)=""),"",AF95+AF96) -> 4753.32 | AJ97: =IF(TRIM(AI97)="", "", IF(VLOOKUP(AI97,'Footnotes list'!$D$9:$E$58,2,FALSE)=0,"",VLOOKUP(AI97,'Footnotes list'!$D$9:$E$58,2,FALSE) ) ) ->  | AK97: =IF(AND(TRIM(AK95)="",TRIM(AK96)=""),"",AK95+AK96) -> 0 | AO97: =IF(TRIM(AN97)="", "", IF(VLOOKUP(AN97,'Footnotes list'!$D$9:$E$58,2,FALSE)=0,"",VLOOKUP(AN97,'Footnotes list'!$D$9:$E$58,2,FALSE) ) ) ->  | AP97: =IF(AND(TRIM(AP95)="", TRIM(AP96)=""), "", SUM(AP95,AP96)) -> 4753.32 | AT97: =IF(TRIM(AS97)="", "", IF(VLOOKUP(AS97,'Footnotes list'!$D$9:$E$58,2,FALSE)=0,"",VLOOKUP(AS97,'Footnotes list'!$D$9:$E$58,2,FALSE) ) ) ->  | AU97: =IF(AND(TRIM(AU95)="", TRIM(AU96)=""), "", SUM(AU95,AU96) ) -> 375223.312 | AY97: =IF(TRIM(AX97)="", "", IF(VLOOKUP(AX97,'Footnotes list'!$D$9:$E$58,2,FALSE)=0,"",VLOOKUP(AX97,'Footnotes list'!$D$9:$E$58,2,FALSE) ) ) -> 
B98: W126 | C98: W126 | D98: Soils | E98: HAZ | F98: Hazardous | G98: 386.395 | K98: =IF(TRIM(J98)="", "", IF(VLOOKUP(J98,'Footnotes list'!$D$9:$E$58,2,FALSE)=0,"",VLOOKUP(J98,'Footnotes list'!$D$9:$E$58,2,FALSE) ) ) ->  | L98: 0 | P98: =IF(TRIM(O98)="", "", IF(VLOOKUP(O98,'Footnotes list'!$D$9:$E$58,2,FALSE)=0,"",VLOOKUP(O98,'Footnotes list'!$D$9:$E$58,2,FALSE) ) ) ->  | Q98: 148.4 | U98: =IF(TRIM(T98)="", "", IF(VLOOKUP(T98,'Footnotes list'!$D$9:$E$58,2,FALSE)=0,"",VLOOKUP(T98,'Footnotes list'!$D$9:$E$58,2,FALSE) ) ) ->  | V98: 0 | Z98: =IF(TRIM(Y98)="", "", IF(VLOOKUP(Y98,'Footnotes list'!$D$9:$E$58,2,FALSE)=0,"",VLOOKUP(Y98,'Footnotes list'!$D$9:$E$58,2,FALSE) ) ) ->  | AA98: =IF(AND(TRIM(Q98)="",TRIM(V98)=""),"",Q98+V98) -> 148.4 | AE98: =IF(TRIM(AD98)="", "", IF(VLOOKUP(AD98,'Footnotes list'!$D$9:$E$58,2,FALSE)=0,"",VLOOKUP(AD98,'Footnotes list'!$D$9:$E$58,2,FALSE) ) ) ->  | AF98: 0 | AJ98: =IF(TRIM(AI98)="", "", IF(VLOOKUP(AI98,'Footnotes list'!$D$9:$E$58,2,FALSE)=0,"",VLOOKUP(AI98,'Footnotes list'!$D$9:$E$58,2,FALSE) ) ) ->  | AK98: 0 | AO98: =IF(TRIM(AN98)="", "", IF(VLOOKUP(AN98,'Footnotes list'!$D$9:$E$58,2,FALSE)=0,"",VLOOKUP(AN98,'Footnotes list'!$D$9:$E$58,2,FALSE) ) ) ->  | AP98: =IF(AND(TRIM(AF98)="",TRIM(AK98)=""),"",AF98+AK98) -> 0 | AT98: =IF(TRIM(AS98)="", "", IF(VLOOKUP(AS98,'Footnotes list'!$D$9:$E$58,2,FALSE)=0,"",VLOOKUP(AS98,'Footnotes list'!$D$9:$E$58,2,FALSE) ) ) ->  | AU98: =IF(AND(TRIM(G98)="",TRIM(L98)="",TRIM(AA98)="",TRIM(AP98)=""),"",SUM(G98,L98,AA98,AP98)) -> 534.795 | AY98: =IF(TRIM(AX98)="", "", IF(VLOOKUP(AX98,'Footnotes list'!$D$9:$E$58,2,FALSE)=0,"",VLOOKUP(AX98,'Footnotes list'!$D$9:$E$58,2,FALSE) ) ) -> 
C99: W126 | E99: NHAZ | F99: Non-hazardous | G99: 0 | K99: =IF(TRIM(J99)="", "", IF(VLOOKUP(J99,'Footnotes list'!$D$9:$E$58,2,FALSE)=0,"",VLOOKUP(J99,'Footnotes list'!$D$9:$E$58,2,FALSE) ) ) ->  | L99: 0 | P99: =IF(TRIM(O99)="", "", IF(VLOOKUP(O99,'Footnotes list'!$D$9:$E$58,2,FALSE)=0,"",VLOOKUP(O99,'Footnotes list'!$D$9:$E$58,2,FALSE) ) ) ->  | Q99: 219571.452 | U99: =IF(TRIM(T99)="", "", IF(VLOOKUP(T99,'Footnotes list'!$D$9:$E$58,2,FALSE)=0,"",VLOOKUP(T99,'Footnotes list'!$D$9:$E$58,2,FALSE) ) ) ->  | V99: 36782.77 | Z99: =IF(TRIM(Y99)="", "", IF(VLOOKUP(Y99,'Footnotes list'!$D$9:$E$58,2,FALSE)=0,"",VLOOKUP(Y99,'Footnotes list'!$D$9:$E$58,2,FALSE) ) ) ->  | AA99: =IF(AND(TRIM(Q99)="",TRIM(V99)=""),"",Q99+V99) -> 256354.222 | AE99: =IF(TRIM(AD99)="", "", IF(VLOOKUP(AD99,'Footnotes list'!$D$9:$E$58,2,FALSE)=0,"",VLOOKUP(AD99,'Footnotes list'!$D$9:$E$58,2,FALSE) ) ) ->  | AF99: 484558.72 | AJ99: =IF(TRIM(AI99)="", "", IF(VLOOKUP(AI99,'Footnotes list'!$D$9:$E$58,2,FALSE)=0,"",VLOOKUP(AI99,'Footnotes list'!$D$9:$E$58,2,FALSE) ) ) ->  | AK99: 0 | AO99: =IF(TRIM(AN99)="", "", IF(VLOOKUP(AN99,'Footnotes list'!$D$9:$E$58,2,FALSE)=0,"",VLOOKUP(AN99,'Footnotes list'!$D$9:$E$58,2,FALSE) ) ) ->  | AP99: =IF(AND(TRIM(AF99)="",TRIM(AK99)=""),"",AF99+AK99) -> 484558.72 | AT99: =IF(TRIM(AS99)="", "", IF(VLOOKUP(AS99,'Footnotes list'!$D$9:$E$58,2,FALSE)=0,"",VLOOKUP(AS99,'Footnotes list'!$D$9:$E$58,2,FALSE) ) ) ->  | AU99: =IF(AND(TRIM(G99)="",TRIM(L99)="",TRIM(AA99)="",TRIM(AP99)=""),"",SUM(G99,L99,AA99,AP99)) -> 740912.942 | AY99: =IF(TRIM(AX99)="", "", IF(VLOOKUP(AX99,'Footnotes list'!$D$9:$E$58,2,FALSE)=0,"",VLOOKUP(AX99,'Footnotes list'!$D$9:$E$58,2,FALSE) ) ) -> 
C100: W126 | E100: HAZ_NHAZ | F100: Total | G100: =IF(AND(TRIM(G98)="",TRIM(G99)=""),"",G98+G99) -> 386.395 | K100: =IF(TRIM(J100)="", "", IF(VLOOKUP(J100,'Footnotes list'!$D$9:$E$58,2,FALSE)=0,"",VLOOKUP(J100,'Footnotes list'!$D$9:$E$58,2,FALSE) ) ) ->  | L100: =IF(AND(TRIM(L98)="",TRIM(L99)=""),"",L98+L99) -> 0 | P100: =IF(TRIM(O100)="", "", IF(VLOOKUP(O100,'Footnotes list'!$D$9:$E$58,2,FALSE)=0,"",VLOOKUP(O100,'Footnotes list'!$D$9:$E$58,2,FALSE) ) ) ->  | Q100: =IF(AND(TRIM(Q98)="",TRIM(Q99)=""),"",Q98+Q99) -> 219719.852 | U100: =IF(TRIM(T100)="", "", IF(VLOOKUP(T100,'Footnotes list'!$D$9:$E$58,2,FALSE)=0,"",VLOOKUP(T100,'Footnotes list'!$D$9:$E$58,2,FALSE) ) ) ->  | V100: =IF(AND(TRIM(V98)="",TRIM(V99)=""),"",V98+V99) -> 36782.77 | Z100: =IF(TRIM(Y100)="", "", IF(VLOOKUP(Y100,'Footnotes list'!$D$9:$E$58,2,FALSE)=0,"",VLOOKUP(Y100,'Footnotes list'!$D$9:$E$58,2,FALSE) ) ) ->  | AA100: =IF(AND(TRIM(AA98)="", TRIM(AA99)=""), "", SUM(AA98,AA99)) -> 256502.622 | AE100: =IF(TRIM(AD100)="", "", IF(VLOOKUP(AD100,'Footnotes list'!$D$9:$E$58,2,FALSE)=0,"",VLOOKUP(AD100,'Footnotes list'!$D$9:$E$58,2,FALSE) ) ) ->  | AF100: =IF(AND(TRIM(AF98)="",TRIM(AF99)=""),"",AF98+AF99) -> 484558.72 | AJ100: =IF(TRIM(AI100)="", "", IF(VLOOKUP(AI100,'Footnotes list'!$D$9:$E$58,2,FALSE)=0,"",VLOOKUP(AI100,'Footnotes list'!$D$9:$E$58,2,FALSE) ) ) ->  | AK100: =IF(AND(TRIM(AK98)="",TRIM(AK99)=""),"",AK98+AK99) -> 0 | AO100: =IF(TRIM(AN100)="", "", IF(VLOOKUP(AN100,'Footnotes list'!$D$9:$E$58,2,FALSE)=0,"",VLOOKUP(AN100,'Footnotes list'!$D$9:$E$58,2,FALSE) ) ) ->  | AP100: =IF(AND(TRIM(AP98)="", TRIM(AP99)=""), "", SUM(AP98,AP99)) -> 484558.72 | AT100: =IF(TRIM(AS100)="", "", IF(VLOOKUP(AS100,'Footnotes list'!$D$9:$E$58,2,FALSE)=0,"",VLOOKUP(AS100,'Footnotes list'!$D$9:$E$58,2,FALSE) ) ) ->  | AU100: =IF(AND(TRIM(AU98)="", TRIM(AU99)=""), "", SUM(AU98,AU99) ) -> 741447.737 | AY100: =IF(TRIM(AX100)="", "", IF(VLOOKUP(AX100,'Footnotes list'!$D$9:$E$58,2,FALSE)=0,"",VLOOKUP(AX100,'Footnotes list'!$D$9:$E$58,2,FALSE) ) ) -> 
B101: W127 | C101: W127 | D101: Dredging spoils | E101: HAZ | F101: Hazardous | G101: 0 | K101: =IF(TRIM(J101)="", "", IF(VLOOKUP(J101,'Footnotes list'!$D$9:$E$58,2,FALSE)=0,"",VLOOKUP(J101,'Footnotes list'!$D$9:$E$58,2,FALSE) ) ) ->  | L101: 0 | P101: =IF(TRIM(O101)="", "", IF(VLOOKUP(O101,'Footnotes list'!$D$9:$E$58,2,FALSE)=0,"",VLOOKUP(O101,'Footnotes list'!$D$9:$E$58,2,FALSE) ) ) ->  | Q101: 0 | U101: =IF(TRIM(T101)="", "", IF(VLOOKUP(T101,'Footnotes list'!$D$9:$E$58,2,FALSE)=0,"",VLOOKUP(T101,'Footnotes list'!$D$9:$E$58,2,FALSE) ) ) ->  | V101: 0 | Z101: =IF(TRIM(Y101)="", "", IF(VLOOKUP(Y101,'Footnotes list'!$D$9:$E$58,2,FALSE)=0,"",VLOOKUP(Y101,'Footnotes list'!$D$9:$E$58,2,FALSE) ) ) ->  | AA101: =IF(AND(TRIM(Q101)="",TRIM(V101)=""),"",Q101+V101) -> 0 | AE101: =IF(TRIM(AD101)="", "", IF(VLOOKUP(AD101,'Footnotes list'!$D$9:$E$58,2,FALSE)=0,"",VLOOKUP(AD101,'Footnotes list'!$D$9:$E$58,2,FALSE) ) ) ->  | AF101: 0 | AJ101: =IF(TRIM(AI101)="", "", IF(VLOOKUP(AI101,'Footnotes list'!$D$9:$E$58,2,FALSE)=0,"",VLOOKUP(AI101,'Footnotes list'!$D$9:$E$58,2,FALSE) ) ) ->  | AK101: 0 | AO101: =IF(TRIM(AN101)="", "", IF(VLOOKUP(AN101,'Footnotes list'!$D$9:$E$58,2,FALSE)=0,"",VLOOKUP(AN101,'Footnotes list'!$D$9:$E$58,2,FALSE) ) ) ->  | AP101: =IF(AND(TRIM(AF101)="",TRIM(AK101)=""),"",AF101+AK101) -> 0 | AT101: =IF(TRIM(AS101)="", "", IF(VLOOKUP(AS101,'Footnotes list'!$D$9:$E$58,2,FALSE)=0,"",VLOOKUP(AS101,'Footnotes list'!$D$9:$E$58,2,FALSE) ) ) ->  | AU101: =IF(AND(TRIM(G101)="",TRIM(L101)="",TRIM(AA101)="",TRIM(AP101)=""),"",SUM(G101,L101,AA101,AP101)) -> 0 | AY101: =IF(TRIM(AX101)="", "", IF(VLOOKUP(AX101,'Footnotes list'!$D$9:$E$58,2,FALSE)=0,"",VLOOKUP(AX101,'Footnotes list'!$D$9:$E$58,2,FALSE) ) ) -> 
C102: W127 | E102: NHAZ | F102: Non-hazardous | G102: 0 | K102: =IF(TRIM(J102)="", "", IF(VLOOKUP(J102,'Footnotes list'!$D$9:$E$58,2,FALSE)=0,"",VLOOKUP(J102,'Footnotes list'!$D$9:$E$58,2,FALSE) ) ) ->  | L102: 0 | P102: =IF(TRIM(O102)="", "", IF(VLOOKUP(O102,'Footnotes list'!$D$9:$E$58,2,FALSE)=0,"",VLOOKUP(O102,'Footnotes list'!$D$9:$E$58,2,FALSE) ) ) ->  | Q102: 1591.5 | U102: =IF(TRIM(T102)="", "", IF(VLOOKUP(T102,'Footnotes list'!$D$9:$E$58,2,FALSE)=0,"",VLOOKUP(T102,'Footnotes list'!$D$9:$E$58,2,FALSE) ) ) ->  | V102: 0 | Z102: =IF(TRIM(Y102)="", "", IF(VLOOKUP(Y102,'Footnotes list'!$D$9:$E$58,2,FALSE)=0,"",VLOOKUP(Y102,'Footnotes list'!$D$9:$E$58,2,FALSE) ) ) ->  | AA102: =IF(AND(TRIM(Q102)="",TRIM(V102)=""),"",Q102+V102) -> 1591.5 | AE102: =IF(TRIM(AD102)="", "", IF(VLOOKUP(AD102,'Footnotes list'!$D$9:$E$58,2,FALSE)=0,"",VLOOKUP(AD102,'Footnotes list'!$D$9:$E$58,2,FALSE) ) ) ->  | AF102: 2.19 | AJ102: =IF(TRIM(AI102)="", "", IF(VLOOKUP(AI102,'Footnotes list'!$D$9:$E$58,2,FALSE)=0,"",VLOOKUP(AI102,'Footnotes list'!$D$9:$E$58,2,FALSE) ) ) ->  | AK102: 0 | AO102: =IF(TRIM(AN102)="", "", IF(VLOOKUP(AN102,'Footnotes list'!$D$9:$E$58,2,FALSE)=0,"",VLOOKUP(AN102,'Footnotes list'!$D$9:$E$58,2,FALSE) ) ) ->  | AP102: =IF(AND(TRIM(AF102)="",TRIM(AK102)=""),"",AF102+AK102) -> 2.19 | AT102: =IF(TRIM(AS102)="", "", IF(VLOOKUP(AS102,'Footnotes list'!$D$9:$E$58,2,FALSE)=0,"",VLOOKUP(AS102,'Footnotes list'!$D$9:$E$58,2,FALSE) ) ) ->  | AU102: =IF(AND(TRIM(G102)="",TRIM(L102)="",TRIM(AA102)="",TRIM(AP102)=""),"",SUM(G102,L102,AA102,AP102)) -> 1593.69 | AY102: =IF(TRIM(AX102)="", "", IF(VLOOKUP(AX102,'Footnotes list'!$D$9:$E$58,2,FALSE)=0,"",VLOOKUP(AX102,'Footnotes list'!$D$9:$E$58,2,FALSE) ) ) -> 
C103: W127 | E103: HAZ_NHAZ | F103: Total | G103: =IF(AND(TRIM(G101)="",TRIM(G102)=""),"",G101+G102) -> 0 | K103: =IF(TRIM(J103)="", "", IF(VLOOKUP(J103,'Footnotes list'!$D$9:$E$58,2,FALSE)=0,"",VLOOKUP(J103,'Footnotes list'!$D$9:$E$58,2,FALSE) ) ) ->  | L103: =IF(AND(TRIM(L101)="",TRIM(L102)=""),"",L101+L102) -> 0 | P103: =IF(TRIM(O103)="", "", IF(VLOOKUP(O103,'Footnotes list'!$D$9:$E$58,2,FALSE)=0,"",VLOOKUP(O103,'Footnotes list'!$D$9:$E$58,2,FALSE) ) ) ->  | Q103: =IF(AND(TRIM(Q101)="",TRIM(Q102)=""),"",Q101+Q102) -> 1591.5 | U103: =IF(TRIM(T103)="", "", IF(VLOOKUP(T103,'Footnotes list'!$D$9:$E$58,2,FALSE)=0,"",VLOOKUP(T103,'Footnotes list'!$D$9:$E$58,2,FALSE) ) ) ->  | V103: =IF(AND(TRIM(V101)="",TRIM(V102)=""),"",V101+V102) -> 0 | Z103: =IF(TRIM(Y103)="", "", IF(VLOOKUP(Y103,'Footnotes list'!$D$9:$E$58,2,FALSE)=0,"",VLOOKUP(Y103,'Footnotes list'!$D$9:$E$58,2,FALSE) ) ) ->  | AA103: =IF(AND(TRIM(AA101)="", TRIM(AA102)=""), "", SUM(AA101,AA102)) -> 1591.5 | AE103: =IF(TRIM(AD103)="", "", IF(VLOOKUP(AD103,'Footnotes list'!$D$9:$E$58,2,FALSE)=0,"",VLOOKUP(AD103,'Footnotes list'!$D$9:$E$58,2,FALSE) ) ) ->  | AF103: =IF(AND(TRIM(AF101)="",TRIM(AF102)=""),"",AF101+AF102) -> 2.19 | AJ103: =IF(TRIM(AI103)="", "", IF(VLOOKUP(AI103,'Footnotes list'!$D$9:$E$58,2,FALSE)=0,"",VLOOKUP(AI103,'Footnotes list'!$D$9:$E$58,2,FALSE) ) ) ->  | AK103: =IF(AND(TRIM(AK101)="",TRIM(AK102)=""),"",AK101+AK102) -> 0 | AO103: =IF(TRIM(AN103)="", "", IF(VLOOKUP(AN103,'Footnotes list'!$D$9:$E$58,2,FALSE)=0,"",VLOOKUP(AN103,'Footnotes list'!$D$9:$E$58,2,FALSE) ) ) ->  | AP103: =IF(AND(TRIM(AP101)="", TRIM(AP102)=""), "", SUM(AP101,AP102)) -> 2.19 | AT103: =IF(TRIM(AS103)="", "", IF(VLOOKUP(AS103,'Footnotes list'!$D$9:$E$58,2,FALSE)=0,"",VLOOKUP(AS103,'Footnotes list'!$D$9:$E$58,2,FALSE) ) ) ->  | AU103: =IF(AND(TRIM(AU101)="", TRIM(AU102)=""), "", SUM(AU101,AU102) ) -> 1593.69 | AY103: =IF(TRIM(AX103)="", "", IF(VLOOKUP(AX103,'Footnotes list'!$D$9:$E$58,2,FALSE)=0,"",VLOOKUP(AX103,'Footnotes list'!$D$9:$E$58,2,FALSE) ) ) -> 
B104: W128_13 | C104: W128_13 | D104: Mineral wastes from waste treatment and stabilised wastes | E104: HAZ | F104: Hazardous | G104: 0 | K104: =IF(TRIM(J104)="", "", IF(VLOOKUP(J104,'Footnotes list'!$D$9:$E$58,2,FALSE)=0,"",VLOOKUP(J104,'Footnotes list'!$D$9:$E$58,2,FALSE) ) ) ->  | L104: 0 | P104: =IF(TRIM(O104)="", "", IF(VLOOKUP(O104,'Footnotes list'!$D$9:$E$58,2,FALSE)=0,"",VLOOKUP(O104,'Footnotes list'!$D$9:$E$58,2,FALSE) ) ) ->  | Q104: 0 | U104: =IF(TRIM(T104)="", "", IF(VLOOKUP(T104,'Footnotes list'!$D$9:$E$58,2,FALSE)=0,"",VLOOKUP(T104,'Footnotes list'!$D$9:$E$58,2,FALSE) ) ) ->  | V104: 0 | Z104: =IF(TRIM(Y104)="", "", IF(VLOOKUP(Y104,'Footnotes list'!$D$9:$E$58,2,FALSE)=0,"",VLOOKUP(Y104,'Footnotes list'!$D$9:$E$58,2,FALSE) ) ) ->  | AA104: =IF(AND(TRIM(Q104)="",TRIM(V104)=""),"",Q104+V104) -> 0 | AE104: =IF(TRIM(AD104)="", "", IF(VLOOKUP(AD104,'Footnotes list'!$D$9:$E$58,2,FALSE)=0,"",VLOOKUP(AD104,'Footnotes list'!$D$9:$E$58,2,FALSE) ) ) ->  | AF104: 0 | AJ104: =IF(TRIM(AI104)="", "", IF(VLOOKUP(AI104,'Footnotes list'!$D$9:$E$58,2,FALSE)=0,"",VLOOKUP(AI104,'Footnotes list'!$D$9:$E$58,2,FALSE) ) ) ->  | AK104: 0 | AO104: =IF(TRIM(AN104)="", "", IF(VLOOKUP(AN104,'Footnotes list'!$D$9:$E$58,2,FALSE)=0,"",VLOOKUP(AN104,'Footnotes list'!$D$9:$E$58,2,FALSE) ) ) ->  | AP104: =IF(AND(TRIM(AF104)="",TRIM(AK104)=""),"",AF104+AK104) -> 0 | AT104: =IF(TRIM(AS104)="", "", IF(VLOOKUP(AS104,'Footnotes list'!$D$9:$E$58,2,FALSE)=0,"",VLOOKUP(AS104,'Footnotes list'!$D$9:$E$58,2,FALSE) ) ) ->  | AU104: =IF(AND(TRIM(G104)="",TRIM(L104)="",TRIM(AA104)="",TRIM(AP104)=""),"",SUM(G104,L104,AA104,AP104)) -> 0 | AY104: =IF(TRIM(AX104)="", "", IF(VLOOKUP(AX104,'Footnotes list'!$D$9:$E$58,2,FALSE)=0,"",VLOOKUP(AX104,'Footnotes list'!$D$9:$E$58,2,FALSE) ) ) -> 
C105: W128_13 | E105: NHAZ | F105: Non-hazardous | G105: 0 | K105: =IF(TRIM(J105)="", "", IF(VLOOKUP(J105,'Footnotes list'!$D$9:$E$58,2,FALSE)=0,"",VLOOKUP(J105,'Footnotes list'!$D$9:$E$58,2,FALSE) ) ) ->  | L105: 0 | P105: =IF(TRIM(O105)="", "", IF(VLOOKUP(O105,'Footnotes list'!$D$9:$E$58,2,FALSE)=0,"",VLOOKUP(O105,'Footnotes list'!$D$9:$E$58,2,FALSE) ) ) ->  | Q105: 7267.12 | U105: =IF(TRIM(T105)="", "", IF(VLOOKUP(T105,'Footnotes list'!$D$9:$E$58,2,FALSE)=0,"",VLOOKUP(T105,'Footnotes list'!$D$9:$E$58,2,FALSE) ) ) ->  | V105: 21367.23 | Z105: =IF(TRIM(Y105)="", "", IF(VLOOKUP(Y105,'Footnotes list'!$D$9:$E$58,2,FALSE)=0,"",VLOOKUP(Y105,'Footnotes list'!$D$9:$E$58,2,FALSE) ) ) ->  | AA105: =IF(AND(TRIM(Q105)="",TRIM(V105)=""),"",Q105+V105) -> 28634.35 | AE105: =IF(TRIM(AD105)="", "", IF(VLOOKUP(AD105,'Footnotes list'!$D$9:$E$58,2,FALSE)=0,"",VLOOKUP(AD105,'Footnotes list'!$D$9:$E$58,2,FALSE) ) ) ->  | AF105: 1590.52 | AJ105: =IF(TRIM(AI105)="", "", IF(VLOOKUP(AI105,'Footnotes list'!$D$9:$E$58,2,FALSE)=0,"",VLOOKUP(AI105,'Footnotes list'!$D$9:$E$58,2,FALSE) ) ) ->  | AK105: 0 | AO105: =IF(TRIM(AN105)="", "", IF(VLOOKUP(AN105,'Footnotes list'!$D$9:$E$58,2,FALSE)=0,"",VLOOKUP(AN105,'Footnotes list'!$D$9:$E$58,2,FALSE) ) ) ->  | AP105: =IF(AND(TRIM(AF105)="",TRIM(AK105)=""),"",AF105+AK105) -> 1590.52 | AT105: =IF(TRIM(AS105)="", "", IF(VLOOKUP(AS105,'Footnotes list'!$D$9:$E$58,2,FALSE)=0,"",VLOOKUP(AS105,'Footnotes list'!$D$9:$E$58,2,FALSE) ) ) ->  | AU105: =IF(AND(TRIM(G105)="",TRIM(L105)="",TRIM(AA105)="",TRIM(AP105)=""),"",SUM(G105,L105,AA105,AP105)) -> 30224.87 | AY105: =IF(TRIM(AX105)="", "", IF(VLOOKUP(AX105,'Footnotes list'!$D$9:$E$58,2,FALSE)=0,"",VLOOKUP(AX105,'Footnotes list'!$D$9:$E$58,2,FALSE) ) ) -> 
C106: W128_13 | E106: HAZ_NHAZ | F106: Total | G106: =IF(AND(TRIM(G104)="",TRIM(G105)=""),"",G104+G105) -> 0 | K106: =IF(TRIM(J106)="", "", IF(VLOOKUP(J106,'Footnotes list'!$D$9:$E$58,2,FALSE)=0,"",VLOOKUP(J106,'Footnotes list'!$D$9:$E$58,2,FALSE) ) ) ->  | L106: =IF(AND(TRIM(L104)="",TRIM(L105)=""),"",L104+L105) -> 0 | P106: =IF(TRIM(O106)="", "", IF(VLOOKUP(O106,'Footnotes list'!$D$9:$E$58,2,FALSE)=0,"",VLOOKUP(O106,'Footnotes list'!$D$9:$E$58,2,FALSE) ) ) ->  | Q106: =IF(AND(TRIM(Q104)="",TRIM(Q105)=""),"",Q104+Q105) -> 7267.12 | U106: =IF(TRIM(T106)="", "", IF(VLOOKUP(T106,'Footnotes list'!$D$9:$E$58,2,FALSE)=0,"",VLOOKUP(T106,'Footnotes list'!$D$9:$E$58,2,FALSE) ) ) ->  | V106: =IF(AND(TRIM(V104)="",TRIM(V105)=""),"",V104+V105) -> 21367.23 | Z106: =IF(TRIM(Y106)="", "", IF(VLOOKUP(Y106,'Footnotes list'!$D$9:$E$58,2,FALSE)=0,"",VLOOKUP(Y106,'Footnotes list'!$D$9:$E$58,2,FALSE) ) ) ->  | AA106: =IF(AND(TRIM(AA104)="", TRIM(AA105)=""), "", SUM(AA104,AA105)) -> 28634.35 | AE106: =IF(TRIM(AD106)="", "", IF(VLOOKUP(AD106,'Footnotes list'!$D$9:$E$58,2,FALSE)=0,"",VLOOKUP(AD106,'Footnotes list'!$D$9:$E$58,2,FALSE) ) ) ->  | AF106: =IF(AND(TRIM(AF104)="",TRIM(AF105)=""),"",AF104+AF105) -> 1590.52 | AJ106: =IF(TRIM(AI106)="", "", IF(VLOOKUP(AI106,'Footnotes list'!$D$9:$E$58,2,FALSE)=0,"",VLOOKUP(AI106,'Footnotes list'!$D$9:$E$58,2,FALSE) ) ) ->  | AK106: =IF(AND(TRIM(AK104)="",TRIM(AK105)=""),"",AK104+AK105) -> 0 | AO106: =IF(TRIM(AN106)="", "", IF(VLOOKUP(AN106,'Footnotes list'!$D$9:$E$58,2,FALSE)=0,"",VLOOKUP(AN106,'Footnotes list'!$D$9:$E$58,2,FALSE) ) ) ->  | AP106: =IF(AND(TRIM(AP104)="", TRIM(AP105)=""), "", SUM(AP104,AP105)) -> 1590.52 | AT106: =IF(TRIM(AS106)="", "", IF(VLOOKUP(AS106,'Footnotes list'!$D$9:$E$58,2,FALSE)=0,"",VLOOKUP(AS106,'Footnotes list'!$D$9:$E$58,2,FALSE) ) ) ->  | AU106: =IF(AND(TRIM(AU104)="", TRIM(AU105)=""), "", SUM(AU104,AU105) ) -> 30224.87 | AY106: =IF(TRIM(AX106)="", "", IF(VLOOKUP(AX106,'Footnotes list'!$D$9:$E$58,2,FALSE)=0,"",VLOOKUP(AX106,'Footnotes list'!$D$9:$E$58,2,FALSE) ) ) -> 
B107: PRIM | C107: PRIM | D107: Primary waste | E107: HAZ | F107: Hazardous | G107: =SUM(G8,G11,G14,G17,G20,G26,G29,G32,G35,G38,G41,G44,G47,G50,G53,G56,G59,G62,G65,G68,G71,G74,G77,G80,G86,G89,G92,G95,G98,G101) -> 16895.206 | K107: =IF(TRIM(J107)="", "", IF(VLOOKUP(J107,'Footnotes list'!$D$9:$E$58,2,FALSE)=0,"",VLOOKUP(J107,'Footnotes list'!$D$9:$E$58,2,FALSE) ) ) ->  | L107: =SUM(L8,L11,L14,L17,L20,L26,L29,L32,L35,L38,L41,L44,L47,L50,L53,L56,L59,L62,L65,L68,L71,L74,L77,L80,L86,L89,L92,L95,L98,L101) -> 0 | P107: =IF(TRIM(O107)="", "", IF(VLOOKUP(O107,'Footnotes list'!$D$9:$E$58,2,FALSE)=0,"",VLOOKUP(O107,'Footnotes list'!$D$9:$E$58,2,FALSE) ) ) ->  | Q107: =SUM(Q8,Q11,Q14,Q17,Q20,Q26,Q29,Q32,Q35,Q38,Q41,Q44,Q47,Q50,Q53,Q56,Q59,Q62,Q65,Q68,Q71,Q74,Q77,Q80,Q86,Q89,Q92,Q95,Q98,Q101) -> 67766.795 | U107: =IF(TRIM(T107)="", "", IF(VLOOKUP(T107,'Footnotes list'!$D$9:$E$58,2,FALSE)=0,"",VLOOKUP(T107,'Footnotes list'!$D$9:$E$58,2,FALSE) ) ) ->  | V107: =SUM(V8,V11,V14,V17,V20,V26,V29,V32,V35,V38,V41,V44,V47,V50,V53,V56,V59,V62,V65,V68,V71,V74,V77,V80,V86,V89,V92,V95,V98,V101) -> 0 | Z107: =IF(TRIM(Y107)="", "", IF(VLOOKUP(Y107,'Footnotes list'!$D$9:$E$58,2,FALSE)=0,"",VLOOKUP(Y107,'Footnotes list'!$D$9:$E$58,2,FALSE) ) ) ->  | AA107: =SUM(AA8,AA11,AA14,AA17,AA20,AA26,AA29,AA32,AA35,AA38,AA41,AA44,AA47,AA50,AA53,AA56,AA59,AA62,AA65,AA68,AA71,AA74,AA77,AA80,AA86,AA89,AA92,AA95,AA98,AA101) -> 67766.795 | AE107: =IF(TRIM(AD107)="", "", IF(VLOOKUP(AD107,'Footnotes list'!$D$9:$E$58,2,FALSE)=0,"",VLOOKUP(AD107,'Footnotes list'!$D$9:$E$58,2,FALSE) ) ) ->  | AF107: =SUM(AF8,AF11,AF14,AF17,AF20,AF26,AF29,AF32,AF35,AF38,AF41,AF44,AF47,AF50,AF53,AF56,AF59,AF62,AF65,AF68,AF71,AF74,AF77,AF80,AF86,AF89,AF92,AF95,AF98,AF101) -> 3288.042 | AJ107: =IF(TRIM(AI107)="", "", IF(VLOOKUP(AI107,'Footnotes list'!$D$9:$E$58,2,FALSE)=0,"",VLOOKUP(AI107,'Footnotes list'!$D$9:$E$58,2,FALSE) ) ) ->  | AK107: =SUM(AK8,AK11,AK14,AK17,AK20,AK26,AK29,AK32,AK35,AK38,AK41,AK44,AK47,AK50,AK53,AK56,AK59,AK62,AK65,AK68,AK71,AK74,AK77,AK80,AK86,AK89,AK92,AK95,AK98,AK101) -> 0 | AO107: =IF(TRIM(AN107)="", "", IF(VLOOKUP(AN107,'Footnotes list'!$D$9:$E$58,2,FALSE)=0,"",VLOOKUP(AN107,'Footnotes list'!$D$9:$E$58,2,FALSE) ) ) ->  | AP107: =SUM(AP8,AP11,AP14,AP17,AP20,AP26,AP29,AP32,AP35,AP38,AP41,AP44,AP47,AP50,AP53,AP56,AP59,AP62,AP65,AP68,AP71,AP74,AP77,AP80,AP86,AP89,AP92,AP95,AP98,AP101) -> 3288.042 | AT107: =IF(TRIM(AS107)="", "", IF(VLOOKUP(AS107,'Footnotes list'!$D$9:$E$58,2,FALSE)=0,"",VLOOKUP(AS107,'Footnotes list'!$D$9:$E$58,2,FALSE) ) ) ->  | AU107: =SUM(AU8,AU11,AU14,AU17,AU20,AU26,AU29,AU32,AU35,AU38,AU41,AU44,AU47,AU50,AU53,AU56,AU59,AU62,AU65,AU68,AU71,AU74,AU77,AU80,AU86,AU89,AU92,AU95,AU98,AU101) -> 87950.043 | AY107: =IF(TRIM(AX107)="", "", IF(VLOOKUP(AX107,'Footnotes list'!$D$9:$E$58,2,FALSE)=0,"",VLOOKUP(AX107,'Footnotes list'!$D$9:$E$58,2,FALSE) ) ) -> 
C108: PRIM | E108: NHAZ | F108: Non-hazardous | G108: =SUM(G9,G12,G15,G18,G21,G27,G30,G33,G36,G39,G42,G45,G48,G51,G54,G57,G60,G63,G66,G69,G72,G75,G78,G81,G87,G90,G93,G96,G99,G102) -> 66276.064 | K108: =IF(TRIM(J108)="", "", IF(VLOOKUP(J108,'Footnotes list'!$D$9:$E$58,2,FALSE)=0,"",VLOOKUP(J108,'Footnotes list'!$D$9:$E$58,2,FALSE) ) ) ->  | L108: =SUM(L9,L12,L15,L18,L21,L27,L30,L33,L36,L39,L42,L45,L48,L51,L54,L57,L60,L63,L66,L69,L72,L75,L78,L81,L87,L90,L93,L96,L99,L102) -> 0 | P108: =IF(TRIM(O108)="", "", IF(VLOOKUP(O108,'Footnotes list'!$D$9:$E$58,2,FALSE)=0,"",VLOOKUP(O108,'Footnotes list'!$D$9:$E$58,2,FALSE) ) ) ->  | Q108: =SUM(Q9,Q12,Q15,Q18,Q21,Q27,Q30,Q33,Q36,Q39,Q42,Q45,Q48,Q51,Q54,Q57,Q60,Q63,Q66,Q69,Q72,Q75,Q78,Q81,Q87,Q90,Q93,Q96,Q99,Q102) -> 3094786.69 | U108: =IF(TRIM(T108)="", "", IF(VLOOKUP(T108,'Footnotes list'!$D$9:$E$58,2,FALSE)=0,"",VLOOKUP(T108,'Footnotes list'!$D$9:$E$58,2,FALSE) ) ) ->  | V108: =SUM(V9,V12,V15,V18,V21,V27,V30,V33,V36,V39,V42,V45,V48,V51,V54,V57,V60,V63,V66,V69,V72,V75,V78,V81,V87,V90,V93,V96,V99,V102) -> 54898.034 | Z108: =IF(TRIM(Y108)="", "", IF(VLOOKUP(Y108,'Footnotes list'!$D$9:$E$58,2,FALSE)=0,"",VLOOKUP(Y108,'Footnotes list'!$D$9:$E$58,2,FALSE) ) ) ->  | AA108: =SUM(AA9,AA12,AA15,AA18,AA21,AA27,AA30,AA33,AA36,AA39,AA42,AA45,AA48,AA51,AA54,AA57,AA60,AA63,AA66,AA69,AA72,AA75,AA78,AA81,AA87,AA90,AA93,AA96,AA99,AA102) -> 3149684.724 | AE108: =IF(TRIM(AD108)="", "", IF(VLOOKUP(AD108,'Footnotes list'!$D$9:$E$58,2,FALSE)=0,"",VLOOKUP(AD108,'Footnotes list'!$D$9:$E$58,2,FALSE) ) ) ->  | AF108: =SUM(AF9,AF12,AF15,AF18,AF21,AF27,AF30,AF33,AF36,AF39,AF42,AF45,AF48,AF51,AF54,AF57,AF60,AF63,AF66,AF69,AF72,AF75,AF78,AF81,AF87,AF90,AF93,AF96,AF99,AF102) -> 1516075.903 | AJ108: =IF(TRIM(AI108)="", "", IF(VLOOKUP(AI108,'Footnotes list'!$D$9:$E$58,2,FALSE)=0,"",VLOOKUP(AI108,'Footnotes list'!$D$9:$E$58,2,FALSE) ) ) ->  | AK108: =SUM(AK9,AK12,AK15,AK18,AK21,AK27,AK30,AK33,AK36,AK39,AK42,AK45,AK48,AK51,AK54,AK57,AK60,AK63,AK66,AK69,AK72,AK75,AK78,AK81,AK87,AK90,AK93,AK96,AK99,AK102) -> 3096.956 | AO108: =IF(TRIM(AN108)="", "", IF(VLOOKUP(AN108,'Footnotes list'!$D$9:$E$58,2,FALSE)=0,"",VLOOKUP(AN108,'Footnotes list'!$D$9:$E$58,2,FALSE) ) ) ->  | AP108: =SUM(AP9,AP12,AP15,AP18,AP21,AP27,AP30,AP33,AP36,AP39,AP42,AP45,AP48,AP51,AP54,AP57,AP60,AP63,AP66,AP69,AP72,AP75,AP78,AP81,AP87,AP90,AP93,AP96,AP99,AP102) -> 1519172.859 | AT108: =IF(TRIM(AS108)="", "", IF(VLOOKUP(AS108,'Footnotes list'!$D$9:$E$58,2,FALSE)=0,"",VLOOKUP(AS108,'Footnotes list'!$D$9:$E$58,2,FALSE) ) ) ->  | AU108: =SUM(AU9,AU12,AU15,AU18,AU21,AU27,AU30,AU33,AU36,AU39,AU42,AU45,AU48,AU51,AU54,AU57,AU60,AU63,AU66,AU69,AU72,AU75,AU78,AU81,AU87,AU90,AU93,AU96,AU99,AU102) -> 4735133.647 | AY108: =IF(TRIM(AX108)="", "", IF(VLOOKUP(AX108,'Footnotes list'!$D$9:$E$58,2,FALSE)=0,"",VLOOKUP(AX108,'Footnotes list'!$D$9:$E$58,2,FALSE) ) ) -> 
C109: PRIM | E109: HAZ_NHAZ | F109: Total | G109: 83171.27 | K109: =IF(TRIM(J109)="", "", IF(VLOOKUP(J109,'Footnotes list'!$D$9:$E$58,2,FALSE)=0,"",VLOOKUP(J109,'Footnotes list'!$D$9:$E$58,2,FALSE) ) ) ->  | L109: 0 | P109: =IF(TRIM(O109)="", "", IF(VLOOKUP(O109,'Footnotes list'!$D$9:$E$58,2,FALSE)=0,"",VLOOKUP(O109,'Footnotes list'!$D$9:$E$58,2,FALSE) ) ) ->  | Q109: 3162553.485 | U109: =IF(TRIM(T109)="", "", IF(VLOOKUP(T109,'Footnotes list'!$D$9:$E$58,2,FALSE)=0,"",VLOOKUP(T109,'Footnotes list'!$D$9:$E$58,2,FALSE) ) ) ->  | V109: 54898.034 | Z109: =IF(TRIM(Y109)="", "", IF(VLOOKUP(Y109,'Footnotes list'!$D$9:$E$58,2,FALSE)=0,"",VLOOKUP(Y109,'Footnotes list'!$D$9:$E$58,2,FALSE) ) ) ->  | AA109: 3217451.519 | AE109: =IF(TRIM(AD109)="", "", IF(VLOOKUP(AD109,'Footnotes list'!$D$9:$E$58,2,FALSE)=0,"",VLOOKUP(AD109,'Footnotes list'!$D$9:$E$58,2,FALSE) ) ) ->  | AF109: 1519363.945 | AJ109: =IF(TRIM(AI109)="", "", IF(VLOOKUP(AI109,'Footnotes list'!$D$9:$E$58,2,FALSE)=0,"",VLOOKUP(AI109,'Footnotes list'!$D$9:$E$58,2,FALSE) ) ) ->  | AK109: 3096.956 | AO109: =IF(TRIM(AN109)="", "", IF(VLOOKUP(AN109,'Footnotes list'!$D$9:$E$58,2,FALSE)=0,"",VLOOKUP(AN109,'Footnotes list'!$D$9:$E$58,2,FALSE) ) ) ->  | AP109: 1522460.901 | AT109: =IF(TRIM(AS109)="", "", IF(VLOOKUP(AS109,'Footnotes list'!$D$9:$E$58,2,FALSE)=0,"",VLOOKUP(AS109,'Footnotes list'!$D$9:$E$58,2,FALSE) ) ) ->  | AU109: 4823083.69 | AY109: =IF(TRIM(AX109)="", "", IF(VLOOKUP(AX109,'Footnotes list'!$D$9:$E$58,2,FALSE)=0,"",VLOOKUP(AX109,'Footnotes list'!$D$9:$E$58,2,FALSE) ) ) -> 
B110: SEC | C110: SEC | D110: Secondary Waste | E110: HAZ | F110: Hazardous | G110: =SUM(G23,G83,G104) -> 2459.23 | K110: =IF(TRIM(J110)="", "", IF(VLOOKUP(J110,'Footnotes list'!$D$9:$E$58,2,FALSE)=0,"",VLOOKUP(J110,'Footnotes list'!$D$9:$E$58,2,FALSE) ) ) ->  | L110: =SUM(L23,L83,L104) -> 0 | P110: =IF(TRIM(O110)="", "", IF(VLOOKUP(O110,'Footnotes list'!$D$9:$E$58,2,FALSE)=0,"",VLOOKUP(O110,'Footnotes list'!$D$9:$E$58,2,FALSE) ) ) ->  | Q110: =SUM(Q23,Q83,Q104) -> 7138.355 | U110: =IF(TRIM(T110)="", "", IF(VLOOKUP(T110,'Footnotes list'!$D$9:$E$58,2,FALSE)=0,"",VLOOKUP(T110,'Footnotes list'!$D$9:$E$58,2,FALSE) ) ) ->  | V110: =SUM(V23,V83,V104) -> 0 | Z110: =IF(TRIM(Y110)="", "", IF(VLOOKUP(Y110,'Footnotes list'!$D$9:$E$58,2,FALSE)=0,"",VLOOKUP(Y110,'Footnotes list'!$D$9:$E$58,2,FALSE) ) ) ->  | AA110: =SUM(AA23,AA83,AA104) -> 7138.355 | AE110: =IF(TRIM(AD110)="", "", IF(VLOOKUP(AD110,'Footnotes list'!$D$9:$E$58,2,FALSE)=0,"",VLOOKUP(AD110,'Footnotes list'!$D$9:$E$58,2,FALSE) ) ) ->  | AF110: =SUM(AF23,AF83,AF104) -> 0 | AJ110: =IF(TRIM(AI110)="", "", IF(VLOOKUP(AI110,'Footnotes list'!$D$9:$E$58,2,FALSE)=0,"",VLOOKUP(AI110,'Footnotes list'!$D$9:$E$58,2,FALSE) ) ) ->  | AK110: =SUM(AK23,AK83,AK104) -> 0 | AO110: =IF(TRIM(AN110)="", "", IF(VLOOKUP(AN110,'Footnotes list'!$D$9:$E$58,2,FALSE)=0,"",VLOOKUP(AN110,'Footnotes list'!$D$9:$E$58,2,FALSE) ) ) ->  | AP110: =SUM(AP23,AP83,AP104) -> 0 | AT110: =IF(TRIM(AS110)="", "", IF(VLOOKUP(AS110,'Footnotes list'!$D$9:$E$58,2,FALSE)=0,"",VLOOKUP(AS110,'Footnotes list'!$D$9:$E$58,2,FALSE) ) ) ->  | AU110: =SUM(AU23,AU83,AU104) -> 9597.585 | AY110: =IF(TRIM(AX110)="", "", IF(VLOOKUP(AX110,'Footnotes list'!$D$9:$E$58,2,FALSE)=0,"",VLOOKUP(AX110,'Footnotes list'!$D$9:$E$58,2,FALSE) ) ) -> 
C111: SEC | E111: NHAZ | F111: Non-hazardous | G111: =SUM(G24,G84,G105) -> 45268.15 | K111: =IF(TRIM(J111)="", "", IF(VLOOKUP(J111,'Footnotes list'!$D$9:$E$58,2,FALSE)=0,"",VLOOKUP(J111,'Footnotes list'!$D$9:$E$58,2,FALSE) ) ) ->  | L111: =SUM(L24,L84,L105) -> 0 | P111: =IF(TRIM(O111)="", "", IF(VLOOKUP(O111,'Footnotes list'!$D$9:$E$58,2,FALSE)=0,"",VLOOKUP(O111,'Footnotes list'!$D$9:$E$58,2,FALSE) ) ) ->  | Q111: =SUM(Q24,Q84,Q105) -> 19966.044 | U111: =IF(TRIM(T111)="", "", IF(VLOOKUP(T111,'Footnotes list'!$D$9:$E$58,2,FALSE)=0,"",VLOOKUP(T111,'Footnotes list'!$D$9:$E$58,2,FALSE) ) ) ->  | V111: =SUM(V24,V84,V105) -> 21367.23 | Z111: =IF(TRIM(Y111)="", "", IF(VLOOKUP(Y111,'Footnotes list'!$D$9:$E$58,2,FALSE)=0,"",VLOOKUP(Y111,'Footnotes list'!$D$9:$E$58,2,FALSE) ) ) ->  | AA111: =SUM(AA24,AA84,AA105) -> 41333.274 | AE111: =IF(TRIM(AD111)="", "", IF(VLOOKUP(AD111,'Footnotes list'!$D$9:$E$58,2,FALSE)=0,"",VLOOKUP(AD111,'Footnotes list'!$D$9:$E$58,2,FALSE) ) ) ->  | AF111: =SUM(AF24,AF84,AF105) -> 148377.012 | AJ111: =IF(TRIM(AI111)="", "", IF(VLOOKUP(AI111,'Footnotes list'!$D$9:$E$58,2,FALSE)=0,"",VLOOKUP(AI111,'Footnotes list'!$D$9:$E$58,2,FALSE) ) ) ->  | AK111: =SUM(AK24,AK84,AK105) -> 0 | AO111: =IF(TRIM(AN111)="", "", IF(VLOOKUP(AN111,'Footnotes list'!$D$9:$E$58,2,FALSE)=0,"",VLOOKUP(AN111,'Footnotes list'!$D$9:$E$58,2,FALSE) ) ) ->  | AP111: =SUM(AP24,AP84,AP105) -> 148377.012 | AT111: =IF(TRIM(AS111)="", "", IF(VLOOKUP(AS111,'Footnotes list'!$D$9:$E$58,2,FALSE)=0,"",VLOOKUP(AS111,'Footnotes list'!$D$9:$E$58,2,FALSE) ) ) ->  | AU111: =SUM(AU24,AU84,AU105) -> 234978.436 | AY111: =IF(TRIM(AX111)="", "", IF(VLOOKUP(AX111,'Footnotes list'!$D$9:$E$58,2,FALSE)=0,"",VLOOKUP(AX111,'Footnotes list'!$D$9:$E$58,2,FALSE) ) ) -> 
C112: SEC | E112: HAZ_NHAZ | F112: Total | G112: 47727.38 | K112: =IF(TRIM(J112)="", "", IF(VLOOKUP(J112,'Footnotes list'!$D$9:$E$58,2,FALSE)=0,"",VLOOKUP(J112,'Footnotes list'!$D$9:$E$58,2,FALSE) ) ) ->  | L112: 0 | P112: =IF(TRIM(O112)="", "", IF(VLOOKUP(O112,'Footnotes list'!$D$9:$E$58,2,FALSE)=0,"",VLOOKUP(O112,'Footnotes list'!$D$9:$E$58,2,FALSE) ) ) ->  | Q112: 27104.399 | U112: =IF(TRIM(T112)="", "", IF(VLOOKUP(T112,'Footnotes list'!$D$9:$E$58,2,FALSE)=0,"",VLOOKUP(T112,'Footnotes list'!$D$9:$E$58,2,FALSE) ) ) ->  | V112: 21367.23 | Z112: =IF(TRIM(Y112)="", "", IF(VLOOKUP(Y112,'Footnotes list'!$D$9:$E$58,2,FALSE)=0,"",VLOOKUP(Y112,'Footnotes list'!$D$9:$E$58,2,FALSE) ) ) ->  | AA112: 48471.629 | AE112: =IF(TRIM(AD112)="", "", IF(VLOOKUP(AD112,'Footnotes list'!$D$9:$E$58,2,FALSE)=0,"",VLOOKUP(AD112,'Footnotes list'!$D$9:$E$58,2,FALSE) ) ) ->  | AF112: 148377.012 | AJ112: =IF(TRIM(AI112)="", "", IF(VLOOKUP(AI112,'Footnotes list'!$D$9:$E$58,2,FALSE)=0,"",VLOOKUP(AI112,'Footnotes list'!$D$9:$E$58,2,FALSE) ) ) ->  | AK112: 0 | AO112: =IF(TRIM(AN112)="", "", IF(VLOOKUP(AN112,'Footnotes list'!$D$9:$E$58,2,FALSE)=0,"",VLOOKUP(AN112,'Footnotes list'!$D$9:$E$58,2,FALSE) ) ) ->  | AP112: 148377.012 | AT112: =IF(TRIM(AS112)="", "", IF(VLOOKUP(AS112,'Footnotes list'!$D$9:$E$58,2,FALSE)=0,"",VLOOKUP(AS112,'Footnotes list'!$D$9:$E$58,2,FALSE) ) ) ->  | AU112: 244576.021 | AY112: =IF(TRIM(AX112)="", "", IF(VLOOKUP(AX112,'Footnotes list'!$D$9:$E$58,2,FALSE)=0,"",VLOOKUP(AX112,'Footnotes list'!$D$9:$E$58,2,FALSE) ) ) -> 
B113: TOT_X_MIN | C113: TOT_X_MIN | D113: Total Waste (excluding mineral waste) | E113: HAZ | F113: Hazardous | G113: =SUM(G8,G11,G14,G17,G20,G23,G26,G29,G32,G35,G38,G41,G44,G47,G50,G53,G56,G59,G62,G65,G68,G71,G74,G77,G80,G83,G86,G95,G104) -> 14798.606 | K113: =IF(TRIM(J113)="", "", IF(VLOOKUP(J113,'Footnotes list'!$D$9:$E$58,2,FALSE)=0,"",VLOOKUP(J113,'Footnotes list'!$D$9:$E$58,2,FALSE) ) ) ->  | L113: =SUM(L8,L11,L14,L17,L20,L23,L26,L29,L32,L35,L38,L41,L44,L47,L50,L53,L56,L59,L62,L65,L68,L71,L74,L77,L80,L83,L86,L95,L104) -> 0 | P113: =IF(TRIM(O113)="", "", IF(VLOOKUP(O113,'Footnotes list'!$D$9:$E$58,2,FALSE)=0,"",VLOOKUP(O113,'Footnotes list'!$D$9:$E$58,2,FALSE) ) ) ->  | Q113: =SUM(Q8,Q11,Q14,Q17,Q20,Q23,Q26,Q29,Q32,Q35,Q38,Q41,Q44,Q47,Q50,Q53,Q56,Q59,Q62,Q65,Q68,Q71,Q74,Q77,Q80,Q83,Q86,Q95,Q104) -> 74756.75 | U113: =IF(TRIM(T113)="", "", IF(VLOOKUP(T113,'Footnotes list'!$D$9:$E$58,2,FALSE)=0,"",VLOOKUP(T113,'Footnotes list'!$D$9:$E$58,2,FALSE) ) ) ->  | V113: =SUM(V8,V11,V14,V17,V20,V23,V26,V29,V32,V35,V38,V41,V44,V47,V50,V53,V56,V59,V62,V65,V68,V71,V74,V77,V80,V83,V86,V95,V104) -> 0 | Z113: =IF(TRIM(Y113)="", "", IF(VLOOKUP(Y113,'Footnotes list'!$D$9:$E$58,2,FALSE)=0,"",VLOOKUP(Y113,'Footnotes list'!$D$9:$E$58,2,FALSE) ) ) ->  | AA113: =SUM(AA8,AA11,AA14,AA17,AA20,AA23,AA26,AA29,AA32,AA35,AA38,AA41,AA44,AA47,AA50,AA53,AA56,AA59,AA62,AA65,AA68,AA71,AA74,AA77,AA80,AA83,AA86,AA95,AA104) -> 74756.75 | AE113: =IF(TRIM(AD113)="", "", IF(VLOOKUP(AD113,'Footnotes list'!$D$9:$E$58,2,FALSE)=0,"",VLOOKUP(AD113,'Footnotes list'!$D$9:$E$58,2,FALSE) ) ) ->  | AF113: =SUM(AF8,AF11,AF14,AF17,AF20,AF23,AF26,AF29,AF32,AF35,AF38,AF41,AF44,AF47,AF50,AF53,AF56,AF59,AF62,AF65,AF68,AF71,AF74,AF77,AF80,AF83,AF86,AF95,AF104) -> 0 | AJ113: =IF(TRIM(AI113)="", "", IF(VLOOKUP(AI113,'Footnotes list'!$D$9:$E$58,2,FALSE)=0,"",VLOOKUP(AI113,'Footnotes list'!$D$9:$E$58,2,FALSE) ) ) ->  | AK113: =SUM(AK8,AK11,AK14,AK17,AK20,AK23,AK26,AK29,AK32,AK35,AK38,AK41,AK44,AK47,AK50,AK53,AK56,AK59,AK62,AK65,AK68,AK71,AK74,AK77,AK80,AK83,AK86,AK95,AK104) -> 0 | AO113: =IF(TRIM(AN113)="", "", IF(VLOOKUP(AN113,'Footnotes list'!$D$9:$E$58,2,FALSE)=0,"",VLOOKUP(AN113,'Footnotes list'!$D$9:$E$58,2,FALSE) ) ) ->  | AP113: =SUM(AP8,AP11,AP14,AP17,AP20,AP23,AP26,AP29,AP32,AP35,AP38,AP41,AP44,AP47,AP50,AP53,AP56,AP59,AP62,AP65,AP68,AP71,AP74,AP77,AP80,AP83,AP86,AP95,AP104) -> 0 | AT113: =IF(TRIM(AS113)="", "", IF(VLOOKUP(AS113,'Footnotes list'!$D$9:$E$58,2,FALSE)=0,"",VLOOKUP(AS113,'Footnotes list'!$D$9:$E$58,2,FALSE) ) ) ->  | AU113: =SUM(AU8,AU11,AU14,AU17,AU20,AU23,AU26,AU29,AU32,AU35,AU38,AU41,AU44,AU47,AU50,AU53,AU56,AU59,AU62,AU65,AU68,AU71,AU74,AU77,AU80,AU83,AU86,AU95,AU104) -> 89555.356 | AY113: =IF(TRIM(AX113)="", "", IF(VLOOKUP(AX113,'Footnotes list'!$D$9:$E$58,2,FALSE)=0,"",VLOOKUP(AX113,'Footnotes list'!$D$9:$E$58,2,FALSE) ) ) -> 
C114: TOT_X_MIN | E114: NHAZ | F114: Non-hazardous | G114: =SUM(G9,G12,G15,G18,G21,G24,G27,G30,G33,G36,G39,G42,G45,G48,G51,G54,G57,G60,G63,G66,G69,G72,G75,G78,G81,G84,G87,G96,G105) -> 111116.614 | K114: =IF(TRIM(J114)="", "", IF(VLOOKUP(J114,'Footnotes list'!$D$9:$E$58,2,FALSE)=0,"",VLOOKUP(J114,'Footnotes list'!$D$9:$E$58,2,FALSE) ) ) ->  | L114: =SUM(L9,L12,L15,L18,L21,L24,L27,L30,L33,L36,L39,L42,L45,L48,L51,L54,L57,L60,L63,L66,L69,L72,L75,L78,L81,L84,L87,L96,L105) -> 0 | P114: =IF(TRIM(O114)="", "", IF(VLOOKUP(O114,'Footnotes list'!$D$9:$E$58,2,FALSE)=0,"",VLOOKUP(O114,'Footnotes list'!$D$9:$E$58,2,FALSE) ) ) ->  | Q114: =SUM(Q9,Q12,Q15,Q18,Q21,Q24,Q27,Q30,Q33,Q36,Q39,Q42,Q45,Q48,Q51,Q54,Q57,Q60,Q63,Q66,Q69,Q72,Q75,Q78,Q81,Q84,Q87,Q96,Q105) -> 2531374.403 | U114: =IF(TRIM(T114)="", "", IF(VLOOKUP(T114,'Footnotes list'!$D$9:$E$58,2,FALSE)=0,"",VLOOKUP(T114,'Footnotes list'!$D$9:$E$58,2,FALSE) ) ) ->  | V114: =SUM(V9,V12,V15,V18,V21,V24,V27,V30,V33,V36,V39,V42,V45,V48,V51,V54,V57,V60,V63,V66,V69,V72,V75,V78,V81,V84,V87,V96,V105) -> 22783.23 | Z114: =IF(TRIM(Y114)="", "", IF(VLOOKUP(Y114,'Footnotes list'!$D$9:$E$58,2,FALSE)=0,"",VLOOKUP(Y114,'Footnotes list'!$D$9:$E$58,2,FALSE) ) ) ->  | AA114: =SUM(AA9,AA12,AA15,AA18,AA21,AA24,AA27,AA30,AA33,AA36,AA39,AA42,AA45,AA48,AA51,AA54,AA57,AA60,AA63,AA66,AA69,AA72,AA75,AA78,AA81,AA84,AA87,AA96,AA105) -> 2554157.633 | AE114: =IF(TRIM(AD114)="", "", IF(VLOOKUP(AD114,'Footnotes list'!$D$9:$E$58,2,FALSE)=0,"",VLOOKUP(AD114,'Footnotes list'!$D$9:$E$58,2,FALSE) ) ) ->  | AF114: =SUM(AF9,AF12,AF15,AF18,AF21,AF24,AF27,AF30,AF33,AF36,AF39,AF42,AF45,AF48,AF51,AF54,AF57,AF60,AF63,AF66,AF69,AF72,AF75,AF78,AF81,AF84,AF87,AF96,AF105) -> 1112408.255 | AJ114: =IF(TRIM(AI114)="", "", IF(VLOOKUP(AI114,'Footnotes list'!$D$9:$E$58,2,FALSE)=0,"",VLOOKUP(AI114,'Footnotes list'!$D$9:$E$58,2,FALSE) ) ) ->  | AK114: =SUM(AK9,AK12,AK15,AK18,AK21,AK24,AK27,AK30,AK33,AK36,AK39,AK42,AK45,AK48,AK51,AK54,AK57,AK60,AK63,AK66,AK69,AK72,AK75,AK78,AK81,AK84,AK87,AK96,AK105) -> 3096.956 | AO114: =IF(TRIM(AN114)="", "", IF(VLOOKUP(AN114,'Footnotes list'!$D$9:$E$58,2,FALSE)=0,"",VLOOKUP(AN114,'Footnotes list'!$D$9:$E$58,2,FALSE) ) ) ->  | AP114: =SUM(AP9,AP12,AP15,AP18,AP21,AP24,AP27,AP30,AP33,AP36,AP39,AP42,AP45,AP48,AP51,AP54,AP57,AP60,AP63,AP66,AP69,AP72,AP75,AP78,AP81,AP84,AP87,AP96,AP105) -> 1115505.211 | AT114: =IF(TRIM(AS114)="", "", IF(VLOOKUP(AS114,'Footnotes list'!$D$9:$E$58,2,FALSE)=0,"",VLOOKUP(AS114,'Footnotes list'!$D$9:$E$58,2,FALSE) ) ) ->  | AU114: =SUM(AU9,AU12,AU15,AU18,AU21,AU24,AU27,AU30,AU33,AU36,AU39,AU42,AU45,AU48,AU51,AU54,AU57,AU60,AU63,AU66,AU69,AU72,AU75,AU78,AU81,AU84,AU87,AU96,AU105) -> 3780779.458 | AY114: =IF(TRIM(AX114)="", "", IF(VLOOKUP(AX114,'Footnotes list'!$D$9:$E$58,2,FALSE)=0,"",VLOOKUP(AX114,'Footnotes list'!$D$9:$E$58,2,FALSE) ) ) -> 
C115: TOT_X_MIN | E115: HAZ_NHAZ | F115: Total | G115: 125915.22 | K115: =IF(TRIM(J115)="", "", IF(VLOOKUP(J115,'Footnotes list'!$D$9:$E$58,2,FALSE)=0,"",VLOOKUP(J115,'Footnotes list'!$D$9:$E$58,2,FALSE) ) ) ->  | L115: 0 | P115: =IF(TRIM(O115)="", "", IF(VLOOKUP(O115,'Footnotes list'!$D$9:$E$58,2,FALSE)=0,"",VLOOKUP(O115,'Footnotes list'!$D$9:$E$58,2,FALSE) ) ) ->  | Q115: 2606131.153 | U115: =IF(TRIM(T115)="", "", IF(VLOOKUP(T115,'Footnotes list'!$D$9:$E$58,2,FALSE)=0,"",VLOOKUP(T115,'Footnotes list'!$D$9:$E$58,2,FALSE) ) ) ->  | V115: 22783.23 | Z115: =IF(TRIM(Y115)="", "", IF(VLOOKUP(Y115,'Footnotes list'!$D$9:$E$58,2,FALSE)=0,"",VLOOKUP(Y115,'Footnotes list'!$D$9:$E$58,2,FALSE) ) ) ->  | AA115: 2628914.383 | AE115: =IF(TRIM(AD115)="", "", IF(VLOOKUP(AD115,'Footnotes list'!$D$9:$E$58,2,FALSE)=0,"",VLOOKUP(AD115,'Footnotes list'!$D$9:$E$58,2,FALSE) ) ) ->  | AF115: 1112408.255 | AJ115: =IF(TRIM(AI115)="", "", IF(VLOOKUP(AI115,'Footnotes list'!$D$9:$E$58,2,FALSE)=0,"",VLOOKUP(AI115,'Footnotes list'!$D$9:$E$58,2,FALSE) ) ) ->  | AK115: 3096.956 | AO115: =IF(TRIM(AN115)="", "", IF(VLOOKUP(AN115,'Footnotes list'!$D$9:$E$58,2,FALSE)=0,"",VLOOKUP(AN115,'Footnotes list'!$D$9:$E$58,2,FALSE) ) ) ->  | AP115: 1115505.211 | AT115: =IF(TRIM(AS115)="", "", IF(VLOOKUP(AS115,'Footnotes list'!$D$9:$E$58,2,FALSE)=0,"",VLOOKUP(AS115,'Footnotes list'!$D$9:$E$58,2,FALSE) ) ) ->  | AU115: 3870334.814 | AY115: =IF(TRIM(AX115)="", "", IF(VLOOKUP(AX115,'Footnotes list'!$D$9:$E$58,2,FALSE)=0,"",VLOOKUP(AX115,'Footnotes list'!$D$9:$E$58,2,FALSE) ) ) -> 
B116: TOTAL | C116: TOTAL | D116: Total Waste | E116: HAZ | F116: Hazardous | G116: =SUM(G8,G11,G14,G17,G20,G23,G26,G29,G32,G35,G38,G41,G44,G47,G50,G53,G56,G59,G62,G65,G68,G71,G74,G77,G80,G83,G86,G89,G92,G95,G98,G101,G104) -> 19354.436 | K116: =IF(TRIM(J116)="", "", IF(VLOOKUP(J116,'Footnotes list'!$D$9:$E$58,2,FALSE)=0,"",VLOOKUP(J116,'Footnotes list'!$D$9:$E$58,2,FALSE) ) ) ->  | L116: =SUM(L8,L11,L14,L17,L20,L23,L26,L29,L32,L35,L38,L41,L44,L47,L50,L53,L56,L59,L62,L65,L68,L71,L74,L77,L80,L83,L86,L89,L92,L95,L98,L101,L104) -> 0 | P116: =IF(TRIM(O116)="", "", IF(VLOOKUP(O116,'Footnotes list'!$D$9:$E$58,2,FALSE)=0,"",VLOOKUP(O116,'Footnotes list'!$D$9:$E$58,2,FALSE) ) ) ->  | Q116: =SUM(Q8,Q11,Q14,Q17,Q20,Q23,Q26,Q29,Q32,Q35,Q38,Q41,Q44,Q47,Q50,Q53,Q56,Q59,Q62,Q65,Q68,Q71,Q74,Q77,Q80,Q83,Q86,Q89,Q92,Q95,Q98,Q101,Q104) -> 74905.15 | U116: =IF(TRIM(T116)="", "", IF(VLOOKUP(T116,'Footnotes list'!$D$9:$E$58,2,FALSE)=0,"",VLOOKUP(T116,'Footnotes list'!$D$9:$E$58,2,FALSE) ) ) ->  | V116: =SUM(V8,V11,V14,V17,V20,V23,V26,V29,V32,V35,V38,V41,V44,V47,V50,V53,V56,V59,V62,V65,V68,V71,V74,V77,V80,V83,V86,V89,V92,V95,V98,V101,V104) -> 0 | Z116: =IF(TRIM(Y116)="", "", IF(VLOOKUP(Y116,'Footnotes list'!$D$9:$E$58,2,FALSE)=0,"",VLOOKUP(Y116,'Footnotes list'!$D$9:$E$58,2,FALSE) ) ) ->  | AA116: =SUM(AA8,AA11,AA14,AA17,AA20,AA23,AA26,AA29,AA32,AA35,AA38,AA41,AA44,AA47,AA50,AA53,AA56,AA59,AA62,AA65,AA68,AA71,AA74,AA77,AA80,AA83,AA86,AA89,AA92,AA95,AA98,AA101,AA104) -> 74905.15 | AE116: =IF(TRIM(AD116)="", "", IF(VLOOKUP(AD116,'Footnotes list'!$D$9:$E$58,2,FALSE)=0,"",VLOOKUP(AD116,'Footnotes list'!$D$9:$E$58,2,FALSE) ) ) ->  | AF116: =SUM(AF8,AF11,AF14,AF17,AF20,AF23,AF26,AF29,AF32,AF35,AF38,AF41,AF44,AF47,AF50,AF53,AF56,AF59,AF62,AF65,AF68,AF71,AF74,AF77,AF80,AF83,AF86,AF89,AF92,AF95,AF98,AF101,AF104) -> 3288.042 | AJ116: =IF(TRIM(AI116)="", "", IF(VLOOKUP(AI116,'Footnotes list'!$D$9:$E$58,2,FALSE)=0,"",VLOOKUP(AI116,'Footnotes list'!$D$9:$E$58,2,FALSE) ) ) ->  | AK116: =SUM(AK8,AK11,AK14,AK17,AK20,AK23,AK26,AK29,AK32,AK35,AK38,AK41,AK44,AK47,AK50,AK53,AK56,AK59,AK62,AK65,AK68,AK71,AK74,AK77,AK80,AK83,AK86,AK89,AK92,AK95,AK98,AK101,AK104) -> 0 | AO116: =IF(TRIM(AN116)="", "", IF(VLOOKUP(AN116,'Footnotes list'!$D$9:$E$58,2,FALSE)=0,"",VLOOKUP(AN116,'Footnotes list'!$D$9:$E$58,2,FALSE) ) ) ->  | AP116: =SUM(AP8,AP11,AP14,AP17,AP20,AP23,AP26,AP29,AP32,AP35,AP38,AP41,AP44,AP47,AP50,AP53,AP56,AP59,AP62,AP65,AP68,AP71,AP74,AP77,AP80,AP83,AP86,AP89,AP92,AP95,AP98,AP101,AP104) -> 3288.042 | AT116: =IF(TRIM(AS116)="", "", IF(VLOOKUP(AS116,'Footnotes list'!$D$9:$E$58,2,FALSE)=0,"",VLOOKUP(AS116,'Footnotes list'!$D$9:$E$58,2,FALSE) ) ) ->  | AU116: =SUM(AU8,AU11,AU14,AU17,AU20,AU23,AU26,AU29,AU32,AU35,AU38,AU41,AU44,AU47,AU50,AU53,AU56,AU59,AU62,AU65,AU68,AU71,AU74,AU77,AU80,AU83,AU86,AU89,AU92,AU95,AU98,AU101,AU104) -> 97547.628 | AY116: =IF(TRIM(AX116)="", "", IF(VLOOKUP(AX116,'Footnotes list'!$D$9:$E$58,2,FALSE)=0,"",VLOOKUP(AX116,'Footnotes list'!$D$9:$E$58,2,FALSE) ) ) -> 
C117: TOTAL | E117: NHAZ | F117: Non-hazardous | G117: =SUM(G9,G12,G15,G18,G21,G24,G27,G30,G33,G36,G39,G42,G45,G48,G51,G54,G57,G60,G63,G66,G69,G72,G75,G78,G81,G84,G87,G90,G93,G96,G99,G102,G105) -> 111544.214 | K117: =IF(TRIM(J117)="", "", IF(VLOOKUP(J117,'Footnotes list'!$D$9:$E$58,2,FALSE)=0,"",VLOOKUP(J117,'Footnotes list'!$D$9:$E$58,2,FALSE) ) ) ->  | L117: =SUM(L9,L12,L15,L18,L21,L24,L27,L30,L33,L36,L39,L42,L45,L48,L51,L54,L57,L60,L63,L66,L69,L72,L75,L78,L81,L84,L87,L90,L93,L96,L99,L102,L105) -> 0 | P117: =IF(TRIM(O117)="", "", IF(VLOOKUP(O117,'Footnotes list'!$D$9:$E$58,2,FALSE)=0,"",VLOOKUP(O117,'Footnotes list'!$D$9:$E$58,2,FALSE) ) ) ->  | Q117: =SUM(Q9,Q12,Q15,Q18,Q21,Q24,Q27,Q30,Q33,Q36,Q39,Q42,Q45,Q48,Q51,Q54,Q57,Q60,Q63,Q66,Q69,Q72,Q75,Q78,Q81,Q84,Q87,Q90,Q93,Q96,Q99,Q102,Q105) -> 3114752.734 | U117: =IF(TRIM(T117)="", "", IF(VLOOKUP(T117,'Footnotes list'!$D$9:$E$58,2,FALSE)=0,"",VLOOKUP(T117,'Footnotes list'!$D$9:$E$58,2,FALSE) ) ) ->  | V117: =SUM(V9,V12,V15,V18,V21,V24,V27,V30,V33,V36,V39,V42,V45,V48,V51,V54,V57,V60,V63,V66,V69,V72,V75,V78,V81,V84,V87,V90,V93,V96,V99,V102,V105) -> 76265.264 | Z117: =IF(TRIM(Y117)="", "", IF(VLOOKUP(Y117,'Footnotes list'!$D$9:$E$58,2,FALSE)=0,"",VLOOKUP(Y117,'Footnotes list'!$D$9:$E$58,2,FALSE) ) ) ->  | AA117: =SUM(AA9,AA12,AA15,AA18,AA21,AA24,AA27,AA30,AA33,AA36,AA39,AA42,AA45,AA48,AA51,AA54,AA57,AA60,AA63,AA66,AA69,AA72,AA75,AA78,AA81,AA84,AA87,AA90,AA93,AA96,AA99,AA102,AA105) -> 3191017.998 | AE117: =IF(TRIM(AD117)="", "", IF(VLOOKUP(AD117,'Footnotes list'!$D$9:$E$58,2,FALSE)=0,"",VLOOKUP(AD117,'Footnotes list'!$D$9:$E$58,2,FALSE) ) ) ->  | AF117: =SUM(AF9,AF12,AF15,AF18,AF21,AF24,AF27,AF30,AF33,AF36,AF39,AF42,AF45,AF48,AF51,AF54,AF57,AF60,AF63,AF66,AF69,AF72,AF75,AF78,AF81,AF84,AF87,AF90,AF93,AF96,AF99,AF102,AF105) -> 1664452.915 | AJ117: =IF(TRIM(AI117)="", "", IF(VLOOKUP(AI117,'Footnotes list'!$D$9:$E$58,2,FALSE)=0,"",VLOOKUP(AI117,'Footnotes list'!$D$9:$E$58,2,FALSE) ) ) ->  | AK117: =SUM(AK9,AK12,AK15,AK18,AK21,AK24,AK27,AK30,AK33,AK36,AK39,AK42,AK45,AK48,AK51,AK54,AK57,AK60,AK63,AK66,AK69,AK72,AK75,AK78,AK81,AK84,AK87,AK90,AK93,AK96,AK99,AK102,AK105) -> 3096.956 | AO117: =IF(TRIM(AN117)="", "", IF(VLOOKUP(AN117,'Footnotes list'!$D$9:$E$58,2,FALSE)=0,"",VLOOKUP(AN117,'Footnotes list'!$D$9:$E$58,2,FALSE) ) ) ->  | AP117: =SUM(AP9,AP12,AP15,AP18,AP21,AP24,AP27,AP30,AP33,AP36,AP39,AP42,AP45,AP48,AP51,AP54,AP57,AP60,AP63,AP66,AP69,AP72,AP75,AP78,AP81,AP84,AP87,AP90,AP93,AP96,AP99,AP102,AP105) -> 1667549.871 | AT117: =IF(TRIM(AS117)="", "", IF(VLOOKUP(AS117,'Footnotes list'!$D$9:$E$58,2,FALSE)=0,"",VLOOKUP(AS117,'Footnotes list'!$D$9:$E$58,2,FALSE) ) ) ->  | AU117: =SUM(AU9,AU12,AU15,AU18,AU21,AU24,AU27,AU30,AU33,AU36,AU39,AU42,AU45,AU48,AU51,AU54,AU57,AU60,AU63,AU66,AU69,AU72,AU75,AU78,AU81,AU84,AU87,AU90,AU93,AU96,AU99,AU102,AU105) -> 4970112.083 | AY117: =IF(TRIM(AX117)="", "", IF(VLOOKUP(AX117,'Footnotes list'!$D$9:$E$58,2,FALSE)=0,"",VLOOKUP(AX117,'Footnotes list'!$D$9:$E$58,2,FALSE) ) ) -> 
C118: TOTAL | E118: HAZ_NHAZ | F118: Total | G118: 130898.65 | K118: =IF(TRIM(J118)="", "", IF(VLOOKUP(J118,'Footnotes list'!$D$9:$E$58,2,FALSE)=0,"",VLOOKUP(J118,'Footnotes list'!$D$9:$E$58,2,FALSE) ) ) ->  | L118: 0 | P118: =IF(TRIM(O118)="", "", IF(VLOOKUP(O118,'Footnotes list'!$D$9:$E$58,2,FALSE)=0,"",VLOOKUP(O118,'Footnotes list'!$D$9:$E$58,2,FALSE) ) ) ->  | Q118: 3189657.884 | U118: =IF(TRIM(T118)="", "", IF(VLOOKUP(T118,'Footnotes list'!$D$9:$E$58,2,FALSE)=0,"",VLOOKUP(T118,'Footnotes list'!$D$9:$E$58,2,FALSE) ) ) ->  | V118: 76265.264 | Z118: =IF(TRIM(Y118)="", "", IF(VLOOKUP(Y118,'Footnotes list'!$D$9:$E$58,2,FALSE)=0,"",VLOOKUP(Y118,'Footnotes list'!$D$9:$E$58,2,FALSE) ) ) ->  | AA118: 3265923.148 | AE118: =IF(TRIM(AD118)="", "", IF(VLOOKUP(AD118,'Footnotes list'!$D$9:$E$58,2,FALSE)=0,"",VLOOKUP(AD118,'Footnotes list'!$D$9:$E$58,2,FALSE) ) ) ->  | AF118: 1667740.957 | AJ118: =IF(TRIM(AI118)="", "", IF(VLOOKUP(AI118,'Footnotes list'!$D$9:$E$58,2,FALSE)=0,"",VLOOKUP(AI118,'Footnotes list'!$D$9:$E$58,2,FALSE) ) ) ->  | AK118: 3096.956 | AO118: =IF(TRIM(AN118)="", "", IF(VLOOKUP(AN118,'Footnotes list'!$D$9:$E$58,2,FALSE)=0,"",VLOOKUP(AN118,'Footnotes list'!$D$9:$E$58,2,FALSE) ) ) ->  | AP118: 1670837.913 | AT118: =IF(TRIM(AS118)="", "", IF(VLOOKUP(AS118,'Footnotes list'!$D$9:$E$58,2,FALSE)=0,"",VLOOKUP(AS118,'Footnotes list'!$D$9:$E$58,2,FALSE) ) ) ->  | AU118: 5067659.711 | AY118: =IF(TRIM(AX118)="", "", IF(VLOOKUP(AX118,'Footnotes list'!$D$9:$E$58,2,FALSE)=0,"",VLOOKUP(AX118,'Footnotes list'!$D$9:$E$58,2,FALSE) ) ) -> 
B120: Notes:
B122: Cell shading:
B123: White: Data provision is mandatory.
B124: Light grey: Automatic calculation. Formula can exceptionally be changed by a value
B125: Light orange: Footnotes (only to be filled-in when relevant)
B126: Black: Not applicable
B129: Valid standard footnotes:
B130: B - Break in time series
B131: E - Estimate
B132: P - Provisional
B134: Valid confidentiality footnotes:
B135: C - Confidential
B136: D - Secondary confidentiality set by the sender, not for publication

Sheet ErrorLog
A1: Link to Error | B1: Validation Rule | C1: Cell | D1: Sheet | E1: Description | F1: Severity | G1: Former Color

Sheet Table_1 (COPY-PASTING)
G2: NOT VALID FOR REPORTING … NOT VALID FOR REPORTING ... NOT VALID FOR REPORTING … NOT VALID FOR REPORTING … NOT VALID FOR REPORTING
B3: Country: | D3: =IF('GETTING STARTED'!E9="","",'GETTING STARTED'!E9) -> Croatia | F3: =IF('GETTING STARTED'!G9="","",'GETTING STARTED'!G9) -> HR
B4: Reference year: | D4: =IF('GETTING STARTED'!E10="","",'GETTING STARTED'!E10) -> 2022
B5: Unit: Tonnes | D5: T | G5: RCV_E | L5: DSP_I | Q5: RCV_R | V5: RCV_B | AA5: RCV_R_B | AF5: DSP_L | AK5: DSP_OTH | AP5: DSP_L_OTH | AU5: TRT
G6: RCV_E | L6: DSP_I | Q6: RCV_R | V6: RCV_B | AA6: RCV_R_B | AF6: DSP_L | AK6: DSP_OTH | AP6: DSP_L_OTH | AU6: TRT
B7: WASTE TREATMENT by waste category (EWC-STAT) and treatment category | G7: Recovery - energy recovery (R1) | H7: Standard footnote | I7: Confidentiality footnote | J7: Explanatory footnote | L7: Disposal - incineration (D10) | M7: Standard footnote | N7: Confidentiality footnote | O7: Explanatory footnote | Q7: Recovery - recycling | R7: Standard footnote | S7: Confidentiality footnote | T7: Explanatory footnote | V7: Recovery - backfilling | W7: Standard footnote | X7: Confidentiality footnote | Y7: Explanatory footnote | AA7: Recovery - recycling and backfilling | AB7: Standard footnote | AC7: Confidentiality footnote | AD7: Explanatory footnote | AF7: Disposal - landfill (D1, D5, D12) | AG7: Standard footnote | AH7: Confidentiality footnote | AI7: Explanatory footnote | AK7: Disposal - other (D2-D4, D6-D7) | AL7: Standard footnote | AM7: Confidentiality footnote | AN7: Explanatory footnote | AP7: Disposal - landfill and other (D1-D7, D12) | AQ7: Standard footnote | AR7: Confidentiality footnote | AS7: Explanatory footnote | AU7: Waste treatment | AV7: Standard footnote | AW7: Confidentiality footnote | AX7: Explanatory footnote
B8: W011 | C8: W011 | D8: Spent solvents | E8: HAZ | F8: Hazardous | K8: =IF(TRIM(J8)="", "", IF(VLOOKUP(J8,'Footnotes list'!$D$9:$E$58,2,FALSE)=0,"",VLOOKUP(J8,'Footnotes list'!$D$9:$E$58,2,FALSE) ) ) ->  | P8: =IF(TRIM(O8)="", "", IF(VLOOKUP(O8,'Footnotes list'!$D$9:$E$58,2,FALSE)=0,"",VLOOKUP(O8,'Footnotes list'!$D$9:$E$58,2,FALSE) ) ) ->  | U8: =IF(TRIM(T8)="", "", IF(VLOOKUP(T8,'Footnotes list'!$D$9:$E$58,2,FALSE)=0,"",VLOOKUP(T8,'Footnotes list'!$D$9:$E$58,2,FALSE) ) ) ->  | Z8: =IF(TRIM(Y8)="", "", IF(VLOOKUP(Y8,'Footnotes list'!$D$9:$E$58,2,FALSE)=0,"",VLOOKUP(Y8,'Footnotes list'!$D$9:$E$58,2,FALSE) ) ) ->  | AA8: =IF(AND(TRIM(Q8)="",TRIM(V8)=""),"",Q8+V8) ->  | AE8: =IF(TRIM(AD8)="", "", IF(VLOOKUP(AD8,'Footnotes list'!$D$9:$E$58,2,FALSE)=0,"",VLOOKUP(AD8,'Footnotes list'!$D$9:$E$58,2,FALSE) ) ) ->  | AJ8: =IF(TRIM(AI8)="", "", IF(VLOOKUP(AI8,'Footnotes list'!$D$9:$E$58,2,FALSE)=0,"",VLOOKUP(AI8,'Footnotes list'!$D$9:$E$58,2,FALSE) ) ) ->  | AO8: =IF(TRIM(AN8)="", "", IF(VLOOKUP(AN8,'Footnotes list'!$D$9:$E$58,2,FALSE)=0,"",VLOOKUP(AN8,'Footnotes list'!$D$9:$E$58,2,FALSE) ) ) ->  | AP8: =IF(AND(TRIM(AF8)="",TRIM(AK8)=""),"",AF8+AK8) ->  | AT8: =IF(TRIM(AS8)="", "", IF(VLOOKUP(AS8,'Footnotes list'!$D$9:$E$58,2,FALSE)=0,"",VLOOKUP(AS8,'Footnotes list'!$D$9:$E$58,2,FALSE) ) ) ->  | AU8: =IF(AND(TRIM(G8)="",TRIM(L8)="",TRIM(AA8)="",TRIM(AP8)=""),"",SUM(G8,L8,AA8,AP8)) ->  | AY8: =IF(TRIM(AX8)="", "", IF(VLOOKUP(AX8,'Footnotes list'!$D$9:$E$58,2,FALSE)=0,"",VLOOKUP(AX8,'Footnotes list'!$D$9:$E$58,2,FALSE) ) ) -> 
F9: Not applicable
C10: W011 | E10: HAZ_NHAZ | F10: Total | G10: =IF(AND(TRIM(G8)="",TRIM(G9)=""),"",G8+G9) ->  | K10: =IF(TRIM(J10)="", "", IF(VLOOKUP(J10,'Footnotes list'!$D$9:$E$58,2,FALSE)=0,"",VLOOKUP(J10,'Footnotes list'!$D$9:$E$58,2,FALSE) ) ) ->  | L10: =IF(AND(TRIM(L8)="",TRIM(L9)=""),"",L8+L9) ->  | P10: =IF(TRIM(O10)="", "", IF(VLOOKUP(O10,'Footnotes list'!$D$9:$E$58,2,FALSE)=0,"",VLOOKUP(O10,'Footnotes list'!$D$9:$E$58,2,FALSE) ) ) ->  | Q10: =IF(AND(TRIM(Q8)="",TRIM(Q9)=""),"",Q8+Q9) ->  | U10: =IF(TRIM(T10)="", "", IF(VLOOKUP(T10,'Footnotes list'!$D$9:$E$58,2,FALSE)=0,"",VLOOKUP(T10,'Footnotes list'!$D$9:$E$58,2,FALSE) ) ) ->  | V10: =IF(AND(TRIM(V8)="",TRIM(V9)=""),"",V8+V9) ->  | Z10: =IF(TRIM(Y10)="", "", IF(VLOOKUP(Y10,'Footnotes list'!$D$9:$E$58,2,FALSE)=0,"",VLOOKUP(Y10,'Footnotes list'!$D$9:$E$58,2,FALSE) ) ) ->  | AA10: =IF(AND(TRIM(AA8)="", TRIM(AA9)=""), "", SUM(AA8,AA9)) ->  | AE10: =IF(TRIM(AD10)="", "", IF(VLOOKUP(AD10,'Footnotes list'!$D$9:$E$58,2,FALSE)=0,"",VLOOKUP(AD10,'Footnotes list'!$D$9:$E$58,2,FALSE) ) ) ->  | AF10: =IF(AND(TRIM(AF8)="",TRIM(AF9)=""),"",AF8+AF9) ->  | AJ10: =IF(TRIM(AI10)="", "", IF(VLOOKUP(AI10,'Footnotes list'!$D$9:$E$58,2,FALSE)=0,"",VLOOKUP(AI10,'Footnotes list'!$D$9:$E$58,2,FALSE) ) ) ->  | AK10: =IF(AND(TRIM(AK8)="",TRIM(AK9)=""),"",AK8+AK9) ->  | AO10: =IF(TRIM(AN10)="", "", IF(VLOOKUP(AN10,'Footnotes list'!$D$9:$E$58,2,FALSE)=0,"",VLOOKUP(AN10,'Footnotes list'!$D$9:$E$58,2,FALSE) ) ) ->  | AP10: =IF(AND(TRIM(AP8)="", TRIM(AP9)=""), "", SUM(AP8,AP9)) ->  | AT10: =IF(TRIM(AS10)="", "", IF(VLOOKUP(AS10,'Footnotes list'!$D$9:$E$58,2,FALSE)=0,"",VLOOKUP(AS10,'Footnotes list'!$D$9:$E$58,2,FALSE) ) ) ->  | AU10: =IF(AND(TRIM(AU8)="", TRIM(AU9)=""), "", SUM(AU8,AU9) ) ->  | AY10: =IF(TRIM(AX10)="", "", IF(VLOOKUP(AX10,'Footnotes list'!$D$9:$E$58,2,FALSE)=0,"",VLOOKUP(AX10,'Footnotes list'!$D$9:$E$58,2,FALSE) ) ) -> 
B11: W012 | C11: W012 | D11: Acid, alkaline or saline wastes | E11: HAZ | F11: Hazardous | K11: =IF(TRIM(J11)="", "", IF(VLOOKUP(J11,'Footnotes list'!$D$9:$E$58,2,FALSE)=0,"",VLOOKUP(J11,'Footnotes list'!$D$9:$E$58,2,FALSE) ) ) ->  | P11: =IF(TRIM(O11)="", "", IF(VLOOKUP(O11,'Footnotes list'!$D$9:$E$58,2,FALSE)=0,"",VLOOKUP(O11,'Footnotes list'!$D$9:$E$58,2,FALSE) ) ) ->  | U11: =IF(TRIM(T11)="", "", IF(VLOOKUP(T11,'Footnotes list'!$D$9:$E$58,2,FALSE)=0,"",VLOOKUP(T11,'Footnotes list'!$D$9:$E$58,2,FALSE) ) ) ->  | Z11: =IF(TRIM(Y11)="", "", IF(VLOOKUP(Y11,'Footnotes list'!$D$9:$E$58,2,FALSE)=0,"",VLOOKUP(Y11,'Footnotes list'!$D$9:$E$58,2,FALSE) ) ) ->  | AA11: =IF(AND(TRIM(Q11)="",TRIM(V11)=""),"",Q11+V11) ->  | AE11: =IF(TRIM(AD11)="", "", IF(VLOOKUP(AD11,'Footnotes list'!$D$9:$E$58,2,FALSE)=0,"",VLOOKUP(AD11,'Footnotes list'!$D$9:$E$58,2,FALSE) ) ) ->  | AJ11: =IF(TRIM(AI11)="", "", IF(VLOOKUP(AI11,'Footnotes list'!$D$9:$E$58,2,FALSE)=0,"",VLOOKUP(AI11,'Footnotes list'!$D$9:$E$58,2,FALSE) ) ) ->  | AO11: =IF(TRIM(AN11)="", "", IF(VLOOKUP(AN11,'Footnotes list'!$D$9:$E$58,2,FALSE)=0,"",VLOOKUP(AN11,'Footnotes list'!$D$9:$E$58,2,FALSE) ) ) ->  | AP11: =IF(AND(TRIM(AF11)="",TRIM(AK11)=""),"",AF11+AK11) ->  | AT11: =IF(TRIM(AS11)="", "", IF(VLOOKUP(AS11,'Footnotes list'!$D$9:$E$58,2,FALSE)=0,"",VLOOKUP(AS11,'Footnotes list'!$D$9:$E$58,2,FALSE) ) ) ->  | AU11: =IF(AND(TRIM(G11)="",TRIM(L11)="",TRIM(AA11)="",TRIM(AP11)=""),"",SUM(G11,L11,AA11,AP11)) ->  | AY11: =IF(TRIM(AX11)="", "", IF(VLOOKUP(AX11,'Footnotes list'!$D$9:$E$58,2,FALSE)=0,"",VLOOKUP(AX11,'Footnotes list'!$D$9:$E$58,2,FALSE) ) ) -> 
C12: W012 | E12: NHAZ | F12: Non-hazardous | K12: =IF(TRIM(J12)="", "", IF(VLOOKUP(J12,'Footnotes list'!$D$9:$E$58,2,FALSE)=0,"",VLOOKUP(J12,'Footnotes list'!$D$9:$E$58,2,FALSE) ) ) ->  | P12: =IF(TRIM(O12)="", "", IF(VLOOKUP(O12,'Footnotes list'!$D$9:$E$58,2,FALSE)=0,"",VLOOKUP(O12,'Footnotes list'!$D$9:$E$58,2,FALSE) ) ) ->  | U12: =IF(TRIM(T12)="", "", IF(VLOOKUP(T12,'Footnotes list'!$D$9:$E$58,2,FALSE)=0,"",VLOOKUP(T12,'Footnotes list'!$D$9:$E$58,2,FALSE) ) ) ->  | Z12: =IF(TRIM(Y12)="", "", IF(VLOOKUP(Y12,'Footnotes list'!$D$9:$E$58,2,FALSE)=0,"",VLOOKUP(Y12,'Footnotes list'!$D$9:$E$58,2,FALSE) ) ) ->  | AA12: =IF(AND(TRIM(Q12)="",TRIM(V12)=""),"",Q12+V12) ->  | AE12: =IF(TRIM(AD12)="", "", IF(VLOOKUP(AD12,'Footnotes list'!$D$9:$E$58,2,FALSE)=0,"",VLOOKUP(AD12,'Footnotes list'!$D$9:$E$58,2,FALSE) ) ) ->  | AJ12: =IF(TRIM(AI12)="", "", IF(VLOOKUP(AI12,'Footnotes list'!$D$9:$E$58,2,FALSE)=0,"",VLOOKUP(AI12,'Footnotes list'!$D$9:$E$58,2,FALSE) ) ) ->  | AO12: =IF(TRIM(AN12)="", "", IF(VLOOKUP(AN12,'Footnotes list'!$D$9:$E$58,2,FALSE)=0,"",VLOOKUP(AN12,'Footnotes list'!$D$9:$E$58,2,FALSE) ) ) ->  | AP12: =IF(AND(TRIM(AF12)="",TRIM(AK12)=""),"",AF12+AK12) ->  | AT12: =IF(TRIM(AS12)="", "", IF(VLOOKUP(AS12,'Footnotes list'!$D$9:$E$58,2,FALSE)=0,"",VLOOKUP(AS12,'Footnotes list'!$D$9:$E$58,2,FALSE) ) ) ->  | AU12: =IF(AND(TRIM(G12)="",TRIM(L12)="",TRIM(AA12)="",TRIM(AP12)=""),"",SUM(G12,L12,AA12,AP12)) ->  | AY12: =IF(TRIM(AX12)="", "", IF(VLOOKUP(AX12,'Footnotes list'!$D$9:$E$58,2,FALSE)=0,"",VLOOKUP(AX12,'Footnotes list'!$D$9:$E$58,2,FALSE) ) ) -> 
C13: W012 | E13: HAZ_NHAZ | F13: Total | G13: =IF(AND(TRIM(G11)="",TRIM(G12)=""),"",G11+G12) ->  | K13: =IF(TRIM(J13)="", "", IF(VLOOKUP(J13,'Footnotes list'!$D$9:$E$58,2,FALSE)=0,"",VLOOKUP(J13,'Footnotes list'!$D$9:$E$58,2,FALSE) ) ) ->  | L13: =IF(AND(TRIM(L11)="",TRIM(L12)=""),"",L11+L12) ->  | P13: =IF(TRIM(O13)="", "", IF(VLOOKUP(O13,'Footnotes list'!$D$9:$E$58,2,FALSE)=0,"",VLOOKUP(O13,'Footnotes list'!$D$9:$E$58,2,FALSE) ) ) ->  | Q13: =IF(AND(TRIM(Q11)="",TRIM(Q12)=""),"",Q11+Q12) ->  | U13: =IF(TRIM(T13)="", "", IF(VLOOKUP(T13,'Footnotes list'!$D$9:$E$58,2,FALSE)=0,"",VLOOKUP(T13,'Footnotes list'!$D$9:$E$58,2,FALSE) ) ) ->  | V13: =IF(AND(TRIM(V11)="",TRIM(V12)=""),"",V11+V12) ->  | Z13: =IF(TRIM(Y13)="", "", IF(VLOOKUP(Y13,'Footnotes list'!$D$9:$E$58,2,FALSE)=0,"",VLOOKUP(Y13,'Footnotes list'!$D$9:$E$58,2,FALSE) ) ) ->  | AA13: =IF(AND(TRIM(AA11)="", TRIM(AA12)=""), "", SUM(AA11,AA12)) ->  | AE13: =IF(TRIM(AD13)="", "", IF(VLOOKUP(AD13,'Footnotes list'!$D$9:$E$58,2,FALSE)=0,"",VLOOKUP(AD13,'Footnotes list'!$D$9:$E$58,2,FALSE) ) ) ->  | AF13: =IF(AND(TRIM(AF11)="",TRIM(AF12)=""),"",AF11+AF12) ->  | AJ13: =IF(TRIM(AI13)="", "", IF(VLOOKUP(AI13,'Footnotes list'!$D$9:$E$58,2,FALSE)=0,"",VLOOKUP(AI13,'Footnotes list'!$D$9:$E$58,2,FALSE) ) ) ->  | AK13: =IF(AND(TRIM(AK11)="",TRIM(AK12)=""),"",AK11+AK12) ->  | AO13: =IF(TRIM(AN13)="", "", IF(VLOOKUP(AN13,'Footnotes list'!$D$9:$E$58,2,FALSE)=0,"",VLOOKUP(AN13,'Footnotes list'!$D$9:$E$58,2,FALSE) ) ) ->  | AP13: =IF(AND(TRIM(AP11)="", TRIM(AP12)=""), "", SUM(AP11,AP12)) ->  | AT13: =IF(TRIM(AS13)="", "", IF(VLOOKUP(AS13,'Footnotes list'!$D$9:$E$58,2,FALSE)=0,"",VLOOKUP(AS13,'Footnotes list'!$D$9:$E$58,2,FALSE) ) ) ->  | AU13: =IF(AND(TRIM(AU11)="", TRIM(AU12)=""), "", SUM(AU11,AU12) ) ->  | AY13: =IF(TRIM(AX13)="", "", IF(VLOOKUP(AX13,'Footnotes list'!$D$9:$E$58,2,FALSE)=0,"",VLOOKUP(AX13,'Footnotes list'!$D$9:$E$58,2,FALSE) ) ) -> 
B14: W013 | C14: W013 | D14: Used oils | E14: HAZ | F14: Hazardous | K14: =IF(TRIM(J14)="", "", IF(VLOOKUP(J14,'Footnotes list'!$D$9:$E$58,2,FALSE)=0,"",VLOOKUP(J14,'Footnotes list'!$D$9:$E$58,2,FALSE) ) ) ->  | P14: =IF(TRIM(O14)="", "", IF(VLOOKUP(O14,'Footnotes list'!$D$9:$E$58,2,FALSE)=0,"",VLOOKUP(O14,'Footnotes list'!$D$9:$E$58,2,FALSE) ) ) ->  | U14: =IF(TRIM(T14)="", "", IF(VLOOKUP(T14,'Footnotes list'!$D$9:$E$58,2,FALSE)=0,"",VLOOKUP(T14,'Footnotes list'!$D$9:$E$58,2,FALSE) ) ) ->  | Z14: =IF(TRIM(Y14)="", "", IF(VLOOKUP(Y14,'Footnotes list'!$D$9:$E$58,2,FALSE)=0,"",VLOOKUP(Y14,'Footnotes list'!$D$9:$E$58,2,FALSE) ) ) ->  | AA14: =IF(AND(TRIM(Q14)="",TRIM(V14)=""),"",Q14+V14) ->  | AE14: =IF(TRIM(AD14)="", "", IF(VLOOKUP(AD14,'Footnotes list'!$D$9:$E$58,2,FALSE)=0,"",VLOOKUP(AD14,'Footnotes list'!$D$9:$E$58,2,FALSE) ) ) ->  | AJ14: =IF(TRIM(AI14)="", "", IF(VLOOKUP(AI14,'Footnotes list'!$D$9:$E$58,2,FALSE)=0,"",VLOOKUP(AI14,'Footnotes list'!$D$9:$E$58,2,FALSE) ) ) ->  | AO14: =IF(TRIM(AN14)="", "", IF(VLOOKUP(AN14,'Footnotes list'!$D$9:$E$58,2,FALSE)=0,"",VLOOKUP(AN14,'Footnotes list'!$D$9:$E$58,2,FALSE) ) ) ->  | AP14: =IF(AND(TRIM(AF14)="",TRIM(AK14)=""),"",AF14+AK14) ->  | AT14: =IF(TRIM(AS14)="", "", IF(VLOOKUP(AS14,'Footnotes list'!$D$9:$E$58,2,FALSE)=0,"",VLOOKUP(AS14,'Footnotes list'!$D$9:$E$58,2,FALSE) ) ) ->  | AU14: =IF(AND(TRIM(G14)="",TRIM(L14)="",TRIM(AA14)="",TRIM(AP14)=""),"",SUM(G14,L14,AA14,AP14)) ->  | AY14: =IF(TRIM(AX14)="", "", IF(VLOOKUP(AX14,'Footnotes list'!$D$9:$E$58,2,FALSE)=0,"",VLOOKUP(AX14,'Footnotes list'!$D$9:$E$58,2,FALSE) ) ) -> 
F15: Not applicable
C16: W013 | E16: HAZ_NHAZ | F16: Total | G16: =IF(AND(TRIM(G14)="",TRIM(G15)=""),"",G14+G15) ->  | K16: =IF(TRIM(J16)="", "", IF(VLOOKUP(J16,'Footnotes list'!$D$9:$E$58,2,FALSE)=0,"",VLOOKUP(J16,'Footnotes list'!$D$9:$E$58,2,FALSE) ) ) ->  | L16: =IF(AND(TRIM(L14)="",TRIM(L15)=""),"",L14+L15) ->  | P16: =IF(TRIM(O16)="", "", IF(VLOOKUP(O16,'Footnotes list'!$D$9:$E$58,2,FALSE)=0,"",VLOOKUP(O16,'Footnotes list'!$D$9:$E$58,2,FALSE) ) ) ->  | Q16: =IF(AND(TRIM(Q14)="",TRIM(Q15)=""),"",Q14+Q15) ->  | U16: =IF(TRIM(T16)="", "", IF(VLOOKUP(T16,'Footnotes list'!$D$9:$E$58,2,FALSE)=0,"",VLOOKUP(T16,'Footnotes list'!$D$9:$E$58,2,FALSE) ) ) ->  | V16: =IF(AND(TRIM(V14)="",TRIM(V15)=""),"",V14+V15) ->  | Z16: =IF(TRIM(Y16)="", "", IF(VLOOKUP(Y16,'Footnotes list'!$D$9:$E$58,2,FALSE)=0,"",VLOOKUP(Y16,'Footnotes list'!$D$9:$E$58,2,FALSE) ) ) ->  | AA16: =IF(AND(TRIM(AA14)="", TRIM(AA15)=""), "", SUM(AA14,AA15)) ->  | AE16: =IF(TRIM(AD16)="", "", IF(VLOOKUP(AD16,'Footnotes list'!$D$9:$E$58,2,FALSE)=0,"",VLOOKUP(AD16,'Footnotes list'!$D$9:$E$58,2,FALSE) ) ) ->  | AF16: =IF(AND(TRIM(AF14)="",TRIM(AF15)=""),"",AF14+AF15) ->  | AJ16: =IF(TRIM(AI16)="", "", IF(VLOOKUP(AI16,'Footnotes list'!$D$9:$E$58,2,FALSE)=0,"",VLOOKUP(AI16,'Footnotes list'!$D$9:$E$58,2,FALSE) ) ) ->  | AK16: =IF(AND(TRIM(AK14)="",TRIM(AK15)=""),"",AK14+AK15) ->  | AO16: =IF(TRIM(AN16)="", "", IF(VLOOKUP(AN16,'Footnotes list'!$D$9:$E$58,2,FALSE)=0,"",VLOOKUP(AN16,'Footnotes list'!$D$9:$E$58,2,FALSE) ) ) ->  | AP16: =IF(AND(TRIM(AP14)="", TRIM(AP15)=""), "", SUM(AP14,AP15)) ->  | AT16: =IF(TRIM(AS16)="", "", IF(VLOOKUP(AS16,'Footnotes list'!$D$9:$E$58,2,FALSE)=0,"",VLOOKUP(AS16,'Footnotes list'!$D$9:$E$58,2,FALSE) ) ) ->  | AU16: =IF(AND(TRIM(AU14)="", TRIM(AU15)=""), "", SUM(AU14,AU15) ) ->  | AY16: =IF(TRIM(AX16)="", "", IF(VLOOKUP(AX16,'Footnotes list'!$D$9:$E$58,2,FALSE)=0,"",VLOOKUP(AX16,'Footnotes list'!$D$9:$E$58,2,FALSE) ) ) -> 
B17: W02A | C17: W02A | D17: Chemical wastes | E17: HAZ | F17: Hazardous | K17: =IF(TRIM(J17)="", "", IF(VLOOKUP(J17,'Footnotes list'!$D$9:$E$58,2,FALSE)=0,"",VLOOKUP(J17,'Footnotes list'!$D$9:$E$58,2,FALSE) ) ) ->  | P17: =IF(TRIM(O17)="", "", IF(VLOOKUP(O17,'Footnotes list'!$D$9:$E$58,2,FALSE)=0,"",VLOOKUP(O17,'Footnotes list'!$D$9:$E$58,2,FALSE) ) ) ->  | U17: =IF(TRIM(T17)="", "", IF(VLOOKUP(T17,'Footnotes list'!$D$9:$E$58,2,FALSE)=0,"",VLOOKUP(T17,'Footnotes list'!$D$9:$E$58,2,FALSE) ) ) ->  | Z17: =IF(TRIM(Y17)="", "", IF(VLOOKUP(Y17,'Footnotes list'!$D$9:$E$58,2,FALSE)=0,"",VLOOKUP(Y17,'Footnotes list'!$D$9:$E$58,2,FALSE) ) ) ->  | AA17: =IF(AND(TRIM(Q17)="",TRIM(V17)=""),"",Q17+V17) ->  | AE17: =IF(TRIM(AD17)="", "", IF(VLOOKUP(AD17,'Footnotes list'!$D$9:$E$58,2,FALSE)=0,"",VLOOKUP(AD17,'Footnotes list'!$D$9:$E$58,2,FALSE) ) ) ->  | AJ17: =IF(TRIM(AI17)="", "", IF(VLOOKUP(AI17,'Footnotes list'!$D$9:$E$58,2,FALSE)=0,"",VLOOKUP(AI17,'Footnotes list'!$D$9:$E$58,2,FALSE) ) ) ->  | AO17: =IF(TRIM(AN17)="", "", IF(VLOOKUP(AN17,'Footnotes list'!$D$9:$E$58,2,FALSE)=0,"",VLOOKUP(AN17,'Footnotes list'!$D$9:$E$58,2,FALSE) ) ) ->  | AP17: =IF(AND(TRIM(AF17)="",TRIM(AK17)=""),"",AF17+AK17) ->  | AT17: =IF(TRIM(AS17)="", "", IF(VLOOKUP(AS17,'Footnotes list'!$D$9:$E$58,2,FALSE)=0,"",VLOOKUP(AS17,'Footnotes list'!$D$9:$E$58,2,FALSE) ) ) ->  | AU17: =IF(AND(TRIM(G17)="",TRIM(L17)="",TRIM(AA17)="",TRIM(AP17)=""),"",SUM(G17,L17,AA17,AP17)) ->  | AY17: =IF(TRIM(AX17)="", "", IF(VLOOKUP(AX17,'Footnotes list'!$D$9:$E$58,2,FALSE)=0,"",VLOOKUP(AX17,'Footnotes list'!$D$9:$E$58,2,FALSE) ) ) -> 
C18: W02A | E18: NHAZ | F18: Non-hazardous | K18: =IF(TRIM(J18)="", "", IF(VLOOKUP(J18,'Footnotes list'!$D$9:$E$58,2,FALSE)=0,"",VLOOKUP(J18,'Footnotes list'!$D$9:$E$58,2,FALSE) ) ) ->  | P18: =IF(TRIM(O18)="", "", IF(VLOOKUP(O18,'Footnotes list'!$D$9:$E$58,2,FALSE)=0,"",VLOOKUP(O18,'Footnotes list'!$D$9:$E$58,2,FALSE) ) ) ->  | U18: =IF(TRIM(T18)="", "", IF(VLOOKUP(T18,'Footnotes list'!$D$9:$E$58,2,FALSE)=0,"",VLOOKUP(T18,'Footnotes list'!$D$9:$E$58,2,FALSE) ) ) ->  | Z18: =IF(TRIM(Y18)="", "", IF(VLOOKUP(Y18,'Footnotes list'!$D$9:$E$58,2,FALSE)=0,"",VLOOKUP(Y18,'Footnotes list'!$D$9:$E$58,2,FALSE) ) ) ->  | AA18: =IF(AND(TRIM(Q18)="",TRIM(V18)=""),"",Q18+V18) ->  | AE18: =IF(TRIM(AD18)="", "", IF(VLOOKUP(AD18,'Footnotes list'!$D$9:$E$58,2,FALSE)=0,"",VLOOKUP(AD18,'Footnotes list'!$D$9:$E$58,2,FALSE) ) ) ->  | AJ18: =IF(TRIM(AI18)="", "", IF(VLOOKUP(AI18,'Footnotes list'!$D$9:$E$58,2,FALSE)=0,"",VLOOKUP(AI18,'Footnotes list'!$D$9:$E$58,2,FALSE) ) ) ->  | AO18: =IF(TRIM(AN18)="", "", IF(VLOOKUP(AN18,'Footnotes list'!$D$9:$E$58,2,FALSE)=0,"",VLOOKUP(AN18,'Footnotes list'!$D$9:$E$58,2,FALSE) ) ) ->  | AP18: =IF(AND(TRIM(AF18)="",TRIM(AK18)=""),"",AF18+AK18) ->  | AT18: =IF(TRIM(AS18)="", "", IF(VLOOKUP(AS18,'Footnotes list'!$D$9:$E$58,2,FALSE)=0,"",VLOOKUP(AS18,'Footnotes list'!$D$9:$E$58,2,FALSE) ) ) ->  | AU18: =IF(AND(TRIM(G18)="",TRIM(L18)="",TRIM(AA18)="",TRIM(AP18)=""),"",SUM(G18,L18,AA18,AP18)) ->  | AY18: =IF(TRIM(AX18)="", "", IF(VLOOKUP(AX18,'Footnotes list'!$D$9:$E$58,2,FALSE)=0,"",VLOOKUP(AX18,'Footnotes list'!$D$9:$E$58,2,FALSE) ) ) -> 
C19: W02A | E19: HAZ_NHAZ | F19: Total | G19: =IF(AND(TRIM(G17)="",TRIM(G18)=""),"",G17+G18) ->  | K19: =IF(TRIM(J19)="", "", IF(VLOOKUP(J19,'Footnotes list'!$D$9:$E$58,2,FALSE)=0,"",VLOOKUP(J19,'Footnotes list'!$D$9:$E$58,2,FALSE) ) ) ->  | L19: =IF(AND(TRIM(L17)="",TRIM(L18)=""),"",L17+L18) ->  | P19: =IF(TRIM(O19)="", "", IF(VLOOKUP(O19,'Footnotes list'!$D$9:$E$58,2,FALSE)=0,"",VLOOKUP(O19,'Footnotes list'!$D$9:$E$58,2,FALSE) ) ) ->  | Q19: =IF(AND(TRIM(Q17)="",TRIM(Q18)=""),"",Q17+Q18) ->  | U19: =IF(TRIM(T19)="", "", IF(VLOOKUP(T19,'Footnotes list'!$D$9:$E$58,2,FALSE)=0,"",VLOOKUP(T19,'Footnotes list'!$D$9:$E$58,2,FALSE) ) ) ->  | V19: =IF(AND(TRIM(V17)="",TRIM(V18)=""),"",V17+V18) ->  | Z19: =IF(TRIM(Y19)="", "", IF(VLOOKUP(Y19,'Footnotes list'!$D$9:$E$58,2,FALSE)=0,"",VLOOKUP(Y19,'Footnotes list'!$D$9:$E$58,2,FALSE) ) ) ->  | AA19: =IF(AND(TRIM(AA17)="", TRIM(AA18)=""), "", SUM(AA17,AA18)) ->  | AE19: =IF(TRIM(AD19)="", "", IF(VLOOKUP(AD19,'Footnotes list'!$D$9:$E$58,2,FALSE)=0,"",VLOOKUP(AD19,'Footnotes list'!$D$9:$E$58,2,FALSE) ) ) ->  | AF19: =IF(AND(TRIM(AF17)="",TRIM(AF18)=""),"",AF17+AF18) ->  | AJ19: =IF(TRIM(AI19)="", "", IF(VLOOKUP(AI19,'Footnotes list'!$D$9:$E$58,2,FALSE)=0,"",VLOOKUP(AI19,'Footnotes list'!$D$9:$E$58,2,FALSE) ) ) ->  | AK19: =IF(AND(TRIM(AK17)="",TRIM(AK18)=""),"",AK17+AK18) ->  | AO19: =IF(TRIM(AN19)="", "", IF(VLOOKUP(AN19,'Footnotes list'!$D$9:$E$58,2,FALSE)=0,"",VLOOKUP(AN19,'Footnotes list'!$D$9:$E$58,2,FALSE) ) ) ->  | AP19: =IF(AND(TRIM(AP17)="", TRIM(AP18)=""), "", SUM(AP17,AP18)) ->  | AT19: =IF(TRIM(AS19)="", "", IF(VLOOKUP(AS19,'Footnotes list'!$D$9:$E$58,2,FALSE)=0,"",VLOOKUP(AS19,'Footnotes list'!$D$9:$E$58,2,FALSE) ) ) ->  | AU19: =IF(AND(TRIM(AU17)="", TRIM(AU18)=""), "", SUM(AU17,AU18) ) ->  | AY19: =IF(TRIM(AX19)="", "", IF(VLOOKUP(AX19,'Footnotes list'!$D$9:$E$58,2,FALSE)=0,"",VLOOKUP(AX19,'Footnotes list'!$D$9:$E$58,2,FALSE) ) ) -> 
B20: W032 | C20: W032 | D20: Industrial effluent sludges | E20: HAZ | F20: Hazardous | K20: =IF(TRIM(J20)="", "", IF(VLOOKUP(J20,'Footnotes list'!$D$9:$E$58,2,FALSE)=0,"",VLOOKUP(J20,'Footnotes list'!$D$9:$E$58,2,FALSE) ) ) ->  | P20: =IF(TRIM(O20)="", "", IF(VLOOKUP(O20,'Footnotes list'!$D$9:$E$58,2,FALSE)=0,"",VLOOKUP(O20,'Footnotes list'!$D$9:$E$58,2,FALSE) ) ) ->  | U20: =IF(TRIM(T20)="", "", IF(VLOOKUP(T20,'Footnotes list'!$D$9:$E$58,2,FALSE)=0,"",VLOOKUP(T20,'Footnotes list'!$D$9:$E$58,2,FALSE) ) ) ->  | Z20: =IF(TRIM(Y20)="", "", IF(VLOOKUP(Y20,'Footnotes list'!$D$9:$E$58,2,FALSE)=0,"",VLOOKUP(Y20,'Footnotes list'!$D$9:$E$58,2,FALSE) ) ) ->  | AA20: =IF(AND(TRIM(Q20)="",TRIM(V20)=""),"",Q20+V20) ->  | AE20: =IF(TRIM(AD20)="", "", IF(VLOOKUP(AD20,'Footnotes list'!$D$9:$E$58,2,FALSE)=0,"",VLOOKUP(AD20,'Footnotes list'!$D$9:$E$58,2,FALSE) ) ) ->  | AJ20: =IF(TRIM(AI20)="", "", IF(VLOOKUP(AI20,'Footnotes list'!$D$9:$E$58,2,FALSE)=0,"",VLOOKUP(AI20,'Footnotes list'!$D$9:$E$58,2,FALSE) ) ) ->  | AO20: =IF(TRIM(AN20)="", "", IF(VLOOKUP(AN20,'Footnotes list'!$D$9:$E$58,2,FALSE)=0,"",VLOOKUP(AN20,'Footnotes list'!$D$9:$E$58,2,FALSE) ) ) ->  | AP20: =IF(AND(TRIM(AF20)="",TRIM(AK20)=""),"",AF20+AK20) ->  | AT20: =IF(TRIM(AS20)="", "", IF(VLOOKUP(AS20,'Footnotes list'!$D$9:$E$58,2,FALSE)=0,"",VLOOKUP(AS20,'Footnotes list'!$D$9:$E$58,2,FALSE) ) ) ->  | AU20: =IF(AND(TRIM(G20)="",TRIM(L20)="",TRIM(AA20)="",TRIM(AP20)=""),"",SUM(G20,L20,AA20,AP20)) ->  | AY20: =IF(TRIM(AX20)="", "", IF(VLOOKUP(AX20,'Footnotes list'!$D$9:$E$58,2,FALSE)=0,"",VLOOKUP(AX20,'Footnotes list'!$D$9:$E$58,2,FALSE) ) ) -> 
C21: W032 | E21: NHAZ | F21: Non-hazardous | K21: =IF(TRIM(J21)="", "", IF(VLOOKUP(J21,'Footnotes list'!$D$9:$E$58,2,FALSE)=0,"",VLOOKUP(J21,'Footnotes list'!$D$9:$E$58,2,FALSE) ) ) ->  | P21: =IF(TRIM(O21)="", "", IF(VLOOKUP(O21,'Footnotes list'!$D$9:$E$58,2,FALSE)=0,"",VLOOKUP(O21,'Footnotes list'!$D$9:$E$58,2,FALSE) ) ) ->  | U21: =IF(TRIM(T21)="", "", IF(VLOOKUP(T21,'Footnotes list'!$D$9:$E$58,2,FALSE)=0,"",VLOOKUP(T21,'Footnotes list'!$D$9:$E$58,2,FALSE) ) ) ->  | Z21: =IF(TRIM(Y21)="", "", IF(VLOOKUP(Y21,'Footnotes list'!$D$9:$E$58,2,FALSE)=0,"",VLOOKUP(Y21,'Footnotes list'!$D$9:$E$58,2,FALSE) ) ) ->  | AA21: =IF(AND(TRIM(Q21)="",TRIM(V21)=""),"",Q21+V21) ->  | AE21: =IF(TRIM(AD21)="", "", IF(VLOOKUP(AD21,'Footnotes list'!$D$9:$E$58,2,FALSE)=0,"",VLOOKUP(AD21,'Footnotes list'!$D$9:$E$58,2,FALSE) ) ) ->  | AJ21: =IF(TRIM(AI21)="", "", IF(VLOOKUP(AI21,'Footnotes list'!$D$9:$E$58,2,FALSE)=0,"",VLOOKUP(AI21,'Footnotes list'!$D$9:$E$58,2,FALSE) ) ) ->  | AO21: =IF(TRIM(AN21)="", "", IF(VLOOKUP(AN21,'Footnotes list'!$D$9:$E$58,2,FALSE)=0,"",VLOOKUP(AN21,'Footnotes list'!$D$9:$E$58,2,FALSE) ) ) ->  | AP21: =IF(AND(TRIM(AF21)="",TRIM(AK21)=""),"",AF21+AK21) ->  | AT21: =IF(TRIM(AS21)="", "", IF(VLOOKUP(AS21,'Footnotes list'!$D$9:$E$58,2,FALSE)=0,"",VLOOKUP(AS21,'Footnotes list'!$D$9:$E$58,2,FALSE) ) ) ->  | AU21: =IF(AND(TRIM(G21)="",TRIM(L21)="",TRIM(AA21)="",TRIM(AP21)=""),"",SUM(G21,L21,AA21,AP21)) ->  | AY21: =IF(TRIM(AX21)="", "", IF(VLOOKUP(AX21,'Footnotes list'!$D$9:$E$58,2,FALSE)=0,"",VLOOKUP(AX21,'Footnotes list'!$D$9:$E$58,2,FALSE) ) ) -> 
C22: W032 | E22: HAZ_NHAZ | F22: Total | G22: =IF(AND(TRIM(G20)="",TRIM(G21)=""),"",G20+G21) ->  | K22: =IF(TRIM(J22)="", "", IF(VLOOKUP(J22,'Footnotes list'!$D$9:$E$58,2,FALSE)=0,"",VLOOKUP(J22,'Footnotes list'!$D$9:$E$58,2,FALSE) ) ) ->  | L22: =IF(AND(TRIM(L20)="",TRIM(L21)=""),"",L20+L21) ->  | P22: =IF(TRIM(O22)="", "", IF(VLOOKUP(O22,'Footnotes list'!$D$9:$E$58,2,FALSE)=0,"",VLOOKUP(O22,'Footnotes list'!$D$9:$E$58,2,FALSE) ) ) ->  | Q22: =IF(AND(TRIM(Q20)="",TRIM(Q21)=""),"",Q20+Q21) ->  | U22: =IF(TRIM(T22)="", "", IF(VLOOKUP(T22,'Footnotes list'!$D$9:$E$58,2,FALSE)=0,"",VLOOKUP(T22,'Footnotes list'!$D$9:$E$58,2,FALSE) ) ) ->  | V22: =IF(AND(TRIM(V20)="",TRIM(V21)=""),"",V20+V21) ->  | Z22: =IF(TRIM(Y22)="", "", IF(VLOOKUP(Y22,'Footnotes list'!$D$9:$E$58,2,FALSE)=0,"",VLOOKUP(Y22,'Footnotes list'!$D$9:$E$58,2,FALSE) ) ) ->  | AA22: =IF(AND(TRIM(AA20)="", TRIM(AA21)=""), "", SUM(AA20,AA21)) ->  | AE22: =IF(TRIM(AD22)="", "", IF(VLOOKUP(AD22,'Footnotes list'!$D$9:$E$58,2,FALSE)=0,"",VLOOKUP(AD22,'Footnotes list'!$D$9:$E$58,2,FALSE) ) ) ->  | AF22: =IF(AND(TRIM(AF20)="",TRIM(AF21)=""),"",AF20+AF21) ->  | AJ22: =IF(TRIM(AI22)="", "", IF(VLOOKUP(AI22,'Footnotes list'!$D$9:$E$58,2,FALSE)=0,"",VLOOKUP(AI22,'Footnotes list'!$D$9:$E$58,2,FALSE) ) ) ->  | AK22: =IF(AND(TRIM(AK20)="",TRIM(AK21)=""),"",AK20+AK21) ->  | AO22: =IF(TRIM(AN22)="", "", IF(VLOOKUP(AN22,'Footnotes list'!$D$9:$E$58,2,FALSE)=0,"",VLOOKUP(AN22,'Footnotes list'!$D$9:$E$58,2,FALSE) ) ) ->  | AP22: =IF(AND(TRIM(AP20)="", TRIM(AP21)=""), "", SUM(AP20,AP21)) ->  | AT22: =IF(TRIM(AS22)="", "", IF(VLOOKUP(AS22,'Footnotes list'!$D$9:$E$58,2,FALSE)=0,"",VLOOKUP(AS22,'Footnotes list'!$D$9:$E$58,2,FALSE) ) ) ->  | AU22: =IF(AND(TRIM(AU20)="", TRIM(AU21)=""), "", SUM(AU20,AU21) ) ->  | AY22: =IF(TRIM(AX22)="", "", IF(VLOOKUP(AX22,'Footnotes list'!$D$9:$E$58,2,FALSE)=0,"",VLOOKUP(AX22,'Footnotes list'!$D$9:$E$58,2,FALSE) ) ) -> 
B23: W033 | C23: W033 | D23: Sludges and liquid wastes from waste treatment | E23: HAZ | F23: Hazardous | K23: =IF(TRIM(J23)="", "", IF(VLOOKUP(J23,'Footnotes list'!$D$9:$E$58,2,FALSE)=0,"",VLOOKUP(J23,'Footnotes list'!$D$9:$E$58,2,FALSE) ) ) ->  | P23: =IF(TRIM(O23)="", "", IF(VLOOKUP(O23,'Footnotes list'!$D$9:$E$58,2,FALSE)=0,"",VLOOKUP(O23,'Footnotes list'!$D$9:$E$58,2,FALSE) ) ) ->  | U23: =IF(TRIM(T23)="", "", IF(VLOOKUP(T23,'Footnotes list'!$D$9:$E$58,2,FALSE)=0,"",VLOOKUP(T23,'Footnotes list'!$D$9:$E$58,2,FALSE) ) ) ->  | Z23: =IF(TRIM(Y23)="", "", IF(VLOOKUP(Y23,'Footnotes list'!$D$9:$E$58,2,FALSE)=0,"",VLOOKUP(Y23,'Footnotes list'!$D$9:$E$58,2,FALSE) ) ) ->  | AA23: =IF(AND(TRIM(Q23)="",TRIM(V23)=""),"",Q23+V23) ->  | AE23: =IF(TRIM(AD23)="", "", IF(VLOOKUP(AD23,'Footnotes list'!$D$9:$E$58,2,FALSE)=0,"",VLOOKUP(AD23,'Footnotes list'!$D$9:$E$58,2,FALSE) ) ) ->  | AJ23: =IF(TRIM(AI23)="", "", IF(VLOOKUP(AI23,'Footnotes list'!$D$9:$E$58,2,FALSE)=0,"",VLOOKUP(AI23,'Footnotes list'!$D$9:$E$58,2,FALSE) ) ) ->  | AO23: =IF(TRIM(AN23)="", "", IF(VLOOKUP(AN23,'Footnotes list'!$D$9:$E$58,2,FALSE)=0,"",VLOOKUP(AN23,'Footnotes list'!$D$9:$E$58,2,FALSE) ) ) ->  | AP23: =IF(AND(TRIM(AF23)="",TRIM(AK23)=""),"",AF23+AK23) ->  | AT23: =IF(TRIM(AS23)="", "", IF(VLOOKUP(AS23,'Footnotes list'!$D$9:$E$58,2,FALSE)=0,"",VLOOKUP(AS23,'Footnotes list'!$D$9:$E$58,2,FALSE) ) ) ->  | AU23: =IF(AND(TRIM(G23)="",TRIM(L23)="",TRIM(AA23)="",TRIM(AP23)=""),"",SUM(G23,L23,AA23,AP23)) ->  | AY23: =IF(TRIM(AX23)="", "", IF(VLOOKUP(AX23,'Footnotes list'!$D$9:$E$58,2,FALSE)=0,"",VLOOKUP(AX23,'Footnotes list'!$D$9:$E$58,2,FALSE) ) ) -> 
C24: W033 | E24: NHAZ | F24: Non-hazardous | K24: =IF(TRIM(J24)="", "", IF(VLOOKUP(J24,'Footnotes list'!$D$9:$E$58,2,FALSE)=0,"",VLOOKUP(J24,'Footnotes list'!$D$9:$E$58,2,FALSE) ) ) ->  | P24: =IF(TRIM(O24)="", "", IF(VLOOKUP(O24,'Footnotes list'!$D$9:$E$58,2,FALSE)=0,"",VLOOKUP(O24,'Footnotes list'!$D$9:$E$58,2,FALSE) ) ) ->  | U24: =IF(TRIM(T24)="", "", IF(VLOOKUP(T24,'Footnotes list'!$D$9:$E$58,2,FALSE)=0,"",VLOOKUP(T24,'Footnotes list'!$D$9:$E$58,2,FALSE) ) ) ->  | Z24: =IF(TRIM(Y24)="", "", IF(VLOOKUP(Y24,'Footnotes list'!$D$9:$E$58,2,FALSE)=0,"",VLOOKUP(Y24,'Footnotes list'!$D$9:$E$58,2,FALSE) ) ) ->  | AA24: =IF(AND(TRIM(Q24)="",TRIM(V24)=""),"",Q24+V24) ->  | AE24: =IF(TRIM(AD24)="", "", IF(VLOOKUP(AD24,'Footnotes list'!$D$9:$E$58,2,FALSE)=0,"",VLOOKUP(AD24,'Footnotes list'!$D$9:$E$58,2,FALSE) ) ) ->  | AJ24: =IF(TRIM(AI24)="", "", IF(VLOOKUP(AI24,'Footnotes list'!$D$9:$E$58,2,FALSE)=0,"",VLOOKUP(AI24,'Footnotes list'!$D$9:$E$58,2,FALSE) ) ) ->  | AO24: =IF(TRIM(AN24)="", "", IF(VLOOKUP(AN24,'Footnotes list'!$D$9:$E$58,2,FALSE)=0,"",VLOOKUP(AN24,'Footnotes list'!$D$9:$E$58,2,FALSE) ) ) ->  | AP24: =IF(AND(TRIM(AF24)="",TRIM(AK24)=""),"",AF24+AK24) ->  | AT24: =IF(TRIM(AS24)="", "", IF(VLOOKUP(AS24,'Footnotes list'!$D$9:$E$58,2,FALSE)=0,"",VLOOKUP(AS24,'Footnotes list'!$D$9:$E$58,2,FALSE) ) ) ->  | AU24: =IF(AND(TRIM(G24)="",TRIM(L24)="",TRIM(AA24)="",TRIM(AP24)=""),"",SUM(G24,L24,AA24,AP24)) ->  | AY24: =IF(TRIM(AX24)="", "", IF(VLOOKUP(AX24,'Footnotes list'!$D$9:$E$58,2,FALSE)=0,"",VLOOKUP(AX24,'Footnotes list'!$D$9:$E$58,2,FALSE) ) ) -> 
C25: W033 | E25: HAZ_NHAZ | F25: Total | G25: =IF(AND(TRIM(G23)="",TRIM(G24)=""),"",G23+G24) ->  | K25: =IF(TRIM(J25)="", "", IF(VLOOKUP(J25,'Footnotes list'!$D$9:$E$58,2,FALSE)=0,"",VLOOKUP(J25,'Footnotes list'!$D$9:$E$58,2,FALSE) ) ) ->  | L25: =IF(AND(TRIM(L23)="",TRIM(L24)=""),"",L23+L24) ->  | P25: =IF(TRIM(O25)="", "", IF(VLOOKUP(O25,'Footnotes list'!$D$9:$E$58,2,FALSE)=0,"",VLOOKUP(O25,'Footnotes list'!$D$9:$E$58,2,FALSE) ) ) ->  | Q25: =IF(AND(TRIM(Q23)="",TRIM(Q24)=""),"",Q23+Q24) ->  | U25: =IF(TRIM(T25)="", "", IF(VLOOKUP(T25,'Footnotes list'!$D$9:$E$58,2,FALSE)=0,"",VLOOKUP(T25,'Footnotes list'!$D$9:$E$58,2,FALSE) ) ) ->  | V25: =IF(AND(TRIM(V23)="",TRIM(V24)=""),"",V23+V24) ->  | Z25: =IF(TRIM(Y25)="", "", IF(VLOOKUP(Y25,'Footnotes list'!$D$9:$E$58,2,FALSE)=0,"",VLOOKUP(Y25,'Footnotes list'!$D$9:$E$58,2,FALSE) ) ) ->  | AA25: =IF(AND(TRIM(AA23)="", TRIM(AA24)=""), "", SUM(AA23,AA24)) ->  | AE25: =IF(TRIM(AD25)="", "", IF(VLOOKUP(AD25,'Footnotes list'!$D$9:$E$58,2,FALSE)=0,"",VLOOKUP(AD25,'Footnotes list'!$D$9:$E$58,2,FALSE) ) ) ->  | AF25: =IF(AND(TRIM(AF23)="",TRIM(AF24)=""),"",AF23+AF24) ->  | AJ25: =IF(TRIM(AI25)="", "", IF(VLOOKUP(AI25,'Footnotes list'!$D$9:$E$58,2,FALSE)=0,"",VLOOKUP(AI25,'Footnotes list'!$D$9:$E$58,2,FALSE) ) ) ->  | AK25: =IF(AND(TRIM(AK23)="",TRIM(AK24)=""),"",AK23+AK24) ->  | AO25: =IF(TRIM(AN25)="", "", IF(VLOOKUP(AN25,'Footnotes list'!$D$9:$E$58,2,FALSE)=0,"",VLOOKUP(AN25,'Footnotes list'!$D$9:$E$58,2,FALSE) ) ) ->  | AP25: =IF(AND(TRIM(AP23)="", TRIM(AP24)=""), "", SUM(AP23,AP24)) ->  | AT25: =IF(TRIM(AS25)="", "", IF(VLOOKUP(AS25,'Footnotes list'!$D$9:$E$58,2,FALSE)=0,"",VLOOKUP(AS25,'Footnotes list'!$D$9:$E$58,2,FALSE) ) ) ->  | AU25: =IF(AND(TRIM(AU23)="", TRIM(AU24)=""), "", SUM(AU23,AU24) ) ->  | AY25: =IF(TRIM(AX25)="", "", IF(VLOOKUP(AX25,'Footnotes list'!$D$9:$E$58,2,FALSE)=0,"",VLOOKUP(AX25,'Footnotes list'!$D$9:$E$58,2,FALSE) ) ) -> 
B26: W05 | C26: W05 | D26: Health care and biological wastes | E26: HAZ | F26: Hazardous | K26: =IF(TRIM(J26)="", "", IF(VLOOKUP(J26,'Footnotes list'!$D$9:$E$58,2,FALSE)=0,"",VLOOKUP(J26,'Footnotes list'!$D$9:$E$58,2,FALSE) ) ) ->  | P26: =IF(TRIM(O26)="", "", IF(VLOOKUP(O26,'Footnotes list'!$D$9:$E$58,2,FALSE)=0,"",VLOOKUP(O26,'Footnotes list'!$D$9:$E$58,2,FALSE) ) ) ->  | U26: =IF(TRIM(T26)="", "", IF(VLOOKUP(T26,'Footnotes list'!$D$9:$E$58,2,FALSE)=0,"",VLOOKUP(T26,'Footnotes list'!$D$9:$E$58,2,FALSE) ) ) ->  | Z26: =IF(TRIM(Y26)="", "", IF(VLOOKUP(Y26,'Footnotes list'!$D$9:$E$58,2,FALSE)=0,"",VLOOKUP(Y26,'Footnotes list'!$D$9:$E$58,2,FALSE) ) ) ->  | AA26: =IF(AND(TRIM(Q26)="",TRIM(V26)=""),"",Q26+V26) ->  | AE26: =IF(TRIM(AD26)="", "", IF(VLOOKUP(AD26,'Footnotes list'!$D$9:$E$58,2,FALSE)=0,"",VLOOKUP(AD26,'Footnotes list'!$D$9:$E$58,2,FALSE) ) ) ->  | AJ26: =IF(TRIM(AI26)="", "", IF(VLOOKUP(AI26,'Footnotes list'!$D$9:$E$58,2,FALSE)=0,"",VLOOKUP(AI26,'Footnotes list'!$D$9:$E$58,2,FALSE) ) ) ->  | AO26: =IF(TRIM(AN26)="", "", IF(VLOOKUP(AN26,'Footnotes list'!$D$9:$E$58,2,FALSE)=0,"",VLOOKUP(AN26,'Footnotes list'!$D$9:$E$58,2,FALSE) ) ) ->  | AP26: =IF(AND(TRIM(AF26)="",TRIM(AK26)=""),"",AF26+AK26) ->  | AT26: =IF(TRIM(AS26)="", "", IF(VLOOKUP(AS26,'Footnotes list'!$D$9:$E$58,2,FALSE)=0,"",VLOOKUP(AS26,'Footnotes list'!$D$9:$E$58,2,FALSE) ) ) ->  | AU26: =IF(AND(TRIM(G26)="",TRIM(L26)="",TRIM(AA26)="",TRIM(AP26)=""),"",SUM(G26,L26,AA26,AP26)) ->  | AY26: =IF(TRIM(AX26)="", "", IF(VLOOKUP(AX26,'Footnotes list'!$D$9:$E$58,2,FALSE)=0,"",VLOOKUP(AX26,'Footnotes list'!$D$9:$E$58,2,FALSE) ) ) -> 
C27: W05 | E27: NHAZ | F27: Non-hazardous | K27: =IF(TRIM(J27)="", "", IF(VLOOKUP(J27,'Footnotes list'!$D$9:$E$58,2,FALSE)=0,"",VLOOKUP(J27,'Footnotes list'!$D$9:$E$58,2,FALSE) ) ) ->  | P27: =IF(TRIM(O27)="", "", IF(VLOOKUP(O27,'Footnotes list'!$D$9:$E$58,2,FALSE)=0,"",VLOOKUP(O27,'Footnotes list'!$D$9:$E$58,2,FALSE) ) ) ->  | U27: =IF(TRIM(T27)="", "", IF(VLOOKUP(T27,'Footnotes list'!$D$9:$E$58,2,FALSE)=0,"",VLOOKUP(T27,'Footnotes list'!$D$9:$E$58,2,FALSE) ) ) ->  | Z27: =IF(TRIM(Y27)="", "", IF(VLOOKUP(Y27,'Footnotes list'!$D$9:$E$58,2,FALSE)=0,"",VLOOKUP(Y27,'Footnotes list'!$D$9:$E$58,2,FALSE) ) ) ->  | AA27: =IF(AND(TRIM(Q27)="",TRIM(V27)=""),"",Q27+V27) ->  | AE27: =IF(TRIM(AD27)="", "", IF(VLOOKUP(AD27,'Footnotes list'!$D$9:$E$58,2,FALSE)=0,"",VLOOKUP(AD27,'Footnotes list'!$D$9:$E$58,2,FALSE) ) ) ->  | AJ27: =IF(TRIM(AI27)="", "", IF(VLOOKUP(AI27,'Footnotes list'!$D$9:$E$58,2,FALSE)=0,"",VLOOKUP(AI27,'Footnotes list'!$D$9:$E$58,2,FALSE) ) ) ->  | AO27: =IF(TRIM(AN27)="", "", IF(VLOOKUP(AN27,'Footnotes list'!$D$9:$E$58,2,FALSE)=0,"",VLOOKUP(AN27,'Footnotes list'!$D$9:$E$58,2,FALSE) ) ) ->  | AP27: =IF(AND(TRIM(AF27)="",TRIM(AK27)=""),"",AF27+AK27) ->  | AT27: =IF(TRIM(AS27)="", "", IF(VLOOKUP(AS27,'Footnotes list'!$D$9:$E$58,2,FALSE)=0,"",VLOOKUP(AS27,'Footnotes list'!$D$9:$E$58,2,FALSE) ) ) ->  | AU27: =IF(AND(TRIM(G27)="",TRIM(L27)="",TRIM(AA27)="",TRIM(AP27)=""),"",SUM(G27,L27,AA27,AP27)) ->  | AY27: =IF(TRIM(AX27)="", "", IF(VLOOKUP(AX27,'Footnotes list'!$D$9:$E$58,2,FALSE)=0,"",VLOOKUP(AX27,'Footnotes list'!$D$9:$E$58,2,FALSE) ) ) -> 
C28: W05 | E28: HAZ_NHAZ | F28: Total | G28: =IF(AND(TRIM(G26)="",TRIM(G27)=""),"",G26+G27) ->  | K28: =IF(TRIM(J28)="", "", IF(VLOOKUP(J28,'Footnotes list'!$D$9:$E$58,2,FALSE)=0,"",VLOOKUP(J28,'Footnotes list'!$D$9:$E$58,2,FALSE) ) ) ->  | L28: =IF(AND(TRIM(L26)="",TRIM(L27)=""),"",L26+L27) ->  | P28: =IF(TRIM(O28)="", "", IF(VLOOKUP(O28,'Footnotes list'!$D$9:$E$58,2,FALSE)=0,"",VLOOKUP(O28,'Footnotes list'!$D$9:$E$58,2,FALSE) ) ) ->  | Q28: =IF(AND(TRIM(Q26)="",TRIM(Q27)=""),"",Q26+Q27) ->  | U28: =IF(TRIM(T28)="", "", IF(VLOOKUP(T28,'Footnotes list'!$D$9:$E$58,2,FALSE)=0,"",VLOOKUP(T28,'Footnotes list'!$D$9:$E$58,2,FALSE) ) ) ->  | V28: =IF(AND(TRIM(V26)="",TRIM(V27)=""),"",V26+V27) ->  | Z28: =IF(TRIM(Y28)="", "", IF(VLOOKUP(Y28,'Footnotes list'!$D$9:$E$58,2,FALSE)=0,"",VLOOKUP(Y28,'Footnotes list'!$D$9:$E$58,2,FALSE) ) ) ->  | AA28: =IF(AND(TRIM(AA26)="", TRIM(AA27)=""), "", SUM(AA26,AA27)) ->  | AE28: =IF(TRIM(AD28)="", "", IF(VLOOKUP(AD28,'Footnotes list'!$D$9:$E$58,2,FALSE)=0,"",VLOOKUP(AD28,'Footnotes list'!$D$9:$E$58,2,FALSE) ) ) ->  | AF28: =IF(AND(TRIM(AF26)="",TRIM(AF27)=""),"",AF26+AF27) ->  | AJ28: =IF(TRIM(AI28)="", "", IF(VLOOKUP(AI28,'Footnotes list'!$D$9:$E$58,2,FALSE)=0,"",VLOOKUP(AI28,'Footnotes list'!$D$9:$E$58,2,FALSE) ) ) ->  | AK28: =IF(AND(TRIM(AK26)="",TRIM(AK27)=""),"",AK26+AK27) ->  | AO28: =IF(TRIM(AN28)="", "", IF(VLOOKUP(AN28,'Footnotes list'!$D$9:$E$58,2,FALSE)=0,"",VLOOKUP(AN28,'Footnotes list'!$D$9:$E$58,2,FALSE) ) ) ->  | AP28: =IF(AND(TRIM(AP26)="", TRIM(AP27)=""), "", SUM(AP26,AP27)) ->  | AT28: =IF(TRIM(AS28)="", "", IF(VLOOKUP(AS28,'Footnotes list'!$D$9:$E$58,2,FALSE)=0,"",VLOOKUP(AS28,'Footnotes list'!$D$9:$E$58,2,FALSE) ) ) ->  | AU28: =IF(AND(TRIM(AU26)="", TRIM(AU27)=""), "", SUM(AU26,AU27) ) ->  | AY28: =IF(TRIM(AX28)="", "", IF(VLOOKUP(AX28,'Footnotes list'!$D$9:$E$58,2,FALSE)=0,"",VLOOKUP(AX28,'Footnotes list'!$D$9:$E$58,2,FALSE) ) ) -> 
B29: W061 | D29: Metallic wastes, ferrous | F29: Not applicable
C30: W061 | E30: NHAZ | F30: Non-hazardous | K30: =IF(TRIM(J30)="", "", IF(VLOOKUP(J30,'Footnotes list'!$D$9:$E$58,2,FALSE)=0,"",VLOOKUP(J30,'Footnotes list'!$D$9:$E$58,2,FALSE) ) ) ->  | P30: =IF(TRIM(O30)="", "", IF(VLOOKUP(O30,'Footnotes list'!$D$9:$E$58,2,FALSE)=0,"",VLOOKUP(O30,'Footnotes list'!$D$9:$E$58,2,FALSE) ) ) ->  | U30: =IF(TRIM(T30)="", "", IF(VLOOKUP(T30,'Footnotes list'!$D$9:$E$58,2,FALSE)=0,"",VLOOKUP(T30,'Footnotes list'!$D$9:$E$58,2,FALSE) ) ) ->  | Z30: =IF(TRIM(Y30)="", "", IF(VLOOKUP(Y30,'Footnotes list'!$D$9:$E$58,2,FALSE)=0,"",VLOOKUP(Y30,'Footnotes list'!$D$9:$E$58,2,FALSE) ) ) ->  | AA30: =IF(AND(TRIM(Q30)="",TRIM(V30)=""),"",Q30+V30) ->  | AE30: =IF(TRIM(AD30)="", "", IF(VLOOKUP(AD30,'Footnotes list'!$D$9:$E$58,2,FALSE)=0,"",VLOOKUP(AD30,'Footnotes list'!$D$9:$E$58,2,FALSE) ) ) ->  | AJ30: =IF(TRIM(AI30)="", "", IF(VLOOKUP(AI30,'Footnotes list'!$D$9:$E$58,2,FALSE)=0,"",VLOOKUP(AI30,'Footnotes list'!$D$9:$E$58,2,FALSE) ) ) ->  | AO30: =IF(TRIM(AN30)="", "", IF(VLOOKUP(AN30,'Footnotes list'!$D$9:$E$58,2,FALSE)=0,"",VLOOKUP(AN30,'Footnotes list'!$D$9:$E$58,2,FALSE) ) ) ->  | AP30: =IF(AND(TRIM(AF30)="",TRIM(AK30)=""),"",AF30+AK30) ->  | AT30: =IF(TRIM(AS30)="", "", IF(VLOOKUP(AS30,'Footnotes list'!$D$9:$E$58,2,FALSE)=0,"",VLOOKUP(AS30,'Footnotes list'!$D$9:$E$58,2,FALSE) ) ) ->  | AU30: =IF(AND(TRIM(G30)="",TRIM(L30)="",TRIM(AA30)="",TRIM(AP30)=""),"",SUM(G30,L30,AA30,AP30)) ->  | AY30: =IF(TRIM(AX30)="", "", IF(VLOOKUP(AX30,'Footnotes list'!$D$9:$E$58,2,FALSE)=0,"",VLOOKUP(AX30,'Footnotes list'!$D$9:$E$58,2,FALSE) ) ) -> 
C31: W061 | E31: HAZ_NHAZ | F31: Total | G31: =IF(AND(TRIM(G29)="",TRIM(G30)=""),"",G29+G30) ->  | K31: =IF(TRIM(J31)="", "", IF(VLOOKUP(J31,'Footnotes list'!$D$9:$E$58,2,FALSE)=0,"",VLOOKUP(J31,'Footnotes list'!$D$9:$E$58,2,FALSE) ) ) ->  | L31: =IF(AND(TRIM(L29)="",TRIM(L30)=""),"",L29+L30) ->  | P31: =IF(TRIM(O31)="", "", IF(VLOOKUP(O31,'Footnotes list'!$D$9:$E$58,2,FALSE)=0,"",VLOOKUP(O31,'Footnotes list'!$D$9:$E$58,2,FALSE) ) ) ->  | Q31: =IF(AND(TRIM(Q29)="",TRIM(Q30)=""),"",Q29+Q30) ->  | U31: =IF(TRIM(T31)="", "", IF(VLOOKUP(T31,'Footnotes list'!$D$9:$E$58,2,FALSE)=0,"",VLOOKUP(T31,'Footnotes list'!$D$9:$E$58,2,FALSE) ) ) ->  | V31: =IF(AND(TRIM(V29)="",TRIM(V30)=""),"",V29+V30) ->  | Z31: =IF(TRIM(Y31)="", "", IF(VLOOKUP(Y31,'Footnotes list'!$D$9:$E$58,2,FALSE)=0,"",VLOOKUP(Y31,'Footnotes list'!$D$9:$E$58,2,FALSE) ) ) ->  | AA31: =IF(AND(TRIM(AA29)="", TRIM(AA30)=""), "", SUM(AA29,AA30)) ->  | AE31: =IF(TRIM(AD31)="", "", IF(VLOOKUP(AD31,'Footnotes list'!$D$9:$E$58,2,FALSE)=0,"",VLOOKUP(AD31,'Footnotes list'!$D$9:$E$58,2,FALSE) ) ) ->  | AF31: =IF(AND(TRIM(AF29)="",TRIM(AF30)=""),"",AF29+AF30) ->  | AJ31: =IF(TRIM(AI31)="", "", IF(VLOOKUP(AI31,'Footnotes list'!$D$9:$E$58,2,FALSE)=0,"",VLOOKUP(AI31,'Footnotes list'!$D$9:$E$58,2,FALSE) ) ) ->  | AK31: =IF(AND(TRIM(AK29)="",TRIM(AK30)=""),"",AK29+AK30) ->  | AO31: =IF(TRIM(AN31)="", "", IF(VLOOKUP(AN31,'Footnotes list'!$D$9:$E$58,2,FALSE)=0,"",VLOOKUP(AN31,'Footnotes list'!$D$9:$E$58,2,FALSE) ) ) ->  | AP31: =IF(AND(TRIM(AP29)="", TRIM(AP30)=""), "", SUM(AP29,AP30)) ->  | AT31: =IF(TRIM(AS31)="", "", IF(VLOOKUP(AS31,'Footnotes list'!$D$9:$E$58,2,FALSE)=0,"",VLOOKUP(AS31,'Footnotes list'!$D$9:$E$58,2,FALSE) ) ) ->  | AU31: =IF(AND(TRIM(AU29)="", TRIM(AU30)=""), "", SUM(AU29,AU30) ) ->  | AY31: =IF(TRIM(AX31)="", "", IF(VLOOKUP(AX31,'Footnotes list'!$D$9:$E$58,2,FALSE)=0,"",VLOOKUP(AX31,'Footnotes list'!$D$9:$E$58,2,FALSE) ) ) -> 
B32: W062 | D32: Metallic wastes, non-ferrous | F32: Not applicable
C33: W062 | E33: NHAZ | F33: Non-hazardous | K33: =IF(TRIM(J33)="", "", IF(VLOOKUP(J33,'Footnotes list'!$D$9:$E$58,2,FALSE)=0,"",VLOOKUP(J33,'Footnotes list'!$D$9:$E$58,2,FALSE) ) ) ->  | P33: =IF(TRIM(O33)="", "", IF(VLOOKUP(O33,'Footnotes list'!$D$9:$E$58,2,FALSE)=0,"",VLOOKUP(O33,'Footnotes list'!$D$9:$E$58,2,FALSE) ) ) ->  | U33: =IF(TRIM(T33)="", "", IF(VLOOKUP(T33,'Footnotes list'!$D$9:$E$58,2,FALSE)=0,"",VLOOKUP(T33,'Footnotes list'!$D$9:$E$58,2,FALSE) ) ) ->  | Z33: =IF(TRIM(Y33)="", "", IF(VLOOKUP(Y33,'Footnotes list'!$D$9:$E$58,2,FALSE)=0,"",VLOOKUP(Y33,'Footnotes list'!$D$9:$E$58,2,FALSE) ) ) ->  | AA33: =IF(AND(TRIM(Q33)="",TRIM(V33)=""),"",Q33+V33) ->  | AE33: =IF(TRIM(AD33)="", "", IF(VLOOKUP(AD33,'Footnotes list'!$D$9:$E$58,2,FALSE)=0,"",VLOOKUP(AD33,'Footnotes list'!$D$9:$E$58,2,FALSE) ) ) ->  | AJ33: =IF(TRIM(AI33)="", "", IF(VLOOKUP(AI33,'Footnotes list'!$D$9:$E$58,2,FALSE)=0,"",VLOOKUP(AI33,'Footnotes list'!$D$9:$E$58,2,FALSE) ) ) ->  | AO33: =IF(TRIM(AN33)="", "", IF(VLOOKUP(AN33,'Footnotes list'!$D$9:$E$58,2,FALSE)=0,"",VLOOKUP(AN33,'Footnotes list'!$D$9:$E$58,2,FALSE) ) ) ->  | AP33: =IF(AND(TRIM(AF33)="",TRIM(AK33)=""),"",AF33+AK33) ->  | AT33: =IF(TRIM(AS33)="", "", IF(VLOOKUP(AS33,'Footnotes list'!$D$9:$E$58,2,FALSE)=0,"",VLOOKUP(AS33,'Footnotes list'!$D$9:$E$58,2,FALSE) ) ) ->  | AU33: =IF(AND(TRIM(G33)="",TRIM(L33)="",TRIM(AA33)="",TRIM(AP33)=""),"",SUM(G33,L33,AA33,AP33)) ->  | AY33: =IF(TRIM(AX33)="", "", IF(VLOOKUP(AX33,'Footnotes list'!$D$9:$E$58,2,FALSE)=0,"",VLOOKUP(AX33,'Footnotes list'!$D$9:$E$58,2,FALSE) ) ) -> 
C34: W062 | E34: HAZ_NHAZ | F34: Total | G34: =IF(AND(TRIM(G32)="",TRIM(G33)=""),"",G32+G33) ->  | K34: =IF(TRIM(J34)="", "", IF(VLOOKUP(J34,'Footnotes list'!$D$9:$E$58,2,FALSE)=0,"",VLOOKUP(J34,'Footnotes list'!$D$9:$E$58,2,FALSE) ) ) ->  | L34: =IF(AND(TRIM(L32)="",TRIM(L33)=""),"",L32+L33) ->  | P34: =IF(TRIM(O34)="", "", IF(VLOOKUP(O34,'Footnotes list'!$D$9:$E$58,2,FALSE)=0,"",VLOOKUP(O34,'Footnotes list'!$D$9:$E$58,2,FALSE) ) ) ->  | Q34: =IF(AND(TRIM(Q32)="",TRIM(Q33)=""),"",Q32+Q33) ->  | U34: =IF(TRIM(T34)="", "", IF(VLOOKUP(T34,'Footnotes list'!$D$9:$E$58,2,FALSE)=0,"",VLOOKUP(T34,'Footnotes list'!$D$9:$E$58,2,FALSE) ) ) ->  | V34: =IF(AND(TRIM(V32)="",TRIM(V33)=""),"",V32+V33) ->  | Z34: =IF(TRIM(Y34)="", "", IF(VLOOKUP(Y34,'Footnotes list'!$D$9:$E$58,2,FALSE)=0,"",VLOOKUP(Y34,'Footnotes list'!$D$9:$E$58,2,FALSE) ) ) ->  | AA34: =IF(AND(TRIM(AA32)="", TRIM(AA33)=""), "", SUM(AA32,AA33)) ->  | AE34: =IF(TRIM(AD34)="", "", IF(VLOOKUP(AD34,'Footnotes list'!$D$9:$E$58,2,FALSE)=0,"",VLOOKUP(AD34,'Footnotes list'!$D$9:$E$58,2,FALSE) ) ) ->  | AF34: =IF(AND(TRIM(AF32)="",TRIM(AF33)=""),"",AF32+AF33) ->  | AJ34: =IF(TRIM(AI34)="", "", IF(VLOOKUP(AI34,'Footnotes list'!$D$9:$E$58,2,FALSE)=0,"",VLOOKUP(AI34,'Footnotes list'!$D$9:$E$58,2,FALSE) ) ) ->  | AK34: =IF(AND(TRIM(AK32)="",TRIM(AK33)=""),"",AK32+AK33) ->  | AO34: =IF(TRIM(AN34)="", "", IF(VLOOKUP(AN34,'Footnotes list'!$D$9:$E$58,2,FALSE)=0,"",VLOOKUP(AN34,'Footnotes list'!$D$9:$E$58,2,FALSE) ) ) ->  | AP34: =IF(AND(TRIM(AP32)="", TRIM(AP33)=""), "", SUM(AP32,AP33)) ->  | AT34: =IF(TRIM(AS34)="", "", IF(VLOOKUP(AS34,'Footnotes list'!$D$9:$E$58,2,FALSE)=0,"",VLOOKUP(AS34,'Footnotes list'!$D$9:$E$58,2,FALSE) ) ) ->  | AU34: =IF(AND(TRIM(AU32)="", TRIM(AU33)=""), "", SUM(AU32,AU33) ) ->  | AY34: =IF(TRIM(AX34)="", "", IF(VLOOKUP(AX34,'Footnotes list'!$D$9:$E$58,2,FALSE)=0,"",VLOOKUP(AX34,'Footnotes list'!$D$9:$E$58,2,FALSE) ) ) -> 
B35: W063 | D35: Metal wastes, mixed ferrous and non-ferrous | F35: Not applicable
C36: W063 | E36: NHAZ | F36: Non-hazardous | K36: =IF(TRIM(J36)="", "", IF(VLOOKUP(J36,'Footnotes list'!$D$9:$E$58,2,FALSE)=0,"",VLOOKUP(J36,'Footnotes list'!$D$9:$E$58,2,FALSE) ) ) ->  | P36: =IF(TRIM(O36)="", "", IF(VLOOKUP(O36,'Footnotes list'!$D$9:$E$58,2,FALSE)=0,"",VLOOKUP(O36,'Footnotes list'!$D$9:$E$58,2,FALSE) ) ) ->  | U36: =IF(TRIM(T36)="", "", IF(VLOOKUP(T36,'Footnotes list'!$D$9:$E$58,2,FALSE)=0,"",VLOOKUP(T36,'Footnotes list'!$D$9:$E$58,2,FALSE) ) ) ->  | Z36: =IF(TRIM(Y36)="", "", IF(VLOOKUP(Y36,'Footnotes list'!$D$9:$E$58,2,FALSE)=0,"",VLOOKUP(Y36,'Footnotes list'!$D$9:$E$58,2,FALSE) ) ) ->  | AA36: =IF(AND(TRIM(Q36)="",TRIM(V36)=""),"",Q36+V36) ->  | AE36: =IF(TRIM(AD36)="", "", IF(VLOOKUP(AD36,'Footnotes list'!$D$9:$E$58,2,FALSE)=0,"",VLOOKUP(AD36,'Footnotes list'!$D$9:$E$58,2,FALSE) ) ) ->  | AJ36: =IF(TRIM(AI36)="", "", IF(VLOOKUP(AI36,'Footnotes list'!$D$9:$E$58,2,FALSE)=0,"",VLOOKUP(AI36,'Footnotes list'!$D$9:$E$58,2,FALSE) ) ) ->  | AO36: =IF(TRIM(AN36)="", "", IF(VLOOKUP(AN36,'Footnotes list'!$D$9:$E$58,2,FALSE)=0,"",VLOOKUP(AN36,'Footnotes list'!$D$9:$E$58,2,FALSE) ) ) ->  | AP36: =IF(AND(TRIM(AF36)="",TRIM(AK36)=""),"",AF36+AK36) ->  | AT36: =IF(TRIM(AS36)="", "", IF(VLOOKUP(AS36,'Footnotes list'!$D$9:$E$58,2,FALSE)=0,"",VLOOKUP(AS36,'Footnotes list'!$D$9:$E$58,2,FALSE) ) ) ->  | AU36: =IF(AND(TRIM(G36)="",TRIM(L36)="",TRIM(AA36)="",TRIM(AP36)=""),"",SUM(G36,L36,AA36,AP36)) ->  | AY36: =IF(TRIM(AX36)="", "", IF(VLOOKUP(AX36,'Footnotes list'!$D$9:$E$58,2,FALSE)=0,"",VLOOKUP(AX36,'Footnotes list'!$D$9:$E$58,2,FALSE) ) ) -> 
C37: W063 | E37: HAZ_NHAZ | F37: Total | G37: =IF(AND(TRIM(G35)="",TRIM(G36)=""),"",G35+G36) ->  | K37: =IF(TRIM(J37)="", "", IF(VLOOKUP(J37,'Footnotes list'!$D$9:$E$58,2,FALSE)=0,"",VLOOKUP(J37,'Footnotes list'!$D$9:$E$58,2,FALSE) ) ) ->  | L37: =IF(AND(TRIM(L35)="",TRIM(L36)=""),"",L35+L36) ->  | P37: =IF(TRIM(O37)="", "", IF(VLOOKUP(O37,'Footnotes list'!$D$9:$E$58,2,FALSE)=0,"",VLOOKUP(O37,'Footnotes list'!$D$9:$E$58,2,FALSE) ) ) ->  | Q37: =IF(AND(TRIM(Q35)="",TRIM(Q36)=""),"",Q35+Q36) ->  | U37: =IF(TRIM(T37)="", "", IF(VLOOKUP(T37,'Footnotes list'!$D$9:$E$58,2,FALSE)=0,"",VLOOKUP(T37,'Footnotes list'!$D$9:$E$58,2,FALSE) ) ) ->  | V37: =IF(AND(TRIM(V35)="",TRIM(V36)=""),"",V35+V36) ->  | Z37: =IF(TRIM(Y37)="", "", IF(VLOOKUP(Y37,'Footnotes list'!$D$9:$E$58,2,FALSE)=0,"",VLOOKUP(Y37,'Footnotes list'!$D$9:$E$58,2,FALSE) ) ) ->  | AA37: =IF(AND(TRIM(AA35)="", TRIM(AA36)=""), "", SUM(AA35,AA36)) ->  | AE37: =IF(TRIM(AD37)="", "", IF(VLOOKUP(AD37,'Footnotes list'!$D$9:$E$58,2,FALSE)=0,"",VLOOKUP(AD37,'Footnotes list'!$D$9:$E$58,2,FALSE) ) ) ->  | AF37: =IF(AND(TRIM(AF35)="",TRIM(AF36)=""),"",AF35+AF36) ->  | AJ37: =IF(TRIM(AI37)="", "", IF(VLOOKUP(AI37,'Footnotes list'!$D$9:$E$58,2,FALSE)=0,"",VLOOKUP(AI37,'Footnotes list'!$D$9:$E$58,2,FALSE) ) ) ->  | AK37: =IF(AND(TRIM(AK35)="",TRIM(AK36)=""),"",AK35+AK36) ->  | AO37: =IF(TRIM(AN37)="", "", IF(VLOOKUP(AN37,'Footnotes list'!$D$9:$E$58,2,FALSE)=0,"",VLOOKUP(AN37,'Footnotes list'!$D$9:$E$58,2,FALSE) ) ) ->  | AP37: =IF(AND(TRIM(AP35)="", TRIM(AP36)=""), "", SUM(AP35,AP36)) ->  | AT37: =IF(TRIM(AS37)="", "", IF(VLOOKUP(AS37,'Footnotes list'!$D$9:$E$58,2,FALSE)=0,"",VLOOKUP(AS37,'Footnotes list'!$D$9:$E$58,2,FALSE) ) ) ->  | AU37: =IF(AND(TRIM(AU35)="", TRIM(AU36)=""), "", SUM(AU35,AU36) ) ->  | AY37: =IF(TRIM(AX37)="", "", IF(VLOOKUP(AX37,'Footnotes list'!$D$9:$E$58,2,FALSE)=0,"",VLOOKUP(AX37,'Footnotes list'!$D$9:$E$58,2,FALSE) ) ) -> 
B38: W071 | C38: W071 | D38: Glass wastes | E38: HAZ | F38: Hazardous | K38: =IF(TRIM(J38)="", "", IF(VLOOKUP(J38,'Footnotes list'!$D$9:$E$58,2,FALSE)=0,"",VLOOKUP(J38,'Footnotes list'!$D$9:$E$58,2,FALSE) ) ) ->  | P38: =IF(TRIM(O38)="", "", IF(VLOOKUP(O38,'Footnotes list'!$D$9:$E$58,2,FALSE)=0,"",VLOOKUP(O38,'Footnotes list'!$D$9:$E$58,2,FALSE) ) ) ->  | U38: =IF(TRIM(T38)="", "", IF(VLOOKUP(T38,'Footnotes list'!$D$9:$E$58,2,FALSE)=0,"",VLOOKUP(T38,'Footnotes list'!$D$9:$E$58,2,FALSE) ) ) ->  | Z38: =IF(TRIM(Y38)="", "", IF(VLOOKUP(Y38,'Footnotes list'!$D$9:$E$58,2,FALSE)=0,"",VLOOKUP(Y38,'Footnotes list'!$D$9:$E$58,2,FALSE) ) ) ->  | AA38: =IF(AND(TRIM(Q38)="",TRIM(V38)=""),"",Q38+V38) ->  | AE38: =IF(TRIM(AD38)="", "", IF(VLOOKUP(AD38,'Footnotes list'!$D$9:$E$58,2,FALSE)=0,"",VLOOKUP(AD38,'Footnotes list'!$D$9:$E$58,2,FALSE) ) ) ->  | AJ38: =IF(TRIM(AI38)="", "", IF(VLOOKUP(AI38,'Footnotes list'!$D$9:$E$58,2,FALSE)=0,"",VLOOKUP(AI38,'Footnotes list'!$D$9:$E$58,2,FALSE) ) ) ->  | AO38: =IF(TRIM(AN38)="", "", IF(VLOOKUP(AN38,'Footnotes list'!$D$9:$E$58,2,FALSE)=0,"",VLOOKUP(AN38,'Footnotes list'!$D$9:$E$58,2,FALSE) ) ) ->  | AP38: =IF(AND(TRIM(AF38)="",TRIM(AK38)=""),"",AF38+AK38) ->  | AT38: =IF(TRIM(AS38)="", "", IF(VLOOKUP(AS38,'Footnotes list'!$D$9:$E$58,2,FALSE)=0,"",VLOOKUP(AS38,'Footnotes list'!$D$9:$E$58,2,FALSE) ) ) ->  | AU38: =IF(AND(TRIM(G38)="",TRIM(L38)="",TRIM(AA38)="",TRIM(AP38)=""),"",SUM(G38,L38,AA38,AP38)) ->  | AY38: =IF(TRIM(AX38)="", "", IF(VLOOKUP(AX38,'Footnotes list'!$D$9:$E$58,2,FALSE)=0,"",VLOOKUP(AX38,'Footnotes list'!$D$9:$E$58,2,FALSE) ) ) -> 
C39: W071 | E39: NHAZ | F39: Non-hazardous | K39: =IF(TRIM(J39)="", "", IF(VLOOKUP(J39,'Footnotes list'!$D$9:$E$58,2,FALSE)=0,"",VLOOKUP(J39,'Footnotes list'!$D$9:$E$58,2,FALSE) ) ) ->  | P39: =IF(TRIM(O39)="", "", IF(VLOOKUP(O39,'Footnotes list'!$D$9:$E$58,2,FALSE)=0,"",VLOOKUP(O39,'Footnotes list'!$D$9:$E$58,2,FALSE) ) ) ->  | U39: =IF(TRIM(T39)="", "", IF(VLOOKUP(T39,'Footnotes list'!$D$9:$E$58,2,FALSE)=0,"",VLOOKUP(T39,'Footnotes list'!$D$9:$E$58,2,FALSE) ) ) ->  | Z39: =IF(TRIM(Y39)="", "", IF(VLOOKUP(Y39,'Footnotes list'!$D$9:$E$58,2,FALSE)=0,"",VLOOKUP(Y39,'Footnotes list'!$D$9:$E$58,2,FALSE) ) ) ->  | AA39: =IF(AND(TRIM(Q39)="",TRIM(V39)=""),"",Q39+V39) ->  | AE39: =IF(TRIM(AD39)="", "", IF(VLOOKUP(AD39,'Footnotes list'!$D$9:$E$58,2,FALSE)=0,"",VLOOKUP(AD39,'Footnotes list'!$D$9:$E$58,2,FALSE) ) ) ->  | AJ39: =IF(TRIM(AI39)="", "", IF(VLOOKUP(AI39,'Footnotes list'!$D$9:$E$58,2,FALSE)=0,"",VLOOKUP(AI39,'Footnotes list'!$D$9:$E$58,2,FALSE) ) ) ->  | AO39: =IF(TRIM(AN39)="", "", IF(VLOOKUP(AN39,'Footnotes list'!$D$9:$E$58,2,FALSE)=0,"",VLOOKUP(AN39,'Footnotes list'!$D$9:$E$58,2,FALSE) ) ) ->  | AP39: =IF(AND(TRIM(AF39)="",TRIM(AK39)=""),"",AF39+AK39) ->  | AT39: =IF(TRIM(AS39)="", "", IF(VLOOKUP(AS39,'Footnotes list'!$D$9:$E$58,2,FALSE)=0,"",VLOOKUP(AS39,'Footnotes list'!$D$9:$E$58,2,FALSE) ) ) ->  | AU39: =IF(AND(TRIM(G39)="",TRIM(L39)="",TRIM(AA39)="",TRIM(AP39)=""),"",SUM(G39,L39,AA39,AP39)) ->  | AY39: =IF(TRIM(AX39)="", "", IF(VLOOKUP(AX39,'Footnotes list'!$D$9:$E$58,2,FALSE)=0,"",VLOOKUP(AX39,'Footnotes list'!$D$9:$E$58,2,FALSE) ) ) -> 
C40: W071 | E40: HAZ_NHAZ | F40: Total | G40: =IF(AND(TRIM(G38)="",TRIM(G39)=""),"",G38+G39) ->  | K40: =IF(TRIM(J40)="", "", IF(VLOOKUP(J40,'Footnotes list'!$D$9:$E$58,2,FALSE)=0,"",VLOOKUP(J40,'Footnotes list'!$D$9:$E$58,2,FALSE) ) ) ->  | L40: =IF(AND(TRIM(L38)="",TRIM(L39)=""),"",L38+L39) ->  | P40: =IF(TRIM(O40)="", "", IF(VLOOKUP(O40,'Footnotes list'!$D$9:$E$58,2,FALSE)=0,"",VLOOKUP(O40,'Footnotes list'!$D$9:$E$58,2,FALSE) ) ) ->  | Q40: =IF(AND(TRIM(Q38)="",TRIM(Q39)=""),"",Q38+Q39) ->  | U40: =IF(TRIM(T40)="", "", IF(VLOOKUP(T40,'Footnotes list'!$D$9:$E$58,2,FALSE)=0,"",VLOOKUP(T40,'Footnotes list'!$D$9:$E$58,2,FALSE) ) ) ->  | V40: =IF(AND(TRIM(V38)="",TRIM(V39)=""),"",V38+V39) ->  | Z40: =IF(TRIM(Y40)="", "", IF(VLOOKUP(Y40,'Footnotes list'!$D$9:$E$58,2,FALSE)=0,"",VLOOKUP(Y40,'Footnotes list'!$D$9:$E$58,2,FALSE) ) ) ->  | AA40: =IF(AND(TRIM(AA38)="", TRIM(AA39)=""), "", SUM(AA38,AA39)) ->  | AE40: =IF(TRIM(AD40)="", "", IF(VLOOKUP(AD40,'Footnotes list'!$D$9:$E$58,2,FALSE)=0,"",VLOOKUP(AD40,'Footnotes list'!$D$9:$E$58,2,FALSE) ) ) ->  | AF40: =IF(AND(TRIM(AF38)="",TRIM(AF39)=""),"",AF38+AF39) ->  | AJ40: =IF(TRIM(AI40)="", "", IF(VLOOKUP(AI40,'Footnotes list'!$D$9:$E$58,2,FALSE)=0,"",VLOOKUP(AI40,'Footnotes list'!$D$9:$E$58,2,FALSE) ) ) ->  | AK40: =IF(AND(TRIM(AK38)="",TRIM(AK39)=""),"",AK38+AK39) ->  | AO40: =IF(TRIM(AN40)="", "", IF(VLOOKUP(AN40,'Footnotes list'!$D$9:$E$58,2,FALSE)=0,"",VLOOKUP(AN40,'Footnotes list'!$D$9:$E$58,2,FALSE) ) ) ->  | AP40: =IF(AND(TRIM(AP38)="", TRIM(AP39)=""), "", SUM(AP38,AP39)) ->  | AT40: =IF(TRIM(AS40)="", "", IF(VLOOKUP(AS40,'Footnotes list'!$D$9:$E$58,2,FALSE)=0,"",VLOOKUP(AS40,'Footnotes list'!$D$9:$E$58,2,FALSE) ) ) ->  | AU40: =IF(AND(TRIM(AU38)="", TRIM(AU39)=""), "", SUM(AU38,AU39) ) ->  | AY40: =IF(TRIM(AX40)="", "", IF(VLOOKUP(AX40,'Footnotes list'!$D$9:$E$58,2,FALSE)=0,"",VLOOKUP(AX40,'Footnotes list'!$D$9:$E$58,2,FALSE) ) ) -> 
B41: W072 | D41: Paper and cardboard wastes | F41: Not applicable
C42: W072 | E42: NHAZ | F42: Non-hazardous | K42: =IF(TRIM(J42)="", "", IF(VLOOKUP(J42,'Footnotes list'!$D$9:$E$58,2,FALSE)=0,"",VLOOKUP(J42,'Footnotes list'!$D$9:$E$58,2,FALSE) ) ) ->  | P42: =IF(TRIM(O42)="", "", IF(VLOOKUP(O42,'Footnotes list'!$D$9:$E$58,2,FALSE)=0,"",VLOOKUP(O42,'Footnotes list'!$D$9:$E$58,2,FALSE) ) ) ->  | U42: =IF(TRIM(T42)="", "", IF(VLOOKUP(T42,'Footnotes list'!$D$9:$E$58,2,FALSE)=0,"",VLOOKUP(T42,'Footnotes list'!$D$9:$E$58,2,FALSE) ) ) ->  | Z42: =IF(TRIM(Y42)="", "", IF(VLOOKUP(Y42,'Footnotes list'!$D$9:$E$58,2,FALSE)=0,"",VLOOKUP(Y42,'Footnotes list'!$D$9:$E$58,2,FALSE) ) ) ->  | AA42: =IF(AND(TRIM(Q42)="",TRIM(V42)=""),"",Q42+V42) ->  | AE42: =IF(TRIM(AD42)="", "", IF(VLOOKUP(AD42,'Footnotes list'!$D$9:$E$58,2,FALSE)=0,"",VLOOKUP(AD42,'Footnotes list'!$D$9:$E$58,2,FALSE) ) ) ->  | AJ42: =IF(TRIM(AI42)="", "", IF(VLOOKUP(AI42,'Footnotes list'!$D$9:$E$58,2,FALSE)=0,"",VLOOKUP(AI42,'Footnotes list'!$D$9:$E$58,2,FALSE) ) ) ->  | AO42: =IF(TRIM(AN42)="", "", IF(VLOOKUP(AN42,'Footnotes list'!$D$9:$E$58,2,FALSE)=0,"",VLOOKUP(AN42,'Footnotes list'!$D$9:$E$58,2,FALSE) ) ) ->  | AP42: =IF(AND(TRIM(AF42)="",TRIM(AK42)=""),"",AF42+AK42) ->  | AT42: =IF(TRIM(AS42)="", "", IF(VLOOKUP(AS42,'Footnotes list'!$D$9:$E$58,2,FALSE)=0,"",VLOOKUP(AS42,'Footnotes list'!$D$9:$E$58,2,FALSE) ) ) ->  | AU42: =IF(AND(TRIM(G42)="",TRIM(L42)="",TRIM(AA42)="",TRIM(AP42)=""),"",SUM(G42,L42,AA42,AP42)) ->  | AY42: =IF(TRIM(AX42)="", "", IF(VLOOKUP(AX42,'Footnotes list'!$D$9:$E$58,2,FALSE)=0,"",VLOOKUP(AX42,'Footnotes list'!$D$9:$E$58,2,FALSE) ) ) -> 
C43: W072 | E43: HAZ_NHAZ | F43: Total | G43: =IF(AND(TRIM(G41)="",TRIM(G42)=""),"",G41+G42) ->  | K43: =IF(TRIM(J43)="", "", IF(VLOOKUP(J43,'Footnotes list'!$D$9:$E$58,2,FALSE)=0,"",VLOOKUP(J43,'Footnotes list'!$D$9:$E$58,2,FALSE) ) ) ->  | L43: =IF(AND(TRIM(L41)="",TRIM(L42)=""),"",L41+L42) ->  | P43: =IF(TRIM(O43)="", "", IF(VLOOKUP(O43,'Footnotes list'!$D$9:$E$58,2,FALSE)=0,"",VLOOKUP(O43,'Footnotes list'!$D$9:$E$58,2,FALSE) ) ) ->  | Q43: =IF(AND(TRIM(Q41)="",TRIM(Q42)=""),"",Q41+Q42) ->  | U43: =IF(TRIM(T43)="", "", IF(VLOOKUP(T43,'Footnotes list'!$D$9:$E$58,2,FALSE)=0,"",VLOOKUP(T43,'Footnotes list'!$D$9:$E$58,2,FALSE) ) ) ->  | V43: =IF(AND(TRIM(V41)="",TRIM(V42)=""),"",V41+V42) ->  | Z43: =IF(TRIM(Y43)="", "", IF(VLOOKUP(Y43,'Footnotes list'!$D$9:$E$58,2,FALSE)=0,"",VLOOKUP(Y43,'Footnotes list'!$D$9:$E$58,2,FALSE) ) ) ->  | AA43: =IF(AND(TRIM(AA41)="", TRIM(AA42)=""), "", SUM(AA41,AA42)) ->  | AE43: =IF(TRIM(AD43)="", "", IF(VLOOKUP(AD43,'Footnotes list'!$D$9:$E$58,2,FALSE)=0,"",VLOOKUP(AD43,'Footnotes list'!$D$9:$E$58,2,FALSE) ) ) ->  | AF43: =IF(AND(TRIM(AF41)="",TRIM(AF42)=""),"",AF41+AF42) ->  | AJ43: =IF(TRIM(AI43)="", "", IF(VLOOKUP(AI43,'Footnotes list'!$D$9:$E$58,2,FALSE)=0,"",VLOOKUP(AI43,'Footnotes list'!$D$9:$E$58,2,FALSE) ) ) ->  | AK43: =IF(AND(TRIM(AK41)="",TRIM(AK42)=""),"",AK41+AK42) ->  | AO43: =IF(TRIM(AN43)="", "", IF(VLOOKUP(AN43,'Footnotes list'!$D$9:$E$58,2,FALSE)=0,"",VLOOKUP(AN43,'Footnotes list'!$D$9:$E$58,2,FALSE) ) ) ->  | AP43: =IF(AND(TRIM(AP41)="", TRIM(AP42)=""), "", SUM(AP41,AP42)) ->  | AT43: =IF(TRIM(AS43)="", "", IF(VLOOKUP(AS43,'Footnotes list'!$D$9:$E$58,2,FALSE)=0,"",VLOOKUP(AS43,'Footnotes list'!$D$9:$E$58,2,FALSE) ) ) ->  | AU43: =IF(AND(TRIM(AU41)="", TRIM(AU42)=""), "", SUM(AU41,AU42) ) ->  | AY43: =IF(TRIM(AX43)="", "", IF(VLOOKUP(AX43,'Footnotes list'!$D$9:$E$58,2,FALSE)=0,"",VLOOKUP(AX43,'Footnotes list'!$D$9:$E$58,2,FALSE) ) ) -> 
B44: W073 | D44: Rubber wastes | F44: Not applicable
C45: W073 | E45: NHAZ | F45: Non-hazardous | K45: =IF(TRIM(J45)="", "", IF(VLOOKUP(J45,'Footnotes list'!$D$9:$E$58,2,FALSE)=0,"",VLOOKUP(J45,'Footnotes list'!$D$9:$E$58,2,FALSE) ) ) ->  | P45: =IF(TRIM(O45)="", "", IF(VLOOKUP(O45,'Footnotes list'!$D$9:$E$58,2,FALSE)=0,"",VLOOKUP(O45,'Footnotes list'!$D$9:$E$58,2,FALSE) ) ) ->  | U45: =IF(TRIM(T45)="", "", IF(VLOOKUP(T45,'Footnotes list'!$D$9:$E$58,2,FALSE)=0,"",VLOOKUP(T45,'Footnotes list'!$D$9:$E$58,2,FALSE) ) ) ->  | Z45: =IF(TRIM(Y45)="", "", IF(VLOOKUP(Y45,'Footnotes list'!$D$9:$E$58,2,FALSE)=0,"",VLOOKUP(Y45,'Footnotes list'!$D$9:$E$58,2,FALSE) ) ) ->  | AA45: =IF(AND(TRIM(Q45)="",TRIM(V45)=""),"",Q45+V45) ->  | AE45: =IF(TRIM(AD45)="", "", IF(VLOOKUP(AD45,'Footnotes list'!$D$9:$E$58,2,FALSE)=0,"",VLOOKUP(AD45,'Footnotes list'!$D$9:$E$58,2,FALSE) ) ) ->  | AJ45: =IF(TRIM(AI45)="", "", IF(VLOOKUP(AI45,'Footnotes list'!$D$9:$E$58,2,FALSE)=0,"",VLOOKUP(AI45,'Footnotes list'!$D$9:$E$58,2,FALSE) ) ) ->  | AO45: =IF(TRIM(AN45)="", "", IF(VLOOKUP(AN45,'Footnotes list'!$D$9:$E$58,2,FALSE)=0,"",VLOOKUP(AN45,'Footnotes list'!$D$9:$E$58,2,FALSE) ) ) ->  | AP45: =IF(AND(TRIM(AF45)="",TRIM(AK45)=""),"",AF45+AK45) ->  | AT45: =IF(TRIM(AS45)="", "", IF(VLOOKUP(AS45,'Footnotes list'!$D$9:$E$58,2,FALSE)=0,"",VLOOKUP(AS45,'Footnotes list'!$D$9:$E$58,2,FALSE) ) ) ->  | AU45: =IF(AND(TRIM(G45)="",TRIM(L45)="",TRIM(AA45)="",TRIM(AP45)=""),"",SUM(G45,L45,AA45,AP45)) ->  | AY45: =IF(TRIM(AX45)="", "", IF(VLOOKUP(AX45,'Footnotes list'!$D$9:$E$58,2,FALSE)=0,"",VLOOKUP(AX45,'Footnotes list'!$D$9:$E$58,2,FALSE) ) ) -> 
C46: W073 | E46: HAZ_NHAZ | F46: Total | G46: =IF(AND(TRIM(G44)="",TRIM(G45)=""),"",G44+G45) ->  | K46: =IF(TRIM(J46)="", "", IF(VLOOKUP(J46,'Footnotes list'!$D$9:$E$58,2,FALSE)=0,"",VLOOKUP(J46,'Footnotes list'!$D$9:$E$58,2,FALSE) ) ) ->  | L46: =IF(AND(TRIM(L44)="",TRIM(L45)=""),"",L44+L45) ->  | P46: =IF(TRIM(O46)="", "", IF(VLOOKUP(O46,'Footnotes list'!$D$9:$E$58,2,FALSE)=0,"",VLOOKUP(O46,'Footnotes list'!$D$9:$E$58,2,FALSE) ) ) ->  | Q46: =IF(AND(TRIM(Q44)="",TRIM(Q45)=""),"",Q44+Q45) ->  | U46: =IF(TRIM(T46)="", "", IF(VLOOKUP(T46,'Footnotes list'!$D$9:$E$58,2,FALSE)=0,"",VLOOKUP(T46,'Footnotes list'!$D$9:$E$58,2,FALSE) ) ) ->  | V46: =IF(AND(TRIM(V44)="",TRIM(V45)=""),"",V44+V45) ->  | Z46: =IF(TRIM(Y46)="", "", IF(VLOOKUP(Y46,'Footnotes list'!$D$9:$E$58,2,FALSE)=0,"",VLOOKUP(Y46,'Footnotes list'!$D$9:$E$58,2,FALSE) ) ) ->  | AA46: =IF(AND(TRIM(AA44)="", TRIM(AA45)=""), "", SUM(AA44,AA45)) ->  | AE46: =IF(TRIM(AD46)="", "", IF(VLOOKUP(AD46,'Footnotes list'!$D$9:$E$58,2,FALSE)=0,"",VLOOKUP(AD46,'Footnotes list'!$D$9:$E$58,2,FALSE) ) ) ->  | AF46: =IF(AND(TRIM(AF44)="",TRIM(AF45)=""),"",AF44+AF45) ->  | AJ46: =IF(TRIM(AI46)="", "", IF(VLOOKUP(AI46,'Footnotes list'!$D$9:$E$58,2,FALSE)=0,"",VLOOKUP(AI46,'Footnotes list'!$D$9:$E$58,2,FALSE) ) ) ->  | AK46: =IF(AND(TRIM(AK44)="",TRIM(AK45)=""),"",AK44+AK45) ->  | AO46: =IF(TRIM(AN46)="", "", IF(VLOOKUP(AN46,'Footnotes list'!$D$9:$E$58,2,FALSE)=0,"",VLOOKUP(AN46,'Footnotes list'!$D$9:$E$58,2,FALSE) ) ) ->  | AP46: =IF(AND(TRIM(AP44)="", TRIM(AP45)=""), "", SUM(AP44,AP45)) ->  | AT46: =IF(TRIM(AS46)="", "", IF(VLOOKUP(AS46,'Footnotes list'!$D$9:$E$58,2,FALSE)=0,"",VLOOKUP(AS46,'Footnotes list'!$D$9:$E$58,2,FALSE) ) ) ->  | AU46: =IF(AND(TRIM(AU44)="", TRIM(AU45)=""), "", SUM(AU44,AU45) ) ->  | AY46: =IF(TRIM(AX46)="", "", IF(VLOOKUP(AX46,'Footnotes list'!$D$9:$E$58,2,FALSE)=0,"",VLOOKUP(AX46,'Footnotes list'!$D$9:$E$58,2,FALSE) ) ) -> 
B47: W074 | D47: Plastic wastes | F47: Not applicable
C48: W074 | E48: NHAZ | F48: Non-hazardous | K48: =IF(TRIM(J48)="", "", IF(VLOOKUP(J48,'Footnotes list'!$D$9:$E$58,2,FALSE)=0,"",VLOOKUP(J48,'Footnotes list'!$D$9:$E$58,2,FALSE) ) ) ->  | P48: =IF(TRIM(O48)="", "", IF(VLOOKUP(O48,'Footnotes list'!$D$9:$E$58,2,FALSE)=0,"",VLOOKUP(O48,'Footnotes list'!$D$9:$E$58,2,FALSE) ) ) ->  | U48: =IF(TRIM(T48)="", "", IF(VLOOKUP(T48,'Footnotes list'!$D$9:$E$58,2,FALSE)=0,"",VLOOKUP(T48,'Footnotes list'!$D$9:$E$58,2,FALSE) ) ) ->  | Z48: =IF(TRIM(Y48)="", "", IF(VLOOKUP(Y48,'Footnotes list'!$D$9:$E$58,2,FALSE)=0,"",VLOOKUP(Y48,'Footnotes list'!$D$9:$E$58,2,FALSE) ) ) ->  | AA48: =IF(AND(TRIM(Q48)="",TRIM(V48)=""),"",Q48+V48) ->  | AE48: =IF(TRIM(AD48)="", "", IF(VLOOKUP(AD48,'Footnotes list'!$D$9:$E$58,2,FALSE)=0,"",VLOOKUP(AD48,'Footnotes list'!$D$9:$E$58,2,FALSE) ) ) ->  | AJ48: =IF(TRIM(AI48)="", "", IF(VLOOKUP(AI48,'Footnotes list'!$D$9:$E$58,2,FALSE)=0,"",VLOOKUP(AI48,'Footnotes list'!$D$9:$E$58,2,FALSE) ) ) ->  | AO48: =IF(TRIM(AN48)="", "", IF(VLOOKUP(AN48,'Footnotes list'!$D$9:$E$58,2,FALSE)=0,"",VLOOKUP(AN48,'Footnotes list'!$D$9:$E$58,2,FALSE) ) ) ->  | AP48: =IF(AND(TRIM(AF48)="",TRIM(AK48)=""),"",AF48+AK48) ->  | AT48: =IF(TRIM(AS48)="", "", IF(VLOOKUP(AS48,'Footnotes list'!$D$9:$E$58,2,FALSE)=0,"",VLOOKUP(AS48,'Footnotes list'!$D$9:$E$58,2,FALSE) ) ) ->  | AU48: =IF(AND(TRIM(G48)="",TRIM(L48)="",TRIM(AA48)="",TRIM(AP48)=""),"",SUM(G48,L48,AA48,AP48)) ->  | AY48: =IF(TRIM(AX48)="", "", IF(VLOOKUP(AX48,'Footnotes list'!$D$9:$E$58,2,FALSE)=0,"",VLOOKUP(AX48,'Footnotes list'!$D$9:$E$58,2,FALSE) ) ) -> 
C49: W074 | E49: HAZ_NHAZ | F49: Total | G49: =IF(AND(TRIM(G47)="",TRIM(G48)=""),"",G47+G48) ->  | K49: =IF(TRIM(J49)="", "", IF(VLOOKUP(J49,'Footnotes list'!$D$9:$E$58,2,FALSE)=0,"",VLOOKUP(J49,'Footnotes list'!$D$9:$E$58,2,FALSE) ) ) ->  | L49: =IF(AND(TRIM(L47)="",TRIM(L48)=""),"",L47+L48) ->  | P49: =IF(TRIM(O49)="", "", IF(VLOOKUP(O49,'Footnotes list'!$D$9:$E$58,2,FALSE)=0,"",VLOOKUP(O49,'Footnotes list'!$D$9:$E$58,2,FALSE) ) ) ->  | Q49: =IF(AND(TRIM(Q47)="",TRIM(Q48)=""),"",Q47+Q48) ->  | U49: =IF(TRIM(T49)="", "", IF(VLOOKUP(T49,'Footnotes list'!$D$9:$E$58,2,FALSE)=0,"",VLOOKUP(T49,'Footnotes list'!$D$9:$E$58,2,FALSE) ) ) ->  | V49: =IF(AND(TRIM(V47)="",TRIM(V48)=""),"",V47+V48) ->  | Z49: =IF(TRIM(Y49)="", "", IF(VLOOKUP(Y49,'Footnotes list'!$D$9:$E$58,2,FALSE)=0,"",VLOOKUP(Y49,'Footnotes list'!$D$9:$E$58,2,FALSE) ) ) ->  | AA49: =IF(AND(TRIM(AA47)="", TRIM(AA48)=""), "", SUM(AA47,AA48)) ->  | AE49: =IF(TRIM(AD49)="", "", IF(VLOOKUP(AD49,'Footnotes list'!$D$9:$E$58,2,FALSE)=0,"",VLOOKUP(AD49,'Footnotes list'!$D$9:$E$58,2,FALSE) ) ) ->  | AF49: =IF(AND(TRIM(AF47)="",TRIM(AF48)=""),"",AF47+AF48) ->  | AJ49: =IF(TRIM(AI49)="", "", IF(VLOOKUP(AI49,'Footnotes list'!$D$9:$E$58,2,FALSE)=0,"",VLOOKUP(AI49,'Footnotes list'!$D$9:$E$58,2,FALSE) ) ) ->  | AK49: =IF(AND(TRIM(AK47)="",TRIM(AK48)=""),"",AK47+AK48) ->  | AO49: =IF(TRIM(AN49)="", "", IF(VLOOKUP(AN49,'Footnotes list'!$D$9:$E$58,2,FALSE)=0,"",VLOOKUP(AN49,'Footnotes list'!$D$9:$E$58,2,FALSE) ) ) ->  | AP49: =IF(AND(TRIM(AP47)="", TRIM(AP48)=""), "", SUM(AP47,AP48)) ->  | AT49: =IF(TRIM(AS49)="", "", IF(VLOOKUP(AS49,'Footnotes list'!$D$9:$E$58,2,FALSE)=0,"",VLOOKUP(AS49,'Footnotes list'!$D$9:$E$58,2,FALSE) ) ) ->  | AU49: =IF(AND(TRIM(AU47)="", TRIM(AU48)=""), "", SUM(AU47,AU48) ) ->  | AY49: =IF(TRIM(AX49)="", "", IF(VLOOKUP(AX49,'Footnotes list'!$D$9:$E$58,2,FALSE)=0,"",VLOOKUP(AX49,'Footnotes list'!$D$9:$E$58,2,FALSE) ) ) -> 
B50: W075 | C50: W075 | D50: Wood wastes | E50: HAZ | F50: Hazardous | K50: =IF(TRIM(J50)="", "", IF(VLOOKUP(J50,'Footnotes list'!$D$9:$E$58,2,FALSE)=0,"",VLOOKUP(J50,'Footnotes list'!$D$9:$E$58,2,FALSE) ) ) ->  | P50: =IF(TRIM(O50)="", "", IF(VLOOKUP(O50,'Footnotes list'!$D$9:$E$58,2,FALSE)=0,"",VLOOKUP(O50,'Footnotes list'!$D$9:$E$58,2,FALSE) ) ) ->  | U50: =IF(TRIM(T50)="", "", IF(VLOOKUP(T50,'Footnotes list'!$D$9:$E$58,2,FALSE)=0,"",VLOOKUP(T50,'Footnotes list'!$D$9:$E$58,2,FALSE) ) ) ->  | Z50: =IF(TRIM(Y50)="", "", IF(VLOOKUP(Y50,'Footnotes list'!$D$9:$E$58,2,FALSE)=0,"",VLOOKUP(Y50,'Footnotes list'!$D$9:$E$58,2,FALSE) ) ) ->  | AA50: =IF(AND(TRIM(Q50)="",TRIM(V50)=""),"",Q50+V50) ->  | AE50: =IF(TRIM(AD50)="", "", IF(VLOOKUP(AD50,'Footnotes list'!$D$9:$E$58,2,FALSE)=0,"",VLOOKUP(AD50,'Footnotes list'!$D$9:$E$58,2,FALSE) ) ) ->  | AJ50: =IF(TRIM(AI50)="", "", IF(VLOOKUP(AI50,'Footnotes list'!$D$9:$E$58,2,FALSE)=0,"",VLOOKUP(AI50,'Footnotes list'!$D$9:$E$58,2,FALSE) ) ) ->  | AO50: =IF(TRIM(AN50)="", "", IF(VLOOKUP(AN50,'Footnotes list'!$D$9:$E$58,2,FALSE)=0,"",VLOOKUP(AN50,'Footnotes list'!$D$9:$E$58,2,FALSE) ) ) ->  | AP50: =IF(AND(TRIM(AF50)="",TRIM(AK50)=""),"",AF50+AK50) ->  | AT50: =IF(TRIM(AS50)="", "", IF(VLOOKUP(AS50,'Footnotes list'!$D$9:$E$58,2,FALSE)=0,"",VLOOKUP(AS50,'Footnotes list'!$D$9:$E$58,2,FALSE) ) ) ->  | AU50: =IF(AND(TRIM(G50)="",TRIM(L50)="",TRIM(AA50)="",TRIM(AP50)=""),"",SUM(G50,L50,AA50,AP50)) ->  | AY50: =IF(TRIM(AX50)="", "", IF(VLOOKUP(AX50,'Footnotes list'!$D$9:$E$58,2,FALSE)=0,"",VLOOKUP(AX50,'Footnotes list'!$D$9:$E$58,2,FALSE) ) ) -> 
C51: W075 | E51: NHAZ | F51: Non-hazardous | K51: =IF(TRIM(J51)="", "", IF(VLOOKUP(J51,'Footnotes list'!$D$9:$E$58,2,FALSE)=0,"",VLOOKUP(J51,'Footnotes list'!$D$9:$E$58,2,FALSE) ) ) ->  | P51: =IF(TRIM(O51)="", "", IF(VLOOKUP(O51,'Footnotes list'!$D$9:$E$58,2,FALSE)=0,"",VLOOKUP(O51,'Footnotes list'!$D$9:$E$58,2,FALSE) ) ) ->  | U51: =IF(TRIM(T51)="", "", IF(VLOOKUP(T51,'Footnotes list'!$D$9:$E$58,2,FALSE)=0,"",VLOOKUP(T51,'Footnotes list'!$D$9:$E$58,2,FALSE) ) ) ->  | Z51: =IF(TRIM(Y51)="", "", IF(VLOOKUP(Y51,'Footnotes list'!$D$9:$E$58,2,FALSE)=0,"",VLOOKUP(Y51,'Footnotes list'!$D$9:$E$58,2,FALSE) ) ) ->  | AA51: =IF(AND(TRIM(Q51)="",TRIM(V51)=""),"",Q51+V51) ->  | AE51: =IF(TRIM(AD51)="", "", IF(VLOOKUP(AD51,'Footnotes list'!$D$9:$E$58,2,FALSE)=0,"",VLOOKUP(AD51,'Footnotes list'!$D$9:$E$58,2,FALSE) ) ) ->  | AJ51: =IF(TRIM(AI51)="", "", IF(VLOOKUP(AI51,'Footnotes list'!$D$9:$E$58,2,FALSE)=0,"",VLOOKUP(AI51,'Footnotes list'!$D$9:$E$58,2,FALSE) ) ) ->  | AO51: =IF(TRIM(AN51)="", "", IF(VLOOKUP(AN51,'Footnotes list'!$D$9:$E$58,2,FALSE)=0,"",VLOOKUP(AN51,'Footnotes list'!$D$9:$E$58,2,FALSE) ) ) ->  | AP51: =IF(AND(TRIM(AF51)="",TRIM(AK51)=""),"",AF51+AK51) ->  | AT51: =IF(TRIM(AS51)="", "", IF(VLOOKUP(AS51,'Footnotes list'!$D$9:$E$58,2,FALSE)=0,"",VLOOKUP(AS51,'Footnotes list'!$D$9:$E$58,2,FALSE) ) ) ->  | AU51: =IF(AND(TRIM(G51)="",TRIM(L51)="",TRIM(AA51)="",TRIM(AP51)=""),"",SUM(G51,L51,AA51,AP51)) ->  | AY51: =IF(TRIM(AX51)="", "", IF(VLOOKUP(AX51,'Footnotes list'!$D$9:$E$58,2,FALSE)=0,"",VLOOKUP(AX51,'Footnotes list'!$D$9:$E$58,2,FALSE) ) ) -> 
C52: W075 | E52: HAZ_NHAZ | F52: Total | G52: =IF(AND(TRIM(G50)="",TRIM(G51)=""),"",G50+G51) ->  | K52: =IF(TRIM(J52)="", "", IF(VLOOKUP(J52,'Footnotes list'!$D$9:$E$58,2,FALSE)=0,"",VLOOKUP(J52,'Footnotes list'!$D$9:$E$58,2,FALSE) ) ) ->  | L52: =IF(AND(TRIM(L50)="",TRIM(L51)=""),"",L50+L51) ->  | P52: =IF(TRIM(O52)="", "", IF(VLOOKUP(O52,'Footnotes list'!$D$9:$E$58,2,FALSE)=0,"",VLOOKUP(O52,'Footnotes list'!$D$9:$E$58,2,FALSE) ) ) ->  | Q52: =IF(AND(TRIM(Q50)="",TRIM(Q51)=""),"",Q50+Q51) ->  | U52: =IF(TRIM(T52)="", "", IF(VLOOKUP(T52,'Footnotes list'!$D$9:$E$58,2,FALSE)=0,"",VLOOKUP(T52,'Footnotes list'!$D$9:$E$58,2,FALSE) ) ) ->  | V52: =IF(AND(TRIM(V50)="",TRIM(V51)=""),"",V50+V51) ->  | Z52: =IF(TRIM(Y52)="", "", IF(VLOOKUP(Y52,'Footnotes list'!$D$9:$E$58,2,FALSE)=0,"",VLOOKUP(Y52,'Footnotes list'!$D$9:$E$58,2,FALSE) ) ) ->  | AA52: =IF(AND(TRIM(AA50)="", TRIM(AA51)=""), "", SUM(AA50,AA51)) ->  | AE52: =IF(TRIM(AD52)="", "", IF(VLOOKUP(AD52,'Footnotes list'!$D$9:$E$58,2,FALSE)=0,"",VLOOKUP(AD52,'Footnotes list'!$D$9:$E$58,2,FALSE) ) ) ->  | AF52: =IF(AND(TRIM(AF50)="",TRIM(AF51)=""),"",AF50+AF51) ->  | AJ52: =IF(TRIM(AI52)="", "", IF(VLOOKUP(AI52,'Footnotes list'!$D$9:$E$58,2,FALSE)=0,"",VLOOKUP(AI52,'Footnotes list'!$D$9:$E$58,2,FALSE) ) ) ->  | AK52: =IF(AND(TRIM(AK50)="",TRIM(AK51)=""),"",AK50+AK51) ->  | AO52: =IF(TRIM(AN52)="", "", IF(VLOOKUP(AN52,'Footnotes list'!$D$9:$E$58,2,FALSE)=0,"",VLOOKUP(AN52,'Footnotes list'!$D$9:$E$58,2,FALSE) ) ) ->  | AP52: =IF(AND(TRIM(AP50)="", TRIM(AP51)=""), "", SUM(AP50,AP51)) ->  | AT52: =IF(TRIM(AS52)="", "", IF(VLOOKUP(AS52,'Footnotes list'!$D$9:$E$58,2,FALSE)=0,"",VLOOKUP(AS52,'Footnotes list'!$D$9:$E$58,2,FALSE) ) ) ->  | AU52: =IF(AND(TRIM(AU50)="", TRIM(AU51)=""), "", SUM(AU50,AU51) ) ->  | AY52: =IF(TRIM(AX52)="", "", IF(VLOOKUP(AX52,'Footnotes list'!$D$9:$E$58,2,FALSE)=0,"",VLOOKUP(AX52,'Footnotes list'!$D$9:$E$58,2,FALSE) ) ) -> 
B53: W076 | D53: Textile wastes | F53: Not applicable
C54: W076 | E54: NHAZ | F54: Non-hazardous | K54: =IF(TRIM(J54)="", "", IF(VLOOKUP(J54,'Footnotes list'!$D$9:$E$58,2,FALSE)=0,"",VLOOKUP(J54,'Footnotes list'!$D$9:$E$58,2,FALSE) ) ) ->  | P54: =IF(TRIM(O54)="", "", IF(VLOOKUP(O54,'Footnotes list'!$D$9:$E$58,2,FALSE)=0,"",VLOOKUP(O54,'Footnotes list'!$D$9:$E$58,2,FALSE) ) ) ->  | U54: =IF(TRIM(T54)="", "", IF(VLOOKUP(T54,'Footnotes list'!$D$9:$E$58,2,FALSE)=0,"",VLOOKUP(T54,'Footnotes list'!$D$9:$E$58,2,FALSE) ) ) ->  | Z54: =IF(TRIM(Y54)="", "", IF(VLOOKUP(Y54,'Footnotes list'!$D$9:$E$58,2,FALSE)=0,"",VLOOKUP(Y54,'Footnotes list'!$D$9:$E$58,2,FALSE) ) ) ->  | AA54: =IF(AND(TRIM(Q54)="",TRIM(V54)=""),"",Q54+V54) ->  | AE54: =IF(TRIM(AD54)="", "", IF(VLOOKUP(AD54,'Footnotes list'!$D$9:$E$58,2,FALSE)=0,"",VLOOKUP(AD54,'Footnotes list'!$D$9:$E$58,2,FALSE) ) ) ->  | AJ54: =IF(TRIM(AI54)="", "", IF(VLOOKUP(AI54,'Footnotes list'!$D$9:$E$58,2,FALSE)=0,"",VLOOKUP(AI54,'Footnotes list'!$D$9:$E$58,2,FALSE) ) ) ->  | AO54: =IF(TRIM(AN54)="", "", IF(VLOOKUP(AN54,'Footnotes list'!$D$9:$E$58,2,FALSE)=0,"",VLOOKUP(AN54,'Footnotes list'!$D$9:$E$58,2,FALSE) ) ) ->  | AP54: =IF(AND(TRIM(AF54)="",TRIM(AK54)=""),"",AF54+AK54) ->  | AT54: =IF(TRIM(AS54)="", "", IF(VLOOKUP(AS54,'Footnotes list'!$D$9:$E$58,2,FALSE)=0,"",VLOOKUP(AS54,'Footnotes list'!$D$9:$E$58,2,FALSE) ) ) ->  | AU54: =IF(AND(TRIM(G54)="",TRIM(L54)="",TRIM(AA54)="",TRIM(AP54)=""),"",SUM(G54,L54,AA54,AP54)) ->  | AY54: =IF(TRIM(AX54)="", "", IF(VLOOKUP(AX54,'Footnotes list'!$D$9:$E$58,2,FALSE)=0,"",VLOOKUP(AX54,'Footnotes list'!$D$9:$E$58,2,FALSE) ) ) -> 
C55: W076 | E55: HAZ_NHAZ | F55: Total | G55: =IF(AND(TRIM(G53)="",TRIM(G54)=""),"",G53+G54) ->  | K55: =IF(TRIM(J55)="", "", IF(VLOOKUP(J55,'Footnotes list'!$D$9:$E$58,2,FALSE)=0,"",VLOOKUP(J55,'Footnotes list'!$D$9:$E$58,2,FALSE) ) ) ->  | L55: =IF(AND(TRIM(L53)="",TRIM(L54)=""),"",L53+L54) ->  | P55: =IF(TRIM(O55)="", "", IF(VLOOKUP(O55,'Footnotes list'!$D$9:$E$58,2,FALSE)=0,"",VLOOKUP(O55,'Footnotes list'!$D$9:$E$58,2,FALSE) ) ) ->  | Q55: =IF(AND(TRIM(Q53)="",TRIM(Q54)=""),"",Q53+Q54) ->  | U55: =IF(TRIM(T55)="", "", IF(VLOOKUP(T55,'Footnotes list'!$D$9:$E$58,2,FALSE)=0,"",VLOOKUP(T55,'Footnotes list'!$D$9:$E$58,2,FALSE) ) ) ->  | V55: =IF(AND(TRIM(V53)="",TRIM(V54)=""),"",V53+V54) ->  | Z55: =IF(TRIM(Y55)="", "", IF(VLOOKUP(Y55,'Footnotes list'!$D$9:$E$58,2,FALSE)=0,"",VLOOKUP(Y55,'Footnotes list'!$D$9:$E$58,2,FALSE) ) ) ->  | AA55: =IF(AND(TRIM(AA53)="", TRIM(AA54)=""), "", SUM(AA53,AA54)) ->  | AE55: =IF(TRIM(AD55)="", "", IF(VLOOKUP(AD55,'Footnotes list'!$D$9:$E$58,2,FALSE)=0,"",VLOOKUP(AD55,'Footnotes list'!$D$9:$E$58,2,FALSE) ) ) ->  | AF55: =IF(AND(TRIM(AF53)="",TRIM(AF54)=""),"",AF53+AF54) ->  | AJ55: =IF(TRIM(AI55)="", "", IF(VLOOKUP(AI55,'Footnotes list'!$D$9:$E$58,2,FALSE)=0,"",VLOOKUP(AI55,'Footnotes list'!$D$9:$E$58,2,FALSE) ) ) ->  | AK55: =IF(AND(TRIM(AK53)="",TRIM(AK54)=""),"",AK53+AK54) ->  | AO55: =IF(TRIM(AN55)="", "", IF(VLOOKUP(AN55,'Footnotes list'!$D$9:$E$58,2,FALSE)=0,"",VLOOKUP(AN55,'Footnotes list'!$D$9:$E$58,2,FALSE) ) ) ->  | AP55: =IF(AND(TRIM(AP53)="", TRIM(AP54)=""), "", SUM(AP53,AP54)) ->  | AT55: =IF(TRIM(AS55)="", "", IF(VLOOKUP(AS55,'Footnotes list'!$D$9:$E$58,2,FALSE)=0,"",VLOOKUP(AS55,'Footnotes list'!$D$9:$E$58,2,FALSE) ) ) ->  | AU55: =IF(AND(TRIM(AU53)="", TRIM(AU54)=""), "", SUM(AU53,AU54) ) ->  | AY55: =IF(TRIM(AX55)="", "", IF(VLOOKUP(AX55,'Footnotes list'!$D$9:$E$58,2,FALSE)=0,"",VLOOKUP(AX55,'Footnotes list'!$D$9:$E$58,2,FALSE) ) ) -> 
B56: W077 | C56: W077 | D56: Waste containing PCB | E56: HAZ | F56: Hazardous | K56: =IF(TRIM(J56)="", "", IF(VLOOKUP(J56,'Footnotes list'!$D$9:$E$58,2,FALSE)=0,"",VLOOKUP(J56,'Footnotes list'!$D$9:$E$58,2,FALSE) ) ) ->  | P56: =IF(TRIM(O56)="", "", IF(VLOOKUP(O56,'Footnotes list'!$D$9:$E$58,2,FALSE)=0,"",VLOOKUP(O56,'Footnotes list'!$D$9:$E$58,2,FALSE) ) ) ->  | U56: =IF(TRIM(T56)="", "", IF(VLOOKUP(T56,'Footnotes list'!$D$9:$E$58,2,FALSE)=0,"",VLOOKUP(T56,'Footnotes list'!$D$9:$E$58,2,FALSE) ) ) ->  | Z56: =IF(TRIM(Y56)="", "", IF(VLOOKUP(Y56,'Footnotes list'!$D$9:$E$58,2,FALSE)=0,"",VLOOKUP(Y56,'Footnotes list'!$D$9:$E$58,2,FALSE) ) ) ->  | AA56: =IF(AND(TRIM(Q56)="",TRIM(V56)=""),"",Q56+V56) ->  | AE56: =IF(TRIM(AD56)="", "", IF(VLOOKUP(AD56,'Footnotes list'!$D$9:$E$58,2,FALSE)=0,"",VLOOKUP(AD56,'Footnotes list'!$D$9:$E$58,2,FALSE) ) ) ->  | AJ56: =IF(TRIM(AI56)="", "", IF(VLOOKUP(AI56,'Footnotes list'!$D$9:$E$58,2,FALSE)=0,"",VLOOKUP(AI56,'Footnotes list'!$D$9:$E$58,2,FALSE) ) ) ->  | AO56: =IF(TRIM(AN56)="", "", IF(VLOOKUP(AN56,'Footnotes list'!$D$9:$E$58,2,FALSE)=0,"",VLOOKUP(AN56,'Footnotes list'!$D$9:$E$58,2,FALSE) ) ) ->  | AP56: =IF(AND(TRIM(AF56)="",TRIM(AK56)=""),"",AF56+AK56) ->  | AT56: =IF(TRIM(AS56)="", "", IF(VLOOKUP(AS56,'Footnotes list'!$D$9:$E$58,2,FALSE)=0,"",VLOOKUP(AS56,'Footnotes list'!$D$9:$E$58,2,FALSE) ) ) ->  | AU56: =IF(AND(TRIM(G56)="",TRIM(L56)="",TRIM(AA56)="",TRIM(AP56)=""),"",SUM(G56,L56,AA56,AP56)) ->  | AY56: =IF(TRIM(AX56)="", "", IF(VLOOKUP(AX56,'Footnotes list'!$D$9:$E$58,2,FALSE)=0,"",VLOOKUP(AX56,'Footnotes list'!$D$9:$E$58,2,FALSE) ) ) -> 
F57: Not applicable
C58: W077 | E58: HAZ_NHAZ | F58: Total | G58: =IF(AND(TRIM(G56)="",TRIM(G57)=""),"",G56+G57) ->  | K58: =IF(TRIM(J58)="", "", IF(VLOOKUP(J58,'Footnotes list'!$D$9:$E$58,2,FALSE)=0,"",VLOOKUP(J58,'Footnotes list'!$D$9:$E$58,2,FALSE) ) ) ->  | L58: =IF(AND(TRIM(L56)="",TRIM(L57)=""),"",L56+L57) ->  | P58: =IF(TRIM(O58)="", "", IF(VLOOKUP(O58,'Footnotes list'!$D$9:$E$58,2,FALSE)=0,"",VLOOKUP(O58,'Footnotes list'!$D$9:$E$58,2,FALSE) ) ) ->  | Q58: =IF(AND(TRIM(Q56)="",TRIM(Q57)=""),"",Q56+Q57) ->  | U58: =IF(TRIM(T58)="", "", IF(VLOOKUP(T58,'Footnotes list'!$D$9:$E$58,2,FALSE)=0,"",VLOOKUP(T58,'Footnotes list'!$D$9:$E$58,2,FALSE) ) ) ->  | V58: =IF(AND(TRIM(V56)="",TRIM(V57)=""),"",V56+V57) ->  | Z58: =IF(TRIM(Y58)="", "", IF(VLOOKUP(Y58,'Footnotes list'!$D$9:$E$58,2,FALSE)=0,"",VLOOKUP(Y58,'Footnotes list'!$D$9:$E$58,2,FALSE) ) ) ->  | AA58: =IF(AND(TRIM(AA56)="", TRIM(AA57)=""), "", SUM(AA56,AA57)) ->  | AE58: =IF(TRIM(AD58)="", "", IF(VLOOKUP(AD58,'Footnotes list'!$D$9:$E$58,2,FALSE)=0,"",VLOOKUP(AD58,'Footnotes list'!$D$9:$E$58,2,FALSE) ) ) ->  | AF58: =IF(AND(TRIM(AF56)="",TRIM(AF57)=""),"",AF56+AF57) ->  | AJ58: =IF(TRIM(AI58)="", "", IF(VLOOKUP(AI58,'Footnotes list'!$D$9:$E$58,2,FALSE)=0,"",VLOOKUP(AI58,'Footnotes list'!$D$9:$E$58,2,FALSE) ) ) ->  | AK58: =IF(AND(TRIM(AK56)="",TRIM(AK57)=""),"",AK56+AK57) ->  | AO58: =IF(TRIM(AN58)="", "", IF(VLOOKUP(AN58,'Footnotes list'!$D$9:$E$58,2,FALSE)=0,"",VLOOKUP(AN58,'Footnotes list'!$D$9:$E$58,2,FALSE) ) ) ->  | AP58: =IF(AND(TRIM(AP56)="", TRIM(AP57)=""), "", SUM(AP56,AP57)) ->  | AT58: =IF(TRIM(AS58)="", "", IF(VLOOKUP(AS58,'Footnotes list'!$D$9:$E$58,2,FALSE)=0,"",VLOOKUP(AS58,'Footnotes list'!$D$9:$E$58,2,FALSE) ) ) ->  | AU58: =IF(AND(TRIM(AU56)="", TRIM(AU57)=""), "", SUM(AU56,AU57) ) ->  | AY58: =IF(TRIM(AX58)="", "", IF(VLOOKUP(AX58,'Footnotes list'!$D$9:$E$58,2,FALSE)=0,"",VLOOKUP(AX58,'Footnotes list'!$D$9:$E$58,2,FALSE) ) ) -> 
B59: W08A | C59: W08A | D59: Discarded equipment (except discarded vehicles and batteries and accumulators waste) (W08 except W081, W0841) | E59: HAZ | F59: Hazardous | K59: =IF(TRIM(J59)="", "", IF(VLOOKUP(J59,'Footnotes list'!$D$9:$E$58,2,FALSE)=0,"",VLOOKUP(J59,'Footnotes list'!$D$9:$E$58,2,FALSE) ) ) ->  | P59: =IF(TRIM(O59)="", "", IF(VLOOKUP(O59,'Footnotes list'!$D$9:$E$58,2,FALSE)=0,"",VLOOKUP(O59,'Footnotes list'!$D$9:$E$58,2,FALSE) ) ) ->  | U59: =IF(TRIM(T59)="", "", IF(VLOOKUP(T59,'Footnotes list'!$D$9:$E$58,2,FALSE)=0,"",VLOOKUP(T59,'Footnotes list'!$D$9:$E$58,2,FALSE) ) ) ->  | Z59: =IF(TRIM(Y59)="", "", IF(VLOOKUP(Y59,'Footnotes list'!$D$9:$E$58,2,FALSE)=0,"",VLOOKUP(Y59,'Footnotes list'!$D$9:$E$58,2,FALSE) ) ) ->  | AA59: =IF(AND(TRIM(Q59)="",TRIM(V59)=""),"",Q59+V59) ->  | AE59: =IF(TRIM(AD59)="", "", IF(VLOOKUP(AD59,'Footnotes list'!$D$9:$E$58,2,FALSE)=0,"",VLOOKUP(AD59,'Footnotes list'!$D$9:$E$58,2,FALSE) ) ) ->  | AJ59: =IF(TRIM(AI59)="", "", IF(VLOOKUP(AI59,'Footnotes list'!$D$9:$E$58,2,FALSE)=0,"",VLOOKUP(AI59,'Footnotes list'!$D$9:$E$58,2,FALSE) ) ) ->  | AO59: =IF(TRIM(AN59)="", "", IF(VLOOKUP(AN59,'Footnotes list'!$D$9:$E$58,2,FALSE)=0,"",VLOOKUP(AN59,'Footnotes list'!$D$9:$E$58,2,FALSE) ) ) ->  | AP59: =IF(AND(TRIM(AF59)="",TRIM(AK59)=""),"",AF59+AK59) ->  | AT59: =IF(TRIM(AS59)="", "", IF(VLOOKUP(AS59,'Footnotes list'!$D$9:$E$58,2,FALSE)=0,"",VLOOKUP(AS59,'Footnotes list'!$D$9:$E$58,2,FALSE) ) ) ->  | AU59: =IF(AND(TRIM(G59)="",TRIM(L59)="",TRIM(AA59)="",TRIM(AP59)=""),"",SUM(G59,L59,AA59,AP59)) ->  | AY59: =IF(TRIM(AX59)="", "", IF(VLOOKUP(AX59,'Footnotes list'!$D$9:$E$58,2,FALSE)=0,"",VLOOKUP(AX59,'Footnotes list'!$D$9:$E$58,2,FALSE) ) ) -> 
C60: W08A | E60: NHAZ | F60: Non-hazardous | K60: =IF(TRIM(J60)="", "", IF(VLOOKUP(J60,'Footnotes list'!$D$9:$E$58,2,FALSE)=0,"",VLOOKUP(J60,'Footnotes list'!$D$9:$E$58,2,FALSE) ) ) ->  | P60: =IF(TRIM(O60)="", "", IF(VLOOKUP(O60,'Footnotes list'!$D$9:$E$58,2,FALSE)=0,"",VLOOKUP(O60,'Footnotes list'!$D$9:$E$58,2,FALSE) ) ) ->  | U60: =IF(TRIM(T60)="", "", IF(VLOOKUP(T60,'Footnotes list'!$D$9:$E$58,2,FALSE)=0,"",VLOOKUP(T60,'Footnotes list'!$D$9:$E$58,2,FALSE) ) ) ->  | Z60: =IF(TRIM(Y60)="", "", IF(VLOOKUP(Y60,'Footnotes list'!$D$9:$E$58,2,FALSE)=0,"",VLOOKUP(Y60,'Footnotes list'!$D$9:$E$58,2,FALSE) ) ) ->  | AA60: =IF(AND(TRIM(Q60)="",TRIM(V60)=""),"",Q60+V60) ->  | AE60: =IF(TRIM(AD60)="", "", IF(VLOOKUP(AD60,'Footnotes list'!$D$9:$E$58,2,FALSE)=0,"",VLOOKUP(AD60,'Footnotes list'!$D$9:$E$58,2,FALSE) ) ) ->  | AJ60: =IF(TRIM(AI60)="", "", IF(VLOOKUP(AI60,'Footnotes list'!$D$9:$E$58,2,FALSE)=0,"",VLOOKUP(AI60,'Footnotes list'!$D$9:$E$58,2,FALSE) ) ) ->  | AO60: =IF(TRIM(AN60)="", "", IF(VLOOKUP(AN60,'Footnotes list'!$D$9:$E$58,2,FALSE)=0,"",VLOOKUP(AN60,'Footnotes list'!$D$9:$E$58,2,FALSE) ) ) ->  | AP60: =IF(AND(TRIM(AF60)="",TRIM(AK60)=""),"",AF60+AK60) ->  | AT60: =IF(TRIM(AS60)="", "", IF(VLOOKUP(AS60,'Footnotes list'!$D$9:$E$58,2,FALSE)=0,"",VLOOKUP(AS60,'Footnotes list'!$D$9:$E$58,2,FALSE) ) ) ->  | AU60: =IF(AND(TRIM(G60)="",TRIM(L60)="",TRIM(AA60)="",TRIM(AP60)=""),"",SUM(G60,L60,AA60,AP60)) ->  | AY60: =IF(TRIM(AX60)="", "", IF(VLOOKUP(AX60,'Footnotes list'!$D$9:$E$58,2,FALSE)=0,"",VLOOKUP(AX60,'Footnotes list'!$D$9:$E$58,2,FALSE) ) ) -> 
C61: W08A | E61: HAZ_NHAZ | F61: Total | G61: =IF(AND(TRIM(G59)="",TRIM(G60)=""),"",G59+G60) ->  | K61: =IF(TRIM(J61)="", "", IF(VLOOKUP(J61,'Footnotes list'!$D$9:$E$58,2,FALSE)=0,"",VLOOKUP(J61,'Footnotes list'!$D$9:$E$58,2,FALSE) ) ) ->  | L61: =IF(AND(TRIM(L59)="",TRIM(L60)=""),"",L59+L60) ->  | P61: =IF(TRIM(O61)="", "", IF(VLOOKUP(O61,'Footnotes list'!$D$9:$E$58,2,FALSE)=0,"",VLOOKUP(O61,'Footnotes list'!$D$9:$E$58,2,FALSE) ) ) ->  | Q61: =IF(AND(TRIM(Q59)="",TRIM(Q60)=""),"",Q59+Q60) ->  | U61: =IF(TRIM(T61)="", "", IF(VLOOKUP(T61,'Footnotes list'!$D$9:$E$58,2,FALSE)=0,"",VLOOKUP(T61,'Footnotes list'!$D$9:$E$58,2,FALSE) ) ) ->  | V61: =IF(AND(TRIM(V59)="",TRIM(V60)=""),"",V59+V60) ->  | Z61: =IF(TRIM(Y61)="", "", IF(VLOOKUP(Y61,'Footnotes list'!$D$9:$E$58,2,FALSE)=0,"",VLOOKUP(Y61,'Footnotes list'!$D$9:$E$58,2,FALSE) ) ) ->  | AA61: =IF(AND(TRIM(AA59)="", TRIM(AA60)=""), "", SUM(AA59,AA60)) ->  | AE61: =IF(TRIM(AD61)="", "", IF(VLOOKUP(AD61,'Footnotes list'!$D$9:$E$58,2,FALSE)=0,"",VLOOKUP(AD61,'Footnotes list'!$D$9:$E$58,2,FALSE) ) ) ->  | AF61: =IF(AND(TRIM(AF59)="",TRIM(AF60)=""),"",AF59+AF60) ->  | AJ61: =IF(TRIM(AI61)="", "", IF(VLOOKUP(AI61,'Footnotes list'!$D$9:$E$58,2,FALSE)=0,"",VLOOKUP(AI61,'Footnotes list'!$D$9:$E$58,2,FALSE) ) ) ->  | AK61: =IF(AND(TRIM(AK59)="",TRIM(AK60)=""),"",AK59+AK60) ->  | AO61: =IF(TRIM(AN61)="", "", IF(VLOOKUP(AN61,'Footnotes list'!$D$9:$E$58,2,FALSE)=0,"",VLOOKUP(AN61,'Footnotes list'!$D$9:$E$58,2,FALSE) ) ) ->  | AP61: =IF(AND(TRIM(AP59)="", TRIM(AP60)=""), "", SUM(AP59,AP60)) ->  | AT61: =IF(TRIM(AS61)="", "", IF(VLOOKUP(AS61,'Footnotes list'!$D$9:$E$58,2,FALSE)=0,"",VLOOKUP(AS61,'Footnotes list'!$D$9:$E$58,2,FALSE) ) ) ->  | AU61: =IF(AND(TRIM(AU59)="", TRIM(AU60)=""), "", SUM(AU59,AU60) ) ->  | AY61: =IF(TRIM(AX61)="", "", IF(VLOOKUP(AX61,'Footnotes list'!$D$9:$E$58,2,FALSE)=0,"",VLOOKUP(AX61,'Footnotes list'!$D$9:$E$58,2,FALSE) ) ) -> 
B62: W081 | C62: W081 | D62: Discarded vehicles | E62: HAZ | F62: Hazardous | K62: =IF(TRIM(J62)="", "", IF(VLOOKUP(J62,'Footnotes list'!$D$9:$E$58,2,FALSE)=0,"",VLOOKUP(J62,'Footnotes list'!$D$9:$E$58,2,FALSE) ) ) ->  | P62: =IF(TRIM(O62)="", "", IF(VLOOKUP(O62,'Footnotes list'!$D$9:$E$58,2,FALSE)=0,"",VLOOKUP(O62,'Footnotes list'!$D$9:$E$58,2,FALSE) ) ) ->  | U62: =IF(TRIM(T62)="", "", IF(VLOOKUP(T62,'Footnotes list'!$D$9:$E$58,2,FALSE)=0,"",VLOOKUP(T62,'Footnotes list'!$D$9:$E$58,2,FALSE) ) ) ->  | Z62: =IF(TRIM(Y62)="", "", IF(VLOOKUP(Y62,'Footnotes list'!$D$9:$E$58,2,FALSE)=0,"",VLOOKUP(Y62,'Footnotes list'!$D$9:$E$58,2,FALSE) ) ) ->  | AA62: =IF(AND(TRIM(Q62)="",TRIM(V62)=""),"",Q62+V62) ->  | AE62: =IF(TRIM(AD62)="", "", IF(VLOOKUP(AD62,'Footnotes list'!$D$9:$E$58,2,FALSE)=0,"",VLOOKUP(AD62,'Footnotes list'!$D$9:$E$58,2,FALSE) ) ) ->  | AJ62: =IF(TRIM(AI62)="", "", IF(VLOOKUP(AI62,'Footnotes list'!$D$9:$E$58,2,FALSE)=0,"",VLOOKUP(AI62,'Footnotes list'!$D$9:$E$58,2,FALSE) ) ) ->  | AO62: =IF(TRIM(AN62)="", "", IF(VLOOKUP(AN62,'Footnotes list'!$D$9:$E$58,2,FALSE)=0,"",VLOOKUP(AN62,'Footnotes list'!$D$9:$E$58,2,FALSE) ) ) ->  | AP62: =IF(AND(TRIM(AF62)="",TRIM(AK62)=""),"",AF62+AK62) ->  | AT62: =IF(TRIM(AS62)="", "", IF(VLOOKUP(AS62,'Footnotes list'!$D$9:$E$58,2,FALSE)=0,"",VLOOKUP(AS62,'Footnotes list'!$D$9:$E$58,2,FALSE) ) ) ->  | AU62: =IF(AND(TRIM(G62)="",TRIM(L62)="",TRIM(AA62)="",TRIM(AP62)=""),"",SUM(G62,L62,AA62,AP62)) ->  | AY62: =IF(TRIM(AX62)="", "", IF(VLOOKUP(AX62,'Footnotes list'!$D$9:$E$58,2,FALSE)=0,"",VLOOKUP(AX62,'Footnotes list'!$D$9:$E$58,2,FALSE) ) ) -> 
C63: W081 | E63: NHAZ | F63: Non-hazardous | K63: =IF(TRIM(J63)="", "", IF(VLOOKUP(J63,'Footnotes list'!$D$9:$E$58,2,FALSE)=0,"",VLOOKUP(J63,'Footnotes list'!$D$9:$E$58,2,FALSE) ) ) ->  | P63: =IF(TRIM(O63)="", "", IF(VLOOKUP(O63,'Footnotes list'!$D$9:$E$58,2,FALSE)=0,"",VLOOKUP(O63,'Footnotes list'!$D$9:$E$58,2,FALSE) ) ) ->  | U63: =IF(TRIM(T63)="", "", IF(VLOOKUP(T63,'Footnotes list'!$D$9:$E$58,2,FALSE)=0,"",VLOOKUP(T63,'Footnotes list'!$D$9:$E$58,2,FALSE) ) ) ->  | Z63: =IF(TRIM(Y63)="", "", IF(VLOOKUP(Y63,'Footnotes list'!$D$9:$E$58,2,FALSE)=0,"",VLOOKUP(Y63,'Footnotes list'!$D$9:$E$58,2,FALSE) ) ) ->  | AA63: =IF(AND(TRIM(Q63)="",TRIM(V63)=""),"",Q63+V63) ->  | AE63: =IF(TRIM(AD63)="", "", IF(VLOOKUP(AD63,'Footnotes list'!$D$9:$E$58,2,FALSE)=0,"",VLOOKUP(AD63,'Footnotes list'!$D$9:$E$58,2,FALSE) ) ) ->  | AJ63: =IF(TRIM(AI63)="", "", IF(VLOOKUP(AI63,'Footnotes list'!$D$9:$E$58,2,FALSE)=0,"",VLOOKUP(AI63,'Footnotes list'!$D$9:$E$58,2,FALSE) ) ) ->  | AO63: =IF(TRIM(AN63)="", "", IF(VLOOKUP(AN63,'Footnotes list'!$D$9:$E$58,2,FALSE)=0,"",VLOOKUP(AN63,'Footnotes list'!$D$9:$E$58,2,FALSE) ) ) ->  | AP63: =IF(AND(TRIM(AF63)="",TRIM(AK63)=""),"",AF63+AK63) ->  | AT63: =IF(TRIM(AS63)="", "", IF(VLOOKUP(AS63,'Footnotes list'!$D$9:$E$58,2,FALSE)=0,"",VLOOKUP(AS63,'Footnotes list'!$D$9:$E$58,2,FALSE) ) ) ->  | AU63: =IF(AND(TRIM(G63)="",TRIM(L63)="",TRIM(AA63)="",TRIM(AP63)=""),"",SUM(G63,L63,AA63,AP63)) ->  | AY63: =IF(TRIM(AX63)="", "", IF(VLOOKUP(AX63,'Footnotes list'!$D$9:$E$58,2,FALSE)=0,"",VLOOKUP(AX63,'Footnotes list'!$D$9:$E$58,2,FALSE) ) ) -> 
C64: W081 | E64: HAZ_NHAZ | F64: Total | G64: =IF(AND(TRIM(G62)="",TRIM(G63)=""),"",G62+G63) ->  | K64: =IF(TRIM(J64)="", "", IF(VLOOKUP(J64,'Footnotes list'!$D$9:$E$58,2,FALSE)=0,"",VLOOKUP(J64,'Footnotes list'!$D$9:$E$58,2,FALSE) ) ) ->  | L64: =IF(AND(TRIM(L62)="",TRIM(L63)=""),"",L62+L63) ->  | P64: =IF(TRIM(O64)="", "", IF(VLOOKUP(O64,'Footnotes list'!$D$9:$E$58,2,FALSE)=0,"",VLOOKUP(O64,'Footnotes list'!$D$9:$E$58,2,FALSE) ) ) ->  | Q64: =IF(AND(TRIM(Q62)="",TRIM(Q63)=""),"",Q62+Q63) ->  | U64: =IF(TRIM(T64)="", "", IF(VLOOKUP(T64,'Footnotes list'!$D$9:$E$58,2,FALSE)=0,"",VLOOKUP(T64,'Footnotes list'!$D$9:$E$58,2,FALSE) ) ) ->  | V64: =IF(AND(TRIM(V62)="",TRIM(V63)=""),"",V62+V63) ->  | Z64: =IF(TRIM(Y64)="", "", IF(VLOOKUP(Y64,'Footnotes list'!$D$9:$E$58,2,FALSE)=0,"",VLOOKUP(Y64,'Footnotes list'!$D$9:$E$58,2,FALSE) ) ) ->  | AA64: =IF(AND(TRIM(AA62)="", TRIM(AA63)=""), "", SUM(AA62,AA63)) ->  | AE64: =IF(TRIM(AD64)="", "", IF(VLOOKUP(AD64,'Footnotes list'!$D$9:$E$58,2,FALSE)=0,"",VLOOKUP(AD64,'Footnotes list'!$D$9:$E$58,2,FALSE) ) ) ->  | AF64: =IF(AND(TRIM(AF62)="",TRIM(AF63)=""),"",AF62+AF63) ->  | AJ64: =IF(TRIM(AI64)="", "", IF(VLOOKUP(AI64,'Footnotes list'!$D$9:$E$58,2,FALSE)=0,"",VLOOKUP(AI64,'Footnotes list'!$D$9:$E$58,2,FALSE) ) ) ->  | AK64: =IF(AND(TRIM(AK62)="",TRIM(AK63)=""),"",AK62+AK63) ->  | AO64: =IF(TRIM(AN64)="", "", IF(VLOOKUP(AN64,'Footnotes list'!$D$9:$E$58,2,FALSE)=0,"",VLOOKUP(AN64,'Footnotes list'!$D$9:$E$58,2,FALSE) ) ) ->  | AP64: =IF(AND(TRIM(AP62)="", TRIM(AP63)=""), "", SUM(AP62,AP63)) ->  | AT64: =IF(TRIM(AS64)="", "", IF(VLOOKUP(AS64,'Footnotes list'!$D$9:$E$58,2,FALSE)=0,"",VLOOKUP(AS64,'Footnotes list'!$D$9:$E$58,2,FALSE) ) ) ->  | AU64: =IF(AND(TRIM(AU62)="", TRIM(AU63)=""), "", SUM(AU62,AU63) ) ->  | AY64: =IF(TRIM(AX64)="", "", IF(VLOOKUP(AX64,'Footnotes list'!$D$9:$E$58,2,FALSE)=0,"",VLOOKUP(AX64,'Footnotes list'!$D$9:$E$58,2,FALSE) ) ) -> 
B65: W0841 | C65: W0841 | D65: Batteries and accumulators wastes | E65: HAZ | F65: Hazardous | K65: =IF(TRIM(J65)="", "", IF(VLOOKUP(J65,'Footnotes list'!$D$9:$E$58,2,FALSE)=0,"",VLOOKUP(J65,'Footnotes list'!$D$9:$E$58,2,FALSE) ) ) ->  | P65: =IF(TRIM(O65)="", "", IF(VLOOKUP(O65,'Footnotes list'!$D$9:$E$58,2,FALSE)=0,"",VLOOKUP(O65,'Footnotes list'!$D$9:$E$58,2,FALSE) ) ) ->  | U65: =IF(TRIM(T65)="", "", IF(VLOOKUP(T65,'Footnotes list'!$D$9:$E$58,2,FALSE)=0,"",VLOOKUP(T65,'Footnotes list'!$D$9:$E$58,2,FALSE) ) ) ->  | Z65: =IF(TRIM(Y65)="", "", IF(VLOOKUP(Y65,'Footnotes list'!$D$9:$E$58,2,FALSE)=0,"",VLOOKUP(Y65,'Footnotes list'!$D$9:$E$58,2,FALSE) ) ) ->  | AA65: =IF(AND(TRIM(Q65)="",TRIM(V65)=""),"",Q65+V65) ->  | AE65: =IF(TRIM(AD65)="", "", IF(VLOOKUP(AD65,'Footnotes list'!$D$9:$E$58,2,FALSE)=0,"",VLOOKUP(AD65,'Footnotes list'!$D$9:$E$58,2,FALSE) ) ) ->  | AJ65: =IF(TRIM(AI65)="", "", IF(VLOOKUP(AI65,'Footnotes list'!$D$9:$E$58,2,FALSE)=0,"",VLOOKUP(AI65,'Footnotes list'!$D$9:$E$58,2,FALSE) ) ) ->  | AO65: =IF(TRIM(AN65)="", "", IF(VLOOKUP(AN65,'Footnotes list'!$D$9:$E$58,2,FALSE)=0,"",VLOOKUP(AN65,'Footnotes list'!$D$9:$E$58,2,FALSE) ) ) ->  | AP65: =IF(AND(TRIM(AF65)="",TRIM(AK65)=""),"",AF65+AK65) ->  | AT65: =IF(TRIM(AS65)="", "", IF(VLOOKUP(AS65,'Footnotes list'!$D$9:$E$58,2,FALSE)=0,"",VLOOKUP(AS65,'Footnotes list'!$D$9:$E$58,2,FALSE) ) ) ->  | AU65: =IF(AND(TRIM(G65)="",TRIM(L65)="",TRIM(AA65)="",TRIM(AP65)=""),"",SUM(G65,L65,AA65,AP65)) ->  | AY65: =IF(TRIM(AX65)="", "", IF(VLOOKUP(AX65,'Footnotes list'!$D$9:$E$58,2,FALSE)=0,"",VLOOKUP(AX65,'Footnotes list'!$D$9:$E$58,2,FALSE) ) ) -> 
C66: W0841 | E66: NHAZ | F66: Non-hazardous | K66: =IF(TRIM(J66)="", "", IF(VLOOKUP(J66,'Footnotes list'!$D$9:$E$58,2,FALSE)=0,"",VLOOKUP(J66,'Footnotes list'!$D$9:$E$58,2,FALSE) ) ) ->  | P66: =IF(TRIM(O66)="", "", IF(VLOOKUP(O66,'Footnotes list'!$D$9:$E$58,2,FALSE)=0,"",VLOOKUP(O66,'Footnotes list'!$D$9:$E$58,2,FALSE) ) ) ->  | U66: =IF(TRIM(T66)="", "", IF(VLOOKUP(T66,'Footnotes list'!$D$9:$E$58,2,FALSE)=0,"",VLOOKUP(T66,'Footnotes list'!$D$9:$E$58,2,FALSE) ) ) ->  | Z66: =IF(TRIM(Y66)="", "", IF(VLOOKUP(Y66,'Footnotes list'!$D$9:$E$58,2,FALSE)=0,"",VLOOKUP(Y66,'Footnotes list'!$D$9:$E$58,2,FALSE) ) ) ->  | AA66: =IF(AND(TRIM(Q66)="",TRIM(V66)=""),"",Q66+V66) ->  | AE66: =IF(TRIM(AD66)="", "", IF(VLOOKUP(AD66,'Footnotes list'!$D$9:$E$58,2,FALSE)=0,"",VLOOKUP(AD66,'Footnotes list'!$D$9:$E$58,2,FALSE) ) ) ->  | AJ66: =IF(TRIM(AI66)="", "", IF(VLOOKUP(AI66,'Footnotes list'!$D$9:$E$58,2,FALSE)=0,"",VLOOKUP(AI66,'Footnotes list'!$D$9:$E$58,2,FALSE) ) ) ->  | AO66: =IF(TRIM(AN66)="", "", IF(VLOOKUP(AN66,'Footnotes list'!$D$9:$E$58,2,FALSE)=0,"",VLOOKUP(AN66,'Footnotes list'!$D$9:$E$58,2,FALSE) ) ) ->  | AP66: =IF(AND(TRIM(AF66)="",TRIM(AK66)=""),"",AF66+AK66) ->  | AT66: =IF(TRIM(AS66)="", "", IF(VLOOKUP(AS66,'Footnotes list'!$D$9:$E$58,2,FALSE)=0,"",VLOOKUP(AS66,'Footnotes list'!$D$9:$E$58,2,FALSE) ) ) ->  | AU66: =IF(AND(TRIM(G66)="",TRIM(L66)="",TRIM(AA66)="",TRIM(AP66)=""),"",SUM(G66,L66,AA66,AP66)) ->  | AY66: =IF(TRIM(AX66)="", "", IF(VLOOKUP(AX66,'Footnotes list'!$D$9:$E$58,2,FALSE)=0,"",VLOOKUP(AX66,'Footnotes list'!$D$9:$E$58,2,FALSE) ) ) -> 
C67: W0841 | E67: HAZ_NHAZ | F67: Total | G67: =IF(AND(TRIM(G65)="",TRIM(G66)=""),"",G65+G66) ->  | K67: =IF(TRIM(J67)="", "", IF(VLOOKUP(J67,'Footnotes list'!$D$9:$E$58,2,FALSE)=0,"",VLOOKUP(J67,'Footnotes list'!$D$9:$E$58,2,FALSE) ) ) ->  | L67: =IF(AND(TRIM(L65)="",TRIM(L66)=""),"",L65+L66) ->  | P67: =IF(TRIM(O67)="", "", IF(VLOOKUP(O67,'Footnotes list'!$D$9:$E$58,2,FALSE)=0,"",VLOOKUP(O67,'Footnotes list'!$D$9:$E$58,2,FALSE) ) ) ->  | Q67: =IF(AND(TRIM(Q65)="",TRIM(Q66)=""),"",Q65+Q66) ->  | U67: =IF(TRIM(T67)="", "", IF(VLOOKUP(T67,'Footnotes list'!$D$9:$E$58,2,FALSE)=0,"",VLOOKUP(T67,'Footnotes list'!$D$9:$E$58,2,FALSE) ) ) ->  | V67: =IF(AND(TRIM(V65)="",TRIM(V66)=""),"",V65+V66) ->  | Z67: =IF(TRIM(Y67)="", "", IF(VLOOKUP(Y67,'Footnotes list'!$D$9:$E$58,2,FALSE)=0,"",VLOOKUP(Y67,'Footnotes list'!$D$9:$E$58,2,FALSE) ) ) ->  | AA67: =IF(AND(TRIM(AA65)="", TRIM(AA66)=""), "", SUM(AA65,AA66)) ->  | AE67: =IF(TRIM(AD67)="", "", IF(VLOOKUP(AD67,'Footnotes list'!$D$9:$E$58,2,FALSE)=0,"",VLOOKUP(AD67,'Footnotes list'!$D$9:$E$58,2,FALSE) ) ) ->  | AF67: =IF(AND(TRIM(AF65)="",TRIM(AF66)=""),"",AF65+AF66) ->  | AJ67: =IF(TRIM(AI67)="", "", IF(VLOOKUP(AI67,'Footnotes list'!$D$9:$E$58,2,FALSE)=0,"",VLOOKUP(AI67,'Footnotes list'!$D$9:$E$58,2,FALSE) ) ) ->  | AK67: =IF(AND(TRIM(AK65)="",TRIM(AK66)=""),"",AK65+AK66) ->  | AO67: =IF(TRIM(AN67)="", "", IF(VLOOKUP(AN67,'Footnotes list'!$D$9:$E$58,2,FALSE)=0,"",VLOOKUP(AN67,'Footnotes list'!$D$9:$E$58,2,FALSE) ) ) ->  | AP67: =IF(AND(TRIM(AP65)="", TRIM(AP66)=""), "", SUM(AP65,AP66)) ->  | AT67: =IF(TRIM(AS67)="", "", IF(VLOOKUP(AS67,'Footnotes list'!$D$9:$E$58,2,FALSE)=0,"",VLOOKUP(AS67,'Footnotes list'!$D$9:$E$58,2,FALSE) ) ) ->  | AU67: =IF(AND(TRIM(AU65)="", TRIM(AU66)=""), "", SUM(AU65,AU66) ) ->  | AY67: =IF(TRIM(AX67)="", "", IF(VLOOKUP(AX67,'Footnotes list'!$D$9:$E$58,2,FALSE)=0,"",VLOOKUP(AX67,'Footnotes list'!$D$9:$E$58,2,FALSE) ) ) -> 
B68: W091 | D68: Animal and mixed food waste | F68: Not applicable
C69: W091 | E69: NHAZ | F69: Non-hazardous | K69: =IF(TRIM(J69)="", "", IF(VLOOKUP(J69,'Footnotes list'!$D$9:$E$58,2,FALSE)=0,"",VLOOKUP(J69,'Footnotes list'!$D$9:$E$58,2,FALSE) ) ) ->  | P69: =IF(TRIM(O69)="", "", IF(VLOOKUP(O69,'Footnotes list'!$D$9:$E$58,2,FALSE)=0,"",VLOOKUP(O69,'Footnotes list'!$D$9:$E$58,2,FALSE) ) ) ->  | U69: =IF(TRIM(T69)="", "", IF(VLOOKUP(T69,'Footnotes list'!$D$9:$E$58,2,FALSE)=0,"",VLOOKUP(T69,'Footnotes list'!$D$9:$E$58,2,FALSE) ) ) ->  | Z69: =IF(TRIM(Y69)="", "", IF(VLOOKUP(Y69,'Footnotes list'!$D$9:$E$58,2,FALSE)=0,"",VLOOKUP(Y69,'Footnotes list'!$D$9:$E$58,2,FALSE) ) ) ->  | AA69: =IF(AND(TRIM(Q69)="",TRIM(V69)=""),"",Q69+V69) ->  | AE69: =IF(TRIM(AD69)="", "", IF(VLOOKUP(AD69,'Footnotes list'!$D$9:$E$58,2,FALSE)=0,"",VLOOKUP(AD69,'Footnotes list'!$D$9:$E$58,2,FALSE) ) ) ->  | AJ69: =IF(TRIM(AI69)="", "", IF(VLOOKUP(AI69,'Footnotes list'!$D$9:$E$58,2,FALSE)=0,"",VLOOKUP(AI69,'Footnotes list'!$D$9:$E$58,2,FALSE) ) ) ->  | AO69: =IF(TRIM(AN69)="", "", IF(VLOOKUP(AN69,'Footnotes list'!$D$9:$E$58,2,FALSE)=0,"",VLOOKUP(AN69,'Footnotes list'!$D$9:$E$58,2,FALSE) ) ) ->  | AP69: =IF(AND(TRIM(AF69)="",TRIM(AK69)=""),"",AF69+AK69) ->  | AT69: =IF(TRIM(AS69)="", "", IF(VLOOKUP(AS69,'Footnotes list'!$D$9:$E$58,2,FALSE)=0,"",VLOOKUP(AS69,'Footnotes list'!$D$9:$E$58,2,FALSE) ) ) ->  | AU69: =IF(AND(TRIM(G69)="",TRIM(L69)="",TRIM(AA69)="",TRIM(AP69)=""),"",SUM(G69,L69,AA69,AP69)) ->  | AY69: =IF(TRIM(AX69)="", "", IF(VLOOKUP(AX69,'Footnotes list'!$D$9:$E$58,2,FALSE)=0,"",VLOOKUP(AX69,'Footnotes list'!$D$9:$E$58,2,FALSE) ) ) -> 
C70: W091 | E70: HAZ_NHAZ | F70: Total | G70: =IF(AND(TRIM(G68)="",TRIM(G69)=""),"",G68+G69) ->  | K70: =IF(TRIM(J70)="", "", IF(VLOOKUP(J70,'Footnotes list'!$D$9:$E$58,2,FALSE)=0,"",VLOOKUP(J70,'Footnotes list'!$D$9:$E$58,2,FALSE) ) ) ->  | L70: =IF(AND(TRIM(L68)="",TRIM(L69)=""),"",L68+L69) ->  | P70: =IF(TRIM(O70)="", "", IF(VLOOKUP(O70,'Footnotes list'!$D$9:$E$58,2,FALSE)=0,"",VLOOKUP(O70,'Footnotes list'!$D$9:$E$58,2,FALSE) ) ) ->  | Q70: =IF(AND(TRIM(Q68)="",TRIM(Q69)=""),"",Q68+Q69) ->  | U70: =IF(TRIM(T70)="", "", IF(VLOOKUP(T70,'Footnotes list'!$D$9:$E$58,2,FALSE)=0,"",VLOOKUP(T70,'Footnotes list'!$D$9:$E$58,2,FALSE) ) ) ->  | V70: =IF(AND(TRIM(V68)="",TRIM(V69)=""),"",V68+V69) ->  | Z70: =IF(TRIM(Y70)="", "", IF(VLOOKUP(Y70,'Footnotes list'!$D$9:$E$58,2,FALSE)=0,"",VLOOKUP(Y70,'Footnotes list'!$D$9:$E$58,2,FALSE) ) ) ->  | AA70: =IF(AND(TRIM(AA68)="", TRIM(AA69)=""), "", SUM(AA68,AA69)) ->  | AE70: =IF(TRIM(AD70)="", "", IF(VLOOKUP(AD70,'Footnotes list'!$D$9:$E$58,2,FALSE)=0,"",VLOOKUP(AD70,'Footnotes list'!$D$9:$E$58,2,FALSE) ) ) ->  | AF70: =IF(AND(TRIM(AF68)="",TRIM(AF69)=""),"",AF68+AF69) ->  | AJ70: =IF(TRIM(AI70)="", "", IF(VLOOKUP(AI70,'Footnotes list'!$D$9:$E$58,2,FALSE)=0,"",VLOOKUP(AI70,'Footnotes list'!$D$9:$E$58,2,FALSE) ) ) ->  | AK70: =IF(AND(TRIM(AK68)="",TRIM(AK69)=""),"",AK68+AK69) ->  | AO70: =IF(TRIM(AN70)="", "", IF(VLOOKUP(AN70,'Footnotes list'!$D$9:$E$58,2,FALSE)=0,"",VLOOKUP(AN70,'Footnotes list'!$D$9:$E$58,2,FALSE) ) ) ->  | AP70: =IF(AND(TRIM(AP68)="", TRIM(AP69)=""), "", SUM(AP68,AP69)) ->  | AT70: =IF(TRIM(AS70)="", "", IF(VLOOKUP(AS70,'Footnotes list'!$D$9:$E$58,2,FALSE)=0,"",VLOOKUP(AS70,'Footnotes list'!$D$9:$E$58,2,FALSE) ) ) ->  | AU70: =IF(AND(TRIM(AU68)="", TRIM(AU69)=""), "", SUM(AU68,AU69) ) ->  | AY70: =IF(TRIM(AX70)="", "", IF(VLOOKUP(AX70,'Footnotes list'!$D$9:$E$58,2,FALSE)=0,"",VLOOKUP(AX70,'Footnotes list'!$D$9:$E$58,2,FALSE) ) ) -> 
B71: W092 | D71: Vegetal wastes | F71: Not applicable
C72: W092 | E72: NHAZ | F72: Non-hazardous | K72: =IF(TRIM(J72)="", "", IF(VLOOKUP(J72,'Footnotes list'!$D$9:$E$58,2,FALSE)=0,"",VLOOKUP(J72,'Footnotes list'!$D$9:$E$58,2,FALSE) ) ) ->  | P72: =IF(TRIM(O72)="", "", IF(VLOOKUP(O72,'Footnotes list'!$D$9:$E$58,2,FALSE)=0,"",VLOOKUP(O72,'Footnotes list'!$D$9:$E$58,2,FALSE) ) ) ->  | U72: =IF(TRIM(T72)="", "", IF(VLOOKUP(T72,'Footnotes list'!$D$9:$E$58,2,FALSE)=0,"",VLOOKUP(T72,'Footnotes list'!$D$9:$E$58,2,FALSE) ) ) ->  | Z72: =IF(TRIM(Y72)="", "", IF(VLOOKUP(Y72,'Footnotes list'!$D$9:$E$58,2,FALSE)=0,"",VLOOKUP(Y72,'Footnotes list'!$D$9:$E$58,2,FALSE) ) ) ->  | AA72: =IF(AND(TRIM(Q72)="",TRIM(V72)=""),"",Q72+V72) ->  | AE72: =IF(TRIM(AD72)="", "", IF(VLOOKUP(AD72,'Footnotes list'!$D$9:$E$58,2,FALSE)=0,"",VLOOKUP(AD72,'Footnotes list'!$D$9:$E$58,2,FALSE) ) ) ->  | AJ72: =IF(TRIM(AI72)="", "", IF(VLOOKUP(AI72,'Footnotes list'!$D$9:$E$58,2,FALSE)=0,"",VLOOKUP(AI72,'Footnotes list'!$D$9:$E$58,2,FALSE) ) ) ->  | AO72: =IF(TRIM(AN72)="", "", IF(VLOOKUP(AN72,'Footnotes list'!$D$9:$E$58,2,FALSE)=0,"",VLOOKUP(AN72,'Footnotes list'!$D$9:$E$58,2,FALSE) ) ) ->  | AP72: =IF(AND(TRIM(AF72)="",TRIM(AK72)=""),"",AF72+AK72) ->  | AT72: =IF(TRIM(AS72)="", "", IF(VLOOKUP(AS72,'Footnotes list'!$D$9:$E$58,2,FALSE)=0,"",VLOOKUP(AS72,'Footnotes list'!$D$9:$E$58,2,FALSE) ) ) ->  | AU72: =IF(AND(TRIM(G72)="",TRIM(L72)="",TRIM(AA72)="",TRIM(AP72)=""),"",SUM(G72,L72,AA72,AP72)) ->  | AY72: =IF(TRIM(AX72)="", "", IF(VLOOKUP(AX72,'Footnotes list'!$D$9:$E$58,2,FALSE)=0,"",VLOOKUP(AX72,'Footnotes list'!$D$9:$E$58,2,FALSE) ) ) -> 
C73: W092 | E73: HAZ_NHAZ | F73: Total | G73: =IF(AND(TRIM(G71)="",TRIM(G72)=""),"",G71+G72) ->  | K73: =IF(TRIM(J73)="", "", IF(VLOOKUP(J73,'Footnotes list'!$D$9:$E$58,2,FALSE)=0,"",VLOOKUP(J73,'Footnotes list'!$D$9:$E$58,2,FALSE) ) ) ->  | L73: =IF(AND(TRIM(L71)="",TRIM(L72)=""),"",L71+L72) ->  | P73: =IF(TRIM(O73)="", "", IF(VLOOKUP(O73,'Footnotes list'!$D$9:$E$58,2,FALSE)=0,"",VLOOKUP(O73,'Footnotes list'!$D$9:$E$58,2,FALSE) ) ) ->  | Q73: =IF(AND(TRIM(Q71)="",TRIM(Q72)=""),"",Q71+Q72) ->  | U73: =IF(TRIM(T73)="", "", IF(VLOOKUP(T73,'Footnotes list'!$D$9:$E$58,2,FALSE)=0,"",VLOOKUP(T73,'Footnotes list'!$D$9:$E$58,2,FALSE) ) ) ->  | V73: =IF(AND(TRIM(V71)="",TRIM(V72)=""),"",V71+V72) ->  | Z73: =IF(TRIM(Y73)="", "", IF(VLOOKUP(Y73,'Footnotes list'!$D$9:$E$58,2,FALSE)=0,"",VLOOKUP(Y73,'Footnotes list'!$D$9:$E$58,2,FALSE) ) ) ->  | AA73: =IF(AND(TRIM(AA71)="", TRIM(AA72)=""), "", SUM(AA71,AA72)) ->  | AE73: =IF(TRIM(AD73)="", "", IF(VLOOKUP(AD73,'Footnotes list'!$D$9:$E$58,2,FALSE)=0,"",VLOOKUP(AD73,'Footnotes list'!$D$9:$E$58,2,FALSE) ) ) ->  | AF73: =IF(AND(TRIM(AF71)="",TRIM(AF72)=""),"",AF71+AF72) ->  | AJ73: =IF(TRIM(AI73)="", "", IF(VLOOKUP(AI73,'Footnotes list'!$D$9:$E$58,2,FALSE)=0,"",VLOOKUP(AI73,'Footnotes list'!$D$9:$E$58,2,FALSE) ) ) ->  | AK73: =IF(AND(TRIM(AK71)="",TRIM(AK72)=""),"",AK71+AK72) ->  | AO73: =IF(TRIM(AN73)="", "", IF(VLOOKUP(AN73,'Footnotes list'!$D$9:$E$58,2,FALSE)=0,"",VLOOKUP(AN73,'Footnotes list'!$D$9:$E$58,2,FALSE) ) ) ->  | AP73: =IF(AND(TRIM(AP71)="", TRIM(AP72)=""), "", SUM(AP71,AP72)) ->  | AT73: =IF(TRIM(AS73)="", "", IF(VLOOKUP(AS73,'Footnotes list'!$D$9:$E$58,2,FALSE)=0,"",VLOOKUP(AS73,'Footnotes list'!$D$9:$E$58,2,FALSE) ) ) ->  | AU73: =IF(AND(TRIM(AU71)="", TRIM(AU72)=""), "", SUM(AU71,AU72) ) ->  | AY73: =IF(TRIM(AX73)="", "", IF(VLOOKUP(AX73,'Footnotes list'!$D$9:$E$58,2,FALSE)=0,"",VLOOKUP(AX73,'Footnotes list'!$D$9:$E$58,2,FALSE) ) ) -> 
B74: W093 | D74: Animal faeces, urine and manure | F74: Not applicable
C75: W093 | E75: NHAZ | F75: Non-hazardous | K75: =IF(TRIM(J75)="", "", IF(VLOOKUP(J75,'Footnotes list'!$D$9:$E$58,2,FALSE)=0,"",VLOOKUP(J75,'Footnotes list'!$D$9:$E$58,2,FALSE) ) ) ->  | P75: =IF(TRIM(O75)="", "", IF(VLOOKUP(O75,'Footnotes list'!$D$9:$E$58,2,FALSE)=0,"",VLOOKUP(O75,'Footnotes list'!$D$9:$E$58,2,FALSE) ) ) ->  | U75: =IF(TRIM(T75)="", "", IF(VLOOKUP(T75,'Footnotes list'!$D$9:$E$58,2,FALSE)=0,"",VLOOKUP(T75,'Footnotes list'!$D$9:$E$58,2,FALSE) ) ) ->  | Z75: =IF(TRIM(Y75)="", "", IF(VLOOKUP(Y75,'Footnotes list'!$D$9:$E$58,2,FALSE)=0,"",VLOOKUP(Y75,'Footnotes list'!$D$9:$E$58,2,FALSE) ) ) ->  | AA75: =IF(AND(TRIM(Q75)="",TRIM(V75)=""),"",Q75+V75) ->  | AE75: =IF(TRIM(AD75)="", "", IF(VLOOKUP(AD75,'Footnotes list'!$D$9:$E$58,2,FALSE)=0,"",VLOOKUP(AD75,'Footnotes list'!$D$9:$E$58,2,FALSE) ) ) ->  | AJ75: =IF(TRIM(AI75)="", "", IF(VLOOKUP(AI75,'Footnotes list'!$D$9:$E$58,2,FALSE)=0,"",VLOOKUP(AI75,'Footnotes list'!$D$9:$E$58,2,FALSE) ) ) ->  | AO75: =IF(TRIM(AN75)="", "", IF(VLOOKUP(AN75,'Footnotes list'!$D$9:$E$58,2,FALSE)=0,"",VLOOKUP(AN75,'Footnotes list'!$D$9:$E$58,2,FALSE) ) ) ->  | AP75: =IF(AND(TRIM(AF75)="",TRIM(AK75)=""),"",AF75+AK75) ->  | AT75: =IF(TRIM(AS75)="", "", IF(VLOOKUP(AS75,'Footnotes list'!$D$9:$E$58,2,FALSE)=0,"",VLOOKUP(AS75,'Footnotes list'!$D$9:$E$58,2,FALSE) ) ) ->  | AU75: =IF(AND(TRIM(G75)="",TRIM(L75)="",TRIM(AA75)="",TRIM(AP75)=""),"",SUM(G75,L75,AA75,AP75)) ->  | AY75: =IF(TRIM(AX75)="", "", IF(VLOOKUP(AX75,'Footnotes list'!$D$9:$E$58,2,FALSE)=0,"",VLOOKUP(AX75,'Footnotes list'!$D$9:$E$58,2,FALSE) ) ) -> 
C76: W093 | E76: HAZ_NHAZ | F76: Total | G76: =IF(AND(TRIM(G74)="",TRIM(G75)=""),"",G74+G75) ->  | K76: =IF(TRIM(J76)="", "", IF(VLOOKUP(J76,'Footnotes list'!$D$9:$E$58,2,FALSE)=0,"",VLOOKUP(J76,'Footnotes list'!$D$9:$E$58,2,FALSE) ) ) ->  | L76: =IF(AND(TRIM(L74)="",TRIM(L75)=""),"",L74+L75) ->  | P76: =IF(TRIM(O76)="", "", IF(VLOOKUP(O76,'Footnotes list'!$D$9:$E$58,2,FALSE)=0,"",VLOOKUP(O76,'Footnotes list'!$D$9:$E$58,2,FALSE) ) ) ->  | Q76: =IF(AND(TRIM(Q74)="",TRIM(Q75)=""),"",Q74+Q75) ->  | U76: =IF(TRIM(T76)="", "", IF(VLOOKUP(T76,'Footnotes list'!$D$9:$E$58,2,FALSE)=0,"",VLOOKUP(T76,'Footnotes list'!$D$9:$E$58,2,FALSE) ) ) ->  | V76: =IF(AND(TRIM(V74)="",TRIM(V75)=""),"",V74+V75) ->  | Z76: =IF(TRIM(Y76)="", "", IF(VLOOKUP(Y76,'Footnotes list'!$D$9:$E$58,2,FALSE)=0,"",VLOOKUP(Y76,'Footnotes list'!$D$9:$E$58,2,FALSE) ) ) ->  | AA76: =IF(AND(TRIM(AA74)="", TRIM(AA75)=""), "", SUM(AA74,AA75)) ->  | AE76: =IF(TRIM(AD76)="", "", IF(VLOOKUP(AD76,'Footnotes list'!$D$9:$E$58,2,FALSE)=0,"",VLOOKUP(AD76,'Footnotes list'!$D$9:$E$58,2,FALSE) ) ) ->  | AF76: =IF(AND(TRIM(AF74)="",TRIM(AF75)=""),"",AF74+AF75) ->  | AJ76: =IF(TRIM(AI76)="", "", IF(VLOOKUP(AI76,'Footnotes list'!$D$9:$E$58,2,FALSE)=0,"",VLOOKUP(AI76,'Footnotes list'!$D$9:$E$58,2,FALSE) ) ) ->  | AK76: =IF(AND(TRIM(AK74)="",TRIM(AK75)=""),"",AK74+AK75) ->  | AO76: =IF(TRIM(AN76)="", "", IF(VLOOKUP(AN76,'Footnotes list'!$D$9:$E$58,2,FALSE)=0,"",VLOOKUP(AN76,'Footnotes list'!$D$9:$E$58,2,FALSE) ) ) ->  | AP76: =IF(AND(TRIM(AP74)="", TRIM(AP75)=""), "", SUM(AP74,AP75)) ->  | AT76: =IF(TRIM(AS76)="", "", IF(VLOOKUP(AS76,'Footnotes list'!$D$9:$E$58,2,FALSE)=0,"",VLOOKUP(AS76,'Footnotes list'!$D$9:$E$58,2,FALSE) ) ) ->  | AU76: =IF(AND(TRIM(AU74)="", TRIM(AU75)=""), "", SUM(AU74,AU75) ) ->  | AY76: =IF(TRIM(AX76)="", "", IF(VLOOKUP(AX76,'Footnotes list'!$D$9:$E$58,2,FALSE)=0,"",VLOOKUP(AX76,'Footnotes list'!$D$9:$E$58,2,FALSE) ) ) -> 
B77: W101 | D77: Household and similar wastes | F77: Not applicable
C78: W101 | E78: NHAZ | F78: Non-hazardous | K78: =IF(TRIM(J78)="", "", IF(VLOOKUP(J78,'Footnotes list'!$D$9:$E$58,2,FALSE)=0,"",VLOOKUP(J78,'Footnotes list'!$D$9:$E$58,2,FALSE) ) ) ->  | P78: =IF(TRIM(O78)="", "", IF(VLOOKUP(O78,'Footnotes list'!$D$9:$E$58,2,FALSE)=0,"",VLOOKUP(O78,'Footnotes list'!$D$9:$E$58,2,FALSE) ) ) ->  | U78: =IF(TRIM(T78)="", "", IF(VLOOKUP(T78,'Footnotes list'!$D$9:$E$58,2,FALSE)=0,"",VLOOKUP(T78,'Footnotes list'!$D$9:$E$58,2,FALSE) ) ) ->  | Z78: =IF(TRIM(Y78)="", "", IF(VLOOKUP(Y78,'Footnotes list'!$D$9:$E$58,2,FALSE)=0,"",VLOOKUP(Y78,'Footnotes list'!$D$9:$E$58,2,FALSE) ) ) ->  | AA78: =IF(AND(TRIM(Q78)="",TRIM(V78)=""),"",Q78+V78) ->  | AE78: =IF(TRIM(AD78)="", "", IF(VLOOKUP(AD78,'Footnotes list'!$D$9:$E$58,2,FALSE)=0,"",VLOOKUP(AD78,'Footnotes list'!$D$9:$E$58,2,FALSE) ) ) ->  | AJ78: =IF(TRIM(AI78)="", "", IF(VLOOKUP(AI78,'Footnotes list'!$D$9:$E$58,2,FALSE)=0,"",VLOOKUP(AI78,'Footnotes list'!$D$9:$E$58,2,FALSE) ) ) ->  | AO78: =IF(TRIM(AN78)="", "", IF(VLOOKUP(AN78,'Footnotes list'!$D$9:$E$58,2,FALSE)=0,"",VLOOKUP(AN78,'Footnotes list'!$D$9:$E$58,2,FALSE) ) ) ->  | AP78: =IF(AND(TRIM(AF78)="",TRIM(AK78)=""),"",AF78+AK78) ->  | AT78: =IF(TRIM(AS78)="", "", IF(VLOOKUP(AS78,'Footnotes list'!$D$9:$E$58,2,FALSE)=0,"",VLOOKUP(AS78,'Footnotes list'!$D$9:$E$58,2,FALSE) ) ) ->  | AU78: =IF(AND(TRIM(G78)="",TRIM(L78)="",TRIM(AA78)="",TRIM(AP78)=""),"",SUM(G78,L78,AA78,AP78)) ->  | AY78: =IF(TRIM(AX78)="", "", IF(VLOOKUP(AX78,'Footnotes list'!$D$9:$E$58,2,FALSE)=0,"",VLOOKUP(AX78,'Footnotes list'!$D$9:$E$58,2,FALSE) ) ) -> 
C79: W101 | E79: HAZ_NHAZ | F79: Total | G79: =IF(AND(TRIM(G77)="",TRIM(G78)=""),"",G77+G78) ->  | K79: =IF(TRIM(J79)="", "", IF(VLOOKUP(J79,'Footnotes list'!$D$9:$E$58,2,FALSE)=0,"",VLOOKUP(J79,'Footnotes list'!$D$9:$E$58,2,FALSE) ) ) ->  | L79: =IF(AND(TRIM(L77)="",TRIM(L78)=""),"",L77+L78) ->  | P79: =IF(TRIM(O79)="", "", IF(VLOOKUP(O79,'Footnotes list'!$D$9:$E$58,2,FALSE)=0,"",VLOOKUP(O79,'Footnotes list'!$D$9:$E$58,2,FALSE) ) ) ->  | Q79: =IF(AND(TRIM(Q77)="",TRIM(Q78)=""),"",Q77+Q78) ->  | U79: =IF(TRIM(T79)="", "", IF(VLOOKUP(T79,'Footnotes list'!$D$9:$E$58,2,FALSE)=0,"",VLOOKUP(T79,'Footnotes list'!$D$9:$E$58,2,FALSE) ) ) ->  | V79: =IF(AND(TRIM(V77)="",TRIM(V78)=""),"",V77+V78) ->  | Z79: =IF(TRIM(Y79)="", "", IF(VLOOKUP(Y79,'Footnotes list'!$D$9:$E$58,2,FALSE)=0,"",VLOOKUP(Y79,'Footnotes list'!$D$9:$E$58,2,FALSE) ) ) ->  | AA79: =IF(AND(TRIM(AA77)="", TRIM(AA78)=""), "", SUM(AA77,AA78)) ->  | AE79: =IF(TRIM(AD79)="", "", IF(VLOOKUP(AD79,'Footnotes list'!$D$9:$E$58,2,FALSE)=0,"",VLOOKUP(AD79,'Footnotes list'!$D$9:$E$58,2,FALSE) ) ) ->  | AF79: =IF(AND(TRIM(AF77)="",TRIM(AF78)=""),"",AF77+AF78) ->  | AJ79: =IF(TRIM(AI79)="", "", IF(VLOOKUP(AI79,'Footnotes list'!$D$9:$E$58,2,FALSE)=0,"",VLOOKUP(AI79,'Footnotes list'!$D$9:$E$58,2,FALSE) ) ) ->  | AK79: =IF(AND(TRIM(AK77)="",TRIM(AK78)=""),"",AK77+AK78) ->  | AO79: =IF(TRIM(AN79)="", "", IF(VLOOKUP(AN79,'Footnotes list'!$D$9:$E$58,2,FALSE)=0,"",VLOOKUP(AN79,'Footnotes list'!$D$9:$E$58,2,FALSE) ) ) ->  | AP79: =IF(AND(TRIM(AP77)="", TRIM(AP78)=""), "", SUM(AP77,AP78)) ->  | AT79: =IF(TRIM(AS79)="", "", IF(VLOOKUP(AS79,'Footnotes list'!$D$9:$E$58,2,FALSE)=0,"",VLOOKUP(AS79,'Footnotes list'!$D$9:$E$58,2,FALSE) ) ) ->  | AU79: =IF(AND(TRIM(AU77)="", TRIM(AU78)=""), "", SUM(AU77,AU78) ) ->  | AY79: =IF(TRIM(AX79)="", "", IF(VLOOKUP(AX79,'Footnotes list'!$D$9:$E$58,2,FALSE)=0,"",VLOOKUP(AX79,'Footnotes list'!$D$9:$E$58,2,FALSE) ) ) -> 
